Workbook

Sheet HHC Cover Page
A4: Housing for a Healthy California
A6: Notice of Funding Availability (NOFA) December 31, 2021
A9: Article I - National Housing Trust Fund Allocation Application
A11: Rev. | B11: 2022-02-11
A29: State of California
A30: Gavin Newsom, Governor
A32: Lourdes M. Castro Ramírez, Secretary
A33: Business, Consumer Services and Housing Agency
A35: Gustavo Velasquez, Acting Director
A36: Department of Housing and Community Development (HCD)
A38: 2020 West El Camino Avenue, Suite 150
A39: Sacramento, CA 95833
A40: Phone: (916) 263-2771
A41: Email: HHCNOFA@hcd.ca.gov
A42: Website: http://www.hcd.ca.gov/grants-funding/active-funding/hhc.shtml
A43: Application Technical Support email:
A44: AppSupport@hcd.ca.gov
A46: APPLICATION DEADLINE:
A47: 2022-03-01

Sheet Proposed Project
A1: Proposed Project | AJ1: ='HHC Cover Page'!B11 -> 2022-02-11 | AN1: Affordable Housing and Sustainable Communities Program (AHSC)
A2: Project Name: | AN2: Housing for a Healthy California (HHC)
A3: Project Address: | AN3: Joe Serna, Jr., Farmworker Housing Grant (FWHG)
A4: Project City: | L4: County: | R4: Zip: | W4: CoC: | Y4: =_xlfn.IFNA(VLOOKUP('Proposed Project'!N4,Dropdowns!A63:B120,2,FALSE),"") ->  | AH4: CoC#: | AJ4: =_xlfn.IFNA(VLOOKUP(Y4,Dropdowns!B63:C120,2,FALSE),"") ->  | AN4: Local Housing Trust Fund Program (LHTF)
A5: Tax Credits Applied For? | AN5: Multifamily Housing Program (MHP)
A6: Will this be a TCAC hybrid Project? | AN6: National Housing Trust Fund
A7: Is Project in a Rural Area as defined by H&S Code §50199.21. Applicants must use the TCAC Method for determining rural status. Reference document on the MHP webpage and include documentation of rural status. | AM7: =IF(AK7="","",IF(AK7="Yes","Rural Area","Metropolitan Area")) ->  | AN7: No Place Like Home
A8: If Project is in a Rural Area, which methodology is being used to demonstrate that the project area is rural? | AN8: Permanent Local Housing Allocation (PLHA)
A9: If Project is also known under another name(s) or was formerly known under another name(s), provide the name(s). | AN9: Supportive Housing Multifamily Housing Program (SHMHP)
A10: Have you applied, do you plan to apply, or has the Project been awarded other HCD program funds? | AN10: Transit Oriented Development Housing Program (TOD)
A11: Other HCD Program(s) Name(s): | O11: Funding Amount | T11: Funding Status | AB11: NOFA Date | AE11: Award Date/Expected Award Date | AN11: Veterans Housing and Homelessness Prevention Program (VHHP)
A15: Projects must meet ALL of the following minimum requirements. Answers provided to the questions below are subject to verification by HCD. HCD may request other information as necessary to evaluate the Application. All references to Guidelines and Sections '§' within this Application, refer to the HHC Program Guidelines located on the HHC webpage unless otherwise noted.

Sheet Organization Douments
A1: Required Applicant Documentation | AK1: ='Proposed Project'!AJ1 -> 2022-02-11
A2: Certifications & Legal Disclosure
A3: A completed and signed Certification is required for each Joint Applicant. Each Joint Applicant must sign an individual Certification form. A completed and signed Legal Disclosure is also required for each Joint Applicant. The hard copy Certifications & Legal Disclosure should be submitted with the application as detailed in the NOFA.
A4: Resolutions
A5: Applicant may use their own Resolution format as long as it contains ALL of the authorizations as in the sample. The person attesting to the resolution signing cannot be the same person authorized to execute the documents in the name of the applicant. If more than one authorized signatory is identified, state whether both signatories are required or only one signatory is required to submit and execute Program docs. If the application is being signed by a designee of the authorized signatory, the applicant must also submit a designee letter or other proof of signing authority.
A6: A resolution is required of each Joint Applicant - both private and public entities. A sample resolution template is available on the HHC website.
A7: Organizational Documents
A8: Organizational documents are required for all Applicants, except where a joint applicant is a governmental entity. Governmental entities are not required to submit organizational documents with the application.
A9: Submit organizational documents supporting the Resolution submitted with the application.
A10: Corporation organizational documents
A11: Articles of Incorporation (Corp. Code §154, 200 and 202) as certified by the CA Secretary of State. Bylaws and any amendments thereto (Corp. Code §207(b), 211 and 212) Certificate of Amendment of Articles of Incorporation (Corp. Code §900-910 (general stock), §5810-5820 (public benefit and religious corporations), §7810-7820 (mutual benefit corporations), or §12500-12510 (general cooperative corporations)) as applicable. Restated Articles of Incorporation (Corp. Code §901, 906, 910 (general stock), §5811, 5815, 5819 (public benefit and religious corporations), §7811, 7815 and 7819 (mutual benefit corporations) and §12501, 12506 and 12510 (general cooperative corporations)) as applicable. Statement of Information (CA Secretary of State form SI-100 or SI-200) Shareholder Agreements (Corp. Code §186) if applicable. Certificate of Good Standing certified by Secretary of State.
A12: Any other CA Secretary of State filings applicable to revivals, conversions or mergers.
A13: Limited Liability Company organizational documents
A14: Articles of Organization (CA Secretary of State form LLC-1) Certificate of Amendment (CA Secretary of State form LLC-2) if applicable. Restated Articles of Organization (CA Secretary of State form LLC-10) if applicable. Certificate of Correction (CA Secretary of State form LLC-11) if applicable. Statement of Information (CA Secretary of State form LLC-12 or LLC-12NC) Operating Agreement (Corp. Code §17707.02(s) and 17701.10.) Certificate of Good Standing certified by Secretary of State.
A15: Any other CA Secretary of State filings applicable to revivals, conversions or mergers.
A16: Limited Partnership organizational documents
A17: Certificate of Limited Partnership (CA Secretary of State form LP-1) Amendment to Certificate of Limited Partnership (CA Secretary of State form LP-2) if applicable. Certificate of Correction (CA Secretary of State form LP-2) if applicable. Limited Partnership Agreement (CA Corp. Code §15901.02(x) and 15901.10) Certificate of Good Standing certified by Secretary of State.
A18: Any other CA Secretary of State filings applicable to revivals, conversions or mergers.
A19: Organizational Chart
A20: The Organizational chart must depict the organizational structure of the entities in relation to the applicant.
A21: Signature Block
A22: All Applicants must submit a Signature Block in a Microsoft Word Document that will be used in the HCD legal documents such as the Standard Agreement.
A23: Payee Data Record STD-204 or Taxpayer Identification Number (TIN)
A24: The TIN must be submitted by all governmental entity Applicants. All other Applicants must submit the STD-204 Payee Data Record. Forms available on HHC website.

Sheet Local & Env Verification
A1: =CONCATENATE('Proposed Project'!E2," Verification of Environmental Review & Land Use Entitlements") -> Verification of Environmental Review & Land Use Entitlements | AK1: ='HHC Cover Page'!B11 -> 2022-02-11
A2: TO THE APPLICANT: Submit this form to the agency or department of local government responsible for administration of the items listed. This form may be submitted to more than one agency or department, if necessary. Applicants need only submit one completed form per Locality. If the NEPA Responsible Entity is not a local government, submit a copy of this form to the appropriate NEPA Responsible Entity. If an item is not required, include the reason why in the box provided.
A3: Applicant
A4: Entity Name | W4: Applicant Type
A5: Address | V5: City | AC5: State | AH5: Zip
B6: Project Name | H6: Brief Description | R6: Address | X6: City | AA6: Zip | AD6: County | AG6: Census Tracts | AJ6: APNs
A15: TO THE LOCAL JURISDICTION OR NEPA RESPONSIBLE ENTITY: The Applicant named above will submit an application to the State of California, Department of Housing and Community Development, requesting funding for the project named above under the Housing for Healthy Californians Program (HHC). Projects will be evaluated based upon readiness. Please answer the following questions:
A16: Environmental Review
A17: This form must be completed in its entirety regardless of the answer to the preceding question.
A18: All Environmental Clearances (CEQA/NEPA/NHTF Environmental Provision) necessary to begin construction: | I18: Not Required for this Project | N18: Has a Negative Declaration been issued? | S18: Final Date of Public Comment Period | X18: Date(s) EIR Certified / Notice of Determination filed | AC18: Date Appeal Period Ends | AH18: Have any appeals been filed?
A19: CEQA
A20: NEPA*
A21: NHTF Environmental Provision 24 CFR 93.301(f)(1) and (2) | I21: Required
A22: In the box below, explain why any items are not required and include documentation, if applicable:
A24: Signature Block for Environmental Review
A25: I certify that the information on this form is true and correct to the best of my knowledge.
A26: Date: | J26: Signature of party completing form:
A27: Printed name of party completing form:
A28: Title of party completing form: | T28: Agency and/or Dept. name:
A29: Agency/Dept. Address | V29: City | AC29: State | AH29: Zip
A30: Land Use Entitlements (indicate below the status of the following local approvals)
A31: All necessary and discretionary public land use approvals except building permits and other ministerial approvals are: | N31: Not Required for this Project | S31: Project is consistent with local planning documents & zoning ordinances | AA31: An Application has been submitted, accepted and deemed complete for processing | AJ31: Date Approved
A32: General Plan Amendment:
A33: Site Plan Review:
A34: Zoning Approval:
A35: Conditional Use Permits:
A36: Density Bonus:
A37: Other Variances:
A38: Other Variances:
A39: Other Variances:
A40: Other Variances:
A41: Other Variances:
A42: In the box below, explain why any items are not required and include documentation, if applicable:
A44: Signature Block for Land Use Entitlements
A45: I certify that the information on this form is true and correct to the best of my knowledge.
A46: Date: | J46: Signature of party completing form:
A47: Printed name of party completing form:
A48: Title of party completing form: | T48: Agency and/or Dept. name:
A49: Agency/Dept. Address | V49: City | AC49: State | AH49: Zip

Sheet Max Funds and Unit Mix
A1: Project Unit Mix and Maximum Loan Amount | BD1: ='Proposed Project'!AJ1 -> 2022-02-11
AN2: Subsidy Program Name | AS2: Subsidy Program Name | AX2: County the Project is located | BB2: =IF('Proposed Project'!N4="","",'Proposed Project'!N4) ->  | BJ2: Total Monthly Subsidy Revenue
A4: # of Bedrms | C4: % of Area Median Income | E4: Total Units | G4: HHC Assisted Units | I4: Chronic Homeless Units | K4: Homeless & High-Cost Health User Units | M4: Other HCD Funding on Units | P4: Total Restricted Units | S4: Total Unrestricted Units | V4: ='Proposed Project'!AM7&" Eligble Per Unit Capital Loan Limit" -> Eligble Per Unit Capital Loan Limit | Y4: 3. Capital Loan Amount Limit | AB4: Manager Units | AD4: Restricted Monthly Rent | AF4: Unrestricted Monthly Rent | AI4: Proposed Monthly Rent | AL4: 1Monthly Utility Allowance | AN4: Monthly Rent Subsidy Amount | AQ4: Subsidy Units | AS4: Monthly Rent Subsidy Amount | AV4: Subsidy Units | AX4: # of Baths | AZ4: Square Feet | BB4: Building Type | BG4: Total Net Monthly Restricted Rent | BH4: Total Net Monthly Proposed Rent | BI4: Total Monthly Unrestricted Rent | BJ4: =AN2 -> Subsidy Program Name | BK4: =AS2 -> Subsidy Program Name | BL4: Total Net Monthly Restricted Rent (HHC Ass. Units) | BM4: Total Net Monthly Proposed Rent (HHC Ass. Units) | BO4: 0 | BP4: 1 | BQ4: 2 | BR4: 3 | BS4: 4 | BT4: HHC Sq Ft | BU4: Non Ass Sq Ft (w/o Mgr units)
P5: =IF(OR(C5="",C5="none"),0,E5) -> 0 | S5: =IF(OR(C5="",C5="none"),E5,0) -> 0 | V5: =IF(A5="",0,IF(A5=0,BO5,IF(A5=1,BP5,IF(A5=2,BQ5,IF(A5=3,BR5,IF(A5>=4,BS5,0)))))) -> 0 | Y5: =G5*V5 -> 0 | AD5: =IFERROR(INDEX('HHC Rent Limits'!$A$1:$O$1045,MATCH(BN5,'HHC Rent Limits'!$A$1:$A$1045,0),MATCH(A5,'HHC Rent Limits'!$A$1:$O$1,0)),0) -> 0 | BG5: =(AD5-AL5)*P5 -> 0 | BH5: =(AI5-AL5)*P5 -> 0 | BI5: =S5*AF5 -> 0 | BJ5: =AN5*AQ5 -> 0 | BK5: =AS5*AV5 -> 0 | BL5: =IF(M5="",(AD5-AL5)*G5,0) -> 0 | BM5: =IF(M5="",(AI5-AL5)*G5,0) -> 0 | BN5: =CONCATENATE($BB$2,'Max Funds and Unit Mix'!C5) ->  | BO5: =IF('Proposed Project'!$AM$7="",0,IF('Proposed Project'!$AM$7="Rural Area",320000,400000)) -> 0 | BP5: =IF('Proposed Project'!$AM$7="",0,IF('Proposed Project'!$AM$7="Rural Area",360000,450000)) -> 0 | BQ5: =IF('Proposed Project'!$AM$7="",0,IF('Proposed Project'!$AM$7="Rural Area",400000,500000)) -> 0 | BR5: =IF('Proposed Project'!$AM$7="",0,IF('Proposed Project'!$AM$7="Rural Area",432000,540000)) -> 0 | BS5: =IF('Proposed Project'!$AM$7="",0,IF('Proposed Project'!$AM$7="Rural Area",464000,580000)) -> 0 | BT5: =G5*AZ5 -> 0 | BU5: =(E5-G5-AB5)*AZ5 -> 0
P6: 0 | S6: 0 | V6: 0 | Y6: =G6*V6 -> 0 | AD6: =IFERROR(INDEX('HHC Rent Limits'!$A$1:$O$1045,MATCH(BN6,'HHC Rent Limits'!$A$1:$A$1045,0),MATCH(A6,'HHC Rent Limits'!$A$1:$O$1,0)),0) -> 0 | BG6: 0 | BH6: 0 | BI6: 0 | BJ6: =AN6*AQ6 -> 0 | BK6: =AS6*AV6 -> 0 | BL6: 0 | BM6: 0 | BN6: =CONCATENATE($BB$2,'Max Funds and Unit Mix'!C6) ->  | BO6: =IF('Proposed Project'!$AM$7="",0,IF('Proposed Project'!$AM$7="Rural Area",320000,400000)) -> 0 | BP6: =IF('Proposed Project'!$AM$7="",0,IF('Proposed Project'!$AM$7="Rural Area",360000,450000)) -> 0 | BQ6: =IF('Proposed Project'!$AM$7="",0,IF('Proposed Project'!$AM$7="Rural Area",400000,500000)) -> 0 | BR6: =IF('Proposed Project'!$AM$7="",0,IF('Proposed Project'!$AM$7="Rural Area",432000,540000)) -> 0 | BS6: =IF('Proposed Project'!$AM$7="",0,IF('Proposed Project'!$AM$7="Rural Area",464000,580000)) -> 0 | BT6: 0 | BU6: 0
P7: 0 | S7: 0 | V7: 0 | Y7: 0 | AD7: =IFERROR(INDEX('HHC Rent Limits'!$A$1:$O$1045,MATCH(BN7,'HHC Rent Limits'!$A$1:$A$1045,0),MATCH(A7,'HHC Rent Limits'!$A$1:$O$1,0)),0) -> 0 | BG7: 0 | BH7: 0 | BI7: 0 | BJ7: 0 | BK7: 0 | BL7: 0 | BM7: 0 | BN7: =CONCATENATE($BB$2,'Max Funds and Unit Mix'!C7) ->  | BO7: =IF('Proposed Project'!$AM$7="",0,IF('Proposed Project'!$AM$7="Rural Area",320000,400000)) -> 0 | BP7: =IF('Proposed Project'!$AM$7="",0,IF('Proposed Project'!$AM$7="Rural Area",360000,450000)) -> 0 | BQ7: =IF('Proposed Project'!$AM$7="",0,IF('Proposed Project'!$AM$7="Rural Area",400000,500000)) -> 0 | BR7: =IF('Proposed Project'!$AM$7="",0,IF('Proposed Project'!$AM$7="Rural Area",432000,540000)) -> 0 | BS7: =IF('Proposed Project'!$AM$7="",0,IF('Proposed Project'!$AM$7="Rural Area",464000,580000)) -> 0 | BT7: 0 | BU7: 0
P8: 0 | S8: 0 | V8: 0 | Y8: 0 | AD8: =IFERROR(INDEX('HHC Rent Limits'!$A$1:$O$1045,MATCH(BN8,'HHC Rent Limits'!$A$1:$A$1045,0),MATCH(A8,'HHC Rent Limits'!$A$1:$O$1,0)),0) -> 0 | BG8: 0 | BH8: 0 | BI8: 0 | BJ8: 0 | BK8: 0 | BL8: 0 | BM8: 0 | BN8: =CONCATENATE($BB$2,'Max Funds and Unit Mix'!C8) ->  | BO8: =IF('Proposed Project'!$AM$7="",0,IF('Proposed Project'!$AM$7="Rural Area",320000,400000)) -> 0 | BP8: =IF('Proposed Project'!$AM$7="",0,IF('Proposed Project'!$AM$7="Rural Area",360000,450000)) -> 0 | BQ8: =IF('Proposed Project'!$AM$7="",0,IF('Proposed Project'!$AM$7="Rural Area",400000,500000)) -> 0 | BR8: =IF('Proposed Project'!$AM$7="",0,IF('Proposed Project'!$AM$7="Rural Area",432000,540000)) -> 0 | BS8: =IF('Proposed Project'!$AM$7="",0,IF('Proposed Project'!$AM$7="Rural Area",464000,580000)) -> 0 | BT8: 0 | BU8: 0
P9: 0 | S9: 0 | V9: 0 | Y9: 0 | AD9: =IFERROR(INDEX('HHC Rent Limits'!$A$1:$O$1045,MATCH(BN9,'HHC Rent Limits'!$A$1:$A$1045,0),MATCH(A9,'HHC Rent Limits'!$A$1:$O$1,0)),0) -> 0 | BG9: 0 | BH9: 0 | BI9: 0 | BJ9: 0 | BK9: 0 | BL9: 0 | BM9: 0 | BN9: =CONCATENATE($BB$2,'Max Funds and Unit Mix'!C9) ->  | BO9: =IF('Proposed Project'!$AM$7="",0,IF('Proposed Project'!$AM$7="Rural Area",320000,400000)) -> 0 | BP9: =IF('Proposed Project'!$AM$7="",0,IF('Proposed Project'!$AM$7="Rural Area",360000,450000)) -> 0 | BQ9: =IF('Proposed Project'!$AM$7="",0,IF('Proposed Project'!$AM$7="Rural Area",400000,500000)) -> 0 | BR9: =IF('Proposed Project'!$AM$7="",0,IF('Proposed Project'!$AM$7="Rural Area",432000,540000)) -> 0 | BS9: =IF('Proposed Project'!$AM$7="",0,IF('Proposed Project'!$AM$7="Rural Area",464000,580000)) -> 0 | BT9: 0 | BU9: 0
P10: 0 | S10: 0 | V10: 0 | Y10: 0 | AD10: =IFERROR(INDEX('HHC Rent Limits'!$A$1:$O$1045,MATCH(BN10,'HHC Rent Limits'!$A$1:$A$1045,0),MATCH(A10,'HHC Rent Limits'!$A$1:$O$1,0)),0) -> 0 | BG10: 0 | BH10: 0 | BI10: 0 | BJ10: 0 | BK10: 0 | BL10: 0 | BM10: 0 | BN10: =CONCATENATE($BB$2,'Max Funds and Unit Mix'!C10) ->  | BO10: =IF('Proposed Project'!$AM$7="",0,IF('Proposed Project'!$AM$7="Rural Area",320000,400000)) -> 0 | BP10: =IF('Proposed Project'!$AM$7="",0,IF('Proposed Project'!$AM$7="Rural Area",360000,450000)) -> 0 | BQ10: =IF('Proposed Project'!$AM$7="",0,IF('Proposed Project'!$AM$7="Rural Area",400000,500000)) -> 0 | BR10: =IF('Proposed Project'!$AM$7="",0,IF('Proposed Project'!$AM$7="Rural Area",432000,540000)) -> 0 | BS10: =IF('Proposed Project'!$AM$7="",0,IF('Proposed Project'!$AM$7="Rural Area",464000,580000)) -> 0 | BT10: 0 | BU10: 0
P11: 0 | S11: 0 | V11: 0 | Y11: 0 | AD11: =IFERROR(INDEX('HHC Rent Limits'!$A$1:$O$1045,MATCH(BN11,'HHC Rent Limits'!$A$1:$A$1045,0),MATCH(A11,'HHC Rent Limits'!$A$1:$O$1,0)),0) -> 0 | BG11: 0 | BH11: 0 | BI11: 0 | BJ11: 0 | BK11: 0 | BL11: 0 | BM11: 0 | BN11: =CONCATENATE($BB$2,'Max Funds and Unit Mix'!C11) ->  | BO11: =IF('Proposed Project'!$AM$7="",0,IF('Proposed Project'!$AM$7="Rural Area",320000,400000)) -> 0 | BP11: =IF('Proposed Project'!$AM$7="",0,IF('Proposed Project'!$AM$7="Rural Area",360000,450000)) -> 0 | BQ11: =IF('Proposed Project'!$AM$7="",0,IF('Proposed Project'!$AM$7="Rural Area",400000,500000)) -> 0 | BR11: =IF('Proposed Project'!$AM$7="",0,IF('Proposed Project'!$AM$7="Rural Area",432000,540000)) -> 0 | BS11: =IF('Proposed Project'!$AM$7="",0,IF('Proposed Project'!$AM$7="Rural Area",464000,580000)) -> 0 | BT11: 0 | BU11: 0
P12: 0 | S12: 0 | V12: 0 | Y12: 0 | AD12: =IFERROR(INDEX('HHC Rent Limits'!$A$1:$O$1045,MATCH(BN12,'HHC Rent Limits'!$A$1:$A$1045,0),MATCH(A12,'HHC Rent Limits'!$A$1:$O$1,0)),0) -> 0 | BG12: 0 | BH12: 0 | BI12: 0 | BJ12: 0 | BK12: 0 | BL12: 0 | BM12: 0 | BN12: =CONCATENATE($BB$2,'Max Funds and Unit Mix'!C12) ->  | BO12: =IF('Proposed Project'!$AM$7="",0,IF('Proposed Project'!$AM$7="Rural Area",320000,400000)) -> 0 | BP12: =IF('Proposed Project'!$AM$7="",0,IF('Proposed Project'!$AM$7="Rural Area",360000,450000)) -> 0 | BQ12: =IF('Proposed Project'!$AM$7="",0,IF('Proposed Project'!$AM$7="Rural Area",400000,500000)) -> 0 | BR12: =IF('Proposed Project'!$AM$7="",0,IF('Proposed Project'!$AM$7="Rural Area",432000,540000)) -> 0 | BS12: =IF('Proposed Project'!$AM$7="",0,IF('Proposed Project'!$AM$7="Rural Area",464000,580000)) -> 0 | BT12: 0 | BU12: 0
P13: 0 | S13: 0 | V13: 0 | Y13: 0 | AD13: =IFERROR(INDEX('HHC Rent Limits'!$A$1:$O$1045,MATCH(BN13,'HHC Rent Limits'!$A$1:$A$1045,0),MATCH(A13,'HHC Rent Limits'!$A$1:$O$1,0)),0) -> 0 | BG13: 0 | BH13: 0 | BI13: 0 | BJ13: 0 | BK13: 0 | BL13: 0 | BM13: 0 | BN13: =CONCATENATE($BB$2,'Max Funds and Unit Mix'!C13) ->  | BO13: =IF('Proposed Project'!$AM$7="",0,IF('Proposed Project'!$AM$7="Rural Area",320000,400000)) -> 0 | BP13: =IF('Proposed Project'!$AM$7="",0,IF('Proposed Project'!$AM$7="Rural Area",360000,450000)) -> 0 | BQ13: =IF('Proposed Project'!$AM$7="",0,IF('Proposed Project'!$AM$7="Rural Area",400000,500000)) -> 0 | BR13: =IF('Proposed Project'!$AM$7="",0,IF('Proposed Project'!$AM$7="Rural Area",432000,540000)) -> 0 | BS13: =IF('Proposed Project'!$AM$7="",0,IF('Proposed Project'!$AM$7="Rural Area",464000,580000)) -> 0 | BT13: 0 | BU13: 0
P14: 0 | S14: 0 | V14: 0 | Y14: 0 | AD14: =IFERROR(INDEX('HHC Rent Limits'!$A$1:$O$1045,MATCH(BN14,'HHC Rent Limits'!$A$1:$A$1045,0),MATCH(A14,'HHC Rent Limits'!$A$1:$O$1,0)),0) -> 0 | BG14: 0 | BH14: 0 | BI14: 0 | BJ14: 0 | BK14: 0 | BL14: 0 | BM14: 0 | BN14: =CONCATENATE($BB$2,'Max Funds and Unit Mix'!C14) ->  | BO14: =IF('Proposed Project'!$AM$7="",0,IF('Proposed Project'!$AM$7="Rural Area",320000,400000)) -> 0 | BP14: =IF('Proposed Project'!$AM$7="",0,IF('Proposed Project'!$AM$7="Rural Area",360000,450000)) -> 0 | BQ14: =IF('Proposed Project'!$AM$7="",0,IF('Proposed Project'!$AM$7="Rural Area",400000,500000)) -> 0 | BR14: =IF('Proposed Project'!$AM$7="",0,IF('Proposed Project'!$AM$7="Rural Area",432000,540000)) -> 0 | BS14: =IF('Proposed Project'!$AM$7="",0,IF('Proposed Project'!$AM$7="Rural Area",464000,580000)) -> 0 | BT14: 0 | BU14: 0
P15: 0 | S15: 0 | V15: 0 | Y15: 0 | AD15: =IFERROR(INDEX('HHC Rent Limits'!$A$1:$O$1045,MATCH(BN15,'HHC Rent Limits'!$A$1:$A$1045,0),MATCH(A15,'HHC Rent Limits'!$A$1:$O$1,0)),0) -> 0 | BG15: 0 | BH15: 0 | BI15: 0 | BJ15: 0 | BK15: 0 | BL15: 0 | BM15: 0 | BN15: =CONCATENATE($BB$2,'Max Funds and Unit Mix'!C15) ->  | BO15: =IF('Proposed Project'!$AM$7="",0,IF('Proposed Project'!$AM$7="Rural Area",320000,400000)) -> 0 | BP15: =IF('Proposed Project'!$AM$7="",0,IF('Proposed Project'!$AM$7="Rural Area",360000,450000)) -> 0 | BQ15: =IF('Proposed Project'!$AM$7="",0,IF('Proposed Project'!$AM$7="Rural Area",400000,500000)) -> 0 | BR15: =IF('Proposed Project'!$AM$7="",0,IF('Proposed Project'!$AM$7="Rural Area",432000,540000)) -> 0 | BS15: =IF('Proposed Project'!$AM$7="",0,IF('Proposed Project'!$AM$7="Rural Area",464000,580000)) -> 0 | BT15: 0 | BU15: 0
P16: 0 | S16: 0 | V16: 0 | Y16: 0 | AD16: =IFERROR(INDEX('HHC Rent Limits'!$A$1:$O$1045,MATCH(BN16,'HHC Rent Limits'!$A$1:$A$1045,0),MATCH(A16,'HHC Rent Limits'!$A$1:$O$1,0)),0) -> 0 | BG16: 0 | BH16: 0 | BI16: 0 | BJ16: 0 | BK16: 0 | BL16: 0 | BM16: 0 | BN16: =CONCATENATE($BB$2,'Max Funds and Unit Mix'!C16) ->  | BO16: =IF('Proposed Project'!$AM$7="",0,IF('Proposed Project'!$AM$7="Rural Area",320000,400000)) -> 0 | BP16: =IF('Proposed Project'!$AM$7="",0,IF('Proposed Project'!$AM$7="Rural Area",360000,450000)) -> 0 | BQ16: =IF('Proposed Project'!$AM$7="",0,IF('Proposed Project'!$AM$7="Rural Area",400000,500000)) -> 0 | BR16: =IF('Proposed Project'!$AM$7="",0,IF('Proposed Project'!$AM$7="Rural Area",432000,540000)) -> 0 | BS16: =IF('Proposed Project'!$AM$7="",0,IF('Proposed Project'!$AM$7="Rural Area",464000,580000)) -> 0 | BT16: 0 | BU16: 0
P17: 0 | S17: 0 | V17: 0 | Y17: 0 | AD17: =IFERROR(INDEX('HHC Rent Limits'!$A$1:$O$1045,MATCH(BN17,'HHC Rent Limits'!$A$1:$A$1045,0),MATCH(A17,'HHC Rent Limits'!$A$1:$O$1,0)),0) -> 0 | BG17: 0 | BH17: 0 | BI17: 0 | BJ17: 0 | BK17: 0 | BL17: 0 | BM17: 0 | BN17: =CONCATENATE($BB$2,'Max Funds and Unit Mix'!C17) ->  | BO17: =IF('Proposed Project'!$AM$7="",0,IF('Proposed Project'!$AM$7="Rural Area",320000,400000)) -> 0 | BP17: =IF('Proposed Project'!$AM$7="",0,IF('Proposed Project'!$AM$7="Rural Area",360000,450000)) -> 0 | BQ17: =IF('Proposed Project'!$AM$7="",0,IF('Proposed Project'!$AM$7="Rural Area",400000,500000)) -> 0 | BR17: =IF('Proposed Project'!$AM$7="",0,IF('Proposed Project'!$AM$7="Rural Area",432000,540000)) -> 0 | BS17: =IF('Proposed Project'!$AM$7="",0,IF('Proposed Project'!$AM$7="Rural Area",464000,580000)) -> 0 | BT17: 0 | BU17: 0
P18: 0 | S18: 0 | V18: 0 | Y18: 0 | AD18: =IFERROR(INDEX('HHC Rent Limits'!$A$1:$O$1045,MATCH(BN18,'HHC Rent Limits'!$A$1:$A$1045,0),MATCH(A18,'HHC Rent Limits'!$A$1:$O$1,0)),0) -> 0 | BG18: 0 | BH18: 0 | BI18: 0 | BJ18: 0 | BK18: 0 | BL18: 0 | BM18: 0 | BN18: =CONCATENATE($BB$2,'Max Funds and Unit Mix'!C18) ->  | BO18: =IF('Proposed Project'!$AM$7="",0,IF('Proposed Project'!$AM$7="Rural Area",320000,400000)) -> 0 | BP18: =IF('Proposed Project'!$AM$7="",0,IF('Proposed Project'!$AM$7="Rural Area",360000,450000)) -> 0 | BQ18: =IF('Proposed Project'!$AM$7="",0,IF('Proposed Project'!$AM$7="Rural Area",400000,500000)) -> 0 | BR18: =IF('Proposed Project'!$AM$7="",0,IF('Proposed Project'!$AM$7="Rural Area",432000,540000)) -> 0 | BS18: =IF('Proposed Project'!$AM$7="",0,IF('Proposed Project'!$AM$7="Rural Area",464000,580000)) -> 0 | BT18: 0 | BU18: 0
P19: 0 | S19: 0 | V19: 0 | Y19: 0 | AD19: =IFERROR(INDEX('HHC Rent Limits'!$A$1:$O$1045,MATCH(BN19,'HHC Rent Limits'!$A$1:$A$1045,0),MATCH(A19,'HHC Rent Limits'!$A$1:$O$1,0)),0) -> 0 | BG19: 0 | BH19: 0 | BI19: 0 | BJ19: 0 | BK19: 0 | BL19: 0 | BM19: 0 | BN19: =CONCATENATE($BB$2,'Max Funds and Unit Mix'!C19) ->  | BO19: =IF('Proposed Project'!$AM$7="",0,IF('Proposed Project'!$AM$7="Rural Area",320000,400000)) -> 0 | BP19: =IF('Proposed Project'!$AM$7="",0,IF('Proposed Project'!$AM$7="Rural Area",360000,450000)) -> 0 | BQ19: =IF('Proposed Project'!$AM$7="",0,IF('Proposed Project'!$AM$7="Rural Area",400000,500000)) -> 0 | BR19: =IF('Proposed Project'!$AM$7="",0,IF('Proposed Project'!$AM$7="Rural Area",432000,540000)) -> 0 | BS19: =IF('Proposed Project'!$AM$7="",0,IF('Proposed Project'!$AM$7="Rural Area",464000,580000)) -> 0 | BT19: 0 | BU19: 0
P20: 0 | S20: 0 | V20: 0 | Y20: 0 | AD20: =IFERROR(INDEX('HHC Rent Limits'!$A$1:$O$1045,MATCH(BN20,'HHC Rent Limits'!$A$1:$A$1045,0),MATCH(A20,'HHC Rent Limits'!$A$1:$O$1,0)),0) -> 0 | BG20: 0 | BH20: 0 | BI20: 0 | BJ20: 0 | BK20: 0 | BL20: 0 | BM20: 0 | BN20: =CONCATENATE($BB$2,'Max Funds and Unit Mix'!C20) ->  | BO20: =IF('Proposed Project'!$AM$7="",0,IF('Proposed Project'!$AM$7="Rural Area",320000,400000)) -> 0 | BP20: =IF('Proposed Project'!$AM$7="",0,IF('Proposed Project'!$AM$7="Rural Area",360000,450000)) -> 0 | BQ20: =IF('Proposed Project'!$AM$7="",0,IF('Proposed Project'!$AM$7="Rural Area",400000,500000)) -> 0 | BR20: =IF('Proposed Project'!$AM$7="",0,IF('Proposed Project'!$AM$7="Rural Area",432000,540000)) -> 0 | BS20: =IF('Proposed Project'!$AM$7="",0,IF('Proposed Project'!$AM$7="Rural Area",464000,580000)) -> 0 | BT20: 0 | BU20: 0
P21: 0 | S21: 0 | V21: 0 | Y21: 0 | AD21: =IFERROR(INDEX('HHC Rent Limits'!$A$1:$O$1045,MATCH(BN21,'HHC Rent Limits'!$A$1:$A$1045,0),MATCH(A21,'HHC Rent Limits'!$A$1:$O$1,0)),0) -> 0 | BG21: 0 | BH21: 0 | BI21: 0 | BJ21: 0 | BK21: 0 | BL21: 0 | BM21: 0 | BN21: =CONCATENATE($BB$2,'Max Funds and Unit Mix'!C21) ->  | BO21: =IF('Proposed Project'!$AM$7="",0,IF('Proposed Project'!$AM$7="Rural Area",320000,400000)) -> 0 | BP21: =IF('Proposed Project'!$AM$7="",0,IF('Proposed Project'!$AM$7="Rural Area",360000,450000)) -> 0 | BQ21: =IF('Proposed Project'!$AM$7="",0,IF('Proposed Project'!$AM$7="Rural Area",400000,500000)) -> 0 | BR21: =IF('Proposed Project'!$AM$7="",0,IF('Proposed Project'!$AM$7="Rural Area",432000,540000)) -> 0 | BS21: =IF('Proposed Project'!$AM$7="",0,IF('Proposed Project'!$AM$7="Rural Area",464000,580000)) -> 0 | BT21: 0 | BU21: 0
P22: 0 | S22: 0 | V22: 0 | Y22: 0 | AD22: =IFERROR(INDEX('HHC Rent Limits'!$A$1:$O$1045,MATCH(BN22,'HHC Rent Limits'!$A$1:$A$1045,0),MATCH(A22,'HHC Rent Limits'!$A$1:$O$1,0)),0) -> 0 | BG22: 0 | BH22: 0 | BI22: 0 | BJ22: 0 | BK22: 0 | BL22: 0 | BM22: 0 | BN22: =CONCATENATE($BB$2,'Max Funds and Unit Mix'!C22) ->  | BO22: =IF('Proposed Project'!$AM$7="",0,IF('Proposed Project'!$AM$7="Rural Area",320000,400000)) -> 0 | BP22: =IF('Proposed Project'!$AM$7="",0,IF('Proposed Project'!$AM$7="Rural Area",360000,450000)) -> 0 | BQ22: =IF('Proposed Project'!$AM$7="",0,IF('Proposed Project'!$AM$7="Rural Area",400000,500000)) -> 0 | BR22: =IF('Proposed Project'!$AM$7="",0,IF('Proposed Project'!$AM$7="Rural Area",432000,540000)) -> 0 | BS22: =IF('Proposed Project'!$AM$7="",0,IF('Proposed Project'!$AM$7="Rural Area",464000,580000)) -> 0 | BT22: 0 | BU22: 0
P23: 0 | S23: 0 | V23: 0 | Y23: 0 | AD23: =IFERROR(INDEX('HHC Rent Limits'!$A$1:$O$1045,MATCH(BN23,'HHC Rent Limits'!$A$1:$A$1045,0),MATCH(A23,'HHC Rent Limits'!$A$1:$O$1,0)),0) -> 0 | BG23: 0 | BH23: 0 | BI23: 0 | BJ23: 0 | BK23: 0 | BL23: 0 | BM23: 0 | BN23: =CONCATENATE($BB$2,'Max Funds and Unit Mix'!C23) ->  | BO23: =IF('Proposed Project'!$AM$7="",0,IF('Proposed Project'!$AM$7="Rural Area",320000,400000)) -> 0 | BP23: =IF('Proposed Project'!$AM$7="",0,IF('Proposed Project'!$AM$7="Rural Area",360000,450000)) -> 0 | BQ23: =IF('Proposed Project'!$AM$7="",0,IF('Proposed Project'!$AM$7="Rural Area",400000,500000)) -> 0 | BR23: =IF('Proposed Project'!$AM$7="",0,IF('Proposed Project'!$AM$7="Rural Area",432000,540000)) -> 0 | BS23: =IF('Proposed Project'!$AM$7="",0,IF('Proposed Project'!$AM$7="Rural Area",464000,580000)) -> 0 | BT23: 0 | BU23: 0
P24: 0 | S24: 0 | V24: 0 | Y24: 0 | AD24: =IFERROR(INDEX('HHC Rent Limits'!$A$1:$O$1045,MATCH(BN24,'HHC Rent Limits'!$A$1:$A$1045,0),MATCH(A24,'HHC Rent Limits'!$A$1:$O$1,0)),0) -> 0 | BG24: 0 | BH24: 0 | BI24: 0 | BJ24: 0 | BK24: 0 | BL24: 0 | BM24: 0 | BN24: =CONCATENATE($BB$2,'Max Funds and Unit Mix'!C24) ->  | BO24: =IF('Proposed Project'!$AM$7="",0,IF('Proposed Project'!$AM$7="Rural Area",320000,400000)) -> 0 | BP24: =IF('Proposed Project'!$AM$7="",0,IF('Proposed Project'!$AM$7="Rural Area",360000,450000)) -> 0 | BQ24: =IF('Proposed Project'!$AM$7="",0,IF('Proposed Project'!$AM$7="Rural Area",400000,500000)) -> 0 | BR24: =IF('Proposed Project'!$AM$7="",0,IF('Proposed Project'!$AM$7="Rural Area",432000,540000)) -> 0 | BS24: =IF('Proposed Project'!$AM$7="",0,IF('Proposed Project'!$AM$7="Rural Area",464000,580000)) -> 0 | BT24: 0 | BU24: 0
P25: 0 | S25: 0 | V25: 0 | Y25: 0 | AD25: =IFERROR(INDEX('HHC Rent Limits'!$A$1:$O$1045,MATCH(BN25,'HHC Rent Limits'!$A$1:$A$1045,0),MATCH(A25,'HHC Rent Limits'!$A$1:$O$1,0)),0) -> 0 | BG25: 0 | BH25: 0 | BI25: 0 | BJ25: 0 | BK25: 0 | BL25: 0 | BM25: 0 | BN25: =CONCATENATE($BB$2,'Max Funds and Unit Mix'!C25) ->  | BO25: =IF('Proposed Project'!$AM$7="",0,IF('Proposed Project'!$AM$7="Rural Area",320000,400000)) -> 0 | BP25: =IF('Proposed Project'!$AM$7="",0,IF('Proposed Project'!$AM$7="Rural Area",360000,450000)) -> 0 | BQ25: =IF('Proposed Project'!$AM$7="",0,IF('Proposed Project'!$AM$7="Rural Area",400000,500000)) -> 0 | BR25: =IF('Proposed Project'!$AM$7="",0,IF('Proposed Project'!$AM$7="Rural Area",432000,540000)) -> 0 | BS25: =IF('Proposed Project'!$AM$7="",0,IF('Proposed Project'!$AM$7="Rural Area",464000,580000)) -> 0 | BT25: 0 | BU25: 0
P26: 0 | S26: 0 | V26: 0 | Y26: 0 | AD26: =IFERROR(INDEX('HHC Rent Limits'!$A$1:$O$1045,MATCH(BN26,'HHC Rent Limits'!$A$1:$A$1045,0),MATCH(A26,'HHC Rent Limits'!$A$1:$O$1,0)),0) -> 0 | BG26: 0 | BH26: 0 | BI26: 0 | BJ26: 0 | BK26: 0 | BL26: 0 | BM26: 0 | BN26: =CONCATENATE($BB$2,'Max Funds and Unit Mix'!C26) ->  | BO26: =IF('Proposed Project'!$AM$7="",0,IF('Proposed Project'!$AM$7="Rural Area",320000,400000)) -> 0 | BP26: =IF('Proposed Project'!$AM$7="",0,IF('Proposed Project'!$AM$7="Rural Area",360000,450000)) -> 0 | BQ26: =IF('Proposed Project'!$AM$7="",0,IF('Proposed Project'!$AM$7="Rural Area",400000,500000)) -> 0 | BR26: =IF('Proposed Project'!$AM$7="",0,IF('Proposed Project'!$AM$7="Rural Area",432000,540000)) -> 0 | BS26: =IF('Proposed Project'!$AM$7="",0,IF('Proposed Project'!$AM$7="Rural Area",464000,580000)) -> 0 | BT26: 0 | BU26: 0
P27: 0 | S27: 0 | V27: 0 | Y27: 0 | AD27: =IFERROR(INDEX('HHC Rent Limits'!$A$1:$O$1045,MATCH(BN27,'HHC Rent Limits'!$A$1:$A$1045,0),MATCH(A27,'HHC Rent Limits'!$A$1:$O$1,0)),0) -> 0 | BG27: 0 | BH27: 0 | BI27: 0 | BJ27: 0 | BK27: 0 | BL27: 0 | BM27: 0 | BN27: =CONCATENATE($BB$2,'Max Funds and Unit Mix'!C27) ->  | BO27: =IF('Proposed Project'!$AM$7="",0,IF('Proposed Project'!$AM$7="Rural Area",320000,400000)) -> 0 | BP27: =IF('Proposed Project'!$AM$7="",0,IF('Proposed Project'!$AM$7="Rural Area",360000,450000)) -> 0 | BQ27: =IF('Proposed Project'!$AM$7="",0,IF('Proposed Project'!$AM$7="Rural Area",400000,500000)) -> 0 | BR27: =IF('Proposed Project'!$AM$7="",0,IF('Proposed Project'!$AM$7="Rural Area",432000,540000)) -> 0 | BS27: =IF('Proposed Project'!$AM$7="",0,IF('Proposed Project'!$AM$7="Rural Area",464000,580000)) -> 0 | BT27: 0 | BU27: 0
P28: 0 | S28: 0 | V28: 0 | Y28: 0 | AD28: =IFERROR(INDEX('HHC Rent Limits'!$A$1:$O$1045,MATCH(BN28,'HHC Rent Limits'!$A$1:$A$1045,0),MATCH(A28,'HHC Rent Limits'!$A$1:$O$1,0)),0) -> 0 | BG28: 0 | BH28: 0 | BI28: 0 | BJ28: 0 | BK28: 0 | BL28: 0 | BM28: 0 | BN28: =CONCATENATE($BB$2,'Max Funds and Unit Mix'!C28) ->  | BO28: =IF('Proposed Project'!$AM$7="",0,IF('Proposed Project'!$AM$7="Rural Area",320000,400000)) -> 0 | BP28: =IF('Proposed Project'!$AM$7="",0,IF('Proposed Project'!$AM$7="Rural Area",360000,450000)) -> 0 | BQ28: =IF('Proposed Project'!$AM$7="",0,IF('Proposed Project'!$AM$7="Rural Area",400000,500000)) -> 0 | BR28: =IF('Proposed Project'!$AM$7="",0,IF('Proposed Project'!$AM$7="Rural Area",432000,540000)) -> 0 | BS28: =IF('Proposed Project'!$AM$7="",0,IF('Proposed Project'!$AM$7="Rural Area",464000,580000)) -> 0 | BT28: 0 | BU28: 0
P29: 0 | S29: 0 | V29: 0 | Y29: 0 | AD29: =IFERROR(INDEX('HHC Rent Limits'!$A$1:$O$1045,MATCH(BN29,'HHC Rent Limits'!$A$1:$A$1045,0),MATCH(A29,'HHC Rent Limits'!$A$1:$O$1,0)),0) -> 0 | BG29: 0 | BH29: 0 | BI29: 0 | BJ29: 0 | BK29: 0 | BL29: 0 | BM29: 0 | BN29: =CONCATENATE($BB$2,'Max Funds and Unit Mix'!C29) ->  | BO29: =IF('Proposed Project'!$AM$7="",0,IF('Proposed Project'!$AM$7="Rural Area",320000,400000)) -> 0 | BP29: =IF('Proposed Project'!$AM$7="",0,IF('Proposed Project'!$AM$7="Rural Area",360000,450000)) -> 0 | BQ29: =IF('Proposed Project'!$AM$7="",0,IF('Proposed Project'!$AM$7="Rural Area",400000,500000)) -> 0 | BR29: =IF('Proposed Project'!$AM$7="",0,IF('Proposed Project'!$AM$7="Rural Area",432000,540000)) -> 0 | BS29: =IF('Proposed Project'!$AM$7="",0,IF('Proposed Project'!$AM$7="Rural Area",464000,580000)) -> 0 | BT29: 0 | BU29: 0
P30: 0 | S30: 0 | V30: 0 | Y30: 0 | AD30: =IFERROR(INDEX('HHC Rent Limits'!$A$1:$O$1045,MATCH(BN30,'HHC Rent Limits'!$A$1:$A$1045,0),MATCH(A30,'HHC Rent Limits'!$A$1:$O$1,0)),0) -> 0 | BG30: 0 | BH30: 0 | BI30: 0 | BJ30: 0 | BK30: 0 | BL30: 0 | BM30: 0 | BN30: =CONCATENATE($BB$2,'Max Funds and Unit Mix'!C30) ->  | BO30: =IF('Proposed Project'!$AM$7="",0,IF('Proposed Project'!$AM$7="Rural Area",320000,400000)) -> 0 | BP30: =IF('Proposed Project'!$AM$7="",0,IF('Proposed Project'!$AM$7="Rural Area",360000,450000)) -> 0 | BQ30: =IF('Proposed Project'!$AM$7="",0,IF('Proposed Project'!$AM$7="Rural Area",400000,500000)) -> 0 | BR30: =IF('Proposed Project'!$AM$7="",0,IF('Proposed Project'!$AM$7="Rural Area",432000,540000)) -> 0 | BS30: =IF('Proposed Project'!$AM$7="",0,IF('Proposed Project'!$AM$7="Rural Area",464000,580000)) -> 0 | BT30: 0 | BU30: 0
E31: =SUM(E5:F30) -> 0 | G31: =SUM(G5:H30) -> 0 | I31: =SUM(I5:J30) -> 0 | K31: =SUM(K5:L30) -> 0 | P31: =SUM(P5:R30) -> 0 | S31: =SUM(S5:U30) -> 0 | Y31: =SUM(Y5:AA30) -> 0 | AB31: =SUM(AB5:AC30) -> 0 | AD31: =SUM(AD5:AE30) -> 0 | AF31: =SUM(AF5:AH30) -> 0 | AI31: =SUM(AI5:AK30) -> 0 | AQ31: =SUM(AQ5:AR30) -> 0 | AV31: =SUM(AV5:AW30) -> 0 | BG31: =SUM(BG5:BG30) -> 0 | BH31: 0 | BI31: 0 | BJ31: 0 | BK31: 0 | BL31: 0 | BM31: 0 | BT31: =SUM(BT5:BT30) -> 0 | BU31: 0
AF32: =12*BG31 -> 0 | AI32: Annual Net Restricted Rent | AS32: =12*BL31 -> 0 | AV32: Annual Net Restricted Rent (HHC Assisted Units)
AF33: =12*BH31 -> 0 | AI33: Annual Net Proposed Rent | AS33: =12*BM31 -> 0 | AV33: Annual Net Proposed Rent (HHC Assisted Units)
AF34: =12*BI31 -> 0 | AI34: Annual Unrestricted Rent
A35: Maximum HHC Funding Amount (A plus B) | S35: =S36+S45 -> 0
A36: A. Maximum Capital Loan Amount (lesser of A1, A2 and A3) | S36: =MIN(S37:V39) -> 0
A37: 1. Capital loan limit amount per NOFA - $20,000,000 | S37: =20000000 -> 20000000
A38: 2. Capital loan amount from per unit calculation §103(b)(2)-(5) (cell Y31) | S38: =Y31 -> 0
A39: 3. Capital loan per HHC Assisted unit share of costs from data below (3i x 3v) | S39: =S40*S44 -> 0
A40: i. Total residential development cost (Dev Budget worksheet cell R123) | S40: ='Dev Budget'!$R$123 -> 0
A41: ii. Gross square footage of HHC Assisted units | S41: =$BT$31 -> 0
A42: iii. Gross square footage of Non-HHC Assisted unit (not including manager units) | S42: =BU31 -> 0
A43: iv. Total Residential gross square feet without managers units (3ii + 3iii) | S43: =S41+S42 -> 0
A44: v. HHC Assisted proration % of costs based on square feet (3ii / 3iv) | S44: =IF(S43=0,0,S41/S43) -> 0
A45: B. Maximum COSR Grant Amount (lesser of B1 and B2) | S45: =MIN(S46,S47) -> 0
A46: 1. COSR (COSR Calculation worksheet cell C8) | S46: ='COSR Calculation'!C8 -> 0
A47: 2. COSR (1/3 of Maximum Capital Loan Amount §109) = A / 3 | S47: =S36/3 -> 0

Sheet Loan PU Amts (hidden)
A1: Level* | B1: Efficiency | C1: 1 BR | D1: 2 BR | E1: 3 BR | F1: 4+ BR | G1: Efficiency | H1: 1 BR | I1: 2 BR | J1: 3 BR | K1: 4+ BR
A2: ALAMEDA30% AMI | B2: 138709 | C2: 138709 | D2: 138709 | E2: 138709 | F2: 138709 | G2: 193991 | H2: 193991 | I2: 193991 | J2: 193991 | K2: 193991 | M2: =(ROUND(B2,0)) -> 138709 | N2: =(ROUND(C2,0)) -> 138709 | O2: 138709 | P2: 138709 | Q2: 138709 | R2: 193991 | S2: 193991 | T2: 193991 | U2: 193991 | V2: 193991
A3: ALAMEDA25% AMI | B3: 155995 | C3: 157147 | D3: 160892 | E3: 164349 | F3: 167374 | G3: 211277 | H3: 212429 | I3: 216174 | J3: 219631 | K3: 222656 | M3: =(ROUND(B3,0)) -> 155995 | N3: 157147 | O3: 160892 | P3: 164349 | Q3: 167374 | R3: 211277 | S3: 212429 | T3: 216174 | U3: 219631 | V3: 222656
A4: ALAMEDA20% AMI | B4: 173280 | C4: 175729 | D4: 183076 | E4: 189990 | F4: 195896 | G4: 228562 | H4: 231011 | I4: 238358 | J4: 245272 | K4: 251178 | M4: 173280 | N4: 175729 | O4: 183076 | P4: 189990 | Q4: 195896 | R4: 228562 | S4: 231011 | T4: 238358 | U4: 245272 | V4: 251178
A5: ALAMEDA15% AMI | B5: 190566 | C5: 194167 | D5: 205259 | E5: 215630 | F5: 224561 | G5: 245848 | H5: 249449 | I5: 260541 | J5: 270912 | K5: 279843 | M5: 190566 | N5: 194167 | O5: 205259 | P5: 215630 | Q5: 224561 | R5: 245848 | S5: 249449 | T5: 260541 | U5: 270912 | V5: 279843
A6: ALPINE30% AMI | B6: 138709 | C6: 138709 | D6: 138709 | E6: 138709 | F6: 138709 | G6: 193991 | H6: 193991 | I6: 193991 | J6: 193991 | K6: 193991 | M6: 138709 | N6: 138709 | O6: 138709 | P6: 138709 | Q6: 138709 | R6: 193991 | S6: 193991 | T6: 193991 | U6: 193991 | V6: 193991
A7: ALPINE25% AMI | B7: 148936 | C7: 149801 | D7: 151961 | E7: 153978 | F7: 155707 | G7: 204218 | H7: 205083 | I7: 207243 | J7: 209260 | K7: 210989 | M7: 148936 | N7: 149801 | O7: 151961 | P7: 153978 | Q7: 155707 | R7: 204218 | S7: 205083 | T7: 207243 | U7: 209260 | V7: 210989
A8: ALPINE20% AMI | B8: 159164 | C8: 160748 | D8: 165070 | E8: 169103 | F8: 172560 | G8: 214446 | H8: 216030 | I8: 220352 | J8: 224385 | K8: 227842 | M8: 159164 | N8: 160748 | O8: 165070 | P8: 169103 | Q8: 172560 | R8: 214446 | S8: 216030 | T8: 220352 | U8: 224385 | V8: 227842
A9: ALPINE15% AMI | B9: 169391 | C9: 171696 | D9: 178178 | E9: 184372 | F9: 189558 | G9: 224673 | H9: 226978 | I9: 233460 | J9: 239654 | K9: 244840 | M9: 169391 | N9: 171696 | O9: 178178 | P9: 184372 | Q9: 189558 | R9: 224673 | S9: 226978 | T9: 233460 | U9: 239654 | V9: 244840
A10: AMADOR30% AMI | B10: 138709 | C10: 138709 | D10: 138709 | E10: 138709 | F10: 138709 | G10: 193991 | H10: 193991 | I10: 193991 | J10: 193991 | K10: 193991 | M10: 138709 | N10: 138709 | O10: 138709 | P10: 138709 | Q10: 138709 | R10: 193991 | S10: 193991 | T10: 193991 | U10: 193991 | V10: 193991
A11: AMADOR25% AMI | B11: 148504 | C11: 149224 | D11: 151385 | E11: 153258 | F11: 154986 | G11: 203786 | H11: 204506 | I11: 206667 | J11: 208540 | K11: 210268 | M11: 148504 | N11: 149224 | O11: 151385 | P11: 153258 | Q11: 154986 | R11: 203786 | S11: 204506 | T11: 206667 | U11: 208540 | V11: 210268
A12: AMADOR20% AMI | B12: 158299 | C12: 159740 | D12: 163917 | E12: 167807 | F12: 171264 | G12: 213581 | H12: 215022 | I12: 219199 | J12: 223089 | K12: 226546 | M12: 158299 | N12: 159740 | O12: 163917 | P12: 167807 | Q12: 171264 | R12: 213581 | S12: 215022 | T12: 219199 | U12: 223089 | V12: 226546
A13: AMADOR15% AMI | B13: 168239 | C13: 170255 | D13: 176593 | E13: 182499 | F13: 187541 | G13: 223521 | H13: 225537 | I13: 231875 | J13: 237781 | K13: 242823 | M13: 168239 | N13: 170255 | O13: 176593 | P13: 182499 | Q13: 187541 | R13: 223521 | S13: 225537 | T13: 231875 | U13: 237781 | V13: 242823
A14: BUTTE30% AMI | B14: 138709 | C14: 138709 | D14: 138709 | E14: 138709 | F14: 138709 | G14: 193991 | H14: 193991 | I14: 193991 | J14: 193991 | K14: 193991 | M14: 138709 | N14: 138709 | O14: 138709 | P14: 138709 | Q14: 138709 | R14: 193991 | S14: 193991 | T14: 193991 | U14: 193991 | V14: 193991
A15: BUTTE25% AMI | B15: 147496 | C15: 148216 | D15: 150089 | E15: 151673 | F15: 153258 | G15: 202778 | H15: 203498 | I15: 205371 | J15: 206955 | K15: 208540 | M15: 147496 | N15: 148216 | O15: 150089 | P15: 151673 | Q15: 153258 | R15: 202778 | S15: 203498 | T15: 205371 | U15: 206955 | V15: 208540
A16: BUTTE20% AMI | B16: 156283 | C16: 157579 | D16: 161324 | E16: 164782 | F16: 167807 | G16: 211565 | H16: 212861 | I16: 216606 | J16: 220064 | K16: 223089 | M16: 156283 | N16: 157579 | O16: 161324 | P16: 164782 | Q16: 167807 | R16: 211565 | S16: 212861 | T16: 216606 | U16: 220064 | V16: 223089
A17: BUTTE15% AMI | B17: 165070 | C17: 166942 | D17: 172704 | E17: 177890 | F17: 182355 | G17: 220352 | H17: 222224 | I17: 227986 | J17: 233172 | K17: 237637 | M17: 165070 | N17: 166942 | O17: 172704 | P17: 177890 | Q17: 182355 | R17: 220352 | S17: 222224 | T17: 227986 | U17: 233172 | V17: 237637
A18: CALAVERAS30% AMI | B18: 138709 | C18: 138709 | D18: 138709 | E18: 138709 | F18: 138709 | G18: 193991 | H18: 193991 | I18: 193991 | J18: 193991 | K18: 193991 | M18: 138709 | N18: =(ROUND(C18,0)) -> 138709 | O18: =(ROUND(D18,0)) -> 138709 | P18: =(ROUND(E18,0)) -> 138709 | Q18: =(ROUND(F18,0)) -> 138709 | R18: =(ROUND(G18,0)) -> 193991 | S18: =(ROUND(H18,0)) -> 193991 | T18: =(ROUND(I18,0)) -> 193991 | U18: =(ROUND(J18,0)) -> 193991 | V18: =(ROUND(K18,0)) -> 193991
A19: CALAVERAS25% AMI | B19: 149080 | C19: 149657 | D19: 151961 | E19: 153978 | F19: 155851 | G19: 204362 | H19: 204939 | I19: 207243 | J19: 209260 | K19: 211133 | M19: 149080 | N19: 149657 | O19: 151961 | P19: 153978 | Q19: 155851 | R19: 204362 | S19: 204939 | T19: 207243 | U19: 209260 | V19: 211133
A20: CALAVERAS20% AMI | B20: 159308 | C20: 160748 | D20: 165214 | E20: 169247 | F20: 172848 | G20: 214590 | H20: 216030 | I20: 220496 | J20: 224529 | K20: 228130 | M20: 159308 | N20: 160748 | O20: 165214 | P20: 169247 | Q20: 172848 | R20: 214590 | S20: 216030 | T20: 220496 | U20: 224529 | V20: 228130
A21: CALAVERAS15% AMI | B21: 169679 | C21: 171840 | D21: 178466 | E21: 184660 | F21: 189990 | G21: 224961 | H21: 227122 | I21: 233748 | J21: 239942 | K21: 245272 | M21: 169679 | N21: 171840 | O21: 178466 | P21: 184660 | Q21: 189990 | R21: 224961 | S21: 227122 | T21: 233748 | U21: 239942 | V21: 245272
A22: COLUSA30% AMI | B22: 138709 | C22: 138709 | D22: 138709 | E22: 138709 | F22: 138709 | G22: 193991 | H22: 193991 | I22: 193991 | J22: 193991 | K22: 193991 | M22: 138709 | N22: 138709 | O22: 138709 | P22: 138709 | Q22: 138709 | R22: 193991 | S22: 193991 | T22: 193991 | U22: 193991 | V22: 193991
A23: COLUSA25% AMI | B23: 147496 | C23: 148216 | D23: 150089 | E23: 151673 | F23: 153258 | G23: 202778 | H23: 203498 | I23: 205371 | J23: 206955 | K23: 208540 | M23: 147496 | N23: 148216 | O23: 150089 | P23: 151673 | Q23: 153258 | R23: 202778 | S23: 203498 | T23: 205371 | U23: 206955 | V23: 208540
A24: COLUSA20% AMI | B24: 156283 | C24: 157579 | D24: 161324 | E24: 164782 | F24: 167807 | G24: 211565 | H24: 212861 | I24: 216606 | J24: 220064 | K24: 223089 | M24: 156283 | N24: 157579 | O24: 161324 | P24: 164782 | Q24: 167807 | R24: 211565 | S24: 212861 | T24: 216606 | U24: 220064 | V24: 223089
A25: COLUSA15% AMI | B25: 165070 | C25: 166942 | D25: 172704 | E25: 177890 | F25: 182355 | G25: 220352 | H25: 222224 | I25: 227986 | J25: 233172 | K25: 237637 | M25: 165070 | N25: 166942 | O25: 172704 | P25: 177890 | Q25: 182355 | R25: 220352 | S25: 222224 | T25: 227986 | U25: 233172 | V25: 237637
A26: CONTRA COSTA30% AMI | B26: 138709 | C26: 138709 | D26: 138709 | E26: 138709 | F26: 138709 | G26: 193991 | H26: 193991 | I26: 193991 | J26: 193991 | K26: 193991 | M26: 138709 | N26: 138709 | O26: 138709 | P26: 138709 | Q26: 138709 | R26: 193991 | S26: 193991 | T26: 193991 | U26: 193991 | V26: 193991
A27: CONTRA COSTA25% AMI | B27: 155995 | C27: 157147 | D27: 160892 | E27: 164349 | F27: 167374 | G27: 211277 | H27: 212429 | I27: 216174 | J27: 219631 | K27: 222656 | M27: 155995 | N27: 157147 | O27: 160892 | P27: 164349 | Q27: 167374 | R27: 211277 | S27: 212429 | T27: 216174 | U27: 219631 | V27: 222656
A28: CONTRA COSTA20% AMI | B28: 173280 | C28: 175729 | D28: 183076 | E28: 189990 | F28: 195896 | G28: 228562 | H28: 231011 | I28: 238358 | J28: 245272 | K28: 251178 | M28: 173280 | N28: 175729 | O28: 183076 | P28: 189990 | Q28: 195896 | R28: 228562 | S28: 231011 | T28: 238358 | U28: 245272 | V28: 251178
A29: CONTRA COSTA15% AMI | B29: 190566 | C29: 194167 | D29: 205259 | E29: 215630 | F29: 224561 | G29: 245848 | H29: 249449 | I29: 260541 | J29: 270912 | K29: 279843 | M29: 190566 | N29: 194167 | O29: 205259 | P29: 215630 | Q29: 224561 | R29: 245848 | S29: 249449 | T29: 260541 | U29: 270912 | V29: 279843
A30: DEL NORTE30% AMI | B30: 138709 | C30: 138709 | D30: 138709 | E30: 138709 | F30: 138709 | G30: 193991 | H30: 193991 | I30: 193991 | J30: 193991 | K30: 193991 | M30: 138709 | N30: 138709 | O30: 138709 | P30: 138709 | Q30: 138709 | R30: 193991 | S30: 193991 | T30: 193991 | U30: 193991 | V30: 193991
A31: DEL NORTE25% AMI | B31: 147496 | C31: 148216 | D31: 150089 | E31: 151673 | F31: 153258 | G31: 202778 | H31: 203498 | I31: 205371 | J31: 206955 | K31: 208540 | M31: 147496 | N31: 148216 | O31: 150089 | P31: 151673 | Q31: 153258 | R31: 202778 | S31: 203498 | T31: 205371 | U31: 206955 | V31: 208540
A32: DEL NORTE20% AMI | B32: 156283 | C32: 157579 | D32: 161324 | E32: 164782 | F32: 167807 | G32: 211565 | H32: 212861 | I32: 216606 | J32: 220064 | K32: 223089 | M32: 156283 | N32: 157579 | O32: 161324 | P32: 164782 | Q32: 167807 | R32: 211565 | S32: 212861 | T32: 216606 | U32: 220064 | V32: 223089
A33: DEL NORTE15% AMI | B33: 165070 | C33: 166942 | D33: 172704 | E33: 177890 | F33: 182355 | G33: 220352 | H33: 222224 | I33: 227986 | J33: 233172 | K33: 237637 | M33: 165070 | N33: 166942 | O33: 172704 | P33: 177890 | Q33: 182355 | R33: 220352 | S33: 222224 | T33: 227986 | U33: 233172 | V33: 237637
A34: EL DORADO30% AMI | B34: 138709 | C34: 138709 | D34: 138709 | E34: 138709 | F34: 138709 | G34: 193991 | H34: 193991 | I34: 193991 | J34: 193991 | K34: 193991 | M34: 138709 | N34: 138709 | O34: 138709 | P34: 138709 | Q34: 138709 | R34: 193991 | S34: 193991 | T34: 193991 | U34: 193991 | V34: 193991
A35: EL DORADO25% AMI | B35: 150233 | C35: 150953 | D35: 153402 | E35: 155563 | F35: 157723 | G35: 205515 | H35: 206235 | I35: 208684 | J35: 210845 | K35: 213005 | M35: 150233 | N35: 150953 | O35: 153402 | P35: 155563 | Q35: 157723 | R35: 205515 | S35: 206235 | T35: 208684 | U35: 210845 | V35: 213005
A36: EL DORADO20% AMI | B36: 161613 | C36: 163197 | D36: 168095 | E36: 172560 | F36: 176593 | G36: 216895 | H36: 218479 | I36: 223377 | J36: 227842 | K36: 231875 | M36: 161613 | N36: 163197 | O36: 168095 | P36: 172560 | Q36: 176593 | R36: 216895 | S36: 218479 | T36: 223377 | U36: 227842 | V36: 231875
A37: EL DORADO15% AMI | B37: 172992 | C37: 175441 | D37: 182787 | E37: 189558 | F37: 195464 | G37: 228274 | H37: 230723 | I37: 238069 | J37: 244840 | K37: 250746 | M37: 172992 | N37: 175441 | O37: 182787 | P37: 189558 | Q37: 195464 | R37: 228274 | S37: 230723 | T37: 238069 | U37: 244840 | V37: 250746
A38: FRESNO30% AMI | B38: 138709 | C38: 138709 | D38: 138709 | E38: 138709 | F38: 138709 | G38: 193991 | H38: 193991 | I38: 193991 | J38: 193991 | K38: 193991 | M38: 138709 | N38: 138709 | O38: 138709 | P38: 138709 | Q38: 138709 | R38: 193991 | S38: 193991 | T38: 193991 | U38: 193991 | V38: 193991
A39: FRESNO25% AMI | B39: 147496 | C39: 148216 | D39: 150089 | E39: 151673 | F39: 153258 | G39: 202778 | H39: 203498 | I39: 205371 | J39: 206955 | K39: 208540 | M39: 147496 | N39: 148216 | O39: 150089 | P39: 151673 | Q39: 153258 | R39: 202778 | S39: 203498 | T39: 205371 | U39: 206955 | V39: 208540
A40: FRESNO20% AMI | B40: 156283 | C40: 157579 | D40: 161324 | E40: 164782 | F40: 167807 | G40: 211565 | H40: 212861 | I40: 216606 | J40: 220064 | K40: 223089 | M40: 156283 | N40: 157579 | O40: 161324 | P40: 164782 | Q40: 167807 | R40: 211565 | S40: 212861 | T40: 216606 | U40: 220064 | V40: 223089
A41: FRESNO15% AMI | B41: 165070 | C41: 166942 | D41: 172704 | E41: 177890 | F41: 182355 | G41: 220352 | H41: 222224 | I41: 227986 | J41: 233172 | K41: 237637 | M41: 165070 | N41: 166942 | O41: 172704 | P41: 177890 | Q41: 182355 | R41: 220352 | S41: 222224 | T41: 227986 | U41: 233172 | V41: 237637
A42: GLENN30% AMI | B42: 138709 | C42: 138709 | D42: 138709 | E42: 138709 | F42: 138709 | G42: 193991 | H42: 193991 | I42: 193991 | J42: 193991 | K42: 193991 | M42: 138709 | N42: 138709 | O42: 138709 | P42: 138709 | Q42: 138709 | R42: 193991 | S42: 193991 | T42: 193991 | U42: 193991 | V42: 193991
A43: GLENN25% AMI | B43: 147496 | C43: 148216 | D43: 150089 | E43: 151673 | F43: 153258 | G43: 202778 | H43: 203498 | I43: 205371 | J43: 206955 | K43: 208540 | M43: 147496 | N43: 148216 | O43: 150089 | P43: 151673 | Q43: 153258 | R43: 202778 | S43: 203498 | T43: 205371 | U43: 206955 | V43: 208540
A44: GLENN20% AMI | B44: 156283 | C44: 157579 | D44: 161324 | E44: 164782 | F44: 167807 | G44: 211565 | H44: 212861 | I44: 216606 | J44: 220064 | K44: 223089 | M44: 156283 | N44: 157579 | O44: 161324 | P44: 164782 | Q44: 167807 | R44: 211565 | S44: 212861 | T44: 216606 | U44: 220064 | V44: 223089
A45: GLENN15% AMI | B45: 165070 | C45: 166942 | D45: 172704 | E45: 177890 | F45: 182355 | G45: 220352 | H45: 222224 | I45: 227986 | J45: 233172 | K45: 237637 | M45: 165070 | N45: 166942 | O45: 172704 | P45: 177890 | Q45: 182355 | R45: 220352 | S45: 222224 | T45: 227986 | U45: 233172 | V45: 237637
A46: HUMBOLDT30% AMI | B46: 138709 | C46: 138709 | D46: 138709 | E46: 138709 | F46: 138709 | G46: 193991 | H46: 193991 | I46: 193991 | J46: 193991 | K46: 193991 | M46: 138709 | N46: 138709 | O46: 138709 | P46: 138709 | Q46: 138709 | R46: 193991 | S46: 193991 | T46: 193991 | U46: 193991 | V46: 193991
A47: HUMBOLDT25% AMI | B47: 147496 | C47: 148216 | D47: 150089 | E47: 151673 | F47: 153258 | G47: 202778 | H47: 203498 | I47: 205371 | J47: 206955 | K47: 208540 | M47: 147496 | N47: 148216 | O47: 150089 | P47: 151673 | Q47: 153258 | R47: 202778 | S47: 203498 | T47: 205371 | U47: 206955 | V47: 208540
A48: HUMBOLDT20% AMI | B48: 156283 | C48: 157579 | D48: 161324 | E48: 164782 | F48: 167807 | G48: 211565 | H48: 212861 | I48: 216606 | J48: 220064 | K48: 223089 | M48: 156283 | N48: 157579 | O48: 161324 | P48: 164782 | Q48: 167807 | R48: 211565 | S48: 212861 | T48: 216606 | U48: 220064 | V48: 223089
A49: HUMBOLDT15% AMI | B49: 165070 | C49: 166942 | D49: 172704 | E49: 177890 | F49: 182355 | G49: 220352 | H49: 222224 | I49: 227986 | J49: 233172 | K49: 237637 | M49: 165070 | N49: 166942 | O49: 172704 | P49: 177890 | Q49: 182355 | R49: 220352 | S49: 222224 | T49: 227986 | U49: 233172 | V49: 237637
A50: IMPERIAL30% AMI | B50: 138709 | C50: 138709 | D50: 138709 | E50: 138709 | F50: 138709 | G50: 193991 | H50: 193991 | I50: 193991 | J50: 193991 | K50: 193991 | M50: 138709 | N50: 138709 | O50: 138709 | P50: 138709 | Q50: 138709 | R50: 193991 | S50: 193991 | T50: 193991 | U50: 193991 | V50: 193991
A51: IMPERIAL25% AMI | B51: 147496 | C51: 148216 | D51: 150089 | E51: 151673 | F51: 153258 | G51: 202778 | H51: 203498 | I51: 205371 | J51: 206955 | K51: 208540 | M51: 147496 | N51: 148216 | O51: 150089 | P51: 151673 | Q51: 153258 | R51: 202778 | S51: 203498 | T51: 205371 | U51: 206955 | V51: 208540
A52: IMPERIAL20% AMI | B52: 156283 | C52: 157579 | D52: 161324 | E52: 164782 | F52: 167807 | G52: 211565 | H52: 212861 | I52: 216606 | J52: 220064 | K52: 223089 | M52: 156283 | N52: 157579 | O52: 161324 | P52: 164782 | Q52: 167807 | R52: 211565 | S52: 212861 | T52: 216606 | U52: 220064 | V52: 223089
A53: IMPERIAL15% AMI | B53: 165070 | C53: 166942 | D53: 172704 | E53: 177890 | F53: 182355 | G53: 220352 | H53: 222224 | I53: 227986 | J53: 233172 | K53: 237637 | M53: 165070 | N53: 166942 | O53: 172704 | P53: 177890 | Q53: 182355 | R53: 220352 | S53: 222224 | T53: 227986 | U53: 233172 | V53: 237637
A54: INYO30% AMI | B54: 138709 | C54: 138709 | D54: 138709 | E54: 138709 | F54: 138709 | G54: 193991 | H54: 193991 | I54: 193991 | J54: 193991 | K54: 193991 | M54: 138709 | N54: 138709 | O54: 138709 | P54: 138709 | Q54: 138709 | R54: 193991 | S54: 193991 | T54: 193991 | U54: 193991 | V54: 193991
A55: INYO25% AMI | B55: 148072 | C55: 148792 | D55: 150809 | E55: 152682 | F55: 154266 | G55: 203354 | H55: 204074 | I55: 206091 | J55: 207964 | K55: 209548 | M55: 148072 | N55: 148792 | O55: 150809 | P55: 152682 | Q55: 154266 | R55: 203354 | S55: 204074 | T55: 206091 | U55: 207964 | V55: 209548
A56: INYO20% AMI | B56: 157435 | C56: 158732 | D56: 162765 | E56: 166510 | F56: 169679 | G56: 212717 | H56: 214014 | I56: 218047 | J56: 221792 | K56: 224961 | M56: 157435 | N56: 158732 | O56: 162765 | P56: 166510 | Q56: 169679 | R56: 212717 | S56: 214014 | T56: 218047 | U56: 221792 | V56: 224961
A57: INYO15% AMI | B57: 166798 | C57: 168815 | D57: 174721 | E57: 180339 | F57: 185236 | G57: 222080 | H57: 224097 | I57: 230003 | J57: 235621 | K57: 240518 | M57: 166798 | N57: 168815 | O57: 174721 | P57: 180339 | Q57: 185236 | R57: 222080 | S57: 224097 | T57: 230003 | U57: 235621 | V57: 240518
A58: KERN30% AMI | B58: 138709 | C58: 138709 | D58: 138709 | E58: 138709 | F58: 138709 | G58: 193991 | H58: 193991 | I58: 193991 | J58: 193991 | K58: 193991 | M58: 138709 | N58: 138709 | O58: 138709 | P58: 138709 | Q58: 138709 | R58: 193991 | S58: 193991 | T58: 193991 | U58: 193991 | V58: 193991
A59: KERN25% AMI | B59: 147496 | C59: 148216 | D59: 150089 | E59: 151673 | F59: 153258 | G59: 202778 | H59: 203498 | I59: 205371 | J59: 206955 | K59: 208540 | M59: 147496 | N59: 148216 | O59: 150089 | P59: 151673 | Q59: 153258 | R59: 202778 | S59: 203498 | T59: 205371 | U59: 206955 | V59: 208540
A60: KERN20% AMI | B60: 156283 | C60: 157579 | D60: 161324 | E60: 164782 | F60: 167807 | G60: 211565 | H60: 212861 | I60: 216606 | J60: 220064 | K60: 223089 | M60: 156283 | N60: 157579 | O60: 161324 | P60: 164782 | Q60: 167807 | R60: 211565 | S60: 212861 | T60: 216606 | U60: 220064 | V60: 223089
A61: KERN15% AMI | B61: 165070 | C61: 166942 | D61: 172704 | E61: 177890 | F61: 182355 | G61: 220352 | H61: 222224 | I61: 227986 | J61: 233172 | K61: 237637 | M61: 165070 | N61: 166942 | O61: 172704 | P61: 177890 | Q61: 182355 | R61: 220352 | S61: 222224 | T61: 227986 | U61: 233172 | V61: 237637
A62: KINGS30% AMI | B62: 138709 | C62: 138709 | D62: 138709 | E62: 138709 | F62: 138709 | G62: 193991 | H62: 193991 | I62: 193991 | J62: 193991 | K62: 193991 | M62: 138709 | N62: 138709 | O62: 138709 | P62: 138709 | Q62: 138709 | R62: 193991 | S62: 193991 | T62: 193991 | U62: 193991 | V62: 193991
A63: KINGS25% AMI | B63: 147496 | C63: 148216 | D63: 150089 | E63: 151673 | F63: 153258 | G63: 202778 | H63: 203498 | I63: 205371 | J63: 206955 | K63: 208540 | M63: 147496 | N63: 148216 | O63: 150089 | P63: 151673 | Q63: 153258 | R63: 202778 | S63: 203498 | T63: 205371 | U63: 206955 | V63: 208540
A64: KINGS20% AMI | B64: 156283 | C64: 157579 | D64: 161324 | E64: 164782 | F64: 167807 | G64: 211565 | H64: 212861 | I64: 216606 | J64: 220064 | K64: 223089 | M64: 156283 | N64: 157579 | O64: 161324 | P64: 164782 | Q64: 167807 | R64: 211565 | S64: 212861 | T64: 216606 | U64: 220064 | V64: 223089
A65: KINGS15% AMI | B65: 165070 | C65: 166942 | D65: 172704 | E65: 177890 | F65: 182355 | G65: 220352 | H65: 222224 | I65: 227986 | J65: 233172 | K65: 237637 | M65: 165070 | N65: 166942 | O65: 172704 | P65: 177890 | Q65: 182355 | R65: 220352 | S65: 222224 | T65: 227986 | U65: 233172 | V65: 237637
A66: LAKE30% AMI | B66: 138709 | C66: 138709 | D66: 138709 | E66: 138709 | F66: 138709 | G66: 193991 | H66: 193991 | I66: 193991 | J66: 193991 | K66: 193991 | M66: 138709 | N66: 138709 | O66: 138709 | P66: 138709 | Q66: 138709 | R66: 193991 | S66: 193991 | T66: 193991 | U66: 193991 | V66: 193991
A67: LAKE25% AMI | B67: 147496 | C67: 148216 | D67: 150089 | E67: 151673 | F67: 153258 | G67: 202778 | H67: 203498 | I67: 205371 | J67: 206955 | K67: 208540 | M67: =(ROUND(B67,0)) -> 147496 | N67: 148216 | O67: 150089 | P67: 151673 | Q67: 153258 | R67: 202778 | S67: 203498 | T67: 205371 | U67: 206955 | V67: 208540
A68: LAKE20% AMI | B68: 156283 | C68: 157579 | D68: 161324 | E68: 164782 | F68: 167807 | G68: 211565 | H68: 212861 | I68: 216606 | J68: 220064 | K68: 223089 | M68: 156283 | N68: 157579 | O68: 161324 | P68: 164782 | Q68: 167807 | R68: 211565 | S68: 212861 | T68: 216606 | U68: 220064 | V68: 223089
A69: LAKE15% AMI | B69: 165070 | C69: 166942 | D69: 172704 | E69: 177890 | F69: 182355 | G69: 220352 | H69: 222224 | I69: 227986 | J69: 233172 | K69: 237637 | M69: 165070 | N69: 166942 | O69: 172704 | P69: 177890 | Q69: 182355 | R69: 220352 | S69: 222224 | T69: 227986 | U69: 233172 | V69: 237637
A70: LASSEN30% AMI | B70: 138709 | C70: 138709 | D70: 138709 | E70: 138709 | F70: 138709 | G70: 193991 | H70: 193991 | I70: 193991 | J70: 193991 | K70: 193991 | M70: 138709 | N70: 138709 | O70: 138709 | P70: 138709 | Q70: 138709 | R70: 193991 | S70: 193991 | T70: 193991 | U70: 193991 | V70: 193991
A71: LASSEN25% AMI | B71: 147784 | C71: 148504 | D71: 150377 | E71: 152249 | F71: 153834 | G71: 203066 | H71: 203786 | I71: 205659 | J71: 207531 | K71: 209116 | M71: 147784 | N71: 148504 | O71: 150377 | P71: 152249 | Q71: 153834 | R71: 203066 | S71: 203786 | T71: 205659 | U71: 207531 | V71: 209116
A72: LASSEN20% AMI | B72: 156859 | C72: 158155 | D72: 162045 | E72: 165790 | F72: 168815 | G72: 212141 | H72: 213437 | I72: 217327 | J72: 221072 | K72: 224097 | M72: 156859 | N72: 158155 | O72: 162045 | P72: 165790 | Q72: 168815 | R72: 212141 | S72: 213437 | T72: 217327 | U72: 221072 | V72: 224097
A73: LASSEN15% AMI | B73: 166078 | C73: 167951 | D73: 173857 | E73: 179330 | F73: 183940 | G73: 221360 | H73: 223233 | I73: 229139 | J73: 234612 | K73: 239222 | M73: 166078 | N73: 167951 | O73: 173857 | P73: 179330 | Q73: 183940 | R73: 221360 | S73: 223233 | T73: 229139 | U73: 234612 | V73: 239222
A74: LOS ANGELES30% AMI | B74: 138709 | C74: 138709 | D74: 138709 | E74: 138709 | F74: 138709 | G74: 193991 | H74: 193991 | I74: 193991 | J74: 193991 | K74: 193991 | M74: 138709 | N74: 138709 | O74: 138709 | P74: 138709 | Q74: 138709 | R74: 193991 | S74: 193991 | T74: 193991 | U74: 193991 | V74: 193991
A75: LOS ANGELES25% AMI | B75: 153690 | C75: 154698 | D75: 157867 | E75: 160892 | F75: 163485 | G75: 208972 | H75: 209980 | I75: 213149 | J75: 216174 | K75: 218767 | M75: 153690 | N75: 154698 | O75: 157867 | P75: 160892 | Q75: 163485 | R75: 208972 | S75: 209980 | T75: 213149 | U75: 216174 | V75: 218767
A76: LOS ANGELES20% AMI | B76: 168527 | C76: 170688 | D76: 177026 | E76: 183076 | F76: 188117 | G76: 223809 | H76: 225970 | I76: 232308 | J76: 238358 | K76: 243399 | M76: 168527 | N76: 170688 | O76: 177026 | P76: 183076 | Q76: 188117 | R76: 223809 | S76: 225970 | T76: 232308 | U76: 238358 | V76: 243399
A77: LOS ANGELES15% AMI | B77: 183508 | C77: 186677 | D77: 196184 | E77: 205115 | F77: 212893 | G77: 238790 | H77: 241959 | I77: 251466 | J77: 260397 | K77: 268175 | M77: 183508 | N77: 186677 | O77: 196184 | P77: 205115 | Q77: 212893 | R77: 238790 | S77: 241959 | T77: 251466 | U77: 260397 | V77: 268175
A78: MADERA30% AMI | B78: 138709 | C78: 138709 | D78: 138709 | E78: 138709 | F78: 138709 | G78: 193991 | H78: 193991 | I78: 193991 | J78: 193991 | K78: 193991 | M78: 138709 | N78: 138709 | O78: 138709 | P78: 138709 | Q78: 138709 | R78: 193991 | S78: 193991 | T78: 193991 | U78: 193991 | V78: 193991
A79: MADERA25% AMI | B79: 147496 | C79: 148216 | D79: 150089 | E79: 151673 | F79: 153258 | G79: 202778 | H79: 203498 | I79: 205371 | J79: 206955 | K79: 208540 | M79: 147496 | N79: 148216 | O79: 150089 | P79: 151673 | Q79: 153258 | R79: 202778 | S79: 203498 | T79: 205371 | U79: 206955 | V79: 208540
A80: MADERA20% AMI | B80: 156283 | C80: 157579 | D80: 161324 | E80: 164782 | F80: 167807 | G80: 211565 | H80: 212861 | I80: 216606 | J80: 220064 | K80: 223089 | M80: 156283 | N80: 157579 | O80: 161324 | P80: 164782 | Q80: 167807 | R80: 211565 | S80: 212861 | T80: 216606 | U80: 220064 | V80: 223089
A81: MADERA15% AMI | B81: 165070 | C81: 166942 | D81: 172704 | E81: 177890 | F81: 182355 | G81: 220352 | H81: 222224 | I81: 227986 | J81: 233172 | K81: 237637 | M81: 165070 | N81: 166942 | O81: 172704 | P81: 177890 | Q81: 182355 | R81: 220352 | S81: 222224 | T81: 227986 | U81: 233172 | V81: 237637
A82: MARIN30% AMI | B82: 138709 | C82: 138709 | D82: 138709 | E82: 138709 | F82: 138709 | G82: 193991 | H82: 193991 | I82: 193991 | J82: 193991 | K82: 193991 | M82: 138709 | N82: =(ROUND(C82,0)) -> 138709 | O82: =(ROUND(D82,0)) -> 138709 | P82: =(ROUND(E82,0)) -> 138709 | Q82: =(ROUND(F82,0)) -> 138709 | R82: =(ROUND(G82,0)) -> 193991 | S82: =(ROUND(H82,0)) -> 193991 | T82: =(ROUND(I82,0)) -> 193991 | U82: =(ROUND(J82,0)) -> 193991 | V82: =(ROUND(K82,0)) -> 193991
A83: MARIN25% AMI | B83: 161757 | C83: 163341 | D83: 168239 | E83: 172992 | F83: 176882 | G83: 217039 | H83: 218623 | I83: 223521 | J83: 228274 | K83: 232164 | M83: 161757 | N83: 163341 | O83: 168239 | P83: 172992 | Q83: 176882 | R83: 217039 | S83: 218623 | T83: 223521 | U83: 228274 | V83: 232164
A84: MARIN20% AMI | B84: 184804 | C84: 187973 | D84: 197912 | E84: 207131 | F84: 215054 | G84: 240086 | H84: 243255 | I84: 253194 | J84: 262413 | K84: 270336 | M84: 184804 | N84: 187973 | O84: 197912 | P84: 207131 | Q84: 215054 | R84: 240086 | S84: 243255 | T84: 253194 | U84: 262413 | V84: 270336
A85: MARIN15% AMI | B85: 207852 | C85: 212749 | D85: 227586 | E85: 241415 | F85: 253227 | G85: 263134 | H85: 268031 | I85: 282868 | J85: 296697 | K85: 308509 | M85: 207852 | N85: 212749 | O85: 227586 | P85: 241415 | Q85: 253227 | R85: 263134 | S85: 268031 | T85: 282868 | U85: 296697 | V85: 308509
A86: MARIPOSA30% AMI | B86: 138709 | C86: 138709 | D86: 138709 | E86: 138709 | F86: 138709 | G86: 193991 | H86: 193991 | I86: 193991 | J86: 193991 | K86: 193991 | M86: 138709 | N86: 138709 | O86: 138709 | P86: 138709 | Q86: 138709 | R86: 193991 | S86: 193991 | T86: 193991 | U86: 193991 | V86: 193991
A87: MARIPOSA25% AMI | B87: 147496 | C87: 148216 | D87: 150089 | E87: 151673 | F87: 153258 | G87: 202778 | H87: 203498 | I87: 205371 | J87: 206955 | K87: 208540 | M87: 147496 | N87: 148216 | O87: 150089 | P87: 151673 | Q87: 153258 | R87: 202778 | S87: 203498 | T87: 205371 | U87: 206955 | V87: 208540
A88: MARIPOSA20% AMI | B88: 156283 | C88: 157579 | D88: 161324 | E88: 164782 | F88: 167807 | G88: 211565 | H88: 212861 | I88: 216606 | J88: 220064 | K88: 223089 | M88: 156283 | N88: 157579 | O88: 161324 | P88: 164782 | Q88: 167807 | R88: 211565 | S88: 212861 | T88: 216606 | U88: 220064 | V88: 223089
A89: MARIPOSA15% AMI | B89: 165070 | C89: 166942 | D89: 172704 | E89: 177890 | F89: 182355 | G89: 220352 | H89: 222224 | I89: 227986 | J89: 233172 | K89: 237637 | M89: 165070 | N89: 166942 | O89: 172704 | P89: 177890 | Q89: 182355 | R89: 220352 | S89: 222224 | T89: 227986 | U89: 233172 | V89: 237637
A90: MENDOCINO30% AMI | B90: 138709 | C90: 138709 | D90: 138709 | E90: 138709 | F90: 138709 | G90: 193991 | H90: 193991 | I90: 193991 | J90: 193991 | K90: 193991 | M90: 138709 | N90: 138709 | O90: 138709 | P90: 138709 | Q90: 138709 | R90: 193991 | S90: 193991 | T90: 193991 | U90: 193991 | V90: 193991
A91: MENDOCINO25% AMI | B91: 147928 | C91: 148504 | D91: 150521 | E91: 152249 | F91: 153834 | G91: 203210 | H91: 203786 | I91: 205803 | J91: 207531 | K91: 209116 | M91: 147928 | N91: 148504 | O91: 150521 | P91: 152249 | Q91: 153834 | R91: 203210 | S91: 203786 | T91: 205803 | U91: 207531 | V91: 209116
A92: MENDOCINO20% AMI | B92: 157003 | C92: 158299 | D92: 162189 | E92: 165790 | F92: 168959 | G92: 212285 | H92: 213581 | I92: 217471 | J92: 221072 | K92: 224241 | M92: 157003 | N92: 158299 | O92: 162189 | P92: 165790 | Q92: 168959 | R92: 212285 | S92: 213581 | T92: 217471 | U92: 221072 | V92: 224241
A93: MENDOCINO15% AMI | B93: 166078 | C93: 168095 | D93: 173857 | E93: 179330 | F93: 184084 | G93: 221360 | H93: 223377 | I93: 229139 | J93: 234612 | K93: 239366 | M93: 166078 | N93: 168095 | O93: 173857 | P93: 179330 | Q93: 184084 | R93: 221360 | S93: 223377 | T93: 229139 | U93: 234612 | V93: 239366
A94: MERCED30% AMI | B94: 138709 | C94: 138709 | D94: 138709 | E94: 138709 | F94: 138709 | G94: 193991 | H94: 193991 | I94: 193991 | J94: 193991 | K94: 193991 | M94: 138709 | N94: 138709 | O94: 138709 | P94: 138709 | Q94: 138709 | R94: 193991 | S94: 193991 | T94: 193991 | U94: 193991 | V94: 193991
A95: MERCED25% AMI | B95: 147496 | C95: 148216 | D95: 150089 | E95: 151673 | F95: 153258 | G95: 202778 | H95: 203498 | I95: 205371 | J95: 206955 | K95: 208540 | M95: 147496 | N95: 148216 | O95: 150089 | P95: 151673 | Q95: 153258 | R95: 202778 | S95: 203498 | T95: 205371 | U95: 206955 | V95: 208540
A96: MERCED20% AMI | B96: 156283 | C96: 157579 | D96: 161324 | E96: 164782 | F96: 167807 | G96: 211565 | H96: 212861 | I96: 216606 | J96: 220064 | K96: 223089 | M96: 156283 | N96: 157579 | O96: 161324 | P96: 164782 | Q96: 167807 | R96: 211565 | S96: 212861 | T96: 216606 | U96: 220064 | V96: 223089
A97: MERCED15% AMI | B97: 165070 | C97: 166942 | D97: 172704 | E97: 177890 | F97: 182355 | G97: 220352 | H97: 222224 | I97: 227986 | J97: 233172 | K97: 237637 | M97: 165070 | N97: 166942 | O97: 172704 | P97: 177890 | Q97: 182355 | R97: 220352 | S97: 222224 | T97: 227986 | U97: 233172 | V97: 237637
A98: MODOC30% AMI | B98: 138709 | C98: 138709 | D98: 138709 | E98: 138709 | F98: 138709 | G98: 193991 | H98: 193991 | I98: 193991 | J98: 193991 | K98: 193991 | M98: 138709 | N98: 138709 | O98: 138709 | P98: 138709 | Q98: 138709 | R98: 193991 | S98: 193991 | T98: 193991 | U98: 193991 | V98: 193991
A99: MODOC25% AMI | B99: 147496 | C99: 148216 | D99: 150089 | E99: 151673 | F99: 153258 | G99: 202778 | H99: 203498 | I99: 205371 | J99: 206955 | K99: 208540 | M99: 147496 | N99: 148216 | O99: 150089 | P99: 151673 | Q99: 153258 | R99: 202778 | S99: 203498 | T99: 205371 | U99: 206955 | V99: 208540
A100: MODOC20% AMI | B100: 156283 | C100: 157579 | D100: 161324 | E100: 164782 | F100: 167807 | G100: 211565 | H100: 212861 | I100: 216606 | J100: 220064 | K100: 223089 | M100: 156283 | N100: 157579 | O100: 161324 | P100: 164782 | Q100: 167807 | R100: 211565 | S100: 212861 | T100: 216606 | U100: 220064 | V100: 223089
A101: MODOC15% AMI | B101: 165070 | C101: 166942 | D101: 172704 | E101: 177890 | F101: 182355 | G101: 220352 | H101: 222224 | I101: 227986 | J101: 233172 | K101: 237637 | M101: 165070 | N101: 166942 | O101: 172704 | P101: 177890 | Q101: 182355 | R101: 220352 | S101: 222224 | T101: 227986 | U101: 233172 | V101: 237637
A102: MONO30% AMI | B102: 138709 | C102: 138709 | D102: 138709 | E102: 138709 | F102: 138709 | G102: 193991 | H102: 193991 | I102: 193991 | J102: 193991 | K102: 193991 | M102: 138709 | N102: 138709 | O102: 138709 | P102: 138709 | Q102: 138709 | R102: 193991 | S102: 193991 | T102: 193991 | U102: 193991 | V102: 193991
A103: MONO25% AMI | B103: 148648 | C103: 149369 | D103: 151529 | E103: 153402 | F103: 155274 | G103: 203930 | H103: 204651 | I103: 206811 | J103: 208684 | K103: 210556 | M103: 148648 | N103: 149369 | O103: 151529 | P103: 153402 | Q103: 155274 | R103: 203930 | S103: 204651 | T103: 206811 | U103: 208684 | V103: 210556
A104: MONO20% AMI | B104: 158588 | C104: 160028 | D104: 164349 | E104: 168239 | F104: 171696 | G104: 213870 | H104: 215310 | I104: 219631 | J104: 223521 | K104: 226978 | M104: 158588 | N104: 160028 | O104: 164349 | P104: 168239 | Q104: 171696 | R104: 213870 | S104: 215310 | T104: 219631 | U104: 223521 | V104: 226978
A105: MONO15% AMI | B105: 168527 | C105: 170688 | D105: 177170 | E105: 183076 | F105: 188261 | G105: 223809 | H105: 225970 | I105: 232452 | J105: 238358 | K105: 243543 | M105: 168527 | N105: 170688 | O105: 177170 | P105: 183076 | Q105: 188261 | R105: 223809 | S105: 225970 | T105: 232452 | U105: 238358 | V105: 243543
A106: MONTEREY30% AMI | B106: 138709 | C106: 138709 | D106: 138709 | E106: 138709 | F106: 138709 | G106: 193991 | H106: 193991 | I106: 193991 | J106: 193991 | K106: 193991 | M106: 138709 | N106: 138709 | O106: 138709 | P106: 138709 | Q106: 138709 | R106: 193991 | S106: 193991 | T106: 193991 | U106: 193991 | V106: 193991
A107: MONTEREY25% AMI | B107: 151529 | C107: 152538 | D107: 155274 | E107: 157723 | F107: 160028 | G107: 206811 | H107: 207820 | I107: 210556 | J107: 213005 | K107: 215310 | M107: 151529 | N107: 152538 | O107: 155274 | P107: 157723 | Q107: 160028 | R107: 206811 | S107: 207820 | T107: 210556 | U107: 213005 | V107: 215310
A108: MONTEREY20% AMI | B108: 164349 | C108: 166222 | D108: 171696 | E108: 176737 | F108: 181203 | G108: 219631 | H108: 221504 | I108: 226978 | J108: 232019 | K108: 236485 | M108: 164349 | N108: 166222 | O108: 171696 | P108: 176737 | Q108: 181203 | R108: 219631 | S108: 221504 | T108: 226978 | U108: 232019 | V108: 236485
A109: MONTEREY15% AMI | B109: 177170 | C109: 179907 | D109: 188261 | E109: 195896 | F109: 202522 | G109: 232452 | H109: 235189 | I109: 243543 | J109: 251178 | K109: 257804 | M109: 177170 | N109: 179907 | O109: 188261 | P109: 195896 | Q109: 202522 | R109: 232452 | S109: 235189 | T109: 243543 | U109: 251178 | V109: 257804
A110: NAPA30% AMI | B110: 138709 | C110: 138709 | D110: 138709 | E110: 138709 | F110: 138709 | G110: 193991 | H110: 193991 | I110: 193991 | J110: 193991 | K110: 193991 | M110: 138709 | N110: 138709 | O110: 138709 | P110: 138709 | Q110: 138709 | R110: 193991 | S110: 193991 | T110: 193991 | U110: 193991 | V110: 193991
A111: NAPA25% AMI | B111: 153114 | C111: 153978 | D111: 157147 | E111: 159884 | F111: 162477 | G111: 208396 | H111: 209260 | I111: 212429 | J111: 215166 | K111: 217759 | M111: 153114 | N111: 153978 | O111: 157147 | P111: 159884 | Q111: 162477 | R111: 208396 | S111: 209260 | T111: 212429 | U111: 215166 | V111: 217759
A112: NAPA20% AMI | B112: 167374 | C112: 169391 | D112: 175585 | E112: 181203 | F112: 186245 | G112: 222656 | H112: 224673 | I112: 230867 | J112: 236485 | K112: 241527 | M112: 167374 | N112: 169391 | O112: 175585 | P112: 181203 | Q112: 186245 | R112: 222656 | S112: 224673 | T112: 230867 | U112: 236485 | V112: 241527
A113: NAPA15% AMI | B113: 181779 | C113: 184804 | D113: 194023 | E113: 202522 | F113: 210012 | G113: 237061 | H113: 240086 | I113: 249305 | J113: 257804 | K113: 265294 | M113: 181779 | N113: 184804 | O113: 194023 | P113: 202522 | Q113: 210012 | R113: 237061 | S113: 240086 | T113: 249305 | U113: 257804 | V113: 265294
A114: NEVADA30% AMI | B114: 138709 | C114: 138709 | D114: 138709 | E114: 138709 | F114: 138709 | G114: 193991 | H114: 193991 | I114: 193991 | J114: 193991 | K114: 193991 | M114: 138709 | N114: 138709 | O114: 138709 | P114: 138709 | Q114: 138709 | R114: 193991 | S114: 193991 | T114: 193991 | U114: 193991 | V114: 193991
A115: NEVADA25% AMI | B115: 149945 | C115: 150809 | D115: 153258 | E115: 155563 | F115: 157435 | G115: 205227 | H115: 206091 | I115: 208540 | J115: 210845 | K115: 212717 | M115: 149945 | N115: 150809 | O115: 153258 | P115: 155563 | Q115: 157435 | R115: 205227 | S115: 206091 | T115: 208540 | U115: 210845 | V115: 212717
A116: NEVADA20% AMI | B116: 161324 | C116: 162909 | D116: 167807 | E116: 172272 | F116: 176161 | G116: 216606 | H116: 218191 | I116: 223089 | J116: 227554 | K116: 231443 | M116: 161324 | N116: 162909 | O116: 167807 | P116: 172272 | Q116: 176161 | R116: 216606 | S116: 218191 | T116: 223089 | U116: 227554 | V116: 231443
A117: NEVADA15% AMI | B117: 172704 | C117: 175153 | D117: 182355 | E117: 189126 | F117: 195031 | G117: 227986 | H117: 230435 | I117: 237637 | J117: 244408 | K117: 250313 | M117: 172704 | N117: 175153 | O117: 182355 | P117: 189126 | Q117: 195031 | R117: 227986 | S117: 230435 | T117: 237637 | U117: 244408 | V117: 250313
A118: ORANGE30% AMI | B118: 138709 | C118: 138709 | D118: 138709 | E118: 138709 | F118: 138709 | G118: 193991 | H118: 193991 | I118: 193991 | J118: 193991 | K118: 193991 | M118: 138709 | N118: 138709 | O118: 138709 | P118: 138709 | Q118: 138709 | R118: 193991 | S118: 193991 | T118: 193991 | U118: 193991 | V118: 193991
A119: ORANGE25% AMI | B119: 155707 | C119: 156859 | D119: 160604 | E119: 163917 | F119: 166798 | G119: 210989 | H119: 212141 | I119: 215886 | J119: 219199 | K119: 222080 | M119: 155707 | N119: 156859 | O119: 160604 | P119: 163917 | Q119: 166798 | R119: 210989 | S119: 212141 | T119: 215886 | U119: 219199 | V119: 222080
A120: ORANGE20% AMI | B120: 172560 | C120: 175009 | D120: 182355 | E120: 189126 | F120: 194887 | G120: 227842 | H120: 230291 | I120: 237637 | J120: 244408 | K120: 250169 | M120: 172560 | N120: 175009 | O120: 182355 | P120: 189126 | Q120: 194887 | R120: 227842 | S120: 230291 | T120: 237637 | U120: 244408 | V120: 250169
A121: ORANGE15% AMI | B121: 189558 | C121: 193159 | D121: 204106 | E121: 214334 | F121: 222977 | G121: 244840 | H121: 248441 | I121: 259388 | J121: 269616 | K121: 278259 | M121: 189558 | N121: 193159 | O121: 204106 | P121: 214334 | Q121: 222977 | R121: 244840 | S121: 248441 | T121: 259388 | U121: 269616 | V121: 278259
A122: PLACER30% AMI | B122: 138709 | C122: 138709 | D122: 138709 | E122: 138709 | F122: 138709 | G122: 193991 | H122: 193991 | I122: 193991 | J122: 193991 | K122: 193991 | M122: 138709 | N122: 138709 | O122: 138709 | P122: 138709 | Q122: 138709 | R122: 193991 | S122: 193991 | T122: 193991 | U122: 193991 | V122: 193991
A123: PLACER25% AMI | B123: 150233 | C123: 150953 | D123: 153402 | E123: 155563 | F123: 157723 | G123: 205515 | H123: 206235 | I123: 208684 | J123: 210845 | K123: 213005 | M123: 150233 | N123: 150953 | O123: 153402 | P123: 155563 | Q123: 157723 | R123: 205515 | S123: 206235 | T123: 208684 | U123: 210845 | V123: 213005
A124: PLACER20% AMI | B124: 161613 | C124: 163197 | D124: 168095 | E124: 172560 | F124: 176593 | G124: 216895 | H124: 218479 | I124: 223377 | J124: 227842 | K124: 231875 | M124: 161613 | N124: 163197 | O124: 168095 | P124: 172560 | Q124: 176593 | R124: 216895 | S124: 218479 | T124: 223377 | U124: 227842 | V124: 231875
A125: PLACER15% AMI | B125: 172992 | C125: 175441 | D125: 182787 | E125: 189558 | F125: 195464 | G125: 228274 | H125: 230723 | I125: 238069 | J125: 244840 | K125: 250746 | M125: 172992 | N125: 175441 | O125: 182787 | P125: 189558 | Q125: 195464 | R125: 228274 | S125: 230723 | T125: 238069 | U125: 244840 | V125: 250746
A126: PLUMAS30% AMI | B126: 138709 | C126: 138709 | D126: 138709 | E126: 138709 | F126: 138709 | G126: 193991 | H126: 193991 | I126: 193991 | J126: 193991 | K126: 193991 | M126: 138709 | N126: 138709 | O126: 138709 | P126: 138709 | Q126: 138709 | R126: 193991 | S126: 193991 | T126: 193991 | U126: 193991 | V126: 193991
A127: PLUMAS25% AMI | B127: 147928 | C127: 148648 | D127: 150521 | E127: 152393 | F127: 153978 | G127: 203210 | H127: 203930 | I127: 205803 | J127: 207675 | K127: 209260 | M127: 147928 | N127: 148648 | O127: 150521 | P127: 152393 | Q127: 153978 | R127: 203210 | S127: 203930 | T127: 205803 | U127: 207675 | V127: 209260
A128: PLUMAS20% AMI | B128: 157147 | C128: 158443 | D128: 162333 | E128: 166078 | F128: 169247 | G128: 212429 | H128: 213725 | I128: 217615 | J128: 221360 | K128: 224529 | M128: 157147 | N128: 158443 | O128: 162333 | P128: 166078 | Q128: 169247 | R128: 212429 | S128: 213725 | T128: 217615 | U128: 221360 | V128: 224529
A129: PLUMAS15% AMI | B129: 166366 | C129: 168383 | D129: 174289 | E129: 179762 | F129: 184516 | G129: 221648 | H129: 223665 | I129: 229571 | J129: 235044 | K129: 239798 | M129: 166366 | N129: 168383 | O129: 174289 | P129: 179762 | Q129: 184516 | R129: 221648 | S129: 223665 | T129: 229571 | U129: 235044 | V129: 239798
A130: RIVERSIDE30% AMI | B130: 138709 | C130: 138709 | D130: 138709 | E130: 138709 | F130: 138709 | G130: 193991 | H130: 193991 | I130: 193991 | J130: 193991 | K130: 193991 | M130: 138709 | N130: 138709 | O130: 138709 | P130: 138709 | Q130: 138709 | R130: 193991 | S130: 193991 | T130: 193991 | U130: 193991 | V130: 193991
A131: RIVERSIDE25% AMI | B131: 148648 | C131: 149369 | D131: 151529 | E131: 153546 | F131: 155130 | G131: 203930 | H131: 204651 | I131: 206811 | J131: 208828 | K131: 210412 | M131: =(ROUND(B131,0)) -> 148648 | N131: 149369 | O131: 151529 | P131: 153546 | Q131: 155130 | R131: 203930 | S131: 204651 | T131: 206811 | U131: 208828 | V131: 210412
A132: RIVERSIDE20% AMI | B132: 158588 | C132: 160028 | D132: 164349 | E132: 168239 | F132: 171696 | G132: 213870 | H132: 215310 | I132: 219631 | J132: 223521 | K132: 226978 | M132: 158588 | N132: 160028 | O132: 164349 | P132: 168239 | Q132: 171696 | R132: 213870 | S132: 215310 | T132: 219631 | U132: 223521 | V132: 226978
A133: RIVERSIDE15% AMI | B133: 168527 | C133: 170688 | D133: 177170 | E133: 183076 | F133: 188261 | G133: 223809 | H133: 225970 | I133: 232452 | J133: 238358 | K133: 243543 | M133: 168527 | N133: 170688 | O133: 177170 | P133: 183076 | Q133: 188261 | R133: 223809 | S133: 225970 | T133: 232452 | U133: 238358 | V133: 243543
A134: SACRAMENTO30% AMI | B134: 138709 | C134: 138709 | D134: 138709 | E134: 138709 | F134: 138709 | G134: 193991 | H134: 193991 | I134: 193991 | J134: 193991 | K134: 193991 | M134: 138709 | N134: 138709 | O134: 138709 | P134: 138709 | Q134: 138709 | R134: 193991 | S134: 193991 | T134: 193991 | U134: 193991 | V134: 193991
A135: SACRAMENTO25% AMI | B135: 150233 | C135: 150953 | D135: 153402 | E135: 155563 | F135: 157723 | G135: 205515 | H135: 206235 | I135: 208684 | J135: 210845 | K135: 213005 | M135: 150233 | N135: 150953 | O135: 153402 | P135: 155563 | Q135: 157723 | R135: 205515 | S135: 206235 | T135: 208684 | U135: 210845 | V135: 213005
A136: SACRAMENTO20% AMI | B136: 161613 | C136: 163197 | D136: 168095 | E136: 172560 | F136: 176593 | G136: 216895 | H136: 218479 | I136: 223377 | J136: 227842 | K136: 231875 | M136: 161613 | N136: 163197 | O136: 168095 | P136: 172560 | Q136: 176593 | R136: 216895 | S136: 218479 | T136: 223377 | U136: 227842 | V136: 231875
A137: SACRAMENTO15% AMI | B137: 172992 | C137: 175441 | D137: 182787 | E137: 189558 | F137: 195464 | G137: 228274 | H137: 230723 | I137: 238069 | J137: 244840 | K137: 250746 | M137: 172992 | N137: 175441 | O137: 182787 | P137: 189558 | Q137: 195464 | R137: 228274 | S137: 230723 | T137: 238069 | U137: 244840 | V137: 250746
A138: SAN BENITO30% AMI | B138: 138709 | C138: 138709 | D138: 138709 | E138: 138709 | F138: 138709 | G138: 193991 | H138: 193991 | I138: 193991 | J138: 193991 | K138: 193991 | M138: 138709 | N138: 138709 | O138: 138709 | P138: 138709 | Q138: 138709 | R138: 193991 | S138: 193991 | T138: 193991 | U138: 193991 | V138: 193991
A139: SAN BENITO25% AMI | B139: 151097 | C139: 151961 | D139: 154554 | E139: 157003 | F139: 159020 | G139: 206379 | H139: 207243 | I139: 209836 | J139: 212285 | K139: 214302 | M139: 151097 | N139: 151961 | O139: 154554 | P139: 157003 | Q139: 159020 | R139: 206379 | S139: 207243 | T139: 209836 | U139: 212285 | V139: 214302
A140: SAN BENITO20% AMI | B140: 163341 | C140: 165070 | D140: 170399 | E140: 175297 | F140: 179474 | G140: 218623 | H140: 220352 | I140: 225681 | J140: 230579 | K140: 234756 | M140: 163341 | N140: 165070 | O140: 170399 | P140: 175297 | Q140: 179474 | R140: 218623 | S140: 220352 | T140: 225681 | U140: 230579 | V140: 234756
A141: SAN BENITO15% AMI | B141: 175729 | C141: 178322 | D141: 186245 | E141: 193591 | F141: 199929 | G141: 231011 | H141: 233604 | I141: 241527 | J141: 248873 | K141: 255211 | M141: 175729 | N141: 178322 | O141: 186245 | P141: 193591 | Q141: 199929 | R141: 231011 | S141: 233604 | T141: 241527 | U141: 248873 | V141: 255211
A142: SAN BERNARDINO30% AMI | B142: 138709 | C142: 138709 | D142: 138709 | E142: 138709 | F142: 138709 | G142: 193991 | H142: 193991 | I142: 193991 | J142: 193991 | K142: 193991 | M142: 138709 | N142: 138709 | O142: 138709 | P142: 138709 | Q142: 138709 | R142: 193991 | S142: 193991 | T142: 193991 | U142: 193991 | V142: 193991
A143: SAN BERNARDINO25% AMI | B143: 148648 | C143: 149369 | D143: 151529 | E143: 153546 | F143: 155130 | G143: 203930 | H143: 204651 | I143: 206811 | J143: 208828 | K143: 210412 | M143: 148648 | N143: 149369 | O143: 151529 | P143: 153546 | Q143: 155130 | R143: 203930 | S143: 204651 | T143: 206811 | U143: 208828 | V143: 210412
A144: SAN BERNARDINO20% AMI | B144: 158588 | C144: 160028 | D144: 164349 | E144: 168239 | F144: 171696 | G144: 213870 | H144: 215310 | I144: 219631 | J144: 223521 | K144: 226978 | M144: 158588 | N144: 160028 | O144: 164349 | P144: 168239 | Q144: 171696 | R144: 213870 | S144: 215310 | T144: 219631 | U144: 223521 | V144: 226978
A145: SAN BERNARDINO15% AMI | B145: 168527 | C145: 170688 | D145: 177170 | E145: 183076 | F145: 188261 | G145: 223809 | H145: 225970 | I145: 232452 | J145: 238358 | K145: 243543 | M145: 168527 | N145: 170688 | O145: 177170 | P145: 183076 | Q145: 188261 | R145: 223809 | S145: 225970 | T145: 232452 | U145: 238358 | V145: 243543
A146: SAN DIEGO30% AMI | B146: 138709 | C146: 138709 | D146: 138709 | E146: 138709 | F146: 138709 | G146: 193991 | H146: 193991 | I146: 193991 | J146: 193991 | K146: 193991 | M146: 138709 | N146: =(ROUND(C146,0)) -> 138709 | O146: =(ROUND(D146,0)) -> 138709 | P146: =(ROUND(E146,0)) -> 138709 | Q146: =(ROUND(F146,0)) -> 138709 | R146: =(ROUND(G146,0)) -> 193991 | S146: =(ROUND(H146,0)) -> 193991 | T146: =(ROUND(I146,0)) -> 193991 | U146: =(ROUND(J146,0)) -> 193991 | V146: =(ROUND(K146,0)) -> 193991
A147: SAN DIEGO25% AMI | B147: 153978 | C147: 155130 | D147: 158443 | E147: 161468 | F147: 164061 | G147: 209260 | H147: 210412 | I147: 213725 | J147: 216750 | K147: 219343 | M147: 153978 | N147: 155130 | O147: 158443 | P147: 161468 | Q147: 164061 | R147: 209260 | S147: 210412 | T147: 213725 | U147: 216750 | V147: 219343
A148: SAN DIEGO20% AMI | B148: 169247 | C148: 171552 | D148: 178034 | E148: 184084 | F148: 189270 | G148: 224529 | H148: 226834 | I148: 233316 | J148: 239366 | K148: 244552 | M148: 169247 | N148: 171552 | O148: 178034 | P148: 184084 | Q148: 189270 | R148: 224529 | S148: 226834 | T148: 233316 | U148: 239366 | V148: 244552
A149: SAN DIEGO15% AMI | B149: 184516 | C149: 187829 | D149: 197624 | E149: 206843 | F149: 214622 | G149: 239798 | H149: 243111 | I149: 252906 | J149: 262125 | K149: 269904 | M149: 184516 | N149: 187829 | O149: 197624 | P149: 206843 | Q149: 214622 | R149: 239798 | S149: 243111 | T149: 252906 | U149: 262125 | V149: 269904
A150: SAN FRANCISCO30% AMI | B150: 138709 | C150: 138709 | D150: 138709 | E150: 138709 | F150: 138709 | G150: 193991 | H150: 193991 | I150: 193991 | J150: 193991 | K150: 193991 | M150: 138709 | N150: 138709 | O150: 138709 | P150: 138709 | Q150: 138709 | R150: 193991 | S150: 193991 | T150: 193991 | U150: 193991 | V150: 193991
A151: SAN FRANCISCO25% AMI | B151: 161757 | C151: 163341 | D151: 168239 | E151: 172992 | F151: 176882 | G151: 217039 | H151: 218623 | I151: 223521 | J151: 228274 | K151: 232164 | M151: 161757 | N151: 163341 | O151: 168239 | P151: 172992 | Q151: 176882 | R151: 217039 | S151: 218623 | T151: 223521 | U151: 228274 | V151: 232164
A152: SAN FRANCISCO20% AMI | B152: 184804 | C152: 187973 | D152: 197912 | E152: 207131 | F152: 215054 | G152: 240086 | H152: 243255 | I152: 253194 | J152: 262413 | K152: 270336 | M152: 184804 | N152: 187973 | O152: 197912 | P152: 207131 | Q152: 215054 | R152: 240086 | S152: 243255 | T152: 253194 | U152: 262413 | V152: 270336
A153: SAN FRANCISCO15% AMI | B153: 207852 | C153: 212749 | D153: 227586 | E153: 241415 | F153: 253227 | G153: 263134 | H153: 268031 | I153: 282868 | J153: 296697 | K153: 308509 | M153: 207852 | N153: 212749 | O153: 227586 | P153: 241415 | Q153: 253227 | R153: 263134 | S153: 268031 | T153: 282868 | U153: 296697 | V153: 308509
A154: SAN JOAQUIN30% AMI | B154: 138709 | C154: 138709 | D154: 138709 | E154: 138709 | F154: 138709 | G154: 193991 | H154: 193991 | I154: 193991 | J154: 193991 | K154: 193991 | M154: 138709 | N154: 138709 | O154: 138709 | P154: 138709 | Q154: 138709 | R154: 193991 | S154: 193991 | T154: 193991 | U154: 193991 | V154: 193991
A155: SAN JOAQUIN25% AMI | B155: 148072 | C155: 148792 | D155: 150665 | E155: 152538 | F155: 154266 | G155: 203354 | H155: 204074 | I155: 205947 | J155: 207820 | K155: 209548 | M155: 148072 | N155: 148792 | O155: 150665 | P155: 152538 | Q155: 154266 | R155: 203354 | S155: 204074 | T155: 205947 | U155: 207820 | V155: 209548
A156: SAN JOAQUIN20% AMI | B156: 157291 | C156: 158732 | D156: 162621 | E156: 166366 | F156: 169679 | G156: 212573 | H156: 214014 | I156: 217903 | J156: 221648 | K156: 224961 | M156: 157291 | N156: 158732 | O156: 162621 | P156: 166366 | Q156: 169679 | R156: 212573 | S156: 214014 | T156: 217903 | U156: 221648 | V156: 224961
A157: SAN JOAQUIN15% AMI | B157: 166654 | C157: 168671 | D157: 174721 | E157: 180339 | F157: 185092 | G157: 221936 | H157: 223953 | I157: 230003 | J157: 235621 | K157: 240374 | M157: 166654 | N157: 168671 | O157: 174721 | P157: 180339 | Q157: 185092 | R157: 221936 | S157: 223953 | T157: 230003 | U157: 235621 | V157: 240374
A158: SAN LUIS OBISPO30% AMI | B158: 138709 | C158: 138709 | D158: 138709 | E158: 138709 | F158: 138709 | G158: 193991 | H158: 193991 | I158: 193991 | J158: 193991 | K158: 193991 | M158: 138709 | N158: 138709 | O158: 138709 | P158: 138709 | Q158: 138709 | R158: 193991 | S158: 193991 | T158: 193991 | U158: 193991 | V158: 193991
A159: SAN LUIS OBISPO25% AMI | B159: 150953 | C159: 151961 | D159: 154554 | E159: 157147 | F159: 159164 | G159: 206235 | H159: 207243 | I159: 209836 | J159: 212429 | K159: 214446 | M159: 150953 | N159: 151961 | O159: 154554 | P159: 157147 | Q159: 159164 | R159: 206235 | S159: 207243 | T159: 209836 | U159: 212429 | V159: 214446
A160: SAN LUIS OBISPO20% AMI | B160: 163341 | C160: 165070 | D160: 170399 | E160: 175441 | F160: 179618 | G160: 218623 | H160: 220352 | I160: 225681 | J160: 230723 | K160: 234900 | M160: 163341 | N160: 165070 | O160: 170399 | P160: 175441 | Q160: 179618 | R160: 218623 | S160: 220352 | T160: 225681 | U160: 230723 | V160: 234900
A161: SAN LUIS OBISPO15% AMI | B161: 175729 | C161: 178322 | D161: 186245 | E161: 193735 | F161: 200073 | G161: 231011 | H161: 233604 | I161: 241527 | J161: 249017 | K161: 255355 | M161: 175729 | N161: 178322 | O161: 186245 | P161: 193735 | Q161: 200073 | R161: 231011 | S161: 233604 | T161: 241527 | U161: 249017 | V161: 255355
A162: SAN MATEO30% AMI | B162: 138709 | C162: 138709 | D162: 138709 | E162: 138709 | F162: 138709 | G162: 193991 | H162: 193991 | I162: 193991 | J162: 193991 | K162: 193991 | M162: 138709 | N162: 138709 | O162: 138709 | P162: 138709 | Q162: 138709 | R162: 193991 | S162: 193991 | T162: 193991 | U162: 193991 | V162: 193991
A163: SAN MATEO25% AMI | B163: 161757 | C163: 163341 | D163: 168239 | E163: 172992 | F163: 176882 | G163: 217039 | H163: 218623 | I163: 223521 | J163: 228274 | K163: 232164 | M163: 161757 | N163: 163341 | O163: 168239 | P163: 172992 | Q163: 176882 | R163: 217039 | S163: 218623 | T163: 223521 | U163: 228274 | V163: 232164
A164: SAN MATEO20% AMI | B164: 184804 | C164: 187973 | D164: 197912 | E164: 207131 | F164: 215054 | G164: 240086 | H164: 243255 | I164: 253194 | J164: 262413 | K164: 270336 | M164: 184804 | N164: 187973 | O164: 197912 | P164: 207131 | Q164: 215054 | R164: 240086 | S164: 243255 | T164: 253194 | U164: 262413 | V164: 270336
A165: SAN MATEO15% AMI | B165: 207852 | C165: 212749 | D165: 227586 | E165: 241415 | F165: 253227 | G165: 263134 | H165: 268031 | I165: 282868 | J165: 296697 | K165: 308509 | M165: 207852 | N165: 212749 | O165: 227586 | P165: 241415 | Q165: 253227 | R165: 263134 | S165: 268031 | T165: 282868 | U165: 296697 | V165: 308509
A166: SANTA BARBARA30% AMI | B166: 138709 | C166: 138709 | D166: 138709 | E166: 138709 | F166: 138709 | G166: 193991 | H166: 193991 | I166: 193991 | J166: 193991 | K166: 193991 | M166: 138709 | N166: 138709 | O166: 138709 | P166: 138709 | Q166: 138709 | R166: 193991 | S166: 193991 | T166: 193991 | U166: 193991 | V166: 193991
A167: SANTA BARBARA25% AMI | B167: 154554 | C167: 155707 | D167: 158876 | E167: 162189 | F167: 164782 | G167: 209836 | H167: 210989 | I167: 214158 | J167: 217471 | K167: 220064 | M167: 154554 | N167: 155707 | O167: 158876 | P167: 162189 | Q167: 164782 | R167: 209836 | S167: 210989 | T167: 214158 | U167: 217471 | V167: 220064
A168: SANTA BARBARA20% AMI | B168: 170255 | C168: 172560 | D168: 179186 | E168: 185524 | F168: 190854 | G168: 225537 | H168: 227842 | I168: 234468 | J168: 240806 | K168: 246136 | M168: 170255 | N168: 172560 | O168: 179186 | P168: 185524 | Q168: 190854 | R168: 225537 | S168: 227842 | T168: 234468 | U168: 240806 | V168: 246136
A169: SANTA BARBARA15% AMI | B169: 185957 | C169: 189414 | D169: 199497 | E169: 208860 | F169: 216927 | G169: 241239 | H169: 244696 | I169: 254779 | J169: 264142 | K169: 272209 | M169: 185957 | N169: 189414 | O169: 199497 | P169: 208860 | Q169: 216927 | R169: 241239 | S169: 244696 | T169: 254779 | U169: 264142 | V169: 272209
A170: SANTA CLARA30% AMI | B170: 138709 | C170: 138709 | D170: 138709 | E170: 138709 | F170: 138709 | G170: 193991 | H170: 193991 | I170: 193991 | J170: 193991 | K170: 193991 | M170: 138709 | N170: 138709 | O170: 138709 | P170: 138709 | Q170: 138709 | R170: 193991 | S170: 193991 | T170: 193991 | U170: 193991 | V170: 193991
A171: SANTA CLARA25% AMI | B171: 159596 | C171: 161180 | D171: 165646 | E171: 169679 | F171: 173424 | G171: 214878 | H171: 216462 | I171: 220928 | J171: 224961 | K171: 228706 | M171: 159596 | N171: 161180 | O171: 165646 | P171: 169679 | Q171: 173424 | R171: 214878 | S171: 216462 | T171: 220928 | U171: 224961 | V171: 228706
A172: SANTA CLARA20% AMI | B172: 180483 | C172: 183508 | D172: 192439 | E172: 200793 | F172: 207996 | G172: 235765 | H172: 238790 | I172: 247721 | J172: 256075 | K172: 263278 | M172: 180483 | N172: 183508 | O172: 192439 | P172: 200793 | Q172: 207996 | R172: 235765 | S172: 238790 | T172: 247721 | U172: 256075 | V172: 263278
A173: SANTA CLARA15% AMI | B173: 201370 | C173: 205835 | D173: 219375 | E173: 231764 | F173: 242567 | G173: 256652 | H173: 261117 | I173: 274657 | J173: 287046 | K173: 297849 | M173: 201370 | N173: 205835 | O173: 219375 | P173: 231764 | Q173: 242567 | R173: 256652 | S173: 261117 | T173: 274657 | U173: 287046 | V173: 297849
A174: SANTA CRUZ30% AMI | B174: 138709 | C174: 138709 | D174: 138709 | E174: 138709 | F174: 138709 | G174: 193991 | H174: 193991 | I174: 193991 | J174: 193991 | K174: 193991 | M174: 138709 | N174: 138709 | O174: 138709 | P174: 138709 | Q174: 138709 | R174: 193991 | S174: 193991 | T174: 193991 | U174: 193991 | V174: 193991
A175: SANTA CRUZ25% AMI | B175: 156139 | C175: 157435 | D175: 161324 | E175: 164782 | F175: 167663 | G175: 211421 | H175: 212717 | I175: 216606 | J175: 220064 | K175: 222945 | M175: 156139 | N175: 157435 | O175: 161324 | P175: 164782 | Q175: 167663 | R175: 211421 | S175: 212717 | T175: 216606 | U175: 220064 | V175: 222945
A176: SANTA CRUZ20% AMI | B176: 173712 | C176: 176161 | D176: 183796 | E176: 190710 | F176: 196760 | G176: 228994 | H176: 231443 | I176: 239078 | J176: 245992 | K176: 252042 | M176: 173712 | N176: 176161 | O176: 183796 | P176: 190710 | Q176: 196760 | R176: 228994 | S176: 231443 | T176: 239078 | U176: 245992 | V176: 252042
A177: SANTA CRUZ15% AMI | B177: 191286 | C177: 195031 | D177: 206267 | E177: 216783 | F177: 225858 | G177: 246568 | H177: 250313 | I177: 261549 | J177: 272065 | K177: 281140 | M177: 191286 | N177: 195031 | O177: 206267 | P177: 216783 | Q177: 225858 | R177: 246568 | S177: 250313 | T177: 261549 | U177: 272065 | V177: 281140
A178: SHASTA30% AMI | B178: 138709 | C178: 138709 | D178: 138709 | E178: 138709 | F178: 138709 | G178: 193991 | H178: 193991 | I178: 193991 | J178: 193991 | K178: 193991 | M178: 138709 | N178: 138709 | O178: 138709 | P178: 138709 | Q178: 138709 | R178: 193991 | S178: 193991 | T178: 193991 | U178: 193991 | V178: 193991
A179: SHASTA25% AMI | B179: 147640 | C179: 148360 | D179: 150233 | E179: 151961 | F179: 153546 | G179: 202922 | H179: 203642 | I179: 205515 | J179: 207243 | K179: 208828 | M179: 147640 | N179: 148360 | O179: 150233 | P179: 151961 | Q179: 153546 | R179: 202922 | S179: 203642 | T179: 205515 | U179: 207243 | V179: 208828
A180: SHASTA20% AMI | B180: 156571 | C180: 157867 | D180: 161757 | E180: 165214 | F180: 168383 | G180: 211853 | H180: 213149 | I180: 217039 | J180: 220496 | K180: 223665 | M180: 156571 | N180: 157867 | O180: 161757 | P180: 165214 | Q180: 168383 | R180: 211853 | S180: 213149 | T180: 217039 | U180: 220496 | V180: 223665
A181: SHASTA15% AMI | B181: 165502 | C181: 167518 | D181: 173280 | E181: 178610 | F181: 183220 | G181: 220784 | H181: 222800 | I181: 228562 | J181: 233892 | K181: 238502 | M181: 165502 | N181: 167518 | O181: 173280 | P181: 178610 | Q181: 183220 | R181: 220784 | S181: 222800 | T181: 228562 | U181: 233892 | V181: 238502
A182: SIERRA30% AMI | B182: 138709 | C182: 138709 | D182: 138709 | E182: 138709 | F182: 138709 | G182: 193991 | H182: 193991 | I182: 193991 | J182: 193991 | K182: 193991 | M182: 138709 | N182: 138709 | O182: 138709 | P182: 138709 | Q182: 138709 | R182: 193991 | S182: 193991 | T182: 193991 | U182: 193991 | V182: 193991
A183: SIERRA25% AMI | B183: 149369 | C183: 150089 | D183: 152393 | E183: 154554 | F183: 156283 | G183: 204651 | H183: 205371 | I183: 207675 | J183: 209836 | K183: 211565 | M183: 149369 | N183: 150089 | O183: 152393 | P183: 154554 | Q183: 156283 | R183: 204651 | S183: 205371 | T183: 207675 | U183: 209836 | V183: 211565
A184: SIERRA20% AMI | B184: 160028 | C184: 161468 | D184: 166078 | E184: 170399 | F184: 174001 | G184: 215310 | H184: 216750 | I184: 221360 | J184: 225681 | K184: 229283 | M184: 160028 | N184: 161468 | O184: 166078 | P184: 170399 | Q184: 174001 | R184: 215310 | S184: 216750 | T184: 221360 | U184: 225681 | V184: 229283
A185: SIERRA15% AMI | B185: 170688 | C185: 172992 | D185: 179762 | E185: 186245 | F185: 191718 | G185: 225970 | H185: 228274 | I185: 235044 | J185: 241527 | K185: 247000 | M185: 170688 | N185: 172992 | O185: 179762 | P185: 186245 | Q185: 191718 | R185: 225970 | S185: 228274 | T185: 235044 | U185: 241527 | V185: 247000
A186: SISKIYOU30% AMI | B186: 138709 | C186: 138709 | D186: 138709 | E186: 138709 | F186: 138709 | G186: 193991 | H186: 193991 | I186: 193991 | J186: 193991 | K186: 193991 | M186: 138709 | N186: 138709 | O186: 138709 | P186: 138709 | Q186: 138709 | R186: 193991 | S186: 193991 | T186: 193991 | U186: 193991 | V186: 193991
A187: SISKIYOU25% AMI | B187: 147496 | C187: 148216 | D187: 150089 | E187: 151673 | F187: 153258 | G187: 202778 | H187: 203498 | I187: 205371 | J187: 206955 | K187: 208540 | M187: 147496 | N187: 148216 | O187: 150089 | P187: 151673 | Q187: 153258 | R187: 202778 | S187: 203498 | T187: 205371 | U187: 206955 | V187: 208540
A188: SISKIYOU20% AMI | B188: 156283 | C188: 157579 | D188: 161324 | E188: 164782 | F188: 167807 | G188: 211565 | H188: 212861 | I188: 216606 | J188: 220064 | K188: 223089 | M188: 156283 | N188: 157579 | O188: 161324 | P188: 164782 | Q188: 167807 | R188: 211565 | S188: 212861 | T188: 216606 | U188: 220064 | V188: 223089
A189: SISKIYOU15% AMI | B189: 165070 | C189: 166942 | D189: 172704 | E189: 177890 | F189: 182355 | G189: 220352 | H189: 222224 | I189: 227986 | J189: 233172 | K189: 237637 | M189: 165070 | N189: 166942 | O189: 172704 | P189: 177890 | Q189: 182355 | R189: 220352 | S189: 222224 | T189: 227986 | U189: 233172 | V189: 237637
A190: SOLANO30% AMI | B190: 138709 | C190: 138709 | D190: 138709 | E190: 138709 | F190: 138709 | G190: 193991 | H190: 193991 | I190: 193991 | J190: 193991 | K190: 193991 | M190: 138709 | N190: 138709 | O190: 138709 | P190: 138709 | Q190: 138709 | R190: 193991 | S190: 193991 | T190: 193991 | U190: 193991 | V190: 193991
A191: SOLANO25% AMI | B191: 150953 | C191: 151817 | D191: 154410 | E191: 156859 | F191: 159020 | G191: 206235 | H191: 207099 | I191: 209692 | J191: 212141 | K191: 214302 | M191: 150953 | N191: 151817 | O191: 154410 | P191: 156859 | Q191: 159020 | R191: 206235 | S191: 207099 | T191: 209692 | U191: 212141 | V191: 214302
A192: SOLANO20% AMI | B192: 163197 | C192: 164926 | D192: 170111 | E192: 175009 | F192: 179330 | G192: 218479 | H192: 220208 | I192: 225393 | J192: 230291 | K192: 234612 | M192: 163197 | N192: 164926 | O192: 170111 | P192: 175009 | Q192: 179330 | R192: 218479 | S192: 220208 | T192: 225393 | U192: 230291 | V192: 234612
A193: SOLANO15% AMI | B193: 175441 | C193: 178034 | D193: 185957 | E193: 193303 | F193: 199641 | G193: 230723 | H193: 233316 | I193: 241239 | J193: 248585 | K193: 254923 | M193: 175441 | N193: 178034 | O193: 185957 | P193: 193303 | Q193: 199641 | R193: 230723 | S193: 233316 | T193: 241239 | U193: 248585 | V193: 254923
A194: SONOMA30% AMI | B194: 138709 | C194: 138709 | D194: 138709 | E194: 138709 | F194: 138709 | G194: 193991 | H194: 193991 | I194: 193991 | J194: 193991 | K194: 193991 | M194: 138709 | N194: 138709 | O194: 138709 | P194: 138709 | Q194: 138709 | R194: 193991 | S194: 193991 | T194: 193991 | U194: 193991 | V194: 193991
A195: SONOMA25% AMI | B195: 153402 | C195: 154410 | D195: 157579 | E195: 160460 | F195: 163053 | G195: 208684 | H195: 209692 | I195: 212861 | J195: 215742 | K195: 218335 | M195: =(ROUND(B195,0)) -> 153402 | N195: 154410 | O195: 157579 | P195: 160460 | Q195: 163053 | R195: 208684 | S195: 209692 | T195: 212861 | U195: 215742 | V195: 218335
A196: SONOMA20% AMI | B196: 168095 | C196: 170111 | D196: 176449 | E196: 182211 | F196: 187253 | G196: 223377 | H196: 225393 | I196: 231731 | J196: 237493 | K196: 242535 | M196: 168095 | N196: 170111 | O196: 176449 | P196: 182211 | Q196: 187253 | R196: 223377 | S196: 225393 | T196: 231731 | U196: 237493 | V196: 242535
A197: SONOMA15% AMI | B197: 182787 | C197: 185812 | D197: 195320 | E197: 204106 | F197: 211597 | G197: 238069 | H197: 241094 | I197: 250602 | J197: 259388 | K197: 266879 | M197: 182787 | N197: 185812 | O197: 195320 | P197: 204106 | Q197: 211597 | R197: 238069 | S197: 241094 | T197: 250602 | U197: 259388 | V197: 266879
A198: STANISLAUS30% AMI | B198: 138709 | C198: 138709 | D198: 138709 | E198: 138709 | F198: 138709 | G198: 193991 | H198: 193991 | I198: 193991 | J198: 193991 | K198: 193991 | M198: 138709 | N198: 138709 | O198: 138709 | P198: 138709 | Q198: 138709 | R198: 193991 | S198: 193991 | T198: 193991 | U198: 193991 | V198: 193991
A199: STANISLAUS25% AMI | B199: 147784 | C199: 148360 | D199: 150233 | E199: 152105 | F199: 153690 | G199: 203066 | H199: 203642 | I199: 205515 | J199: 207387 | K199: 208972 | M199: 147784 | N199: 148360 | O199: 150233 | P199: 152105 | Q199: 153690 | R199: 203066 | S199: 203642 | T199: 205515 | U199: 207387 | V199: 208972
A200: STANISLAUS20% AMI | B200: 156715 | C200: 158011 | D200: 161757 | E200: 165358 | F200: 168527 | G200: 211997 | H200: 213293 | I200: 217039 | J200: 220640 | K200: 223809 | M200: 156715 | N200: 158011 | O200: 161757 | P200: 165358 | Q200: 168527 | R200: 211997 | S200: 213293 | T200: 217039 | U200: 220640 | V200: 223809
... 33 more rows

Sheet Supportive Services
A1: Supportive Services §112(d) | AJ1: ='Proposed Project'!AJ1 -> 2022-02-11
A2: Supportive Services §112(c)
A3: Using evidence-based models, the following Supportive Services shall be made available to HHC tenants based on tenant need. Except as noted below, the following required services shall be provided onsite or offsite at another location easily accessible to tenants, with the majority of case management services offered on-site:
A4: (1) Assistance accessing and linking tenants to Medi-Cal enrollment and enrollment in other benefits the tenant may be eligible for;
A5: (2) Case management;
A6: (3) Peer support activities;
A7: (4) Support in linking to behavioral health care, such as assessment, crisis counseling, individual and group therapy, and peer support groups;
A8: (5) Support in linking to primary care services, including access to routine/preventive health and dental care, medication management, and wellness services;
A9: (6) Benefits counseling and advocacy, including assistance in accessing Supplementary Security Income/State Supplemental Payment (SSI/SSP);
A10: (7) Basic housing retention skills (such as unit maintenance and upkeep, cooking, laundry, working with a landlord, getting along with neighbors, and money management);
A11: (8) Services for persons with co-occurring mental and physical disabilities or co-occurring mental and substance use disorders not listed above.
A12: The following Supportive Services are not required to be made available but are encouraged to be part of a Project’s Supportive Services plan.
A13: (1) Recreational and social activities;
A14: (2) Educational services, including assessment, GED, school enrollment, assistance accessing higher education benefits and grants, and assistance in obtaining reasonable accommodations in the education process;
A15: (3) Employment services, such as supported employment, job readiness, job skills training, job placement, and retention services, or programs promoting volunteer opportunities for those unable to work; and
A16: (4) Obtaining access to other needed services, such as civil legal services, or access to food and clothing.
A17: Provider-to-Client Staff Ratio §110(a)(11)
A18: List all staff positions that will provide services to the tenants of the HHC assisted units. Include Sponsor or LSP staff positions, and any staff positions of partnering organizations who have committed time to the Project. Include your services coordination staff. For each position, list the position title, minimum requirements, the full-time equivalent (FTE), the organization under which the position resides, and the location of the position (on-site or off-site). Do not include staff which serve non-HHC assisted units. If a staff position serves both tenants in HHC and non-HHC assisted units, include only that portion (i.e., % FTE) of the staff position dedicated to HHC assisted units. Upload a copy of each positions duty statement.
A19: Note: All staff positions listed here must be reflected in the Estimated Itemized Budget §112(d)(6) . Be sure to indicate which staff position will be responsible for HMIS data entry. If the cost of on-site Resident Services Coordination is included as part of the Project’s operating budget and the position will serve supportive housing units, that position must be included in this chart.
A20: Title | I20: Minimum requirements | U20: Total FTE: | X20: =SUM(U22:Z27) -> 0 | AA20: Employing Organization | AH20: Location
A21: List each staff position | I21: List minimum required staff preparation (education & experience) Note: Doesn't take place of the job description or duty statement. | U21: Indicate FTE staff positions for SH or TH units (half-time is 0.5 FTE) | AA21: This could be the LSP, Sponsor or a Project Partner | AH21: Select "On-Site" or "Off-Site"
A28: Staffing Ratio - Must maintain at least a 1:20 provider-to-client staff Ratio.
A29: 1. Indicate the overall services staffing level for your Project by completing the calculation below.
A30: a. | C30: Total HHC assisted units. | AJ30: ='Max Funds and Unit Mix'!G31 -> 0 | AM30: 20
A31: b. | C31: Total FTE Service Staff from the Staffing Chart for the HHC assisted units. | AJ31: =X20 -> 0 | AM31: 1
A32: c. | C32: Number of HHC assisted SH units Per FTE Staff Person (b÷a) | AJ32: =IFERROR(IF(AJ31=0,0,AJ31/AJ30),"") -> 0 | AM32: =AM31/AM30 -> 0.05
A33: All Projects must include an SSP meeting §112. Be specific. The checklist below serves as a guide to ensure all the components of the SSP are complete.
A34: Target Population Narrative §112(d)(1)
A35: Provide a detailed narrative of the Target Population to be served, and identification of any additional sub-population target or occupancy preference for the Project (all sub-population targeting must be approved by HCD prior to construction loan closing and must be consistent with federal and state fair housing requirements).
A37: Tenant Outreach, Engagement, and Retention Strategies §112(d)(2)
A38: Describe the plan for conducting tenant outreach, engagement and retention strategies to be used in support of these Program objectives.
A40: List of Services §112(d)(3)
A41: Required Services 112(c): | G41: Provider | W41: Page Number in Supportive Services Plan | AB41: Miles from Project Site | AE41: Frequency of Offered Service | AI41: Hrs. Available (for example) 8 am - 5 pm
A42: (1) Assisting tenants to Medi-Cal and other benefits enrollment
A43: (2) Case management
A44: (3) Peer support activities
A45: (4) Support linking to behavior health care
A46: (5) Support linking to primary care services
A47: (6) Benefits counseling and advocacy
A48: (7) Basic housing retention skills
A49: (8) Services for persons with co-occurring disabilities/disorders
A50: Optional (encouraged) Services 112(c): | G50: Provider | W50: Page Number in Supportive Services Plan | AB50: Miles from Project Site | AE50: Frequency of Offered Service | AI50: Hrs. Available (for example) 8 am - 5 pm
A51: (1) Recreational and social activities
A52: (2) Educational services
A53: (3) Employment services
A54: (4) Obtaining access to other needed services
A55: Transportation Plan §112(d)(4)
A56: For services provided off-site, (not at the Project site), provide a detailed narrative on what transportation options will be available to HHC tenants in order to provide them with reasonable access to these services. Reasonable access is access that does not require walking more than ½ mile.
A58: Services Competency §112(d)(5)
A59: (A) Describe how the services are culturally and linguistically competent for persons of different races, ethnicities, sexual orientations, gender identities, and gender expressions. (B) Explain how services will be provided to HHC tenants who do not speak English, or have other communication barriers, including sensory disabilities. (C) Explain how communication among the services providers, the property manager, and these tenants will be facilitated.
A61: Estimated Itemized Budget §112(d)(6)
A62: Provide a line item Supportive Services Budget for Project using format below. Complete both income and expense portions of the budget. Include all costs associated with implementing your Supportive Services Plan, including any in-kind services. Include income and expenses for Sponsor or LSP staff positions, and also any staff positions of partnering organizations who have committed time to the Project. Don't include costs associated with providing services in non-HHC assisted units. If costs are associated with both HHC & non-HHC assisted units, include only that portion of costs associated with HHC assisted units.
A63: Income Source/Program Name | Q63: Amount | V63: Type | AA63: Status | AI63: % of Total Budget
AI64: =IF($Q$68=0,0,Q64/$Q$68) -> 0
AI65: =IF($Q$68=0,0,Q65/$Q$68) -> 0
AI66: =IF($Q$68=0,0,Q66/$Q$68) -> 0
AI67: =IF($Q$68=0,0,Q67/$Q$68) -> 0
A68: Total Revenue: | Q68: =SUM(Q64:U67) -> 0 | AI68: =IF($Q$68=0,0,Q68/$Q$68) -> 0
A69: Expense Item | Q69: Amount | V69: Type | AA69: Status | AI69: % of Total Budget
A70: Staff Salaries: List by title of position. (This list must match the Staffing Chart above.)
A71: Staff Position | L71: FTE: | AI71: =IF($Q$76=0,0,Q71/$Q$76) -> 0
A72: Staff Position | L72: FTE: | AI72: 0
A73: Staff Position | L73: FTE: | AI73: 0
A74: Staff Position | L74: FTE: | AI74: 0
A75: Fringe Benefits | AI75: 0
A76: Total Staff Expenses | Q76: =SUM(Q71:U75) -> 0 | AI76: 0
A77: Tenant Transportation | AI77: =IF($Q$88=0,0,Q77/$Q$88) -> 0
A78: Equipment | AI78: 0
A79: Supplies | AI79: 0
A80: Travel | AI80: 0
A81: Office Rent/Occupancy (don't include rent/leasing costs for SH units) | AI81: 0
A82: Training | AI82: 0
A83: Consultants: List by Function | AI83: 0
A84: Subcontractors/Partners (list by Entity & Service Type) | AI84: 0
A85: Other Expenses (type in expense description) | AI85: 0
A86: Other Expenses (type in expense description) | AI86: 0
A87: Other Expenses (type in expense description) | AI87: 0
A88: Total Expenses | Q88: =SUM(Q76:U87) -> 0 | AI88: 0
A89: Supportive Services Cost Per Unit: Permanent supportive housing best practice suggests a range between $5,000-$10,000 annually in services per household, depending upon the intensity of the needs of the target population. Complete the following Project calculation about supportive services cost per unit. If your supportive services cost per unit, as calculated below, differ from industry practice, please provide a narrative explanation. The Project must meet/address the industry standard.
A90: Supportive Services Expense Per Unit Calculation Table
A91: a. | C91: Total HHC assisted units. | AJ91: ='Max Funds and Unit Mix'!G31 -> 0
A92: b. | C92: Total Supportive Services Expenses | AJ92: =Q88 -> 0
A93: c. | C93: Total Supportive Services Expenses per Unit: (b ÷ a) | AJ93: =IF(AJ91=0,0,AJ92/AJ91) -> 0
A94: Budget Narrative and Funding Commitments
A95: 1. Describe how the budgeted amounts are adequate in providing services described in the Supportive Services Plan and in Services Staffing Table:
A97: 2. Document committed funds with letter(s) from the committing agency(s) that includes the following. Documented services/funding must appear in Supportive Services Budget Table.
A98: a) Project name; b) Description of the services to be funded or provided; c) Dollar value of funds or in-kind services. If cash is provided, state funding source; d) Funding term or service provision; e) A description and history of the agency/organization providing funding or services.
A99: 3. For funding that is not yet committed, specifically describe your experience filling major services funding gaps in similar housing.
A101: 4. Describe in specific terms the plan to fill any service gaps that occur during the Project life due to expiration of grants, partner withdrawals, cancellation of a commitment or any other reason. Describe experience filling service gaps caused by loss of major funding sources.
A103: Collaboration of Supportive Services and Property Management Staff §112(d)(7)
A104: Describe how the supportive services and property management staff will collaborate to prevent evictions, adopt and ensure compliance with harm reduction principles, and facilitate the implementation of reasonable accommodation policies from rent-up to on-going Project operations.
A106: Communication Protocols §112(d)(8)
A107: Provide a detailed narrative on the communication protocols to be utilized by the general service providers and the property manager.
A109: Project Physical Design §112(d)(9)
A110: Provide a detailed narrative on how the physical design of the Project fosters tenant engagement, on-site supportive services provision, security and safety, and sustainability of equipment, furnishings, and fixtures.
A112: Other Additional Information §112(d)(10)
A113: Provide any other information necessary to evaluate the supportive services that will be offered and how they are consistent with HHC Program requirements.

Sheet Dev Sources
A1: Sources of Funds | Q1: ='Proposed Project'!AJ1 -> 2022-02-11
A2: Construction Period Sources of Funds
A3: Funding Committed by Application Due Date? | C3: Source Name (listed in order of lien priority) | F3: Source Type | G3: Local Support | H3: Lien No. | I3: Residential Amount | J3: Commercial Amount | K3: Total Amount | L3: Interest Rate | M3: Required Payment | N3: Loan Term (months) | O3: *Details of Deferred Costs
O4: Amount | P4: Description
A5: 1 | K5: =I5+J5 -> 0
A6: 2 | K6: =I6+J6 -> 0
A7: 3 | K7: 0
A8: 4 | K8: 0
A9: 5 | K9: 0
A10: 6 | K10: 0
A11: 7 | K11: 0
A12: 8 | K12: 0
A13: 9 | K13: 0
A14: 10 | K14: 0
A15: 11 | K15: 0
A16: 12 | K16: 0
A17: 13 | K17: 0
A18: 14 | K18: 0
A19: 15 | K19: 0
A20: 16 | K20: 0
A21: 17 | K21: 0
A22: 18 | K22: 0
A23: 19 | K23: 0
A24: 20 | C24: Deferred costs (detail at right) | I24: =O26 -> 0 | K24: 0
A25: 21 | C25: Equity Investor | K25: 0
C26: =SUMPRODUCT(($B$5:$B$25="Yes")*($K$5:$K$25)) -> 0 | D26: <Total funds committed | F26: =IF($K$26=0,0,$C$26/($K$26-$I$24)) -> 0 | G26: <% Funds committed | I26: =SUM(I5:I25) -> 0 | J26: =SUM(J5:J24) -> 0 | K26: =SUM(K5:K25) -> 0 | O26: =SUM(O5:O24) -> 0
A27: Permanent Sources of Funds
A28: Funding Committed by Application Due Date? | C28: Source Name (listed in order of lien priority) | F28: Source Type | G28: Local Support | H28: Lien No. | I28: Residential Amount | J28: Commercial Amount | K28: Total Amount | L28: Interest Rate | N28: Repayment Terms | P28: Required Residential Debt Service | Q28: Required Commercial Debt Service
L29: Type | M29: Rate | N29: Type | O29: Due in (yrs)
A30: 1 | B30: Yes | C30: ="HCD HHC Loan"&" - Maximum Capital Loan Amount=" -> HCD HHC Loan - Maximum Capital Loan Amount= | E30: ='Max Funds and Unit Mix'!S35 -> 0 | F30: State-HCD | G30: No | K30: =I30+J30 -> 0
A31: 2 | K31: =I31+J31 -> 0
A32: 3 | K32: 0
A33: 4 | K33: 0
A34: 5 | K34: 0
A35: 6 | K35: 0
A36: 7 | K36: 0
A37: 8 | K37: 0
A38: 9 | K38: 0
A39: 10 | K39: 0
A40: 12 | K40: 0
A41: 12 | K41: 0
A42: 13 | K42: 0
A43: 14 | C43: Private mortgage financing | K43: 0
A44: 15 | C44: Deferred costs | K44: 0
A45: 16 | C45: Equity Investor | K45: 0 | L45: Project Tax Credit Type: | O45: =IF('Proposed Project'!Z5="","",'Proposed Project'!Z5) -> 
F46: Totals | J46: =SUM(J30:J45) -> 0 | K46: =SUM(I30:I45) -> 0 | L46: =SUM(J30:J45) -> 0 | M46: =SUM(K30:K45) -> 0 | N46: Totals | P46: =SUM(P30:P44) -> 0 | Q46: =SUM(Q30:Q45) -> 0
C47: =SUMPRODUCT(($B$30:$B$45="Yes")*($K$30:$K$45)) -> 0 | D47: <Total funds committed | F47: =IF($K$46=0,0,$C$47/($K$46-$I$44)) -> 0 | G47: <% Funds committed
A48: Applicant comments: Include a description of balloon payments and unusual or extraordinary circumstances that have resulted in higher than expected project costs and provide a justification as to why these costs are reasonable.

Sheet Dev Budget
A1: ='Proposed Project'!AJ1 -> 2022-02-11 | B1: Residential Permanent Sources/Uses of Funds | S1: Tax Credit Basis | U1: Commercial Sources/Uses
A2: USES OF FUNDS | B2: ='Dev Sources'!$C$30 -> HCD HHC Loan - Maximum Capital Loan Amount= | C2: ='Dev Sources'!$C$31 -> 0 | D2: ='Dev Sources'!$C$32 -> 0 | E2: ='Dev Sources'!$C$33 -> 0 | F2: ='Dev Sources'!$C$34 -> 0 | G2: ='Dev Sources'!$C$35 -> 0 | H2: ='Dev Sources'!$C$36 -> 0 | I2: ='Dev Sources'!$C$37 -> 0 | J2: ='Dev Sources'!$C$38 -> 0 | K2: ='Dev Sources'!$C$39 -> 0 | L2: ='Dev Sources'!$C$40 -> 0 | M2: ='Dev Sources'!$C$41 -> 0 | N2: ='Dev Sources'!$C$42 -> 0 | O2: ='Dev Sources'!$C$43 -> Private mortgage financing | P2: ='Dev Sources'!$C$44 -> Deferred costs | Q2: ='Dev Sources'!$C$45 -> Equity Investor | R2: Total Residential Sources/Costs | S2: =IF('Dev Sources'!O45="","30% PVC for New Const/Rehab",IF('Dev Sources'!O45=0.09,"70% PVC for New Const/Rehab",IF('Dev Sources'!O45=0.04,"30% PVC for New Const/Rehab","N/A - No tax credits per Dev Sources"))) -> 30% PVC for New Const/Rehab | T2: =IF('Dev Sources'!O45="","30% PVC for Acquisition",IF('Dev Sources'!O45=0.09,"30% PVC for Acquisition",IF('Dev Sources'!O45=0.04,"30% PVC for Acquisition","N/A - No tax credits per Dev Sources"))) -> 30% PVC for Acquisition | U2: Total Commercial Sources/Costs | V2: Source Name: | W2: Source Name:
A4: Project Development Costs
A5: LAND COST/ACQUISITION
A6: Land Cost or Value | R6: =SUM(B6:Q6) -> 0 | U6: =V6+W6 -> 0
A7: Demolition | R7: =SUM(B7:Q7) -> 0 | U7: =V7+W7 -> 0
A8: Legal | R8: =SUM(B8:Q8) -> 0 | U8: 0
A9: Land Lease Rent Prepayment | R9: =SUM(B9:Q9) -> 0 | U9: 0
A10: Total Land Cost or Value | B10: =SUM(B6:B9) -> 0 | C10: =SUM(C6:C9) -> 0 | D10: 0 | E10: 0 | F10: 0 | G10: 0 | H10: 0 | I10: 0 | J10: 0 | K10: 0 | L10: 0 | M10: 0 | N10: 0 | O10: 0 | P10: 0 | Q10: 0 | R10: 0 | U10: 0 | V10: =SUM(V6:V9) -> 0 | W10: 0
A11: Existing Improvements Cost or Value | R11: =SUM(B11:Q11) -> 0 | U11: 0
A12: Off-Site Improvements | R12: =SUM(B12:Q12) -> 0 | U12: 0
A13: Total Acquisition Cost | B13: =SUM(B11:B12) -> 0 | C13: =SUM(C11:C12) -> 0 | D13: 0 | E13: 0 | F13: 0 | G13: 0 | H13: 0 | I13: 0 | J13: 0 | K13: 0 | L13: 0 | M13: 0 | N13: 0 | O13: 0 | P13: 0 | Q13: 0 | R13: 0 | T13: =SUM(T11:T12) -> 0 | U13: 0 | V13: =SUM(V11:V12) -> 0 | W13: 0
A14: Total Land Cost / Acquisition Cost | B14: =SUM(B10+B13) -> 0 | C14: =SUM(C10+C13) -> 0 | D14: 0 | E14: 0 | F14: 0 | G14: 0 | H14: 0 | I14: 0 | J14: 0 | K14: 0 | L14: 0 | M14: 0 | N14: 0 | O14: 0 | P14: 0 | Q14: 0 | R14: 0 | U14: 0 | V14: =SUM(V10+V13) -> 0 | W14: =SUM(W10+W13) -> 0
A15: Predevelopment Interest/Holding Cost | R15: =SUM(B15:Q15) -> 0 | U15: 0
A16: Assumed, Accrued Interest on Existing Debt (Rehab/Acq) | R16: =SUM(B16:Q16) -> 0 | U16: 0
A17: Excess Purchase Price Over Appraisal | R17: =SUM(B17:Q17) -> 0 | U17: 0
A18: REHABILITATION
A19: Site Work | R19: =SUM(B19:Q19) -> 0 | U19: 0
A20: Structures | R20: 0 | U20: 0
A21: General Requirements | R21: 0 | U21: 0
A22: Contractor Overhead | R22: 0 | U22: 0
A23: Contractor Profit | R23: 0 | U23: 0
A24: Prevailing Wages | R24: 0 | U24: 0
A25: General Liability Insurance | R25: 0 | U25: 0
A26: Urban Greening | R26: 0 | U26: 0
A27: Other Rehabilitation: (Specify) | R27: 0 | U27: 0
A28: Other Rehabilitation: (Specify) | R28: 0 | U28: 0
A29: Other Rehabilitation: (Specify) | R29: 0 | U29: 0
A30: Total Rehabilitation Costs | B30: =SUM(B19:B29) -> 0 | C30: =SUM(C19:C29) -> 0 | D30: 0 | E30: 0 | F30: 0 | G30: 0 | H30: 0 | I30: 0 | J30: 0 | K30: 0 | L30: 0 | M30: 0 | N30: 0 | O30: 0 | P30: 0 | Q30: 0 | R30: 0 | S30: =SUM(S19:S29) -> 0 | T30: =SUM(T19:T29) -> 0 | U30: =SUM(U19:U29) -> 0 | V30: 0 | W30: 0
A31: Total Relocation Expenses | R31: =SUM(B31:Q31) -> 0 | U31: 0
A32: NEW CONSTRUCTION
A33: Site Work | R33: =SUM(B33:Q33) -> 0 | U33: =V33+W33 -> 0
A34: Structures | R34: 0 | U34: 0
A35: General Requirements | R35: 0 | U35: 0
A36: Contractor Overhead | R36: 0 | U36: 0
A37: Contractor Profit | R37: 0 | U37: 0
A38: Prevailing Wages | R38: 0 | U38: 0
A39: General Liability Insurance | R39: 0 | U39: 0
A40: Urban Greening | R40: 0 | U40: 0
A41: Other New Construction: (Specify) | R41: 0 | U41: 0
A42: Other New Construction: (Specify) | R42: 0 | U42: 0
A43: Other New Construction: (Specify) | R43: 0 | U43: 0
A44: Total New Construction Costs | B44: =SUM(B33:B43) -> 0 | C44: =SUM(C33:C43) -> 0 | D44: =SUM(D33:D43) -> 0 | E44: 0 | F44: 0 | G44: 0 | H44: 0 | I44: 0 | J44: 0 | K44: 0 | L44: 0 | M44: 0 | N44: 0 | O44: 0 | P44: 0 | Q44: 0 | R44: 0 | S44: =SUM(S33:S43) -> 0 | T44: =SUM(T33:T43) -> 0 | U44: 0 | V44: =SUM(V33:V43) -> 0 | W44: 0
A45: ARCHITECTURAL FEES
A46: Design | R46: =SUM(B46:Q46) -> 0 | U46: =V46+W46 -> 0
A47: Supervision | R47: =SUM(B47:Q47) -> 0 | U47: 0
A48: Total Architectural Costs | B48: =SUM(B45:B47) -> 0 | C48: =SUM(C45:C47) -> 0 | D48: =SUM(D45:D47) -> 0 | E48: 0 | F48: 0 | G48: 0 | H48: 0 | I48: 0 | J48: 0 | K48: 0 | L48: 0 | M48: 0 | N48: 0 | O48: 0 | P48: 0 | Q48: 0 | R48: 0 | S48: =SUM(S46:S47) -> 0 | T48: 0 | U48: 0 | V48: =SUM(V45:V47) -> 0 | W48: 0
A49: Total Survey & Engineering | R49: =SUM(B49:Q49) -> 0 | U49: 0
A50: CONSTRUCTION INTEREST & FEES
A51: Construction Loan Interest | R51: =SUM(B51:Q51) -> 0 | U51: =V51+W51 -> 0
A52: Origination Fee | R52: 0 | U52: 0
A53: Credit Enhancement/Application Fee | R53: 0 | U53: 0
A54: Bond Premium | R54: 0 | U54: 0
A55: Cost of Issuance | R55: 0 | U55: 0
A56: Title & Recording | R56: 0 | U56: 0
A57: Taxes | R57: 0 | U57: 0
A58: Insurance | R58: 0 | U58: 0
A59: Employment Reporting | R59: 0 | U59: 0
A60: Other Construction Int. & Fees: (Specify) | R60: 0 | U60: 0
A61: Other Construction Int. & Fees: (Specify) | R61: 0 | U61: 0
A62: Other Construction Int. & Fees: (Specify) | R62: 0 | U62: 0
A63: Other Construction Int. & Fees: (Specify) | R63: 0 | U63: 0
A64: Total Construction Interest & Fees | B64: =SUM(B51:B63) -> 0 | C64: =SUM(C51:C63) -> 0 | D64: =SUM(D51:D63) -> 0 | E64: 0 | F64: 0 | G64: 0 | H64: 0 | I64: 0 | J64: 0 | K64: 0 | L64: 0 | M64: 0 | N64: 0 | O64: 0 | P64: 0 | Q64: 0 | R64: 0 | S64: =SUM(S51:S63) -> 0 | T64: =SUM(T51:T63) -> 0 | U64: 0 | V64: =SUM(V51:V63) -> 0 | W64: 0
A65: PERMANENT FINANCING
A66: Loan Origination Fee | R66: =SUM(B66:Q66) -> 0 | U66: =V66+W66 -> 0
A67: Credit Enhancement/Application Fee | R67: 0 | U67: 0
A68: Title & Recording | R68: 0 | U68: 0
A69: Taxes | R69: 0 | U69: 0
A70: Insurance | R70: 0 | U70: 0
A71: Other Perm. Financing Costs: (Specify) | R71: 0 | U71: 0
A72: Other Perm. Financing Costs: (Specify) | R72: 0 | U72: 0
A73: Other Perm. Financing Costs: (Specify) | R73: 0 | U73: 0
A74: Other Perm. Financing Costs: (Specify) | R74: 0 | U74: 0
A75: Total Permanent Financing Costs | B75: =SUM(B66:B74) -> 0 | C75: =SUM(C66:C74) -> 0 | D75: 0 | E75: 0 | F75: 0 | G75: 0 | H75: 0 | I75: 0 | J75: 0 | K75: 0 | L75: 0 | M75: 0 | N75: 0 | O75: 0 | P75: 0 | Q75: 0 | R75: 0 | U75: 0 | V75: =SUM(V66:V74) -> 0 | W75: 0
A76: Subtotals Forward | B76: =SUM(B10+B13+B15+B16+B17+B30+B31+B44+B48+B49+B64+B75) -> 0 | C76: =SUM(C10+C13+C15+C16+C17+C30+C31+C44+C48+C49+C64+C75) -> 0 | D76: 0 | E76: 0 | F76: 0 | G76: 0 | H76: 0 | I76: 0 | J76: 0 | K76: 0 | L76: 0 | M76: 0 | N76: 0 | O76: 0 | P76: 0 | Q76: 0 | R76: 0 | S76: =SUM(S12+S15+S16+S17+S30+S31+S44+S48+S49+S64) -> 0 | T76: =SUM(T13+T15+T16+T17+T30+T31+T44+T48+T49+T64) -> 0 | U76: =SUM(U10+U13+U15+U16+U17+U31+U44+U48+U49+U64+U75) -> 0 | V76: 0 | W76: 0
A77: LEGAL FEES
A78: Legal Paid by Applicant | R78: =SUM(B78:Q78) -> 0 | U78: =V78+W78 -> 0
A79: Other Attorney Costs: (Specify) | R79: =SUM(B79:Q79) -> 0 | U79: 0
A80: Other Attorney Costs: (Specify) | R80: =SUM(B80:Q80) -> 0 | U80: 0
A81: Other Attorney Costs: (Specify) | R81: =SUM(B81:Q81) -> 0 | U81: 0
A82: Total Attorney Costs | B82: =SUM(B77:B81) -> 0 | C82: =SUM(C77:C81) -> 0 | D82: =SUM(D77:D81) -> 0 | E82: 0 | F82: 0 | G82: 0 | H82: 0 | I82: 0 | J82: 0 | K82: 0 | L82: 0 | M82: 0 | N82: 0 | O82: 0 | P82: 0 | Q82: 0 | R82: 0 | S82: =SUM(S78:S81) -> 0 | T82: 0 | U82: 0 | V82: 0 | W82: 0
A83: RESERVES
A84: Operating Reserve | R84: =SUM(B84:Q84) -> 0 | U84: =V84+W84 -> 0
A85: Replacement Reserve | R85: 0 | U85: 0
A86: Transition Reserve | R86: 0 | U86: 0
A87: Rent Reserve | R87: 0 | U87: 0
A88: Other Reserve Costs: (Specify) | R88: 0 | U88: 0
A89: Other Reserve Costs: (Specify) | R89: 0 | U89: 0
A90: Other Reserve Costs: (Specify) | R90: 0 | U90: 0
A91: Total Reserve Costs | B91: =SUM(B84:B90) -> 0 | C91: =SUM(C84:C90) -> 0 | D91: 0 | E91: 0 | F91: 0 | G91: 0 | H91: 0 | I91: 0 | J91: 0 | K91: 0 | L91: 0 | M91: 0 | N91: 0 | O91: 0 | P91: 0 | Q91: 0 | R91: 0 | U91: 0 | V91: =SUM(V84:V90) -> 0 | W91: 0
A92: CONTINGENCY COSTS
A93: Construction Hard Cost Contingency | R93: =SUM(B93:Q93) -> 0 | U93: =V93+W93 -> 0
A94: Soft Cost Contingency | R94: =SUM(B94:Q94) -> 0 | U94: 0
A95: Total Contingency Costs | B95: =SUM(B93:B94) -> 0 | C95: =SUM(C93:C94) -> 0 | D95: 0 | E95: 0 | F95: 0 | G95: 0 | H95: 0 | I95: 0 | J95: 0 | K95: 0 | L95: 0 | M95: 0 | N95: 0 | O95: 0 | P95: 0 | Q95: 0 | R95: 0 | S95: =SUM(S93:S94) -> 0 | T95: 0 | U95: 0 | V95: =SUM(V93:V94) -> 0 | W95: 0
A96: OTHER PROJECT COSTS
A97: TCAC App/Allocation/Monitoring Fees | R97: =SUM(B97:Q97) -> 0 | U97: =V97+W97 -> 0
A98: Environmental Audit | R98: 0 | U98: 0
A99: Local Development Impact Fees | R99: 0 | U99: 0
A100: Permit Processing Fees | R100: 0 | U100: 0
A101: Capital Fees | R101: 0 | U101: 0
A102: Marketing | R102: 0 | U102: 0
A103: Furnishings | R103: 0 | U103: 0
A104: Market Study | R104: 0 | U104: 0
A105: Accounting/Reimbursable | R105: 0 | U105: 0
A106: Appraisal Costs | R106: 0 | U106: 0
A107: Other Costs: (Specify) | R107: 0 | U107: 0
A108: Other Costs: (Specify) | R108: 0 | U108: 0
A109: Other Costs: (Specify) | R109: 0 | U109: 0
A110: Other Costs: (Specify) | R110: 0 | U110: 0
A111: Other Costs: (Specify) | R111: 0 | U111: 0
A112: Other Costs: (Specify) | R112: 0 | U112: 0
A113: Total Other Costs | B113: =SUM(B97:B112) -> 0 | C113: =SUM(C97:C112) -> 0 | D113: =SUM(D97:D112) -> 0 | E113: 0 | F113: 0 | G113: 0 | H113: 0 | I113: 0 | J113: 0 | K113: 0 | L113: 0 | M113: 0 | N113: 0 | O113: 0 | P113: 0 | Q113: 0 | R113: 0 | S113: =SUM(S98:S101,S103:S112) -> 0 | T113: =SUM(T98:T101,T103:T112) -> 0 | U113: 0 | V113: =SUM(V97:V112) -> 0 | W113: 0
A114: SUBTOTAL PROJECT COST | B114: =SUM(B76+B82+B91+B95+B113) -> 0 | C114: =SUM(C76+C82+C91+C95+C113) -> 0 | D114: =SUM(D76+D82+D91+D95+D113) -> 0 | E114: 0 | F114: 0 | G114: 0 | H114: 0 | I114: 0 | J114: 0 | K114: 0 | L114: 0 | M114: 0 | N114: 0 | O114: 0 | P114: 0 | Q114: 0 | R114: 0 | S114: =SUM(+S76+S82+S95+S113) -> 0 | T114: =SUM(T76+T82+T95+T113) -> 0 | U114: 0 | V114: =SUM(V76+V82+V91+V95+V113) -> 0 | W114: 0
A115: DEVELOPER COSTS
A116: Developer Overhead/Profit | R116: =SUM(B116:Q116) -> 0 | U116: =V116+W116 -> 0
A117: Consultant/Processing Agent | R117: 0 | U117: 0
A118: Project Administration | R118: 0 | U118: 0
A119: Broker Fees Paid to a Related Party | R119: 0 | U119: 0
A120: Construction Oversight by Developer | R120: 0 | U120: 0
A121: Other Developer Costs: (Specify) | R121: 0 | U121: 0
A122: Total Developer Costs | B122: =SUM(B116:B121) -> 0 | C122: 0 | D122: 0 | E122: 0 | F122: 0 | G122: 0 | H122: 0 | I122: 0 | J122: 0 | K122: 0 | L122: 0 | M122: 0 | N122: 0 | O122: 0 | P122: 0 | Q122: 0 | R122: 0 | S122: =SUM(S116:S121) -> 0 | T122: 0 | U122: 0 | V122: =SUM(V116:V121) -> 0 | W122: 0
A123: Total Project Costs | B123: =SUM(B114+B122) -> 0 | C123: =SUM(C114+C122) -> 0 | D123: 0 | E123: 0 | F123: 0 | G123: 0 | H123: 0 | I123: 0 | J123: 0 | K123: 0 | L123: 0 | M123: 0 | N123: 0 | O123: 0 | P123: 0 | Q123: 0 | R123: 0 | S123: =S114+S122 -> 0 | T123: =T114+T122 -> 0 | U123: =U114+U122 -> 0 | V123: 0 | W123: 0
S124: =S123 -> 0 | T124: =T123 -> 0
E125: DF 2021 | R125: Total Eligible Basis: | T125: =SUM(S124:T124) -> 0
A126: Total Developer Fee (equals Total Developer Costs above): | E126: =R122+U122 -> 0
A127: Total Developer Fee paid from development funding sources: | E127: ='Dev Fee 2021'!H6 -> 0
A128: Deferred Developer Fee payable on a priority basis from available Cash Flow: | E128: ='Dev Fee 2021'!H7 -> 0
A129: Deferred Developer Fee payable from allowable 50% Distribution: | E129: ='Dev Fee 2021'!H8 -> 0
A130: Developer Fee Contributed as Capital: | E130: ='Dev Fee 2021'!F10 -> 0

Sheet TBL and High Cost Test
A1: 2021 TCAC Threshold Basis Limit for HCD Developer Fee 2017 UMR §8312(c) & (b) and High Cost Test for HCD Limits on Development Costs 2017 UMR §8311(a) & (b) (revised 3/24/21) Complete all yellow shaded cells; see cell comments for tips | BA1: 1/5/21 | BB1: SRO & STUDIO 4% & 9 | BC1: 1 BEDROOM | BD1: 2 BEDROOMS | BE1: 3 BEDROOMS | BF1: 4+ BEDROOMS | BG1: SRO & STUDIO | BH1: 1 BEDROOM | BI1: 2 BEDROOMS | BJ1: 3 BEDROOMS | BK1: 4+ BEDROOMS
A2: Project Name: | F2: =IF('Proposed Project'!E2="","",'Proposed Project'!E2) ->  | Z2: County: | AC2: =IF('Max Funds and Unit Mix'!BB2="","",'Max Funds and Unit Mix'!BB2) ->  | AI2: HCD Phase: | AO2: Origination | BA2: ALAMEDA | BB2: 365252 | BC2: 421132 | BD2: 508000 | BE2: 650240 | BF2: 724408
A3: Rep Name: | BA3: ALPINE | BB3: 262291 | BC3: 302419 | BD3: 364800 | BE3: 466944 | BF3: 520205
A4: Unit Size | I4: =CONCATENATE(BA1," TCAC Threshold Basis Limits (TBL) ") -> 1/5/21 TCAC Threshold Basis Limits (TBL) | Y4: Number of Units | AO4: Basis x Number of Units | BA4: AMADOR | BB4: 262291 | BC4: 302419 | BD4: 364800 | BE4: 466944 | BF4: 520205
A5: SRO/Studio | I5: =IF($AC$2="","",VLOOKUP($AC$2,$BA$1:$BF$59,AX5)) ->  | Y5: =SUMIF('Max Funds and Unit Mix'!$A$5:$B$30,0,'Max Funds and Unit Mix'!$E$5:$F$30) -> 0 | AO5: =IF(ISERROR((I5*Y5)),0,(I5*Y5)) -> 0 | AX5: 2 | AY5: 7 | BA5: BUTTE | BB5: 230655 | BC5: 265943 | BD5: 320800 | BE5: 410624 | BF5: 457461
A6: 1 Bedroom | I6: =IF($AC$2="","",VLOOKUP($AC$2,$BA$1:$BF$59,AX6)) ->  | Y6: =SUMIF('Max Funds and Unit Mix'!$A$5:$B$30,1,'Max Funds and Unit Mix'!$E$5:$F$30) -> 0 | AO6: =IF(ISERROR((I6*Y6)),0,(I6*Y6)) -> 0 | AX6: =AX5+1 -> 3 | AY6: =AY5+1 -> 8 | BA6: CALAVERAS | BB6: 262291 | BC6: 302419 | BD6: 364800 | BE6: 466944 | BF6: 520205
A7: 2 Bedrooms | I7: =IF($AC$2="","",VLOOKUP($AC$2,$BA$1:$BF$59,AX7)) ->  | Y7: =SUMIF('Max Funds and Unit Mix'!$A$5:$B$30,2,'Max Funds and Unit Mix'!$E$5:$F$30) -> 0 | AO7: =IF(ISERROR((I7*Y7)),0,(I7*Y7)) -> 0 | AX7: =AX6+1 -> 4 | AY7: =AY6+1 -> 9 | BA7: COLUSA | BB7: 262291 | BC7: 302419 | BD7: 364800 | BE7: 466944 | BF7: 520205
A8: 3 Bedrooms | I8: =IF($AC$2="","",VLOOKUP($AC$2,$BA$1:$BF$59,AX8)) ->  | Y8: =SUMIF('Max Funds and Unit Mix'!$A$5:$B$30,3,'Max Funds and Unit Mix'!$E$5:$F$30) -> 0 | AO8: =IF(ISERROR((I8*Y8)),0,(I8*Y8)) -> 0 | AX8: 5 | AY8: =AY7+1 -> 10 | BA8: CONTRA COSTA | BB8: 365252 | BC8: 421132 | BD8: 508000 | BE8: 650240 | BF8: 724408
A9: 4+ Bedrooms | I9: =IF($AC$2="","",VLOOKUP($AC$2,$BA$1:$BF$59,AX9)) ->  | Y9: =SUMIF('Max Funds and Unit Mix'!$A$5:$B$30,4,'Max Funds and Unit Mix'!$E$5:$F$30)+SUMIF('Max Funds and Unit Mix'!$A$5:$B$30,5,'Max Funds and Unit Mix'!$E$5:$F$30) -> 0 | AO9: =IF(ISERROR((I9*Y9)),0,(I9*Y9)) -> 0 | AX9: 6 | AY9: =AY8+1 -> 11 | BA9: DEL NORTE | BB9: 262291 | BC9: 302419 | BD9: 364800 | BE9: 466944 | BF9: 520205
A10: Number of Manager Units in Project: | T10: TOTAL UNITS: | Y10: =SUM(Y5:Y9) -> 0 | BA10: EL DORADO | BB10: 278397 | BC10: 320989 | BD10: 387200 | BE10: 495616 | BF10: 552147
A11: TOTAL UNADJUSTED THRESHOLD BASIS LIMIT (TBL): | AO11: =SUM(AO5:AO9) -> 0 | BA11: FRESNO | BB11: 238133 | BC11: 274565 | BD11: 331200 | BE11: 423936 | BF11: 472291
A12: TBL ADJUSTMENTS §10327(c)(5)(A-F): | AL12: Yes/No | BA12: GLENN | BB12: 262291 | BC12: 302419 | BD12: 364800 | BE12: 466944 | BF12: 520205
A13: (A) | B13: Project paid in whole or part out of public funds subject to a legal requirement for the payment of state or federal prevailing wages or financed in part by a labor-affiliated organization requiring the employment of construction workers who are paid at least state or federal prevailing wages. (20%) | AO13: =ROUND(IF(AL13="Yes",AO11*0.2,0),0) -> 0 | BA13: HUMBOLDT | BB13: 262291 | BC13: 302419 | BD13: 364800 | BE13: 466944 | BF13: 520205
BA14: IMPERIAL | BB14: 228930 | BC14: 263954 | BD14: 318400 | BE14: 407552 | BF14: 454038
B15: Project certifies that (1) they are subject to a project labor agreement within the meaning of §2500(b)(1) of the Public Contract Code, or (2) they will use a skilled and trained workforce as defined by §25536.7 of the Health and Safety Code to perform all onsite work within an apprenticeable occupation in the building and construction trades. (5%) | AO15: =ROUND(IF(AL15="Yes",AO11*0.05,0),0) -> 0 | BA15: INYO | BB15: 262291 | BC15: 302419 | BD15: 364800 | BE15: 466944 | BF15: 520205
BA16: KERN | BB16: 238133 | BC16: 274565 | BD16: 331200 | BE16: 423936 | BF16: 472291
B17: New construction project required to provide parking beneath residential units (not "tuck under" parking) or through construction of an on-site parking structure of two or more levels. (10%) | AO17: =ROUND(IF(AL17="Yes",AO11*0.1,0),0) -> 0 | BA17: KINGS | BB17: 238133 | BC17: 274565 | BD17: 331200 | BE17: 423936 | BF17: 472291
BA18: LAKE | BB18: 262291 | BC18: 302419 | BD18: 364800 | BE18: 466944 | BF18: 520205
B19: Project where a day care center is part of the development. (2%) | AO19: =ROUND(IF(AL19="Yes",AO11*0.02,0),0) -> 0 | BA19: LASSEN | BB19: 262291 | BC19: 302419 | BD19: 364800 | BE19: 466944 | BF19: 520205
B20: Project where 100 percent of the Low Income units are for Special Needs populations. (2%) | AO20: =ROUND(IF(AL20="Yes",AO11*0.02,0),0) -> 0 | BA20: LOS ANGELES | BB20: 327289 | BC20: 377361 | BD20: 455200 | BE20: 582656 | BF20: 649115
B21: Project where at least 95% of the project's upper floor units are serviced by an elevator. (10%) | AO21: =ROUND(IF(AL21="Yes",(AO11*0.1),0),0) -> 0 | BA21: MADERA | BB21: 238133 | BC21: 274565 | BD21: 331200 | BE21: 423936 | BF21: 472291
BA22: MARIN | BB22: 299104 | BC22: 344864 | BD22: 416000 | BE22: 532480 | BF22: 593216
B23: Project wherein at least 95% of the building(s) is constructed as Type I as defined in the California Building Code, in which case, the Type III 10% increase below is not allowed. (15%) | AO23: =ROUND(IF(AL23="Yes",(AO11*0.15),0),0) -> 0 | BA23: MARIPOSA | BB23: 262291 | BC23: 302419 | BD23: 364800 | BE23: 466944 | BF23: 520205
BA24: MENDOCINO | BB24: 262291 | BC24: 302419 | BD24: 364800 | BE24: 466944 | BF24: 520205
B25: Project wherein at least 95% of the building(s) is constructed as a Type III as defined in the California Building Code, or a Type III/Type I combination, in which case, the Type I 15% increase above is not allowed. (10%) | AO25: =IF(AL23="Yes",0,ROUND(IF(AL25="Yes",(AO11*0.1),0),0)) -> 0 | BA25: MERCED | BB25: 238133 | BC25: 274565 | BD25: 331200 | BE25: 423936 | BF25: 472291
BA26: MODOC | BB26: 262291 | BC26: 302419 | BD26: 364800 | BE26: 466944 | BF26: 520205
A27: (B) | B27: Project applying under §10325 or §10326 of these regulations that include one or more of the features below. (up to 10%) | AO27: =IF(SUM(AL29:AL46)>0.005,MIN(0.1,SUM(AL29:AL46))*AO11,0) -> 0 | BA27: MONO | BB27: 262291 | BC27: 302419 | BD27: 364800 | BE27: 466944 | BF27: 520205
BA28: MONTEREY | BB28: 303706 | BC28: 350170 | BD28: 422400 | BE28: 540672 | BF28: 602342
A29: Proposed energy efficiency/resource conservation/indoor air quality items | B29: (1) Project shall have onsite renewable generation estimated to produce 50% or more of annual tenant electricity use. If the combined available roof area of the Project structures, including carports, is insufficient for provision of 50% of annual electricity use, then the Project shall have onsite renewable generation based on at least 90% of the available solar accessible roof area. Available solar accessible area is defined as roof area less north facing roof area for sloped roofs, equipment, solar thermal hot water and required local or state fire department set-backs and access routes. A Project not availing itself of the 90% roof area exception may also receive an increase under paragraph (2) only if the renewable generation used to calculate each basis increase does not overlap. (5%) | BA29: NAPA | BB29: 299104 | BC29: 344864 | BD29: 416000 | BE29: 532480 | BF29: 593216
AL30: =IF(AL29="Yes",0.05,0) -> 0 | BA30: NEVADA | BB30: 262291 | BC30: 302419 | BD30: 364800 | BE30: 466944 | BF30: 520205
B31: (2) Project shall have onsite renewable generation estimated to produce 75% or more of annual common area electricity use. If the combined available roof area of the Project structures, including carports, is insufficient for provision of 75% of annual electricity use, then the Project shall have onsite renewable generation based on at least 90% of the available solar accessible roof area. Available solar accessible area is defined as roof area less north facing roof area for sloped roofs, equipment, solar thermal hot water and required local or state fire department set-backs and access routes. A Project not availing itself of the 90% roof area exception may also receive an increase under paragraph (1) only if the renewable generation used to calculate each basis increase does not overlap. (2%) | BA31: ORANGE | BB31: 279547 | BC31: 322315 | BD31: 388800 | BE31: 497664 | BF31: 554429
AL32: =IF(AL31="Yes",0.02,0) -> 0 | BA32: PLACER | BB32: 278397 | BC32: 320989 | BD32: 387200 | BE32: 495616 | BF32: 552147
B33: (3) Newly constructed Project buildings shall be 15% or more energy efficient than the 2016 Energy Efficiency Standards (California Code of Regulations, Part 6 of Title 24), except that if the local building department has determined that building permit applications submitted on or before December 31, 2016 are complete, then newly constructed Project buildings shall be fifteen percent (15%) or more energy efficient than the 2013 Energy Efficiency Standards (California Code of Regulations, Part 6 of Title 24). (4%) | BA33: PLUMAS | BB33: 262291 | BC33: 302419 | BD33: 364800 | BE33: 466944 | BF33: 520205
AL34: =IF(AL33="Yes",0.04,0) -> 0 | BA34: RIVERSIDE | BB34: 228930 | BC34: 263954 | BD34: 318400 | BE34: 407552 | BF34: 454038
B35: (4) Rehab Project buildings shall have 80% decrease in estimated TDV energy use (or improvement in energy efficiency) post rehab as demonstrated using the appropriate performance module of CEC software. (4%) | BA35: SACRAMENTO | BB35: 278397 | BC35: 320989 | BD35: 387200 | BE35: 495616 | BF35: 552147
AL36: =IF(AL35="Yes",0.04,0) -> 0 | BA36: SAN BENITO | BB36: 262291 | BC36: 302419 | BD36: 364800 | BE36: 466944 | BF36: 520205
B37: (5) Irrigate only with reclaimed water, greywater, or rainwater (excepting water used for Community Gardens) or irrigate with reclaimed water, grey water, or rainwater in an amount that annually equals or exceeds 20,000 gallons or 300 gallons per unit, whichever is less. (1%) | BA37: SAN BERNARDINO | BB37: 228930 | BC37: 263954 | BD37: 318400 | BE37: 407552 | BF37: 454038
AL38: =IF(AL37="Yes",0.01,0) -> 0 | BA38: SAN DIEGO | BB38: 260566 | BC38: 300430 | BD38: 362400 | BE38: 463872 | BF38: 516782
B39: (6) Community Gardens of at least 60 square feet per unit. Permanent site improvements that provide a viable growing space within the Project including solar access, fencing, watering systems, secure storage space for tools, and pedestrian access. (1%) | BA39: SAN FRANCISCO | BB39: 511928 | BC39: 590248 | BD39: 712000 | BE39: 911360 | BF39: 1015312
AL40: =IF(AL39="Yes",0.01,0) -> 0 | BA40: SAN JOAQUIN | BB40: 238133 | BC40: 274565 | BD40: 331200 | BE40: 423936 | BF40: 472291
B41: (7) Install bamboo, cork, salvaged or FSC-Certified wood, natural linoleum, natural rubber, or ceramic tile in all kitchens, living rooms, and bathrooms (where no VOC adhesives or backing is also used). (1%) | BA41: SAN LUIS OBISPO | BB41: 303706 | BC41: 350170 | BD41: 422400 | BE41: 540672 | BF41: 602342
AL42: =IF(AL41="Yes",0.01,0) -> 0 | BA42: SAN MATEO | BB42: 440028 | BC42: 507348 | BD42: 612000 | BE42: 783360 | BF42: 872712
B43: (8) Install bamboo, stained concrete, cork, salvaged or FSC-Certified wood, ceramic tile, or natural linoleum in all common areas. (2%) | BA43: SANTA BARBARA | BB43: 303706 | BC43: 350170 | BD43: 422400 | BE43: 540672 | BF43: 602342
AL44: =IF(AL43="Yes",0.02,0) -> 0 | BA44: SANTA CLARA | BB44: 440028 | BC44: 507348 | BD44: 612000 | BE44: 783360 | BF44: 872712
B45: (9) Meet all requirements of the U.S. Environmental Protection Agency Indoor Air Plus Program. (2%) | BA45: SANTA CRUZ | BB45: 303706 | BC45: 350170 | BD45: 422400 | BE45: 540672 | BF45: 602342
AL46: =IF(AL45="Yes",0.02,0) -> 0 | BA46: SHASTA | BB46: 230655 | BC46: 265943 | BD46: 320800 | BE46: 410624 | BF46: 457461
A47: (D) | B47: Project requires seismic upgrading of existing structures, and/or requires toxic or other environmental mitigation as certified by the Project architect/ engineer. (lesser of costs or 15% basis adjustment) | AO47: =IF(AL47="Yes",MIN(AG49,AO11*0.15),0) -> 0 | BA47: SIERRA | BB47: 262291 | BC47: 302419 | BD47: 364800 | BE47: 466944 | BF47: 520205
AL48: =IF(AL47="yes","Please Select Type of Work and Enter Cost:",0) -> 0 | BA48: SISKIYOU | BB48: 262291 | BC48: 302419 | BD48: 364800 | BE48: 466944 | BF48: 520205
B49: If Yes, select type of work: | U49: Enter Certified Costs of Work: | AG49: 0 | BA49: SOLANO | BB49: 299104 | BC49: 344864 | BD49: 416000 | BE49: 532480 | BF49: 593216
A50: (E) | B50: Local development impact fees required to be paid to local government entities. Certification from local entities assessing fees also required. WAIVED IMPACT FEES ARE INELIGIBLE. | AO50: 0 | BA50: SONOMA | BB50: 299104 | BC50: 344864 | BD50: 416000 | BE50: 532480 | BF50: 593216
AL51: =IF(AL50="yes","Please Enter Amount Above:",0) -> 0 | BA51: STANISLAUS | BB51: 238133 | BC51: 274565 | BD51: 331200 | BE51: 423936 | BF51: 472291
A52: (F) | B52: Projects within a county with an unadjusted 9% threshold basis limit for a 2-bedroom unit equal or less than $400,000 and within a census tract designated on the TCAC/HCD Opportunity Map as Highest or High Resource. (10%) | AL52: =IF(AND(F54="Yes",OR(AB54="Highest Resource",AB54="High Resource")),"Yes","No") -> No | AO52: =ROUND(IF(AND(F54="Yes",OR(AB54="High Resource",AB54="Highest Resource"),AL52="Yes"),AO11*0.1,0),0) -> 0 | BA52: SUTTER | BB52: 278397 | BC52: 320989 | BD52: 387200 | BE52: 495616 | BF52: 552147
AL53: =IF(F54="Yes","In yellow cells, enter Tract ID # and TCAC/HCD Opportunity Map Resource level","") ->  | BA53: TEHAMA | BB53: 262291 | BC53: 302419 | BD53: 364800 | BE53: 466944 | BF53: 520205
B54: County eligibility: | F54: =IFERROR(IF(VLOOKUP(AC2,BA1:BF59,AX7,FALSE)<=400000,"Yes","No"),"") ->  | H54: TCAC/HCD Opportunity Area Map Tract ID #: | V54: Opportunity Map Resource level: | BA54: TRINITY | BB54: 262291 | BC54: 302419 | BD54: 364800 | BE54: 466944 | BF54: 520205
A55: TOTAL HCD ADJ. THRESHOLD BASIS LIMIT: | AO55: =AO11+AO13+AO15+AO17+AO19+AO20+AO21+AO23+AO25+AO27+AO47+AO50+AO52 -> 0 | BA55: TULARE | BB55: 238133 | BC55: 274565 | BD55: 331200 | BE55: 423936 | BF55: 472291
A56: =IF(AO2="Perm Close","Adjusted Threshold Basis Limit multiplied by 170%:","Adjusted Threshold Basis Limit multiplied by 160%:") -> Adjusted Threshold Basis Limit multiplied by 160%: | AO56: =IF(AO2="Perm Close",AO55*1.7,AO55*1.6) -> 0 | BA56: TUOLUMNE | BB56: 262291 | BC56: 302419 | BD56: 364800 | BE56: 466944 | BF56: 520205
A57: =IF(G2="",CONCATENATE("HCD HIGH COST TEST RESULT: ",G2),CONCATENATE("HCD HIGH COST TEST RESULT FOR: ",G2)) -> HCD HIGH COST TEST RESULT: | AE57: =IF(AO55=0,0,AE58/AO55) -> 0 | BA57: VENTURA | BB57: 303706 | BC57: 350170 | BD57: 422400 | BE57: 540672 | BF57: 602342
A58: (j) | B58: Total Eligible Basis (Dev Budget T125) | AE58: ='Dev Budget'!T125 -> 0 | AL58: =IF(AE58=0,"",IF(AE58<=AO56,"Costs Reasonable",IF(AO2="Perm Close","Costs too high > 170%","Costs too high > 160%"))) ->  | BA58: YOLO | BB58: 278397 | BC58: 320989 | BD58: 387200 | BE58: 495616 | BF58: 552147
BA59: YUBA | BB59: 278397 | BC59: 320989 | BD59: 387200 | BE59: 495616 | BF59: 552147

Sheet Dev Fee 2021
A1: HCD 2021 Developer Fee Calculator - revised 2/4/21 (complete YELLOW shaded cells)
A2: Project Phase: | C2: Origination | D2: Proposed Project Type: | G2: TCAC Project #:
A3: Project Name: | C3: =IF('Proposed Project'!E2="","",'Proposed Project'!E2) ->  | F3: HCD Contract #s:
A4: Project's Developer Fee Summary | G4: HCD Limit | H4: Project Amt.
B5: =IF(LEFT(F2,1)="9","Maximum Total Developer Fee - 1e","Maximum Total Developer Fee - 2d") -> Maximum Total Developer Fee - 2d | G5: =IF(F2="No Tax Credits",H48,IF(LEFT(F2,1)="9",I17,I27)) -> 0 | H5: =F9 -> 0 | I5: =MAX(0,ROUND(H5,0)-ROUND(G5,0)) -> 0
B6: =IF(LEFT(F2,1)="9","Max Developer Fee payable from development funding sources - 1e","Max Developer Fee payable from development funding sources - lesser of 1e & 2d") -> Max Developer Fee payable from development funding sources - lesser of 1e & 2d | G6: =IF(F2="No Tax Credits",G5,IF(LEFT(F2,1)="9",I17,MIN(I27,I17))) -> 0 | H6: =MAX(0,H5-F10-I10) -> 0 | I6: =MAX(0,ROUND(H6,0)-ROUND(G6,0)) -> 0
B7: Deferred Developer Fee payable on a priority basis from available Cash Flow | G7: =MAX(0,MIN(G5,3500000)-G6) -> 0 | H7: =IF(F2="No Tax Credits",MAX(0,MIN(G5,H5-F10)-H6),MAX(0,MIN(G5,H5-F10,3500000)-H6)) -> 0
B8: Deferred Developer Fee payable exclusively from Sponsor Distributions | G8: =G5-G6-G7 -> 0 | H8: =MAX(0,H5-H6-H7-F10) -> 0
A9: Total Budgeted or Actual Developer Fee | F9: ='Dev Budget'!R122+'Dev Budget'!U122 -> 0
A10: Developer Fee Contributed as Capital | G10: Deferred Developer Fee
A12: =IF(F2="","Section 1. UMR §8312(c)(1) Max Developer Fee payable from funding sources - 4% Projects use TCAC 9% rules",IF(LEFT(F2,1)="4","Section 1. UMR §8312(c)(1) Max Developer Fee payable from funding sources - 4% Projects use TCAC 9% rules","Section 1. UMR §8312(b) Max Total Developer Fee - for 9% Projects")) -> Section 1. UMR §8312(c)(1) Max Developer Fee payable from funding sources - 4% Projects use TCAC 9% rules
A13: a. | B13: Project's type of construction: | D13: =IF(F2="No Tax Credits","",MID(F2,12,26)) ->  | I13: 2200000
A14: b. | B14: Project's Unadjusted Eligible Basis (excluding Developer Fee) - §10327(c)(2)(A) | G14: ='Dev Budget'!S114 -> 0 | H14: x 15% = | I14: =G14*0.15 -> 0
A15: c. | B15: Project's Unadjusted Eligible Acquisition Basis (excluding Developer Fee) - §10327(c)(2)(A) | G15: ='Dev Budget'!T114 -> 0 | H15: x 5% = | I15: =G15*0.05*(D13="Acq. Rehabilitation") -> 0
A16: d. | B16: Project's Non-Residential Costs (excluding Developer Fee) - §10327(c)(2)(A) | G16: ='Dev Budget'!U114 -> 0 | H16: x 15% = | I16: =G16*0.15 -> 0
A17: e. | B17: =IF(LEFT(F2,1)="9","Maximum Total Developer Fee - UMR §8312(b) - lesser of 1a or (1b + 1c + 1d)","Maximum Developer Fee payable from development funding sources - UMR §8312(c)(1) - lesser of 1a or (1b + 1c + 1d)") -> Maximum Developer Fee payable from development funding sources - UMR §8312(c)(1) - lesser of 1a or (1b + 1c + 1d) | I17: =MIN(I13,SUM(I14:I16)) -> 0
A19: Section 2. UMR §8312(c) - Maximum Developer Fee using TCAC 4% rules
A20: a. | B20: BIPOC Project meeting CDLAC §5230(f)(1)(B) - §10327(c)(2)(E)
A21: b. | B21: New Construction & Rehab - Unadjusted Eligible Basis (exclude Developer Fee) - §10327(c)(2)(B)(i) | G21: =G14 -> 0 | H21: =IF(OR(I20="No",I20=""),"x 15% =","x 20% =") -> x 15% = | I21: =G21*IF(OR(I20="No",I20=""),0.15,0.2) -> 0
A22: c. | B22: Basis for non-residential project costs (exclude Developer Fee) - §10327(c)(2)(B)(ii) | G22: =G16 -> 0 | H22: x 15% = | I22: =G22*0.15 -> 0
A23: d1. | B23: =IF(OR(C2="",D13="Acq. Rehabilitation"),"Acq/Rehab - at-risk development meeting the requirements of §10325(g)(4) - §10327(c)(2)(B)(ii)","Not Applicable") -> Not Applicable
A24: d2. | B24: =IF(AND(C2<>"",D13<>"Acq. Rehabilitation"),"Not Applicable","Acq/Rehab non-resyndication - hard construction costs per unit at least $50,000 per unit - §10327(c)(2)(B)(ii)") -> Not Applicable
A25: d3. | B25: =IF(OR(C2="",D13="Acq. Rehabilitation"),"Acq/Rehab non-resyndication - 30% or more of units restricted to 50% AMI or less - §10327(c)(2)(B)(ii)","Not Applicable") -> Not Applicable
A26: d4. | B26: =IF(OR(C2="",D13="Acq. Rehabilitation"),"Acq/Rehab - Unadj. Eligible Acq. Basis - §10327(c)(2)(B)(ii) = 15% if c1, c2 or c3 is Yes","Not Applicable") -> Not Applicable | G26: =IF(OR(C2="",D13<>"Acq. Rehabilitation"),0,G15) -> 0 | H26: =IF(OR(H23="Yes",H24="Yes",H25="Yes"),0.15,0.05) -> 0.05 | I26: =G26*H26 -> 0
A27: e. | B27: Maximum Total Developer Fee using TCAC 4% rules §8312(c) | I27: =ROUND(I21+I22+I26,0) -> 0
A28: f. | B28: Total Budgeted or Actual Developer Fee | H28: =F9 -> 0 | I28: =IF(ROUND(H28,0)>ROUND(I27,0),"Excess Dev Fee"&TEXT(H28-I27," $#,###"),"") -> 
A29: g. | B29: Budgeted Developer Fee paid from Development Sources | F29: Sum of Deferred and Contributed Developer Fee | G29: =F10+I10 -> 0 | H29: =H28-G29 -> 0 | I29: =IF(H29>I17,"Cannot exceed"&TEXT(MIN(I17,I27)," $#,###"),"") -> 
A30: h. | B30: Deferred Developer Fee payable on a priority basis from available Cash Flow | H30: =MAX(0,MIN(I27,H28,3500000)-MIN(I17,I27)) -> 0
A32: Section 3. UMR §8312(a) for Projects without tax credits (choose only one in the 'a', 'b' or 'c' subsections)
A33: a. New construction and substantial rehab projects UMR §8312(a)(1)
B34: substantial rehab = construction cost for rehab work (excluding contractor profit and overhead) in excess of $38,000 per unit
A35: a1. | B35: Number of units (include manager's unit)
A36: a2. | B36: First 30 units at: | D36: 28000 | E36: each | G36: =IF(F35>29,D36*30,+F35*D36) -> 0
A37: a3. | B37: Units in excess of 30 at: | D37: 11500 | E37: each | G37: =IF(F35<30,0,(F35-30)*D37) -> 0
A38: a4. | B38: Total new construction and substantial rehab (a2 + a3) | H38: =+G36+G37 -> 0
A39: b. Acquisition and rehab projects UMR §8312(a)(2)
B40: with construction cost for rehab work (excluding contractor profit and overhead) between $11,500 - $38,000 per unit
A41: b1. | B41: Number of units (include manager's unit)
A42: b2. | B42: First 30 units at: | D42: 13000 | E42: each | G42: =IF(F41>29,D42*30,+F41*D42) -> 0
A43: b3. | B43: Units in excess of 30 at: | D43: 5500 | E43: each | G43: =IF(F41<30,0,(F41-30)*D43) -> 0
A44: b4. | B44: Total acquisition and non-substantial rehab (b2 + b3) | H44: =+G42+G43 -> 0
A45: c. All other projects UMR §8312(a)(3)
A46: c1. | B46: Number of units (include manager's unit)
A47: c2. | B47: Total other at: | D47: 2000 | E47: per unit | H47: =+F46*D47 -> 0
A48: d. Maximum allowable Developer Fee (a4 + b4 + c2) | H48: =H38+H44+H47 -> 0

Sheet Supportive Services Costs
A1: ='Proposed Project'!E2 -> 0 | AR1: 8314 (e)(1) | AS1: 8314 (e)(2) | AT1: 8314 (e)(3) | AU1: 8314 (e)(4) | AV1: 8314 (e)(1) | AW1: 8314 (e)(2) | AX1: 8314 (e)(3) | AY1: 8314 (e)(4)
A2: Supportive Services Costs - HCD 2017 UMR Limits (for projects with HCD funding) - 2.5% annual increase | AQ2: Fiscal Year | AR2: Chronic Homelessness | AS2: Special Needs Population | AT2: Supportiv Services | AU2: Other | AV2: Chronic Homelessness | AW2: Special Needs Population | AX2: Supportiv Services | AY2: Other
A3: HCD UMR §8301(t): “Supportive Services” - social, health, educational, income support and employment services and benefits, coordination of community building and educational activities, individualized needs assessment, and individualized assistance with obtaining services and benefits. | AQ3: 2017 | AR3: 4080 | AS3: 3060 | AT3: 1051 | AU3: 250
A4: HCD UMR §8301(u): “Supportive Services Costs” - the costs of providing tenants service coordination, case management, and direct resident and Supportive Services. It includes: (1) the cost of providing tenants with information on and referral to social, health, educational, income support and employment services and benefits, coordination of community building and educational activities, individualized needs assessment, and individualized assistance with obtaining services and benefits; (2) salaries, benefits, contracted services, telecommunication expenses, travel costs, supplies, office expenses, staff training, maintenance of on-site equipment used in services programs, such as computer labs, incidental costs related to resident events, and other similar costs approved by the Department. | AQ4: =+AQ3+1 -> 2018 | AR4: =ROUND(AR3*1.025,0) -> 4182 | AS4: =ROUND(AS3*1.025,0) -> 3137 | AT4: =ROUND(AT3*1.025,0) -> 1077 | AU4: =ROUND(AU3*1.025,0) -> 256 | AV4: 4182 | AW4: 3137 | AX4: 1077 | AY4: 256
AQ5: =+AQ4+1 -> 2019 | AR5: =ROUND(AR4*1.025,0) -> 4287 | AS5: 3215 | AT5: 1104 | AU5: 262 | AV5: =ROUND(AV4*1.035,0) -> 4328 | AW5: 3247 | AX5: 1115 | AY5: 265
A6: A. Supportive Services Units: | I6: Total number of units: | M6: ='Max Funds and Unit Mix'!E31 -> 0 | O6: Certification Year for allowable supportive services costs: | AA6: 2021 | AC6: Total Units | AE6: Max PUPY Expense | AH6: Max Costs | AQ6: =+AQ5+1 -> 2020 | AR6: 4394 | AS6: 3295 | AT6: 1132 | AU6: 269 | AV6: 4479 | AW6: 3361 | AX6: 1154 | AY6: 274
A7: (1) UMR §8314(e)(1): Total number of Supportive Housing (SH) units anticipated to be restricted to individuals or families experiencing chronic homelessness as defined consistent with Health and Safety Code (HSC) §50675.14. | AE7: =VLOOKUP($AA$6,$AQ$3:$AY$61,2,FALSE) -> 4504 | AH7: =IFERROR(AE7*AC7,"") -> 0 | AQ7: =+AQ6+1 -> 2021 | AR7: 4504 | AS7: 3377 | AT7: 1160 | AU7: 276 | AV7: 4636 | AW7: 3479 | AX7: 1194 | AY7: 284
A8: (2) UMR §8314(e)(2): Total number of Supportive Housing (SH) units (other than those restricted to individuals or families experiencing chronic homelessness pursuant to HSC §50675.14), PLUS the total number of units restricted to occupancy by Special Needs Populations (SNP)* under any HCD program. (*click here for definition - §7301(s) of the MHP Regulations). Do not include units included in (1) above. | AE8: =VLOOKUP($AA$6,$AQ$3:$AY$61,3,FALSE) -> 3377 | AH8: =IFERROR(AE8*AC8,"") -> 0 | AQ8: 2022 | AR8: 4617 | AS8: 3461 | AT8: 1189 | AU8: 283 | AV8: 4798 | AW8: 3601 | AX8: 1236 | AY8: 294
A9: (3) UMR §8314(e)(3): Total number of units where the Sponsor, their affiliate, or a service provider under contract to provide Supportive Services at the Project has both: (A) qualified staff devoted exclusively to oversight and quality control of resident services in affordable housing, including the Project; and (B) a system to track and report on tenant outcomes, such as changes in employment status and income. Do not include units included in items (1) and (2) above. | AE9: =VLOOKUP($AA$6,$AQ$3:$AY$61,4,FALSE) -> 1160 | AH9: =IFERROR(AE9*AC9,"") -> 0 | AQ9: 2023 | AR9: 4732 | AS9: 3548 | AT9: 1219 | AU9: 290 | AV9: 4966 | AW9: 3727 | AX9: 1279 | AY9: 304
A10: (4) UMR §8314(e)(4): Total number of units anticipated to be offered Supportive Services provided by the Project Sponsor, a Sponsor affiliate, or contracted service provider that do not satisfy the criteria in items (1), (2) and (3) above. | AE10: =VLOOKUP($AA$6,$AQ$3:$AY$61,5,FALSE) -> 276 | AH10: =IFERROR(AE10*AC10,"") -> 0 | AQ10: 2024 | AR10: 4850 | AS10: 3637 | AT10: 1249 | AU10: 297 | AV10: 5140 | AW10: 3857 | AX10: 1324 | AY10: 315
A11: (5) Maximum Supportive Services Costs | AC11: =SUM(AC7:AD10) -> 0 | AH11: =SUM(AH7:AL10) -> 0 | AQ11: 2025 | AR11: 4971 | AS11: 3728 | AT11: 1280 | AU11: 304 | AV11: 5320 | AW11: 3992 | AX11: 1370 | AY11: 326
AQ12: 2026 | AR12: 5095 | AS12: 3821 | AT12: 1312 | AU12: 312 | AV12: 5506 | AW12: 4132 | AX12: 1418 | AY12: 337

Sheet Operating
A1: ='Proposed Project'!E2 -> 0
A2: ='Proposed Project'!AJ1 -> 2022-02-11 | C2: Year 1 Annual Income and Expenses
A4: Employee Information | F4: Comments
A5: No. | B5: FTE | C5: Employee Job Title | D5: Salary/Wages | E5: Value of Free Rent
C6: On-Site Manager(s) | D6: 0 | E6: 0
C7: On-Site Assistant Manager(s) | D7: 0 | E7: 0
C8: Supportive Services Staff Supervisor(s) | D8: 0
C9: Supportive Services Coordinator, On-Site | D9: 0
C10: Other Supportive Services Staff (inc. Case Manager) | D10: 0
C11: On-Site Maintenance Employee(s) | D11: 0 | E11: 0
C12: On-Site Leasing Agent/Administrative Employee(s) | D12: 0 | E12: 0
C13: On-Site Security Employee(s) | D13: 0 | E13: 0
D14: 0 | E14: 0
D15: 0 | E15: 0
C16: Total Salaries and Value of Free Rent Units | D16: =SUM(D6:D15) -> 0 | E16: =SUM(E6:E15) -> 0
B17: 6711 | C17: Payroll Taxes | D17: 0 | E17: Show free rent as an
B18: 6722 | C18: Workers Compensation | D18: 0 | E18: expense? | H18: Count free rent as an
B19: 6723 | C19: Employee Benefits | D19: 0 | E19: Yes | H19: expense?
C20: Employee(s) Payroll Taxes, Workers Comp. & Benefits | D20: =SUM(D17:D19) -> 0 | H20: =IF(E19="Yes",1,0) -> 1
C21: Total Employee(s) Expenses | D21: =D20+D16 -> 0
A24: Employee Units
A25: Income Limit | C25: Job Title(s) of Employee(s) Living On-Site | D25: Unit Type (No. of bdrms.) | E25: Square Footage | G25: Income Limit | H25: Job Title(s) of Employee(s) Living On-Site
D26: 0 | E26: 0 | G26: 0.6 | H26: On-Site Manager(s)
D27: 0 | E27: 0 | G27: 0.55 | H27: On-Site Assistant Manager(s)
D28: 0 | E28: 0 | G28: 0.5 | H28: On-Site Maintenance Employee(s)
D29: Total Square Footage | E29: =SUM(E26:E28) -> 0 | G29: None | H29: On-Site Leasing Agent/Administrative Employee(s)
A30: Year 1 Annual Operating Budget | G30: Other | H30: On-Site Security Employee(s)
A31: Acct. No. | C31: Revenue - Income | D31: Residential | E31: Commercial | F31: Comments | H31: Services Coordinator
A32: 5120/5140 | C32: Rent Revenue - Gross Potential | E32: 0
C33: Restricted Unit Rents | D33: ='Cash Flow'!D5 -> 0
C34: Unrestricted Unit Rents | D34: ='Cash Flow'!D6 -> 0
A35: 5121 | C35: Tenant Assistance Payments
C36: ='Max Funds and Unit Mix'!AN2 -> Subsidy Program Name | D36: ='Max Funds and Unit Mix'!BJ31*12 -> 0
C37: ='Max Funds and Unit Mix'!AS2 -> Subsidy Program Name | D37: ='Max Funds and Unit Mix'!BK31*12 -> 0
C38: Operating Subsidies | D38: 0
C39: Other: (specify) | D39: 0 | E39: 0
A40: 5910 | C40: Laundry and Vending Revenue | D40: 0
A41: 5170 | C41: Garage and Parking Spaces | D41: 0 | E41: 0
A42: 5990 | C42: Miscellaneous Rent Revenue | D42: 0 | E42: 0
C43: Gross Potential Income (GPI) | D43: =SUM(D32:D42) -> 0 | E43: =SUM(E32:E42) -> 0
C45: Vacancy Rate: Restricted Units | D45: 0.05
C46: Vacancy Rate: Unrestricted Units | D46: 0.05
C47: Vacancy Rate: Tenant Assistance Payments | D47: 0.05
C48: ="Vacancy Rate: " & C39 -> Vacancy Rate: Other: (specify) | D48: 0.05
C49: Vacancy Rate: Laundry & Vending & Other Income | D49: 0.05
C50: Vacancy Rate: Commercial Income | E50: 0.5
A51: 5220/5240 | C51: Vacancy Loss(es) | D51: =(D33*D45)+(D34*D46)+((D36+D37)*D47)+(D39*D48)+((D40+D41+D42)*D49) -> 0 | E51: =+E43*E50 -> 0
C52: Effective Gross Income (EGI) | D52: =+D43-D51 -> 0 | E52: =+E43-E51 -> 0
A53: Acct. No. | C53: Expenses | D53: Residential | E53: Commercial | F53: Comments
C55: Administrative Expenses: 6200/6300
A56: 6203 | C56: Conventions and Meetings | D56: 0 | E56: 0
A57: 6210 | C57: Advertising and Marketing | D57: 0 | E57: 0
A58: 6250 | C58: Other Renting Expenses | D58: 0 | E58: 0
A59: 6310 | C59: Office/Administrative Salaries -- from above | D59: =D12 -> 0 | E59: 0
A60: 6311 | C60: Office Expenses | D60: 0 | E60: 0
A61: 6312 | C61: Office or Model Apartment Rent | D61: 0 | E61: 0
A62: 6320 | C62: Management Fee | D62: 0 | E62: 0
A63: 6330 | C63: Site/Resident Manager(s) Salaries -- from above | D63: =D6+D7 -> 0 | E63: 0
A64: 6331 | C64: Administrative Free Rent Unit -- from above | D64: =IF(H20=1,E6+E7+E12,0) -> 0 | E64: 0
A65: 6340 | C65: Legal Expense -- Project | D65: 0 | E65: 0
A66: 6350 | C66: Audit Expense | D66: 0 | E66: 0
A67: 6351 | C67: Bookkeeping Fees/Accounting Services | D67: 0 | E67: 0
A68: 6390 | C68: Miscellaneous Administrative Expenses | D68: 0 | E68: 0
A69: 6263T | C69: Total Administrative Expenses | D69: =SUM(D56:D68) -> 0 | E69: =SUM(E56:E68) -> 0
A70: Acct. No. | C70: Expenses | D70: Residential | E70: Commercial | F70: Comments
C71: Utilities Expenses: 6400
A72: 6450 | C72: Electricity | D72: 0 | E72: 0
A73: 6451 | C73: Water | D73: 0 | E73: 0
A74: 6452 | C74: Gas | D74: 0 | E74: 0
A75: 6453 | C75: Sewer | D75: 0 | E75: 0
C76: Other Utilities: (specify) | D76: 0 | E76: 0
A77: 6400T | C77: Total Utilities Expenses | D77: =SUM(D72:D76) -> 0 | E77: =SUM(E72:E76) -> 0
C78: Operating and Maintenane Expenses: 6500 | F78: Comments
A79: 6510 | C79: Payroll -- from above | D79: =D11+D13+D14+D15 -> 0 | E79: 0
A80: 6515 | C80: Supplies | D80: 0 | E80: 0
A81: 6520 | C81: Contracts | D81: 0 | E81: 0
A82: 6521 | C82: Operating & Maintenance Free Rent Unit -- from above | D82: =IF(H20=1,E11+E14+E15,0) -> 0 | E82: 0
A83: 6525 | C83: Garbage and Trash Removal | D83: 0 | E83: 0
A84: 6530 | C84: Security Contract | D84: 0 | E84: 0
A85: 6531 | C85: Security Free Rent Unit -- from above | D85: =IF(H20=1,E13,0) -> 0 | E85: 0
A86: 6546 | C86: Heating/Cooling Repairs and Maintenance | D86: 0 | E86: 0
A87: 6548 | C87: Snow Removal | D87: 0 | E87: 0
A88: 6570 | C88: Vehicle & Maintenance Equipment Operation/Reports | D88: 0 | E88: 0
A89: 6590 | C89: Miscellaneous Operating and Maintenance Expenses | D89: 0 | E89: 0
A90: 6500T | C90: Total Operating & Maintenance Expenses | D90: =SUM(D79:D89) -> 0 | E90: =SUM(E79:E89) -> 0
C91: Taxes and Insurance: 6700 | F91: Comments
A92: 6710 | C92: Real Estate Taxes | D92: 0 | E92: 0
A93: 6711 | C93: Payroll Taxes (Project's Share) -- from above | D93: =D17 -> 0 | E93: 0
A94: 6720 | C94: Property and Liability Insurance (Hazard) | D94: 0 | E94: 0
A95: 6729 | C95: Other Insurance (e.g. Earthquake) | D95: 0 | E95: 0
A96: 6721 | C96: Fidelity Bond Insurance | D96: 0 | E96: 0
A97: 6722 | C97: Worker's Compensation -- from above | D97: =D18 -> 0 | E97: 0
A98: 6723 | C98: Health Insurance/Other Employee Benefits--from above | D98: =D19 -> 0 | E98: 0
A99: 6790 | C99: Miscellaneous Taxes, Licenses, Permits & Insurance | D99: 0 | E99: 0
A100: 6700T | C100: Total Taxes and Insurance | D100: =SUM(D92:D99) -> 0 | E100: =SUM(E92:E99) -> 0
C101: Supportive Services Costs: 6900 | F101: Comments | G101: Max allowed
A102: 6990 | C102: Staff Supervisor(s) Salaries - from above | D102: =D8 -> 0 | E102: 0 | G102: =(D103+D104)*0.1 -> 0
A103: 6990 | C103: Services Coordinator Salaries, On-Site - from above | D103: =D9 -> 0 | E103: 0
A104: 6990 | C104: Other Supportive Services Staff Salaries - from above | D104: =D10 -> 0 | E104: 0
A105: 6990 | C105: Supportive Services Admin Overhead | D105: 0 | E105: 0 | G105: =SUM(D102:D107)*0.15 -> 0
A106: 6990 | C106: Other Supportive Services Costs: (specify) | D106: 0 | E106: 0
A107: 6990 | C107: Other Supportive Services Costs: (specify) | D107: 0 | E107: 0
A108: 6900T | C108: Total Supportive Services Costs | D108: =SUM(D102:D107) -> 0 | E108: =SUM(E102:E107) -> 0 | G108: ='Supportive Services Costs'!AH11 -> 0
C110: Total Operating Expenses | D110: =D69+D77+D90+D100+D108 -> 0 | E110: =E69+E77+E90+E100+E108 -> 0 | F110: Comments
C111: Funded Reserves: 7200 | D111: Residential | E111: Commercial
A112: 7210 | C112: Required Replacement Reserve Deposits | D112: 0 | E112: 0
A113: 7220 | C113: Other Reserves: (specify) | D113: 0 | E113: 0
A114: 7230 | C114: Other Reserves: (specify) | D114: 0 | E114: 0
A115: 7240 | C115: Other Reserves: (specify) | D115: 0 | E115: 0
C116: Total Reserves | D116: =SUM(D112:D115) -> 0 | E116: =SUM(E112:E115) -> 0
C117: Ground Lease | D117: Residential | E117: Commercial
C118: Ground Lease | D118: 0 | E118: 0
C119: Total Ground Lease | D119: =SUM(D118:D118) -> 0 | E119: =SUM(E118:E118) -> 0
C120: Net Operating Income | D120: =D52-D110-D116-D119 -> 0 | E120: =E52-E110-E116-E119 -> 0
C122: Financial Expenses: 6800 | F122: Comments
A123: 6820 | C123: 1st Mortgage Debt Service | D123: 0 | E123: 0
A124: 6830 | C124: 2nd Mortgage Debt Service | D124: 0 | E124: 0
A125: 6840 | C125: 3rd Mortgage Debt Service | D125: 0 | E125: 0
A126: 6890 | C126: HCD HHC Monitoring Fee (see NOFA section L2) | D126: 0 | E126: 0
A127: 6890 | C127: Misc. Financial Expenses: (specify) | D127: 0 | E127: 0
A128: 6890 | C128: Misc. Financial Expenses: (specify) | D128: 0 | E128: 0
A129: 6890 | C129: Misc. Financial Expenses: (specify) | D129: 0 | E129: 0
A130: 6800T | C130: Total Financial Expenses | D130: =SUM(D123:D129) -> 0 | E130: =SUM(E123:E129) -> 0
C131: Cash Flow | D131: =+D120-D130 -> 0 | E131: =+E120-E130 -> 0
A133: 7190 | C133: Asset Management/Similar Fees | D133: 0 | E133: 0
D134: Per Year | E134: Per Month
A135: Total Operating Expenses Per Unit
A136: Without any Adjustments | D136: =IFERROR(D110/'Max Funds and Unit Mix'!E31,0) -> 0 | E136: =+D136/12 -> 0
A137: With the Value of Rent-Free Units Included | D137: =IFERROR(IF(H20=1,+(E16+D110)/'Max Funds and Unit Mix'!E31,D110/'Max Funds and Unit Mix'!E31),0) -> 0 | E137: =+D137/12 -> 0
A138: Without RE Taxes, Social Services Coordinator or Social Services/Social Programs and With the Value of Rent Fee Units Included | D138: =IFERROR((IF(H20=1,+((E16+D110)-(D92+D108))/'Max Funds and Unit Mix'!E31,(D110-(D92+D108))/'Max Funds and Unit Mix'!E31)),0) -> 0 | E138: =+D138/12 -> 0

Sheet Reserves
A1: HCD Reserve Requirements (all reserve withdrawals will require prior HCD approval)
A2: Project Name: | E2: ='Proposed Project'!E2 -> 0 | Z2: Number of Project Units: | AH2: ='Max Funds and Unit Mix'!E31 -> 0 | AJ2: ='Proposed Project'!AJ1 -> 2022-02-11
A3: Replacement Reserve Calculator UMR §8309
A4: (a) | B4: 0.6% of new construction costs (structures excluding contractor profit, overhead, and general requirements and insurance): | AE4: ='Dev Budget'!R44+'Dev Budget'!U44-'Dev Budget'!R35-'Dev Budget'!U35-'Dev Budget'!R36-'Dev Budget'!U36-'Dev Budget'!R37-'Dev Budget'!U37-'Dev Budget'!R39-'Dev Budget'!U39 -> 0 | AI4: =AE4*0.006 -> 0
A5: (b) | B5: $500 per unit: | AE5: 500 | AI5: =$AH$2*AE5 -> 0
A6: (c) | B6: If a third-party physical needs assessment (PNA) was performed for this Project, must attach PNA: | Y6: PNA per unit amount: | AI6: =$AH$2*AE6 -> 0
A7: (d) | B7: Replacement Reserve amount = New construction: lesser of (a), (b) and (c) above; Rehab: lesser of (b) and (c) | AI7: =IF(AND(AI4>0,AI6>0),MIN(AI4,AI5,AI6),IF(AI4>0,MIN(AI4,AI5),IF(AI6>0,MIN(AI5,AI6),AI5))) -> 0
B8: HCD Required Replacement Reserve Amount - must be included in 'Operating' budget | AI8: =AI7 -> 0
A10: Operating Reserve Calculator UMR §8308
A11: 1 | B11: Total Operating Expenses (including Property Taxes and excluding Service Coordinator salary): | AI11: =Operating!D110-Operating!D103 -> 0
A12: 2 | B12: Replacement Reserve amount (from above): | AI12: =AI8 -> 0
A13: 3 | B13: Mandatory Permanent Debt Service (enter lender name below):
A14: (a) | B14: 1st Mortgage Debt Service | AI14: =Operating!D123 -> 0
A15: (b) | B15: 2nd Mortgage Debt Service | AI15: =Operating!D124 -> 0
A16: (c) | B16: 3rd Mortgage Debt Service | AI16: =Operating!D125 -> 0
A17: (d) | B17: Misc. Financial Expenses: | AI17: =Operating!D126+Operating!D127+Operating!D128+Operating!D129 -> 0
B18: Total Annual Mandatory Debt Service: | AI18: =SUM(AI14:AL17) -> 0
A19: 4a | B19: HCD Required Operating Reserve Amount (Tax Credit Project - 3 months) - must be included in 'Dev Budget' for tax credit projects | AI19: =(AI11+AI12+AI18)/4 -> 0
A20: 4b | B20: HCD Required Operating Reserve Amount (Non-Tax Credit Project - 4 months) - must be included in 'Dev Budget' if no tax credits | AI20: =(AI11+AI12+AI18)/3 -> 0
A21: If Reserve amounts are different than the required amount, enter reserve amounts and how they are calculated below:

Sheet Cash Flow
A1: ='Proposed Project'!E2 -> 0
A2: Cash Flow Analysis | R2: ='Proposed Project'!AJ1 -> 2022-02-11
A3: Is Income from Restricted Units based on Restricted or Proposed Rents? | I3: Restricted Rents | K3: =IF(I3<>"Proposed Rents",1,0) -> 1
A4: Income From Housing Units | C4: Inflation | D4: Year 1 | E4: Year 2 | F4: Year 3 | G4: Year 4 | H4: Year 5 | I4: Year 6 | J4: Year 7 | K4: Year 8 | L4: Year 9 | M4: Year 10 | N4: Year 11 | O4: Year 12 | P4: Year 13 | Q4: Year 14 | R4: Year 15 | S4: Year 16 | T4: Year 17 | U4: Year 18 | V4: Year 19 | W4: Year 20 | X4: Year 21 | Y4: Year 22 | Z4: Year 23 | AA4: Year 24 | AB4: Year 25 | AC4: Year 26 | AD4: Year 27 | AE4: Year 28 | AF4: Year 29 | AG4: Year 30
A5: Restricted Unit Rents | C5: 0.025 | D5: =IF(K3=1,'Max Funds and Unit Mix'!AF32,'Max Funds and Unit Mix'!AF33) -> 0 | E5: =D5*(1+$C$5) -> 0 | F5: 0 | G5: 0 | H5: 0 | I5: 0 | J5: 0 | K5: 0 | L5: 0 | M5: 0 | N5: 0 | O5: 0 | P5: 0 | Q5: 0 | R5: =Q5*(1+$C$5) -> 0 | S5: =R5*(1+$C$5) -> 0 | T5: 0 | U5: 0 | V5: 0 | W5: 0 | X5: 0 | Y5: 0 | Z5: 0 | AA5: 0 | AB5: 0 | AC5: 0 | AD5: 0 | AE5: 0 | AF5: 0 | AG5: 0
A6: Unrestricted Units | C6: 0.025 | D6: ='Max Funds and Unit Mix'!AF34 -> 0 | E6: =D6*(1+$C$6) -> 0 | F6: 0 | G6: 0 | H6: 0 | I6: 0 | J6: 0 | K6: 0 | L6: 0 | M6: 0 | N6: 0 | O6: 0 | P6: 0 | Q6: 0 | R6: =Q6*(1+$C$6) -> 0 | S6: =R6*(1+$C$6) -> 0 | T6: 0 | U6: 0 | V6: 0 | W6: 0 | X6: 0 | Y6: 0 | Z6: 0 | AA6: 0 | AB6: 0 | AC6: 0 | AD6: 0 | AE6: 0 | AF6: 0 | AG6: 0
A7: Tenant Assistance Payments
A8: =Operating!C36 -> Subsidy Program Name | C8: 0.025 | D8: =Operating!D36 -> 0 | E8: =D8*(1+$C$8) -> 0 | F8: =E8*(1+$C$8) -> 0 | G8: =F8*(1+$C$8) -> 0 | H8: 0 | I8: 0 | J8: 0 | K8: 0 | L8: 0 | M8: 0 | N8: 0 | O8: 0 | P8: 0 | Q8: 0 | R8: =Q8*(1+$C$8) -> 0 | S8: =R8*(1+$C$8) -> 0 | T8: 0 | U8: 0 | V8: 0 | W8: 0 | X8: 0 | Y8: 0 | Z8: 0 | AA8: 0 | AB8: 0 | AC8: 0 | AD8: 0 | AE8: 0 | AF8: 0 | AG8: 0
A9: =Operating!C37 -> Subsidy Program Name | C9: 0.025 | D9: =Operating!D37 -> 0 | E9: =D9*(1+$C$9) -> 0 | F9: =E9*(1+$C$9) -> 0 | G9: =F9*(1+$C$9) -> 0 | H9: 0 | I9: 0 | J9: 0 | K9: 0 | L9: 0 | M9: 0 | N9: 0 | O9: 0 | P9: 0 | Q9: 0 | R9: =Q9*(1+$C$9) -> 0 | S9: =R9*(1+$C$9) -> 0 | T9: 0 | U9: 0 | V9: 0 | W9: 0 | X9: 0 | Y9: 0 | Z9: 0 | AA9: 0 | AB9: 0 | AC9: 0 | AD9: 0 | AE9: 0 | AF9: 0 | AG9: 0
A10: Operating Subsidies | C10: 0.02 | D10: =Operating!D38 -> 0 | E10: =D10*(1+$C$10) -> 0 | F10: =E10*(1+$C$10) -> 0 | G10: 0 | H10: 0 | I10: 0 | J10: 0 | K10: 0 | L10: 0 | M10: 0 | N10: 0 | O10: 0 | P10: 0 | Q10: 0 | R10: =Q10*(1+$C$10) -> 0 | S10: =R10*(1+$C$10) -> 0 | T10: 0 | U10: 0 | V10: 0 | W10: 0 | X10: 0 | Y10: 0 | Z10: 0 | AA10: 0 | AB10: 0 | AC10: 0 | AD10: 0 | AE10: 0 | AF10: 0 | AG10: 0
A11: =Operating!C39 -> Other: (specify) | C11: =C8 -> 0.025 | D11: 0 | E11: 0 | F11: 0 | G11: 0 | H11: 0 | I11: 0 | J11: 0 | K11: 0 | L11: 0 | M11: 0 | N11: 0 | O11: 0 | P11: 0 | Q11: 0 | R11: 0 | S11: 0 | T11: 0 | U11: 0 | V11: 0 | W11: 0 | X11: 0 | Y11: 0 | Z11: 0 | AA11: 0 | AB11: 0 | AC11: 0 | AD11: 0 | AE11: 0 | AF11: 0 | AG11: 0
A12: Gross Potential Income - Housing | D12: =SUM(D5:D11) -> 0 | E12: 0 | F12: 0 | G12: 0 | H12: 0 | I12: 0 | J12: 0 | K12: 0 | L12: 0 | M12: 0 | N12: 0 | O12: 0 | P12: 0 | Q12: 0 | R12: 0 | S12: 0 | T12: 0 | U12: 0 | V12: 0 | W12: 0 | X12: 0 | Y12: 0 | Z12: 0 | AA12: 0 | AB12: 0 | AC12: 0 | AD12: 0 | AE12: 0 | AF12: 0 | AG12: 0
A14: Other Income
A15: Laundry & Vending | C15: 0.025 | D15: =Operating!D40 -> 0 | E15: =D15*(1+$C$15) -> 0 | F15: 0 | G15: 0 | H15: 0 | I15: 0 | J15: 0 | K15: 0 | L15: 0 | M15: 0 | N15: 0 | O15: 0 | P15: 0 | Q15: 0 | R15: =Q15*(1+$C$15) -> 0 | S15: =R15*(1+$C$15) -> 0 | T15: 0 | U15: 0 | V15: 0 | W15: 0 | X15: 0 | Y15: 0 | Z15: 0 | AA15: 0 | AB15: 0 | AC15: 0 | AD15: 0 | AE15: 0 | AF15: 0 | AG15: 0
A16: Other Income | C16: 0.025 | D16: =Operating!D41+Operating!D42 -> 0 | E16: =D16*(1+$C$16) -> 0 | F16: 0 | G16: 0 | H16: 0 | I16: 0 | J16: 0 | K16: 0 | L16: 0 | M16: 0 | N16: 0 | O16: 0 | P16: 0 | Q16: 0 | R16: =Q16*(1+$C$16) -> 0 | S16: =R16*(1+$C$16) -> 0 | T16: 0 | U16: 0 | V16: 0 | W16: 0 | X16: 0 | Y16: 0 | Z16: 0 | AA16: 0 | AB16: 0 | AC16: 0 | AD16: 0 | AE16: 0 | AF16: 0 | AG16: 0
A17: Commercial Income | C17: 0.025 | D17: =Operating!E43 -> 0 | E17: =D17*(1+$C$17) -> 0 | F17: 0 | G17: 0 | H17: 0 | I17: 0 | J17: 0 | K17: 0 | L17: 0 | M17: 0 | N17: 0 | O17: 0 | P17: 0 | Q17: 0 | R17: =Q17*(1+$C$17) -> 0 | S17: =R17*(1+$C$17) -> 0 | T17: 0 | U17: 0 | V17: 0 | W17: 0 | X17: 0 | Y17: 0 | Z17: 0 | AA17: 0 | AB17: 0 | AC17: 0 | AD17: 0 | AE17: 0 | AF17: 0 | AG17: 0
A18: Gross Potential Income - Other | D18: =SUM(D15:D17) -> 0 | E18: 0 | F18: 0 | G18: 0 | H18: 0 | I18: 0 | J18: 0 | K18: 0 | L18: 0 | M18: 0 | N18: 0 | O18: 0 | P18: 0 | Q18: 0 | R18: 0 | S18: 0 | T18: 0 | U18: 0 | V18: 0 | W18: 0 | X18: 0 | Y18: 0 | Z18: 0 | AA18: 0 | AB18: 0 | AC18: 0 | AD18: 0 | AE18: 0 | AF18: 0 | AG18: 0
A20: Gross Potential Income - Total | D20: =D12+D18 -> 0 | E20: 0 | F20: 0 | G20: 0 | H20: 0 | I20: 0 | J20: 0 | K20: 0 | L20: 0 | M20: 0 | N20: 0 | O20: 0 | P20: 0 | Q20: 0 | R20: 0 | S20: 0 | T20: 0 | U20: 0 | V20: 0 | W20: 0 | X20: 0 | Y20: 0 | Z20: 0 | AA20: 0 | AB20: 0 | AC20: 0 | AD20: 0 | AE20: 0 | AF20: 0 | AG20: 0
A22: Vacancy Assumptions
A23: Restricted Units | C23: =Operating!D45 -> 0.05 | D23: =$C23*D5 -> 0 | E23: =$C23*E5 -> 0 | F23: 0 | G23: 0 | H23: 0 | I23: 0 | J23: 0 | K23: 0 | L23: 0 | M23: 0 | N23: 0 | O23: 0 | P23: 0 | Q23: 0 | R23: 0 | S23: 0 | T23: 0 | U23: 0 | V23: 0 | W23: 0 | X23: 0 | Y23: 0 | Z23: 0 | AA23: 0 | AB23: 0 | AC23: 0 | AD23: 0 | AE23: 0 | AF23: 0 | AG23: 0
A24: Unrestricted Units | C24: =Operating!D46 -> 0.05 | D24: =$C24*D6 -> 0 | E24: =$C24*E6 -> 0 | F24: 0 | G24: 0 | H24: 0 | I24: 0 | J24: 0 | K24: 0 | L24: 0 | M24: 0 | N24: 0 | O24: 0 | P24: 0 | Q24: 0 | R24: 0 | S24: 0 | T24: 0 | U24: 0 | V24: 0 | W24: 0 | X24: 0 | Y24: 0 | Z24: 0 | AA24: 0 | AB24: 0 | AC24: 0 | AD24: 0 | AE24: 0 | AF24: 0 | AG24: 0
A25: Tenant Assistance Payments | C25: =Operating!D47 -> 0.05 | D25: =$C25*(D8+D9) -> 0 | E25: =$C25*(E8+E9) -> 0 | F25: 0 | G25: 0 | H25: 0 | I25: 0 | J25: 0 | K25: 0 | L25: 0 | M25: 0 | N25: 0 | O25: 0 | P25: 0 | Q25: 0 | R25: 0 | S25: 0 | T25: 0 | U25: 0 | V25: 0 | W25: 0 | X25: 0 | Y25: 0 | Z25: 0 | AA25: 0 | AB25: 0 | AC25: 0 | AD25: 0 | AE25: 0 | AF25: 0 | AG25: 0
A26: =Operating!C39 -> Other: (specify) | C26: =Operating!D48 -> 0.05 | D26: =$C26*D11 -> 0 | E26: =$C26*E11 -> 0 | F26: 0 | G26: 0 | H26: 0 | I26: 0 | J26: 0 | K26: 0 | L26: 0 | M26: 0 | N26: 0 | O26: 0 | P26: 0 | Q26: 0 | R26: 0 | S26: 0 | T26: 0 | U26: 0 | V26: 0 | W26: 0 | X26: 0 | Y26: 0 | Z26: 0 | AA26: 0 | AB26: 0 | AC26: 0 | AD26: 0 | AE26: 0 | AF26: 0 | AG26: 0
A27: Laundry/Vending/Other Income | C27: =Operating!D49 -> 0.05 | D27: =$C27*(D15+D16) -> 0 | E27: =$C27*(E15+E16) -> 0 | F27: 0 | G27: 0 | H27: 0 | I27: 0 | J27: 0 | K27: 0 | L27: 0 | M27: 0 | N27: 0 | O27: 0 | P27: 0 | Q27: 0 | R27: 0 | S27: 0 | T27: 0 | U27: 0 | V27: 0 | W27: 0 | X27: 0 | Y27: 0 | Z27: 0 | AA27: 0 | AB27: 0 | AC27: 0 | AD27: 0 | AE27: 0 | AF27: 0 | AG27: 0
A28: Commercial Income | C28: =Operating!E50 -> 0.5 | D28: =$C28*D17 -> 0 | E28: =$C28*E17 -> 0 | F28: 0 | G28: 0 | H28: 0 | I28: 0 | J28: 0 | K28: 0 | L28: 0 | M28: 0 | N28: 0 | O28: 0 | P28: 0 | Q28: 0 | R28: 0 | S28: 0 | T28: 0 | U28: 0 | V28: 0 | W28: 0 | X28: 0 | Y28: 0 | Z28: 0 | AA28: 0 | AB28: 0 | AC28: 0 | AD28: 0 | AE28: 0 | AF28: 0 | AG28: 0
A29: Total Vacancy Loss | D29: =SUM(D23:D28) -> 0 | E29: =SUM(E23:E28) -> 0 | F29: 0 | G29: 0 | H29: 0 | I29: 0 | J29: 0 | K29: 0 | L29: 0 | M29: 0 | N29: 0 | O29: 0 | P29: 0 | Q29: 0 | R29: 0 | S29: 0 | T29: 0 | U29: 0 | V29: 0 | W29: 0 | X29: 0 | Y29: 0 | Z29: 0 | AA29: 0 | AB29: 0 | AC29: 0 | AD29: 0 | AE29: 0 | AF29: 0 | AG29: 0
A31: Effective Gross Income | D31: =D20-D29 -> 0 | E31: 0 | F31: 0 | G31: 0 | H31: 0 | I31: 0 | J31: 0 | K31: 0 | L31: 0 | M31: 0 | N31: 0 | O31: 0 | P31: 0 | Q31: 0 | R31: 0 | S31: 0 | T31: 0 | U31: 0 | V31: 0 | W31: 0 | X31: 0 | Y31: 0 | Z31: 0 | AA31: 0 | AB31: 0 | AC31: 0 | AD31: 0 | AE31: 0 | AF31: 0 | AG31: 0
A33: Operating Expenses & Reserve Deposits
A34: Residential Exp. (w/o Real Estate Taxes & Sup. Services) | C34: 0.035 | D34: =Operating!D110-Operating!D100-Operating!D108 -> 0 | E34: =(1+$C$34)*D34 -> 0 | F34: 0 | G34: 0 | H34: 0 | I34: 0 | J34: 0 | K34: 0 | L34: 0 | M34: 0 | N34: 0 | O34: 0 | P34: 0 | Q34: 0 | R34: =(1+$C$34)*Q34 -> 0 | S34: =(1+$C$34)*R34 -> 0 | T34: 0 | U34: 0 | V34: 0 | W34: 0 | X34: 0 | Y34: 0 | Z34: 0 | AA34: 0 | AB34: 0 | AC34: 0 | AD34: 0 | AE34: 0 | AF34: 0 | AG34: 0
A35: Real Estate Taxes | C35: 0.02 | D35: =Operating!D100 -> 0 | E35: =(1+$C$35)*D35 -> 0 | F35: =(1+$C$35)*E35 -> 0 | G35: 0 | H35: 0 | I35: 0 | J35: 0 | K35: 0 | L35: 0 | M35: 0 | N35: 0 | O35: 0 | P35: 0 | Q35: 0 | R35: =(1+$C$35)*Q35 -> 0 | S35: =(1+$C$35)*R35 -> 0 | T35: 0 | U35: 0 | V35: 0 | W35: 0 | X35: 0 | Y35: 0 | Z35: 0 | AA35: 0 | AB35: 0 | AC35: 0 | AD35: 0 | AE35: 0 | AF35: 0 | AG35: 0
A36: Supportive Services Costs | C36: 0.025 | D36: =Operating!D108 -> 0 | E36: =(1+$C$36)*D36 -> 0 | F36: =(1+$C$36)*E36 -> 0 | G36: =(1+$C$36)*F36 -> 0 | H36: 0 | I36: 0 | J36: 0 | K36: 0 | L36: 0 | M36: 0 | N36: 0 | O36: 0 | P36: 0 | Q36: 0 | R36: 0 | S36: 0 | T36: 0 | U36: 0 | V36: 0 | W36: 0 | X36: 0 | Y36: 0 | Z36: 0 | AA36: 0 | AB36: 0 | AC36: 0 | AD36: 0 | AE36: 0 | AF36: 0 | AG36: 0
A37: Replacement Reserve | C37: 0 | D37: =Operating!D112+Operating!E112 -> 0 | E37: =(1+$C$37)*D37 -> 0 | F37: 0 | G37: 0 | H37: 0 | I37: 0 | J37: 0 | K37: 0 | L37: 0 | M37: 0 | N37: 0 | O37: 0 | P37: 0 | Q37: 0 | R37: =(1+$C$37)*Q37 -> 0 | S37: =(1+$C$37)*R37 -> 0 | T37: 0 | U37: 0 | V37: 0 | W37: 0 | X37: 0 | Y37: 0 | Z37: 0 | AA37: 0 | AB37: 0 | AC37: 0 | AD37: 0 | AE37: 0 | AF37: 0 | AG37: 0
A38: Other Reserves | C38: 0 | D38: =Operating!D113+Operating!D114+Operating!D115+Operating!E113+Operating!E114+Operating!E115 -> 0 | E38: =(1+$C$38)*D38 -> 0 | F38: =(1+$C$38)*E38 -> 0 | G38: 0 | H38: 0 | I38: 0 | J38: 0 | K38: 0 | L38: 0 | M38: 0 | N38: 0 | O38: 0 | P38: 0 | Q38: 0 | R38: =(1+$C$38)*Q38 -> 0 | S38: =(1+$C$38)*R38 -> 0 | T38: 0 | U38: 0 | V38: 0 | W38: 0 | X38: 0 | Y38: 0 | Z38: 0 | AA38: 0 | AB38: 0 | AC38: 0 | AD38: 0 | AE38: 0 | AF38: 0 | AG38: 0
A39: Ground Lease | C39: 0.02 | D39: =Operating!D118+Operating!E118 -> 0 | E39: =(1+$C$39)*D39 -> 0 | F39: =(1+$C$39)*E39 -> 0 | G39: 0 | H39: 0 | I39: 0 | J39: 0 | K39: 0 | L39: 0 | M39: 0 | N39: 0 | O39: 0 | P39: 0 | Q39: 0 | R39: =(1+$C$39)*Q39 -> 0 | S39: =(1+$C$39)*R39 -> 0 | T39: 0 | U39: 0 | V39: 0 | W39: 0 | X39: 0 | Y39: 0 | Z39: 0 | AA39: 0 | AB39: 0 | AC39: 0 | AD39: 0 | AE39: 0 | AF39: 0 | AG39: 0
A40: Commercial Expenses | C40: 0.035 | D40: =Operating!E110 -> 0 | E40: =(1+$C$40)*D40 -> 0 | F40: 0 | G40: 0 | H40: 0 | I40: 0 | J40: 0 | K40: 0 | L40: 0 | M40: 0 | N40: 0 | O40: 0 | P40: 0 | Q40: 0 | R40: =(1+$C$40)*Q40 -> 0 | S40: =(1+$C$40)*R40 -> 0 | T40: 0 | U40: 0 | V40: 0 | W40: 0 | X40: 0 | Y40: 0 | Z40: 0 | AA40: 0 | AB40: 0 | AC40: 0 | AD40: 0 | AE40: 0 | AF40: 0 | AG40: 0
A41: Total Expenses & Reserves | D41: =SUM(D34:D40) -> 0 | E41: 0 | F41: 0 | G41: 0 | H41: 0 | I41: 0 | J41: 0 | K41: 0 | L41: 0 | M41: 0 | N41: 0 | O41: 0 | P41: 0 | Q41: 0 | R41: 0 | S41: 0 | T41: 0 | U41: 0 | V41: 0 | W41: 0 | X41: 0 | Y41: 0 | Z41: 0 | AA41: 0 | AB41: 0 | AC41: 0 | AD41: 0 | AE41: 0 | AF41: 0 | AG41: 0
A43: Net Operating Income | D43: =D31-D41 -> 0 | E43: 0 | F43: 0 | G43: 0 | H43: 0 | I43: 0 | J43: 0 | K43: 0 | L43: 0 | M43: 0 | N43: 0 | O43: 0 | P43: 0 | Q43: 0 | R43: 0 | S43: 0 | T43: 0 | U43: 0 | V43: 0 | W43: 0 | X43: 0 | Y43: 0 | Z43: 0 | AA43: 0 | AB43: 0 | AC43: 0 | AD43: 0 | AE43: 0 | AF43: 0 | AG43: 0
A45: Debt Service
A46: 1st Mortgage | D46: =Operating!D123+Operating!E123 -> 0 | E46: =$D$46 -> 0 | F46: 0 | G46: 0 | H46: 0 | I46: 0 | J46: 0 | K46: 0 | L46: 0 | M46: 0 | N46: 0 | O46: 0 | P46: 0 | Q46: 0 | R46: 0 | S46: 0 | T46: 0 | U46: 0 | V46: 0 | W46: 0 | X46: 0 | Y46: 0 | Z46: 0 | AA46: 0 | AB46: 0 | AC46: 0 | AD46: 0 | AE46: 0 | AF46: 0 | AG46: 0
A47: Bridge Loan (repaid from Investor equity) | D47: 0 | E47: 0 | F47: 0 | G47: 0 | H47: 0
A48: 2nd Mortgage | D48: =Operating!D124+Operating!E124 -> 0 | E48: =$D$48 -> 0 | F48: 0 | G48: 0 | H48: 0 | I48: 0 | J48: 0 | K48: 0 | L48: 0 | M48: 0 | N48: 0 | O48: 0 | P48: 0 | Q48: 0 | R48: 0 | S48: 0 | T48: 0 | U48: 0 | V48: 0 | W48: 0 | X48: 0 | Y48: 0 | Z48: 0 | AA48: 0 | AB48: 0 | AC48: 0 | AD48: 0 | AE48: 0 | AF48: 0 | AG48: 0
A49: 3rd Mortgage Debt Service | D49: =Operating!D125+Operating!E125 -> 0 | E49: =$D$49 -> 0 | F49: 0 | G49: 0 | H49: 0 | I49: 0 | J49: 0 | K49: 0 | L49: 0 | M49: 0 | N49: 0 | O49: 0 | P49: 0 | Q49: 0 | R49: 0 | S49: 0 | T49: 0 | U49: 0 | V49: 0 | W49: 0 | X49: 0 | Y49: 0 | Z49: 0 | AA49: 0 | AB49: 0 | AC49: 0 | AD49: 0 | AE49: 0 | AF49: 0 | AG49: 0
A50: HCD HHC Monitoring Fee | C50: 0.03 | D50: =Operating!D126+Operating!E126 -> 0 | E50: =(1+$C$50)*D50 -> 0 | F50: =(1+$C$50)*E50 -> 0 | G50: 0 | H50: 0 | I50: 0 | J50: 0 | K50: 0 | L50: 0 | M50: 0 | N50: 0 | O50: 0 | P50: 0 | Q50: 0 | R50: 0 | S50: 0 | T50: 0 | U50: 0 | V50: 0 | W50: 0 | X50: 0 | Y50: 0 | Z50: 0 | AA50: 0 | AB50: 0 | AC50: 0 | AD50: 0 | AE50: 0 | AF50: 0 | AG50: 0
A51: =Operating!C127 -> Misc. Financial Expenses: (specify) | D51: =Operating!D127+Operating!E127 -> 0 | E51: =$D$51 -> 0 | F51: =$D$51 -> 0 | G51: 0 | H51: 0 | I51: 0 | J51: 0 | K51: 0 | L51: 0 | M51: 0 | N51: 0 | O51: 0 | P51: 0 | Q51: 0 | R51: 0 | S51: 0 | T51: 0 | U51: 0 | V51: 0 | W51: 0 | X51: 0 | Y51: 0 | Z51: 0 | AA51: 0 | AB51: 0 | AC51: 0 | AD51: 0 | AE51: 0 | AF51: 0 | AG51: 0
A52: =Operating!C128 -> Misc. Financial Expenses: (specify) | D52: =Operating!D128+Operating!E128 -> 0 | E52: =$D$52 -> 0 | F52: =$D$52 -> 0 | G52: 0 | H52: 0 | I52: 0 | J52: 0 | K52: 0 | L52: 0 | M52: 0 | N52: 0 | O52: 0 | P52: 0 | Q52: 0 | R52: 0 | S52: 0 | T52: 0 | U52: 0 | V52: 0 | W52: 0 | X52: 0 | Y52: 0 | Z52: 0 | AA52: 0 | AB52: 0 | AC52: 0 | AD52: 0 | AE52: 0 | AF52: 0 | AG52: 0
A53: =Operating!C129 -> Misc. Financial Expenses: (specify) | D53: =Operating!D129+Operating!E129 -> 0 | E53: =$D$53 -> 0 | F53: =$D$53 -> 0 | G53: 0 | H53: 0 | I53: 0 | J53: 0 | K53: 0 | L53: 0 | M53: 0 | N53: 0 | O53: 0 | P53: 0 | Q53: 0 | R53: 0 | S53: 0 | T53: 0 | U53: 0 | V53: 0 | W53: 0 | X53: 0 | Y53: 0 | Z53: 0 | AA53: 0 | AB53: 0 | AC53: 0 | AD53: 0 | AE53: 0 | AF53: 0 | AG53: 0
A54: Total Required Debt Service | D54: =SUM(D46:D53)-D47 -> 0 | E54: =SUM(E46:E53)-E47 -> 0 | F54: 0 | G54: 0 | H54: 0 | I54: 0 | J54: 0 | K54: 0 | L54: 0 | M54: 0 | N54: 0 | O54: 0 | P54: 0 | Q54: 0 | R54: 0 | S54: =SUM(S46,S48,S49,S53) -> 0 | T54: 0 | U54: 0 | V54: 0 | W54: 0 | X54: 0 | Y54: 0 | Z54: 0 | AA54: 0 | AB54: 0 | AC54: 0 | AD54: 0 | AE54: 0 | AF54: 0 | AG54: 0
A57: Cash Flow after all debt service | D57: =D43-D54 -> 0 | E57: 0 | F57: 0 | G57: 0 | H57: 0 | I57: 0 | J57: 0 | K57: 0 | L57: 0 | M57: 0 | N57: 0 | O57: 0 | P57: 0 | Q57: 0 | R57: 0 | S57: 0 | T57: 0 | U57: 0 | V57: 0 | W57: 0 | X57: 0 | Y57: 0 | Z57: 0 | AA57: 0 | AB57: 0 | AC57: 0 | AD57: 0 | AE57: 0 | AF57: 0 | AG57: 0
A59: Debt Service Coverage Ratio (DSCR) | D59: =IF(D54<=0,0,((D43/D54))) -> 0 | E59: =IF(E54<=0,0,((E43/E54))) -> 0 | F59: 0 | G59: 0 | H59: 0 | I59: 0 | J59: 0 | K59: 0 | L59: 0 | M59: 0 | N59: 0 | O59: 0 | P59: 0 | Q59: 0 | R59: 0 | S59: 0 | T59: 0 | U59: 0 | V59: 0 | W59: 0 | X59: 0 | Y59: 0 | Z59: 0 | AA59: 0 | AB59: 0 | AC59: 0 | AD59: 0 | AE59: 0 | AF59: 0 | AG59: 0
A60: Use of Cash Flow After Debt Service - HCD Projects
A61: Asset Mgmt./ Similar Fees | D61: =IF(D57>=D73,D73,MAX(0,D57)) -> 0 | E61: =IF(E57>=E73,E73,MAX(0,E57)) -> 0 | F61: =IF(F57>=F73,F73,MAX(0,F57)) -> 0 | G61: 0 | H61: 0 | I61: 0 | J61: 0 | K61: 0 | L61: 0 | M61: 0 | N61: 0 | O61: 0 | P61: 0 | Q61: 0 | R61: 0 | S61: 0 | T61: 0 | U61: 0 | V61: 0 | W61: 0 | X61: 0 | Y61: 0 | Z61: 0 | AA61: 0 | AB61: 0 | AC61: 0 | AD61: 0 | AE61: 0 | AF61: 0 | AG61: 0
A62: Deferred Developer Fee prior to
A63: Distributions & residual receipt payments | D63: =IF(D57-D61<=$D$76,MAX(0,D57-D61),$D$76) -> 0 | E63: =IF(D74+E57-E61<=$D$76,MAX(0,E57-E61),$D$76-D74) -> 0 | F63: =IF(E74+F57-F61<=$D$76,MAX(0,F57-F61),$D$76-E74) -> 0 | G63: 0 | H63: 0 | I63: 0 | J63: 0 | K63: 0 | L63: 0 | M63: 0 | N63: 0 | O63: 0 | P63: 0 | Q63: 0 | R63: 0 | S63: 0 | T63: 0 | U63: 0 | V63: 0 | W63: 0 | X63: 0 | Y63: 0 | Z63: 0 | AA63: 0 | AB63: 0 | AC63: 0 | AD63: 0 | AE63: 0 | AF63: 0 | AG63: 0
A64: Cash Available for Residual Receipts Loans
A65: and Sponsor Distributions | D65: =MAX(0,D57-D61-D63) -> 0 | E65: =MAX(0,E57-E61-E63) -> 0 | F65: =MAX(0,F57-F61-F63) -> 0 | G65: 0 | H65: 0 | I65: 0 | J65: 0 | K65: 0 | L65: 0 | M65: 0 | N65: 0 | O65: 0 | P65: 0 | Q65: 0 | R65: 0 | S65: 0 | T65: 0 | U65: 0 | V65: 0 | W65: 0 | X65: 0 | Y65: 0 | Z65: 0 | AA65: 0 | AB65: 0 | AC65: 0 | AD65: 0 | AE65: 0 | AF65: 0 | AG65: 0
A66: Sponsor Distributions | C66: 0.5 | D66: =$C66*D65 -> 0 | E66: =+$C66*E65 -> 0 | F66: 0 | G66: 0 | H66: 0 | I66: 0 | J66: 0 | K66: 0 | L66: 0 | M66: 0 | N66: 0 | O66: 0 | P66: 0 | Q66: 0 | R66: 0 | S66: 0 | T66: 0 | U66: 0 | V66: 0 | W66: 0 | X66: 0 | Y66: 0 | Z66: 0 | AA66: 0 | AB66: 0 | AC66: 0 | AD66: 0 | AE66: 0 | AF66: 0 | AG66: 0
A67: HCD Residual Payment | C67: 0.5 | D67: =$C67*D65 -> 0 | E67: =+$C67*E65 -> 0 | F67: 0 | G67: 0 | H67: 0 | I67: 0 | J67: 0 | K67: 0 | L67: 0 | M67: 0 | N67: 0 | O67: 0 | P67: 0 | Q67: 0 | R67: 0 | S67: 0 | T67: 0 | U67: 0 | V67: 0 | W67: 0 | X67: 0 | Y67: 0 | Z67: 0 | AA67: 0 | AB67: 0 | AC67: 0 | AD67: 0 | AE67: 0 | AF67: 0 | AG67: 0
A68: Other Residual Payments | C68: 0 | D68: =$C68*D65 -> 0 | E68: =+$C68*E65 -> 0 | F68: 0 | G68: 0 | H68: 0 | I68: 0 | J68: 0 | K68: 0 | L68: 0 | M68: 0 | N68: 0 | O68: 0 | P68: 0 | Q68: 0 | R68: 0 | S68: 0 | T68: 0 | U68: 0 | V68: 0 | W68: 0 | X68: 0 | Y68: 0 | Z68: 0 | AA68: 0 | AB68: 0 | AC68: 0 | AD68: 0 | AE68: 0 | AF68: 0 | AG68: 0
A69: Other Residual Payments | C69: 0 | D69: =$C69*D65 -> 0 | E69: =+$C69*E65 -> 0 | F69: 0 | G69: 0 | H69: 0 | I69: 0 | J69: 0 | K69: 0 | L69: 0 | M69: 0 | N69: 0 | O69: 0 | P69: 0 | Q69: 0 | R69: 0 | S69: 0 | T69: 0 | U69: 0 | V69: 0 | W69: 0 | X69: 0 | Y69: 0 | Z69: 0 | AA69: 0 | AB69: 0 | AC69: 0 | AD69: 0 | AE69: 0 | AF69: 0 | AG69: 0
A70: Other Residual Payments | C70: 0 | D70: =$C70*D65 -> 0 | E70: =+$C70*E65 -> 0 | F70: 0 | G70: 0 | H70: 0 | I70: 0 | J70: 0 | K70: 0 | L70: 0 | M70: 0 | N70: 0 | O70: 0 | P70: 0 | Q70: 0 | R70: 0 | S70: 0 | T70: 0 | U70: 0 | V70: 0 | W70: 0 | X70: 0 | Y70: 0 | Z70: 0 | AA70: 0 | AB70: 0 | AC70: 0 | AD70: 0 | AE70: 0 | AF70: 0 | AG70: 0
A71: Other Residual Payments | C71: 0 | D71: =$C71*D65 -> 0 | E71: =+$C71*E65 -> 0 | F71: 0 | G71: 0 | H71: 0 | I71: 0 | J71: 0 | K71: 0 | L71: 0 | M71: 0 | N71: 0 | O71: 0 | P71: 0 | Q71: 0 | R71: 0 | S71: 0 | T71: 0 | U71: 0 | V71: 0 | W71: 0 | X71: 0 | Y71: 0 | Z71: 0 | AA71: 0 | AB71: 0 | AC71: 0 | AD71: 0 | AE71: 0 | AF71: 0 | AG71: 0
A73: Max Asset Mgmt/Similar Fees | C73: 0.035 | D73: =Operating!D133 -> 0 | E73: =(1+$C$73)*D73 -> 0 | F73: =(1+$C$73)*E73 -> 0 | G73: 0 | H73: 0 | I73: 0 | J73: 0 | K73: 0 | L73: 0 | M73: 0 | N73: 0 | O73: 0 | P73: 0 | Q73: 0 | R73: =(1+$C$73)*Q73 -> 0 | S73: 0 | T73: 0 | U73: 0 | V73: 0 | W73: 0 | X73: 0 | Y73: 0 | Z73: 0 | AA73: 0 | AB73: 0 | AC73: 0 | AD73: 0 | AE73: 0 | AF73: 0 | AG73: 0
A74: Cumulative paid Deferred Dev. Fee | D74: =+D63 -> 0 | E74: =+D74+E63 -> 0 | F74: 0 | G74: 0 | H74: 0 | I74: 0 | J74: 0 | K74: 0 | L74: 0 | M74: 0 | N74: 0 | O74: 0 | P74: 0 | Q74: 0 | R74: =+Q74+R63 -> 0 | S74: =+R74+S63 -> 0 | T74: 0 | U74: 0 | V74: 0 | W74: 0 | X74: 0 | Y74: 0 | Z74: 0 | AA74: 0 | AB74: 0 | AC74: 0 | AD74: 0 | AE74: 0 | AF74: 0 | AG74: 0
A75: Total Deferred Developer Fee budgeted for payment prior
A76: to distributions and residual receipt payments | D76: 0
A78: COSR ANALYSIS - if applicable
A79: Net Operating Income (NOI) | D79: =D43 -> 0 | E79: =E43 -> 0 | F79: 0 | G79: 0 | H79: 0 | I79: 0 | J79: 0 | K79: 0 | L79: 0 | M79: 0 | N79: 0 | O79: 0 | P79: 0 | Q79: 0 | R79: 0 | S79: 0 | T79: 0 | U79: 0 | V79: 0 | W79: 0
A80: Cash Flow after all debt service | D80: =D57 -> 0 | E80: 0 | F80: 0 | G80: 0 | H80: 0 | I80: 0 | J80: 0 | K80: 0 | L80: 0 | M80: 0 | N80: 0 | O80: 0 | P80: 0 | Q80: 0 | R80: 0 | S80: 0 | T80: 0 | U80: 0 | V80: 0 | W80: 0
A81: COSR Draw (or other) | D81: =MIN(D86,'COSR Calculation'!F46) -> 0 | E81: =MIN(E86,'COSR Calculation'!G46) -> 0 | F81: =MIN(F86,'COSR Calculation'!H46) -> 0 | G81: =MIN(G86,'COSR Calculation'!I46) -> 0 | H81: =MIN(H86,'COSR Calculation'!J46) -> 0 | I81: =MIN(I86,'COSR Calculation'!K46) -> 0 | J81: =MIN(J86,'COSR Calculation'!L46) -> 0 | K81: =MIN(K86,'COSR Calculation'!M46) -> 0 | L81: =MIN(L86,'COSR Calculation'!N46) -> 0 | M81: =MIN(M86,'COSR Calculation'!O46) -> 0 | N81: =MIN(N86,'COSR Calculation'!P46) -> 0 | O81: =MIN(O86,'COSR Calculation'!Q46) -> 0 | P81: =MIN(P86,'COSR Calculation'!R46) -> 0 | Q81: =MIN(Q86,'COSR Calculation'!S46) -> 0 | R81: =MIN(R86,'COSR Calculation'!T46) -> 0 | S81: =MIN(S86,'COSR Calculation'!U46) -> 0 | T81: =MIN(T86,'COSR Calculation'!V46) -> 0 | U81: =MIN(U86,'COSR Calculation'!W46) -> 0 | V81: =MIN(V86,'COSR Calculation'!X46) -> 0 | W81: =MIN(W86,'COSR Calculation'!Y46) -> 0
A82: Cash Flow after COSR | D82: =D80+D81 -> 0 | E82: =E80+E81 -> 0 | F82: 0 | G82: 0 | H82: 0 | I82: 0 | J82: 0 | K82: 0 | L82: 0 | M82: 0 | N82: 0 | O82: 0 | P82: 0 | Q82: 0 | R82: 0 | S82: 0 | T82: 0 | U82: 0 | V82: 0 | W82: 0
A83: Net Operating Income after COSR | D83: =D79+D81 -> 0 | E83: 0 | F83: 0 | G83: 0 | H83: 0 | I83: 0 | J83: 0 | K83: 0 | L83: 0 | M83: 0 | N83: 0 | O83: 0 | P83: 0 | Q83: 0 | R83: 0 | S83: 0 | T83: 0 | U83: 0 | V83: 0 | W83: 0
A84: DSCR with COSR | D84: =IF(D54<=0,0,((D79+D81)/D54)) -> 0 | E84: =IF(E54<=0,0,((E79+E81)/E54)) -> 0 | F84: 0 | G84: 0 | H84: 0 | I84: 0 | J84: 0 | K84: 0 | L84: 0 | M84: 0 | N84: 0 | O84: 0 | P84: 0 | Q84: 0 | R84: 0 | S84: 0 | T84: 0 | U84: 0 | V84: 0 | W84: 0
D85: =D54*1.2 -> 0 | E85: =E54*1.1 -> 0 | F85: =F54*1.1 -> 0 | G85: 0 | H85: 0 | I85: 0 | J85: 0 | K85: 0 | L85: 0 | M85: 0 | N85: 0 | O85: 0 | P85: 0 | Q85: 0 | R85: 0 | S85: 0 | T85: 0 | U85: 0 | V85: 0 | W85: 0
D86: =IF(D85-D79<0,0,D85-D79) -> 0 | E86: =IF(E85-E79<0,0,E85-E79) -> 0 | F86: 0 | G86: 0 | H86: 0 | I86: 0 | J86: 0 | K86: 0 | L86: 0 | M86: 0 | N86: 0 | O86: 0 | P86: 0 | Q86: 0 | R86: 0 | S86: 0 | T86: 0 | U86: 0 | V86: 0 | W86: 0

Sheet COSR Calculation
A1: HHC Article 1 Cash Flow (CF) for COSR | T1: ='Proposed Project'!AJ1 -> 2022-02-11
A2: Total Number of Manager Units: | C2: ='Max Funds and Unit Mix'!AB31 -> 0 | R2: 4
A3: Total HHC Assisted Units: | C3: ='Max Funds and Unit Mix'!G31 -> 0 | D3: =IF('Proposed Project'!$AK$7="","",IF('Proposed Project'!$AK$7="Yes","Rural Area","Metropolitan Area")) ->  | F3: 0 | I3: 1 | L3: 2 | O3: 3 | R3: 5
A4: Total Units: | C4: ='Max Funds and Unit Mix'!E31 -> 0 | D4: AMI Level | E4: Loan Limit 0 Bedroom | F4: 0 Bedroom Units | G4: Total Loan 0 Bedroom | H4: Loan Limit 1 Bedroom | I4: 1 Bedroom Units | J4: Total Loan 1 Bedroom | K4: Loan Limit 2 Bedroom | L4: 2 Bedroom Units | M4: Total Loan 2 Bedroom | N4: Loan Limit 3 Bedroom | O4: 3 Bedroom Units | P4: Total Loan 3 Bedroom | Q4: Loan Limit 4-5 Bedroom | R4: 4-5 Bedroom Units | S4: Total Loan 4-5 Bedroom
A5: Max HHC Assist. Units §102(e)(2) | C5: =IF(C4>20,ROUNDDOWN(C4*0.49,0),C4) -> 0
A6: COSR Per Unit Total §103(a)(5) | C6: =T10 -> 0 | D6: 30% AMI | E6: =IF($D$3="","",IF($D$3="Rural Area",320000,400000)) ->  | F6: =SUMIFS('Max Funds and Unit Mix'!$G$5:$H$30,'Max Funds and Unit Mix'!$A$5:$B$30,$F$3,'Max Funds and Unit Mix'!$C$5:$D$30,D6) -> 0 | G6: =IF(E6="","",E6*F6) ->  | H6: =IF($D$3="","",IF($D$3="Rural Area",360000,450000)) ->  | I6: =SUMIFS('Max Funds and Unit Mix'!$G$5:$H$30,'Max Funds and Unit Mix'!$A$5:$B$30,$I$3,'Max Funds and Unit Mix'!$C$5:$D$30,D6) -> 0 | J6: =IF(H6="","",H6*I6) ->  | K6: =IF($D$3="","",IF($D$3="Rural Area",400000,500000)) ->  | L6: =SUMIFS('Max Funds and Unit Mix'!$G$5:$H$30,'Max Funds and Unit Mix'!$A$5:$B$30,$L$3,'Max Funds and Unit Mix'!$C$5:$D$30,D6) -> 0 | M6: =IF(K6="","",K6*L6) ->  | N6: =IF($D$3="","",IF($D$3="Rural Area",432000,540000)) ->  | O6: =SUMIFS('Max Funds and Unit Mix'!$G$5:$H$30,'Max Funds and Unit Mix'!$A$5:$B$30,$O$3,'Max Funds and Unit Mix'!$C$5:$D$30,D6) -> 0 | P6: =IF(N6="","",N6*O6) ->  | Q6: =IF($D$3="","",IF($D$3="Rural Area",464000,580000)) ->  | R6: =SUMIFS('Max Funds and Unit Mix'!$G$5:$H$30,'Max Funds and Unit Mix'!$A$5:$B$30,$R$2,'Max Funds and Unit Mix'!$C$5:$D$30,D6)+SUMIFS('Max Funds and Unit Mix'!$G$5:$H$30,'Max Funds and Unit Mix'!$A$5:$B$30,$R$3,'Max Funds and Unit Mix'!$C$5:$D$30,D6) -> 0 | S6: =IF(Q6="","",Q6*R6) -> 
A7: COSR CF Total §108(b) | C7: =-SUMIF(F41:T41,"<0") -> 0 | D7: 25% AMI | E7: =IF($D$3="","",IF($D$3="Rural Area",320000,400000)) ->  | F7: =SUMIFS('Max Funds and Unit Mix'!$G$5:$H$30,'Max Funds and Unit Mix'!$A$5:$B$30,$H$3,'Max Funds and Unit Mix'!$C$5:$D$30,D7) -> 0 | G7: =IF(E7="","",E7*F7) ->  | H7: =IF($D$3="","",IF($D$3="Rural Area",360000,450000)) ->  | I7: =SUMIFS('Max Funds and Unit Mix'!$G$5:$H$30,'Max Funds and Unit Mix'!$A$5:$B$30,$I$3,'Max Funds and Unit Mix'!$C$5:$D$30,D7) -> 0 | J7: =IF(H7="","",H7*I7) ->  | K7: =IF($D$3="","",IF($D$3="Rural Area",400000,500000)) ->  | L7: =SUMIFS('Max Funds and Unit Mix'!$G$5:$H$30,'Max Funds and Unit Mix'!$A$5:$B$30,$L$3,'Max Funds and Unit Mix'!$C$5:$D$30,D7) -> 0 | M7: =IF(K7="","",K7*L7) ->  | N7: =IF($D$3="","",IF($D$3="Rural Area",432000,540000)) ->  | O7: =SUMIFS('Max Funds and Unit Mix'!$G$5:$H$30,'Max Funds and Unit Mix'!$A$5:$B$30,$O$3,'Max Funds and Unit Mix'!$C$5:$D$30,D7) -> 0 | P7: =IF(N7="","",N7*O7) ->  | Q7: =IF($D$3="","",IF($D$3="Rural Area",464000,580000)) ->  | R7: =SUMIFS('Max Funds and Unit Mix'!$G$5:$H$30,'Max Funds and Unit Mix'!$A$5:$B$30,$R$2,'Max Funds and Unit Mix'!$C$5:$D$30,D7)+SUMIFS('Max Funds and Unit Mix'!$G$5:$H$30,'Max Funds and Unit Mix'!$A$5:$B$30,$R$3,'Max Funds and Unit Mix'!$C$5:$D$30,D7) -> 0 | S7: =IF(Q7="","",Q7*R7) -> 
A8: COSR (lesser of Per Unit or CF) | C8: =MIN(C6,C7) -> 0 | D8: 20% AMI | E8: =IF($D$3="","",IF($D$3="Rural Area",320000,400000)) ->  | F8: =SUMIFS('Max Funds and Unit Mix'!$G$5:$H$30,'Max Funds and Unit Mix'!$A$5:$B$30,$H$3,'Max Funds and Unit Mix'!$C$5:$D$30,D8) -> 0 | G8: =IF(E8="","",E8*F8) ->  | H8: =IF($D$3="","",IF($D$3="Rural Area",360000,450000)) ->  | I8: =SUMIFS('Max Funds and Unit Mix'!$G$5:$H$30,'Max Funds and Unit Mix'!$A$5:$B$30,$I$3,'Max Funds and Unit Mix'!$C$5:$D$30,D8) -> 0 | J8: =IF(H8="","",H8*I8) ->  | K8: =IF($D$3="","",IF($D$3="Rural Area",400000,500000)) ->  | L8: =SUMIFS('Max Funds and Unit Mix'!$G$5:$H$30,'Max Funds and Unit Mix'!$A$5:$B$30,$L$3,'Max Funds and Unit Mix'!$C$5:$D$30,D8) -> 0 | M8: =IF(K8="","",K8*L8) ->  | N8: =IF($D$3="","",IF($D$3="Rural Area",432000,540000)) ->  | O8: =SUMIFS('Max Funds and Unit Mix'!$G$5:$H$30,'Max Funds and Unit Mix'!$A$5:$B$30,$O$3,'Max Funds and Unit Mix'!$C$5:$D$30,D8) -> 0 | P8: =IF(N8="","",N8*O8) ->  | Q8: =IF($D$3="","",IF($D$3="Rural Area",464000,580000)) ->  | R8: =SUMIFS('Max Funds and Unit Mix'!$G$5:$H$30,'Max Funds and Unit Mix'!$A$5:$B$30,$R$2,'Max Funds and Unit Mix'!$C$5:$D$30,D8)+SUMIFS('Max Funds and Unit Mix'!$G$5:$H$30,'Max Funds and Unit Mix'!$A$5:$B$30,$R$3,'Max Funds and Unit Mix'!$C$5:$D$30,D8) -> 0 | S8: =IF(Q8="","",Q8*R8) -> 
A9: COSR 5% Max §108(e) | C9: =MIN(C6,C8)*0.05 -> 0 | D9: 15% AMI | E9: =IF($D$3="","",IF($D$3="Rural Area",320000,400000)) ->  | F9: =SUMIFS('Max Funds and Unit Mix'!$G$5:$H$30,'Max Funds and Unit Mix'!$A$5:$B$30,$H$3,'Max Funds and Unit Mix'!$C$5:$D$30,D9) -> 0 | G9: =IF(E9="","",E9*F9) ->  | H9: =IF($D$3="","",IF($D$3="Rural Area",360000,450000)) ->  | I9: =SUMIFS('Max Funds and Unit Mix'!$G$5:$H$30,'Max Funds and Unit Mix'!$A$5:$B$30,$I$3,'Max Funds and Unit Mix'!$C$5:$D$30,D9) -> 0 | J9: =IF(H9="","",H9*I9) ->  | K9: =IF($D$3="","",IF($D$3="Rural Area",400000,500000)) ->  | L9: =SUMIFS('Max Funds and Unit Mix'!$G$5:$H$30,'Max Funds and Unit Mix'!$A$5:$B$30,$L$3,'Max Funds and Unit Mix'!$C$5:$D$30,D9) -> 0 | M9: =IF(K9="","",K9*L9) ->  | N9: =IF($D$3="","",IF($D$3="Rural Area",432000,540000)) ->  | O9: =SUMIFS('Max Funds and Unit Mix'!$G$5:$H$30,'Max Funds and Unit Mix'!$A$5:$B$30,$O$3,'Max Funds and Unit Mix'!$C$5:$D$30,D9) -> 0 | P9: =IF(N9="","",N9*O9) ->  | Q9: =IF($D$3="","",IF($D$3="Rural Area",464000,580000)) ->  | R9: =SUMIFS('Max Funds and Unit Mix'!$G$5:$H$30,'Max Funds and Unit Mix'!$A$5:$B$30,$R$2,'Max Funds and Unit Mix'!$C$5:$D$30,D9)+SUMIFS('Max Funds and Unit Mix'!$G$5:$H$30,'Max Funds and Unit Mix'!$A$5:$B$30,$R$3,'Max Funds and Unit Mix'!$C$5:$D$30,D9) -> 0 | S9: =IF(Q9="","",Q9*R9) ->  | T9: Total
A10: COSR 7% Max §108(e) | C10: =MIN(C6,C8)*0.07 -> 0 | D10: =SUM(F6:F9)+SUM(I6:I9)+SUM(L6:L9)+SUM(O6:O9)+SUM(R6:R9) -> 0 | E10: Efficiency: | F10: =SUM(F6:F9) -> 0 | G10: =SUM(G6:G9) -> 0 | H10: 1 Bedroom: | I10: =SUM(I6:I9) -> 0 | J10: =SUM(J6:J9) -> 0 | K10: 2 Bedroom: | L10: =SUM(L6:L9) -> 0 | M10: =SUM(M6:M9) -> 0 | N10: 3 Bedroom: | O10: =SUM(O6:O9) -> 0 | P10: =SUM(P6:P9) -> 0 | Q10: 4+ Bedrm: | R10: =SUM(R6:R9) -> 0 | S10: =SUM(S6:S9) -> 0 | T10: =G10+J10+M10+P10+S10 -> 0
A11: INCOME FROM HOUSING UNITS | C11: Project Amount | D11: Proration | E11: Inflation | F11: Year 1 | G11: Year 2 | H11: Year 3 | I11: Year 4 | J11: Year 5 | K11: Year 6 | L11: Year 7 | M11: Year 8 | N11: Year 9 | O11: Year 10 | P11: Year 11 | Q11: Year 12 | R11: Year 13 | S11: Year 14 | T11: Year 15
A12: ="HHC Assisted Units - "&'Cash Flow'!I3 -> HHC Assisted Units - Restricted Rents | D12: =IF($C$4=0,0,$C$3/($C$4-$C$2)) -> 0 | E12: 0.025 | F12: =IF('Cash Flow'!K3=1,'Max Funds and Unit Mix'!AS32,'Max Funds and Unit Mix'!AS33) -> 0 | G12: =F12*(1+$E12) -> 0 | H12: 0 | I12: 0 | J12: 0 | K12: 0 | L12: 0 | M12: 0 | N12: 0 | O12: 0 | P12: 0 | Q12: 0 | R12: 0 | S12: 0 | T12: 0
A13: Tenant Assistance Payments
A14: Program: | C14: =Operating!D36 -> 0 | D14: =$D$12 -> 0 | E14: 0.025 | F14: =IF(C14=0,0,C14*D14) -> 0 | G14: =F14*(1+$E14) -> 0 | H14: 0 | I14: 0 | J14: 0 | K14: 0 | L14: 0 | M14: 0 | N14: 0 | O14: 0 | P14: 0 | Q14: 0 | R14: 0 | S14: 0 | T14: 0
A15: Program: | C15: =Operating!D37 -> 0 | D15: =$D$12 -> 0 | E15: 0.025 | F15: =IF(C15=0,0,C15*D15) -> 0 | G15: =F15*(1+$E15) -> 0 | H15: 0 | I15: 0 | J15: 0 | K15: 0 | L15: 0 | M15: 0 | N15: 0 | O15: 0 | P15: 0 | Q15: 0 | R15: 0 | S15: 0 | T15: 0
A16: Operating Subsidies | C16: =Operating!D38 -> 0 | D16: =$D$12 -> 0 | E16: 0.025 | F16: =IF(C16=0,0,C16*D16) -> 0 | G16: =F16*(1+$E16) -> 0 | H16: 0 | I16: 0 | J16: 0 | K16: 0 | L16: 0 | M16: 0 | N16: 0 | O16: 0 | P16: 0 | Q16: 0 | R16: 0 | S16: 0 | T16: 0
A17: Other: (specify) | C17: =Operating!D39 -> 0 | D17: =$D$12 -> 0 | E17: 0.025 | F17: =IF(C17=0,0,C17*D17) -> 0 | G17: =F17*(1+$E17) -> 0 | H17: 0 | I17: 0 | J17: 0 | K17: 0 | L17: 0 | M17: 0 | N17: 0 | O17: 0 | P17: 0 | Q17: 0 | R17: 0 | S17: 0 | T17: 0
A18: GROSS POTENTIAL INCOME - HOUSING | F18: =SUM(F12:F17) -> 0 | G18: 0 | H18: 0 | I18: 0 | J18: 0 | K18: 0 | L18: 0 | M18: 0 | N18: 0 | O18: 0 | P18: 0 | Q18: 0 | R18: 0 | S18: 0 | T18: 0
A20: OTHER INCOME | C20: Project Amount | D20: Proration | E20: Inflation
A21: Laundry & Vending | C21: =Operating!D40 -> 0 | D21: =$D$12 -> 0 | E21: 0.025 | F21: =IF(C21=0,0,C21*D21) -> 0 | G21: =F21*(1+$E21) -> 0 | H21: 0 | I21: 0 | J21: 0 | K21: 0 | L21: 0 | M21: 0 | N21: 0 | O21: 0 | P21: 0 | Q21: 0 | R21: 0 | S21: 0 | T21: 0
A22: Other Income | C22: =Operating!D41+Operating!D42 -> 0 | D22: =$D$12 -> 0 | E22: 0.025 | F22: =IF(C22=0,0,C22*D22) -> 0 | G22: =F22*(1+$E22) -> 0 | H22: 0 | I22: 0 | J22: 0 | K22: 0 | L22: 0 | M22: 0 | N22: 0 | O22: 0 | P22: 0 | Q22: 0 | R22: 0 | S22: 0 | T22: 0
A23: GROSS POTENTIAL INCOME - OTHER | F23: =SUM(F21:F22) -> 0 | G23: 0 | H23: 0 | I23: 0 | J23: 0 | K23: 0 | L23: 0 | M23: 0 | N23: 0 | O23: 0 | P23: 0 | Q23: 0 | R23: 0 | S23: 0 | T23: 0
A24: GROSS POTENTIAL INCOME - TOTAL | F24: =F18+F23 -> 0 | G24: 0 | H24: 0 | I24: 0 | J24: 0 | K24: 0 | L24: 0 | M24: 0 | N24: 0 | O24: 0 | P24: 0 | Q24: 0 | R24: 0 | S24: 0 | T24: 0
A26: VACANCY ASSUMPTIONS
A27: HHC Assisted Units vacancy rate | F27: 0.1 | G27: 0.1 | H27: 0.1 | I27: 0.1 | J27: 0.1 | K27: 0.1 | L27: 0.1 | M27: 0.1 | N27: 0.1 | O27: 0.1 | P27: 0.1 | Q27: 0.1 | R27: 0.1 | S27: 0.1 | T27: 0.1
A28: HHC Assisted Units | F28: =F12*F27 -> 0 | G28: 0 | H28: 0 | I28: 0 | J28: 0 | K28: 0 | L28: 0 | M28: 0 | N28: 0 | O28: 0 | P28: 0 | Q28: 0 | R28: 0 | S28: 0 | T28: 0
A29: Tenant Assistance Payments | E29: 0.05 | F29: =$E$29*(F14+F15) -> 0 | G29: =$E$29*(G14+G15) -> 0 | H29: 0 | I29: 0 | J29: 0 | K29: 0 | L29: 0 | M29: 0 | N29: 0 | O29: 0 | P29: 0 | Q29: 0 | R29: 0 | S29: 0 | T29: 0
A30: =A17 -> Other: (specify) | E30: 0.05 | F30: =$E30*F17 -> 0 | G30: =$E30*G17 -> 0 | H30: 0 | I30: 0 | J30: 0 | K30: 0 | L30: 0 | M30: 0 | N30: 0 | O30: 0 | P30: 0 | Q30: 0 | R30: 0 | S30: 0 | T30: 0
A31: Laundry, Vending & Other Income | E31: 0.05 | F31: =$E31*(F21+F22) -> 0 | G31: =$E31*(G21+G22) -> 0 | H31: 0 | I31: 0 | J31: 0 | K31: 0 | L31: 0 | M31: 0 | N31: 0 | O31: 0 | P31: 0 | Q31: 0 | R31: 0 | S31: 0 | T31: 0
A32: TOTAL VACANCY LOSS | F32: =SUM(F28:F31) -> 0 | G32: 0 | H32: 0 | I32: 0 | J32: 0 | K32: 0 | L32: 0 | M32: 0 | N32: 0 | O32: 0 | P32: 0 | Q32: 0 | R32: 0 | S32: 0 | T32: 0
A33: EFFECTIVE GROSS INCOME | F33: =F24-F32 -> 0 | G33: 0 | H33: 0 | I33: 0 | J33: 0 | K33: 0 | L33: 0 | M33: 0 | N33: 0 | O33: 0 | P33: 0 | Q33: 0 | R33: 0 | S33: 0 | T33: 0
A35: OP. EXP. & RESERVE DEPOSITS | C35: Project Amount | D35: Proration | E35: Inflation
A36: Residential Expenses (w/o RE Taxes & Supportive Services Costs) | C36: =Operating!D110-Operating!D92-Operating!D108 -> 0 | D36: =$D$12 -> 0 | E36: 0.035 | F36: =IF(C36=0,0,C36*D36) -> 0 | G36: =F36*(1+$E36) -> 0 | H36: 0 | I36: 0 | J36: 0 | K36: 0 | L36: 0 | M36: 0 | N36: 0 | O36: 0 | P36: 0 | Q36: 0 | R36: 0 | S36: 0 | T36: 0
A37: Real Estate Taxes | C37: =Operating!D92 -> 0 | D37: =$D$12 -> 0 | E37: 0.02 | F37: =IF(C37=0,0,C37*D37) -> 0 | G37: =F37*(1+$E37) -> 0 | H37: 0 | I37: 0 | J37: 0 | K37: 0 | L37: 0 | M37: 0 | N37: 0 | O37: 0 | P37: 0 | Q37: 0 | R37: 0 | S37: 0 | T37: 0
A38: HCD Required Replacement Reserve Deposits | C38: =Operating!D112 -> 0 | D38: =$D$12 -> 0 | E38: 0 | F38: =IF(C38=0,0,C38*D38) -> 0 | G38: =F38*(1+$E38) -> 0 | H38: 0 | I38: 0 | J38: 0 | K38: 0 | L38: 0 | M38: 0 | N38: 0 | O38: 0 | P38: 0 | Q38: 0 | R38: 0 | S38: 0 | T38: 0
A39: HCD Required Other Reserve Deposits | C39: =Operating!D113+Operating!D114+Operating!D115 -> 0 | D39: =$D$12 -> 0 | E39: 0 | F39: =IF(D39=0,0,C39*D39) -> 0 | G39: =F39*(1+$E39) -> 0 | H39: 0 | I39: 0 | J39: 0 | K39: 0 | L39: 0 | M39: 0 | N39: 0 | O39: 0 | P39: 0 | Q39: 0 | R39: 0 | S39: 0 | T39: 0
A40: TOTAL OPERATING EXPENSES & RESERVES | F40: =SUM(F36:F39) -> 0 | G40: 0 | H40: 0 | I40: 0 | J40: 0 | K40: 0 | L40: 0 | M40: 0 | N40: 0 | O40: 0 | P40: 0 | Q40: 0 | R40: 0 | S40: 0 | T40: 0
A41: HHC NET OPERATING INCOME - CASH FLOW | F41: =F33-F40 -> 0 | G41: =G33-G40 -> 0 | H41: 0 | I41: 0 | J41: 0 | K41: 0 | L41: 0 | M41: 0 | N41: 0 | O41: 0 | P41: 0 | Q41: 0 | R41: 0 | S41: 0 | T41: 0
A42: HHC CASH FLOW
A43: HHC - COSR DISTRIBUTIONS (5% max per year) | F43: =IF(F41<0,MIN($C$9,-F41),0) -> 0 | G43: =IF(G41<0,MIN($C$9,-G41),0) -> 0 | H43: 0 | I43: 0 | J43: 0 | K43: 0 | L43: 0 | M43: 0 | N43: 0 | O43: 0 | P43: 0 | Q43: 0 | R43: 0 | S43: 0 | T43: 0
A44: COSR distributions cumulative | F44: =F43 -> 0 | G44: =F44+G43 -> 0 | H44: 0 | I44: 0 | J44: 0 | K44: 0 | L44: 0 | M44: 0 | N44: 0 | O44: 0 | P44: 0 | Q44: 0 | R44: 0 | S44: 0 | T44: 0
A45: Cash Flow with COSR distribution | F45: =F41+F43 -> 0 | G45: 0 | H45: 0 | I45: 0 | J45: 0 | K45: 0 | L45: 0 | M45: 0 | N45: 0 | O45: 0 | P45: 0 | Q45: 0 | R45: 0 | S45: 0 | T45: 0
A46: HHC - COSR DISTRIBUTIONS (7% max per year) | F46: =IF(F41<0,MIN($C$10,-F41),0) -> 0 | G46: 0 | H46: 0 | I46: 0 | J46: 0 | K46: 0 | L46: 0 | M46: 0 | N46: 0 | O46: 0 | P46: 0 | Q46: 0 | R46: 0 | S46: 0 | T46: 0
A47: COSR distributions cumulative | F47: =F46 -> 0 | G47: =F47+G46 -> 0 | H47: 0 | I47: 0 | J47: 0 | K47: 0 | L47: 0 | M47: 0 | N47: 0 | O47: 0 | P47: 0 | Q47: 0 | R47: 0 | S47: 0 | T47: 0
A48: Cash Flow with COSR distribution | F48: =F41+F46 -> 0 | G48: 0 | H48: 0 | I48: 0 | J48: 0 | K48: 0 | L48: 0 | M48: 0 | N48: 0 | O48: 0 | P48: 0 | Q48: 0 | R48: 0 | S48: 0 | T48: 0
A49: Proration % Explanation and Comments

Sheet Selection Criteria
A1: Application Selection Criteria §111 (150 Points Max) | AJ1: ='Proposed Project'!AJ1 -> 2022-02-11
A2: Total Self Score (must meet all minimum score requirements) | AK2: =IF(OR(AK3<18,AK55<10,AK100<15),0,AK3+AK52+AK55+AK75+AK86+AK100+AK111+AK113) -> 0
A3: Development Team Experience, §111(a) 35 Points Max - must score a minimum of 18 points | AK3: =IF(AK4+AK13+AK26+AK39<18,0,AK4+AK13+AK26+AK39) -> 0
A4: Developer Experience §111(a)(1) - Applications will be scored based on the number of affordable rental housing developments completed by the project developer over the past five years, including supportive housing Projects completed in the last three years serving persons similar to the Target Population. Applicant should address whether these projects were completed timely and within budget. Delays and cost overruns must be explained. - 10 points max | AK4: =MIN(SUM(AK7:AL11),10) -> 0
A5: Enter the Name of the Entity Qualifying for Experience:
A6: Project Name and Address | P6: Housing Type | W6: Served persons similar to Target Pop. | AA6: Completed timely & within budget | AG6: Date Completed | AK6: Points
A7: 1 | AK7: =IF(AND(P7="Affordable Rental Housing Development",AA7="yes",AG7>=$AM$7),2,IF(AND(P7="Supportive Housing Project",W7="Yes",AA7="yes",AG7>=$AM$8),2,0)) -> 0 | AM7: ='HHC Cover Page'!A47-(365*5) -> 2017-03-02
A8: 2 | AK8: =IF(AND(P8="Affordable Rental Housing Development",AA8="yes",AG8>=$AM$7),2,IF(AND(P8="Supportive Housing Project",W8="Yes",AA8="yes",AG8>=$AM$8),2,0)) -> 0 | AM8: ='HHC Cover Page'!A47-(365*3) -> 2019-03-02
A9: 3 | AK9: =IF(AND(P9="Affordable Rental Housing Development",AA9="yes",AG9>=$AM$7),2,IF(AND(P9="Supportive Housing Project",W9="Yes",AA9="yes",AG9>=$AM$8),2,0)) -> 0
A10: 4 | AK10: =IF(AND(P10="Affordable Rental Housing Development",AA10="yes",AG10>=$AM$7),2,IF(AND(P10="Supportive Housing Project",W10="Yes",AA10="yes",AG10>=$AM$8),2,0)) -> 0
A11: 5 | AK11: =IF(AND(P11="Affordable Rental Housing Development",AA11="yes",AG11>=$AM$7),2,IF(AND(P11="Supportive Housing Project",W11="Yes",AA11="yes",AG11>=$AM$8),2,0)) -> 0
A12: If applicable, explain delays and cost overruns
A13: Applicant Ownership and Operations Experience §111(a)(2) - experience (under a long-term master lease or similar arrangement) owning or operating supportive and/or affordable rental housing developments. - 5 points max | AK13: =MIN(SUM(AK16:AL25),5) -> 0
A14: Enter the Name of the Entity Qualifying for Experience:
A15: Project Name and Address | P15: Housing Type | W15: Agency Restricting Occupancy | AK15: Points
A16: 1 | AK16: =IF(P16="Affordable Rental Housing Development",0.5,IF(P16="Supportive Housing Project",1,0)) -> 0
A17: 2 | AK17: 0
A18: 3 | AK18: 0
A19: 4 | AK19: 0
A20: 5 | AK20: 0
A21: 6 | AK21: 0
A22: 7 | AK22: 0
A23: 8 | AK23: 0
A24: 9 | AK24: 0
A25: 10 | AK25: 0
A26: Property Manager Experience §111(a)(3) - number of affordable and Supportive housing developments managed by the designated property management agent at the time of application. - 5 points max | AK26: =MIN(SUM(AK28:AL38),5) -> 0
B27: Project Name and Address | P27: Housing Type | V27: Project Owner | AE27: Project has operated for at least two years with units restricted to people experiencing homelessness. | AK27: Points
A28: 1 | AK28: =IF(P28="Affordable Rental Housing Development",0.5,IF(AND(P28="Supportive Housing Project",AE28="yes"),1,0)) -> 0
A29: 2 | AK29: 0
A30: 3 | AK30: 0
A31: 4 | AK31: 0
A32: 5 | AK32: 0
A33: 6 | AK33: 0
A34: 7 | AK34: 0
A35: 8 | AK35: 0
A36: 9 | AK36: 0
A37: 10 | AK37: 0
A38: 11 | AK38: 0
A39: Lead Service Provider Experience §111(a)(4)(a) & (b) - experience in the last five years providing comprehensive case management and tenancy support to people experiencing homelessness, and for demonstrated expertise working with the Target Population - 15 points max | AK39: =MIN(15,AK41+AK42+AK43+AK44+AK48+AK49) -> 0
A40: Lead Service Provider Name:
A41: (1) Years of experience in permanent Supportive housing - 3 points max | AK41: =IF(AA41="One to two years",1,IF(AA41="Three to four years",2,IF(AA41="Five or more years",3,0))) -> 0
A42: (2) Number of projects or contracts in permanent Supportive housing - 3 points max | AK42: =IF(AA42="One to two projects",1,IF(AA42="Three to four projects",2,IF(AA42="Five or more projects",3,0))) -> 0
A43: (3) Years of experience serving the Target Population - 3 points max | AK43: =IF(AA43="One to two years",1,IF(AA43="Three to four years",2,IF(AA43="Five or more years",3,0))) -> 0
A44: (4) Experience providing comprehensive case management, where members of the Target Population were at least 20 percent of the LSP’s clients during the years for which points are sought in any of the following. To receive points under subsection, the Lead Service Provider must have current staff expertise AND organizational experience: (i)Connecting members of the Target Population and/or Homeless individuals with community-based health care services, including linkage to primary care services and behavioral health care; and (ii) Staff expertise and experience must be documented through resumes, job descriptions, contracts, staff training descriptions, and letters from Continuums of Care or other supportive services organizations. - 2 Points max | AK44: =(MIN(SUM(AK46:AL47),2)) -> 0
A45: Project Name and Address | T45: Project type | Y45: LSP staff & Org exp. §111(a)(4)(b)(4)(i) & (ii) | AD45: Total Clients | AF45: # of Target Pop. | AH45: % of Target Pop to total clients | AK45: Points
AH46: =IF(AD46="",0,AF46/AD46) -> 0 | AK46: =IF(AND(T46<>"",Y46<>"",AH46>=0.2),2,0) -> 0
AH47: =IF(AD47="",0,AF47/AD47) -> 0 | AK47: =IF(AH47>=0.2,2,0) -> 0
A48: (5) Experience of a partner agency. Have you attached an executed agreement between the two agencies that meets the requirements of §111(a)(4)(b)(5)? Executed agreements must meet all the requirements §111(a)(4)(b)(5)(ii)(a)-(f) to receive points - 2 points | AK48: =IF(AI48="Yes",2,0) -> 0
A49: (6) Success in meeting or exceeding specified outcome measures for housing stability under a government contract for at least two years as a LSP in Permanent Supportive housing serving persons experiencing homelessness - 2 Points; must attach documentation to receive points. | AK49: =IF(AND(AB51="Yes",AI51>=24),2,0) -> 0
A50: Housing Project or Program Name | S50: Government Agency Contracting for Services | AB50: Housing Stability Measured | AI50: Months Measured
A52: Supportive Housing (SH) §111(b) - 25 Points Max | AK52: =IF(AJ54>=0.3,25,IF(AJ54>=0.25,21,IF(AJ54>=0.2,17,IF(AJ54>=0.15,13,IF(AJ54>=0.1,9,IF(AJ54>=0.05,5,0)))))) -> 0
A53: (1) Percentage of Total Projects Units that are Assisted Units - 25 points max
A54: Number of Project Units | G54: ='Max Funds and Unit Mix'!E31 -> 0 | I54: Total Number of SH Units | Q54: ='Max Funds and Unit Mix'!I31+'Max Funds and Unit Mix'!K31 -> 0 | S54: Percentage of Project Units that are Assisted Units | AJ54: =IF(G54=0,0,Q54/G54) -> 0
A55: Supportive Services Plan (SSP) §111(c) - 25 Points Max- must score a minimum of 10 points | AK55: =IF(AK56+AK65+AK69<10,0,AK56+AK65+AK69) -> 0
A56: (1) Applications for projects will be scored based on the following: - 17 Points max | AK56: =AK57+AK61+AK62+AK63+AK64 -> 0
A57: a. Quality and Quantity of Services - 7 points max | AG57: SSP Page# | AK57: =AK58+AK59+AK60 -> 0
A58: (1) The services provided are of appropriate quality and quantity for the Target Population - 2 points | AK58: =IF(AE58="Yes",2,0) -> 0
A59: (2) Staff experience, credentials, and job duties include appropriate skills in cultural competency - 2 points | AK59: =IF(AE59="Yes",2,0) -> 0
A60: (3) The service delivery model, tailored to persons experiencing homelessness impacted with one or more chronic health or behavioral health conditions, that includes, but is not limited to, the following - 3 points i. Use of a critical time intervention or assertive community treatment model ii. Cognitive behavioral therapy iii. Trauma-informed care iv. Motivational interviewing and other tools to encourage engagement in services v. Other practices recognized as evidenced-based by the Substance Abuse and Mental Health Services Administration, DHCS, HUD, or other federal or state public agencies. | AK60: =IF(AE60="Yes",3,0) -> 0
A61: b. The accessibility of services, whether they are on-site or in close proximity to the Project, including the hours they are available, and the frequency, travel time and cost of transportation required to access them, including both public transportation and private transportation services, and how the service provider will assist in the expense of public transportation - 2 points | AK61: =IF(AE61="Yes",2,0) -> 0
A62: c. Adherence to §113, Housing First principles in the provision of services, including provision of flexible services that facilitate Permanent housing access and housing stability - 2 points | AK62: =IF(AE62="Yes",2,0) -> 0
A63: d. The degree to which the building space supports social interaction, the provision of services and ensures the safety of all residents, especially those more vulnerable, such as persons with a history of trauma, children, elderly, etc. - 1 point | AK63: =IF(AE63="Yes",1,0) -> 0
A64: e. The levels of linkages with local systems for ending homelessness and community-based health care resources for members of the Target Population, including - 5 points 1. Participation, verified by the local Continuum of Care, in a local CES that is fully established. 2.The degree of coordination with primary care providers, behavioral health providers, and health care facilities. | AK64: =IF(AE64="Yes",5,0) -> 0
A65: (2) Resident Involvement (points will be awarded based on the quality of) - 3 Points max | AK65: =SUM(AK66:AL68) -> 0
A66: a. Strategies to engage residents to encourage participation in services - 1 point | AK66: =IF(AE66="Yes",1,0) -> 0
A67: b. Strategies to engage residents in services planning and operations - 1 point | AK67: =IF(AE67="Yes",1,0) -> 0
A68: c. Tenant satisfaction surveys to inform and improve services, building operations, and property management - 1 point | AK68: =IF(AE68="Yes",1,0) -> 0
A69: (3) The adequacy of the services budget and the reliability over time of services funding. - 5 Points max | AK69: =SUM(AK70:AL74) -> 0
A70: a. The adequacy/accuracy of budgeted income sources/uses and the consistency of these amounts with other sections of the services plan - 1 point | AK70: =IF(AE70="Yes",1,0) -> 0
A71: b. The completeness, accuracy, specificity and clarity of the budget document - 1 point | AK71: =IF(AE71="Yes",1,0) -> 0
A72: c. The extent to which the major services funding sources have been accessed by the designated service providers or Applicant in the past - 1 point | AK72: =IF(AE72="Yes",1,0) -> 0
A73: d. Track record of Applicant & providers in filling gaps in services funding left by loss of major funding sources - 1 point | AK73: =IF(AE73="Yes",1,0) -> 0
A74: e. The percentage of the total services budget that is committed at the time of application - 1 point | AK74: =IF(AE74="Yes",1,0) -> 0
A75: Utilization of Funds to Offset Requests §111(d) - 10 Points Max | AK75: =IF(U85="Yes",MIN(AO82,10),MIN(10,AO83)) -> 0
A76: =IF(U85="","",IF(U85="Yes",Dropdowns!H63,Dropdowns!H64)) -> (3) For other projects not utilizing 9% competitive low-income housing tax credits, 0.75 points will be awarded for each 5 percentage point increment above 50% up to 10 Points Max.
A77: 1. Total residential development cost (Dev Budget cell R123) | U77: ='Dev Budget'!R123 -> 0
A78: 2. Less: Deferred Developer Fee (Dev Fee 2021 cell I10) | U78: ='Dev Fee 2021'!I10 -> 0
A79: 3. Less: Land Donations where value is not established by current appraisal | Y79: <= Must attach land appraisal if including a land donation as part of leverage calculation
A80: 4. Eligible residential development costs (1 - 2 -3) | U80: =U77-U78-U79 -> 0
A81: 5. Percentage of Total Development Cost attributed to HHC-Assisted Units (Max Funds and Unit Mix cell S44) | U81: ='Max Funds and Unit Mix'!S44 -> 0
A82: 6. Funding Attributable to HHC Assisted Units (4 * 5) | U82: =U80*U81 -> 0 | AM82: =FLOOR($Y$84,0.05) -> 0 | AN82: =IF(AM82-0.5<0,0,(AM82-0.5)/0.05) -> 0 | AO82: =AN82*0.375 -> 0
A83: 7. Less: HHC Capital Loan Amount (Max Funds and Unit Mix cell S36) | U83: ='Dev Sources'!I30 -> 0 | AM83: =FLOOR($Y$84,0.05) -> 0 | AN83: =IF(AM83-0.5<0,0,(AM83-0.5)/0.05) -> 0 | AO83: =AN83*0.75 -> 0
A84: 8. Other Dev Funds (Non-HCD) Attributable to HHC Assisted Units (6 - 7) | U84: =U82-U83 -> 0 | Y84: =IF(U83=0,0,U84/U83) -> 0 | AB84: <= Other development funds as a % of HHC Competitive capital funds (8 / 7)
A85: 9. Is Project applying for or receiving 9% Tax Credits (Applicant cell Z5) | U85: =IF('Proposed Project'!Z5="9%","Yes","No") -> No
A86: Leverage of Rental or Operating Subsidies §111(e) - 15 Points Max | AK86: =MIN(AK99,15) -> 0
A87: Applications will be scored based on the percentage of Assisted Units that either: a. Have committed project-based rental or operating subsidies substantially similar in terms to project-based housing choice vouchers to indicate a high likelihood of receiving similar funding for the proposed project; or b. Are restricted to rents not exceeding 30 percent of household income, with project feasibility determined based on the assumption that rents will be affordable to tenants of existing projects targeting Homeless populations, as specified in the HHC application - 1 point will be awarded for each 5 percentage point increment.
A88: A Total Number of HHC Assisted Units (Max Funds and Unit Mix cell G31) | AK88: ='Max Funds and Unit Mix'!G31 -> 0
A89: B | U89: C | Y89: D | AC89: E | AG89: F | AJ89: G | AK89: H
A90: Rental or Operating Subsidy Source | U90: # of Subsidized HHC Assisted Units | Y90: AMI Level of Units | AC90: % Of Total (C divided by A) | AG90: Scoring Increment Factor | AJ90: Increments | AK90: Points 1 point x G
AC91: =IF(U91="",0,U91/$AK$88) -> 0 | AG91: =FLOOR(AC91,0.05) -> 0 | AJ91: =IF(AC91=0,0,AG91/$Y$99) -> 0 | AK91: =IF(OR(U91="",Y91="",AK88=0),0,AJ91*1) -> 0
AC92: 0 | AG92: 0 | AJ92: 0 | AK92: =AJ92*1 -> 0
AC93: 0 | AG93: 0 | AJ93: 0 | AK93: 0
AC94: 0 | AG94: 0 | AJ94: 0 | AK94: 0
AC95: 0 | AG95: 0 | AJ95: 0 | AK95: 0
AC96: 0 | AG96: 0 | AJ96: 0 | AK96: 0
AC97: 0 | AG97: 0 | AJ97: 0 | AK97: 0
AC98: 0 | AG98: 0 | AJ98: 0 | AK98: 0
Q99: Totals | U99: =SUM(U91:X98) -> 0 | Y99: 0.05 | AK99: =MIN(SUM(AK91:AL98),15) -> 0
A100: Readiness to Proceed §111(f) - 30 Points Max - must score a minimum of 15 points | AK100: =IF(AK102+AK103+AK104+AK106+AK109+AK110<15,0,AK102+AK103+AK104+AK106+AK109+AK110) -> 0
A101: Any application demonstrating that a particular category is not applicable to project readiness for the subject project shall be awarded points in that category.
A102: (1) | B102: Obtained enforceable commitments (EFC) for all construction financing, not including tax-exempt bonds, low-income housing tax credits, and funding to be provided by another Department program. Other Department funds must be awarded prior to the application deadline. All EFCs must be inserted following the Dev Sources worksheet in the UA: (1) Use a colored sheet of paper to separate commitments; (2) Highlight the following required information on each EFC: (a) Applicant or the ultimate owner is named as the borrower; (b) Project name; (c) Project site's address, assessor's parcel number or legal description; (d) Amount, interest rate and terms of the financing being committed; and (e) Commitment must be fully executed by all parties. (f) If a prepaid ground lease loan is included in the commitments, include 3rd Party documentation justifying the commercial rent - 5 points | AK102: =IF(OR(AI102="Yes",AI102="N/A"),5,0) -> 0
A103: (2) | B103: Completion and submittal of all necessary environmental clearances (HTF Environmental Provisions, NEPA, and CEQA), and completion of a Phase I Environmental Site Assessment and Phase II Environmental studies if necessary. Also, attach Local Jurisdiction and NEPA Responsible Entity Verification of Project Readiness Document - 5 points. | AK103: =IF(OR(AI103="Yes",AI103="N/A"),5,0) -> 0
A104: (3) | B104: Obtain all necessary and discretionary public land use approvals except building permits and other ministerial approvals, or documented to be an eligible project under AB 2162 - 5 points | AK104: =IF(AI104="Yes",5,0) -> 0
A105: Did you obtain land use approval under a nondiscretionary local approval process?
A106: (4) | B106: Site control - 5 points for either (a) or (b) below. | AK106: =MIN(SUM(AK107:AL108),5) -> 0
A107: (a) Applicant has fee title ownership to site or a long-term leasehold securing site meeting the criteria for site control. | AK107: =IF(OR(AI107="Yes",AI107="N/A"),5,0) -> 0
A108: (b) Applicant can demonstrate the working drawings are at least 50% complete as certified by the project architect. | AK108: =IF(OR(AI108="Yes",AI108="N/A"),5,0) -> 0
A109: (5) | B109: Obtained local design review approval to the extent such approval is required - 5 points | AK109: =IF(OR(AI109="Yes",AI109="N/A"),5,0) -> 0
A110: (6) | B110: EFCs for all deferred-payment permanent financing, grants, and subsidies, in accordance with TCAC requirements. Deferred-payment financing, grant funds and subsidies from other HCD programs must be awarded prior to application deadline - 5 points | AK110: =IF(OR(AI110="Yes",AI110="N/A"),5,0) -> 0
A111: Local Need §111(g) - 5 Points Max | AK111: =AK112 -> 0
A112: Points will be awarded if more than 400 individuals are Homeless in the Applicants geographic jurisdiction using the latest PIT count per NOFA. | S112: CoC: | U112: ='Proposed Project'!Y4 ->  | AF112: PIT Count: | AI112: =VLOOKUP(U112,Dropdowns!B63:D120,3,FALSE) ->  | AK112: =IFERROR(IF(AI112>=400,5,0),0) -> 0
A113: Location Efficiency and Access to Destinations §111(h) - 5 Points Max | AK113: =AK115+AK117+AK118+AK119+AK120 -> 0
A114: Points may be awarded cumulatively across the categories below up to a total of five points. Applicants must provide a map demonstrating proximity for items (1) and (2) to be eligible for the respective points.
A115: (1) | B115: Projects located where there is a rapid transit station, light rail station, commuter rail station, ferry terminal, bus station, or public bus stop within one-half mile (one mile for Rural Areas ) from the site, with service at least every 30 minutes (or at least two departures during each peak period for a commuter rail station or ferry terminal) during the hours of 7 am - 9 am and 4 pm – 6 pm, Monday - Friday - 1 point | AK115: =IF(AI115="Yes",1,0) -> 0
A116: (2) | B116: Projects that provide a map highlighting the location of the existing and operational services within one-half mile of the project area (two miles for Rural Areas), as follows:
A117: a. Grocery store which meets the Cal Fresh Program requirements - 1 point | AK117: =IF(AI117="Yes",1,0) -> 0
A118: b. Medi-Cal clinic that accepts Medi-Cal payments - 1 point | AK118: =IF(AI118="Yes",1,0) -> 0
A119: c. Public elementary, middle or high school - 1 point | AK119: =IF(AI119="Yes",1,0) -> 0
A120: d. Licensed child care provider - 1 point | AK120: =IF(AI120="Yes",1,0) -> 0

Sheet Certifications & Legal Status
A1: Certification & Legal Disclosure | AK1: ='HHC Cover Page'!B11 -> 2022-02-11
A2: On behalf of the entity identified in the signature block below, I certify that:
A3: 1. The information, statements and attachments included in this application are, to the best of my knowledge and belief, true and correct.
A4: 2. I possess the legal authority to submit this application on behalf of the entity identified in the signature block.
A5: 3. The following is a complete disclosure of all identities of interest - of all persons or entities, including affiliates, that will provide goods or services to the Project either (a) in one or more capacity or (b) that qualify as a "Related Party" to any person or entity that will provide goods or services to the Project. "Related Party" is defined in Section 10302 of the California Code of Regulations (CTCAC Regulations):
A7: 4. As of the date of application, the Project, or the real property on which the Project is proposed (Property) is not a party to or the subject of any claim or action at the State or Federal appellate level.
A8: 5. I have disclosed and described below any claim or action undertaken which affects or potentially affects the feasibility of the Project.
A9: In addition, I acknowledge that all information in this application and attachments is public, and may be disclosed by the State.
A12: Printed Name | K12: Title of Signatory | U12: Signature | AJ12: Date
A13: Legal Disclosure
A14: For purposes of the following questions, and with the exceptions noted below, the term “Applicant” shall include the Applicant and joint Applicant, and any subsidiary of the Applicant or joint Applicant if the subsidiary is involved in (for example, as a guarantor) or will be benefited by the application or the project.
A15: In addition to each of these entities themselves, the term “Applicant” shall also include the direct and indirect holders of more than ten percent (10%) of the ownership interests in the entity, as well as the officers, directors, principals and senior executives of the entity if the entity is a corporation, the general and limited partners of the entity if the entity is a partnership, and the members or managers of the entity if the entity is a limited liability company. For projects using tax-exempt bonds, it shall also include the individual who will be executing the bond purchase agreement.
A16: The following questions must be responded to for each entity and person qualifying as an "Applicant," or "joint Applicant" as defined above.
A17: Explain all positive responses on a separate sheet and include with this questionnaire in the application.
A18: Exceptions:
A19: Public entity Applicants without an ownership interest in the proposed project, including but not limited to cities, counties, and joint powers authorities with 100 or more members, are not required to respond to this questionnaire.
A20: Members of the boards of directors of non-profit corporations, including officers of the boards, are also not required to respond. However, chief executive officers (Executive Directors, Chief Executive Officers, Presidents or their equivalent) must respond, as must chief financial officers (Treasurers, Chief Financial Officers, or their equivalent).
A21: Civil Matters
A22: 1. Has the Applicant filed a bankruptcy or receivership case or had a bankruptcy or receivership action commenced against it, defaulted on a loan or been foreclosed against in past ten years?
A23: 2. Is the Applicant currently a party to, or been notified that it may become a party to, any civil litigation that may materially and adversely affect (a) the financial condition of the Applicant’s business, or (b) the project that is the subject of the application?
A24: 3. Have there been any administrative or civil settlements, decisions, or judgments against the Applicant within the past ten years that materially and adversely affected (a) the financial condition of the Applicant’s business, or (b) the project that is the subject of the application?
A25: 4. Is the Applicant currently subject to, or been notified that it may become subject to, any civil or administrative proceeding, examination, or investigation by a local, state or federal licensing or accreditation agency, a local, state or federal taxing authority, or a local, state or federal regulatory or enforcement agency?
A26: 5. In the past ten years, has the Applicant been subject to any civil or administrative proceeding, examination, or investigation by a local, state or federal licensing or accreditation agency, a local, state or federal taxing authority, or a local, state or federal regulatory or enforcement agency that resulted in a settlement, decision, or judgment?
A27: Criminal Matters
A28: 6. Is the Applicant currently a party to, or the subject of, or been notified that it may become a party to or the subject of, any criminal litigation, proceeding, charge, complaint, examination or investigation, of any kind, involving, or that could result in, felony charges against the Applicant?
A29: 7. Is the Applicant currently a party to, or the subject of, or been notified that it may become a party to or the subject of, any criminal litigation, proceeding, charge, complaint, examination or investigation, of any kind, involving, or that could result in, misdemeanor charges against the Applicant for matters relating to the conduct of the Applicant’s business?
A30: 8. Is the Applicant currently a party to, or the subject of, or been notified that it may become a party to or the subject of, any criminal litigation, proceeding, charge, complaint, examination or investigation, of any kind, involving, or that could result in, criminal charges (whether felony or misdemeanor) against the Applicant for any financial or fraud related crime?
A31: 9. Is the Applicant currently a party to, or the subject of, or been notified that it may become a party to or the subject of, any criminal litigation, proceeding, charge, complaint, examination or investigation, of any kind, that could materially affect the financial condition of the Applicant’s business?
A32: 10. Within the past ten years, has the Applicant been convicted of any felony?
A33: 11. Within the past ten years, has the Applicant been convicted of any misdemeanor related to the conduct of the Applicant’s business?
A34: 12. Within the past ten years, has the Applicant been convicted of any misdemeanor for any financial or fraud related crime?
A35: Please provide a letter of explanation if you responded "Yes" to any of the questions above.
A37: Printed Name | K37: Title of Signatory | U37: Signature | AJ37: Date

Sheet Application Support
A1: Application Development Team (ADT) Support Form | AL1: ='HHC Cover Page'!B11 -> 2022-02-11 | AS1: HHC Cover Page
A2: Please complete the "yellow" cells in the form below and email a copy to: AppSupport@hcd.ca.gov. A member of the Application Development Team will respond to your request within ASAP. | AS2: Proposed Project
A3: Full Name: | W3: Date Requested: | AE3: Application Version Date: | AS3: Organization Douments
A4: Organization: | P4: Email: | AC4: Contact Phone: | AS4: Local & Env Verification
A5: Justification: | AS5: Max Funds and Unit Mix
A6: Issue # | C6: Program Name | F6: Tab | J6: Cell # | R6: Update/Comment | AD6: Urgency | AG6: ADT Status | AJ6: Status Date | AS6: Supportive Services
A7: 1 | C7: HHC | AS7: Dev Sources
A8: 2 | C8: HHC | AS8: Dev Budget
A9: 3 | C9: HHC | AS9: TBL and High Cost Test
A10: 4 | C10: HHC | AS10: Dev Fee 2021
A11: 5 | C11: HHC | AS11: Supportive Services Costs
A12: 6 | C12: HHC | AS12: Operating
A13: 7 | C13: HHC | AS13: Reserves
A14: 8 | C14: HHC | AS14: Cash Flow
A15: 9 | C15: HHC | AS15: COSR Calculation
A16: 10 | C16: HHC | AS16: Selection Criteria
A17: 11 | C17: HHC | AS17: Certifications & Legal Status
A18: 12 | C18: HHC | AS18: Application Support
A19: 13 | C19: HHC
A20: 14 | C20: HHC
A21: 15 | C21: HHC
A22: 16 | C22: HHC
A23: 17 | C23: HHC
A24: 18 | C24: HHC

Sheet HHC Rent Limits (hidden)
A1: County | B1: 1 Person | C1: 2 Person | D1: 3 Person | E1: 4 Person | F1: 5 Person | G1: 6 Person | H1: 7 Person | I1: 8 Person | J1: 0 | K1: 1 | L1: 2 | M1: 3 | N1: 4 | O1: 5
A2: Alameda15% AMI | B2: =B9*2*0.15 -> 14385 | C2: =C9*2*0.15 -> 16440 | D2: =D9*2*0.15 -> 18495 | E2: =E9*2*0.15 -> 20550 | F2: =F9*2*0.15 -> 22200 | G2: =G9*2*0.15 -> 23850 | H2: 25485 | I2: 27135 | J2: =TRUNC(B2/12*0.3) -> 359 | K2: =TRUNC((B2+C2)/2/12*0.3) -> 385 | L2: =TRUNC((D2)/12*0.3) -> 462 | M2: =TRUNC(((E2+F2)/2)/12*0.3) -> 534 | N2: =TRUNC(G2/12*0.3) -> 596 | O2: =TRUNC(((H2+I2)/2)/12*0.3) -> 657
A3: Alameda20% AMI | B3: =B9*2*0.2 -> 19180 | C3: =C9*2*0.2 -> 21920 | D3: 24660 | E3: 27400 | F3: 29600 | G3: 31800 | H3: 33980 | I3: 36180 | J3: 479 | K3: 513 | L3: 616 | M3: 712 | N3: 795 | O3: 877
A4: Alameda25% AMI | B4: =B9*2*0.25 -> 23975 | C4: =C9*2*0.25 -> 27400 | D4: 30825 | E4: 34250 | F4: 37000 | G4: 39750 | H4: 42475 | I4: 45225 | J4: 599 | K4: 642 | L4: 770 | M4: 890 | N4: 993 | O4: 1096
A5: Alameda30% AMI | B5: =B9*2*0.3 -> 28770 | C5: =C9*2*0.3 -> 32880 | D5: 36990 | E5: 41100 | F5: 44400 | G5: 47700 | H5: 50970 | I5: 54270 | J5: 719 | K5: 770 | L5: 924 | M5: 1068 | N5: 1192 | O5: 1315
A6: Alameda35% AMI | B6: =B9*2*0.35 -> 33565 | C6: =C9*2*0.35 -> 38360 | D6: 43155 | E6: 47950 | F6: 51800 | G6: 55650 | H6: 59465 | I6: 63315 | J6: 839 | K6: 899 | L6: 1078 | M6: 1246 | N6: 1391 | O6: 1534
A7: Alameda40% AMI | B7: =B9*2*0.4 -> 38360 | C7: =C9*2*0.4 -> 43840 | D7: 49320 | E7: 54800 | F7: 59200 | G7: 63600 | H7: 67960 | I7: 72360 | J7: 959 | K7: 1027 | L7: 1233 | M7: 1425 | N7: 1590 | O7: 1754
A8: Alameda45% AMI | B8: =B9*2*0.45 -> 43155 | C8: =C9*2*0.45 -> 49320 | D8: 55485 | E8: 61650 | F8: 66600 | G8: 71550 | H8: 76455 | I8: 81405 | J8: 1078 | K8: 1155 | L8: 1387 | M8: 1603 | N8: 1788 | O8: 1973
A9: Alameda50% AMI | B9: ='MTSP 50% Income Limits '!B2 -> 47950 | C9: ='MTSP 50% Income Limits '!C2 -> 54800 | D9: ='MTSP 50% Income Limits '!D2 -> 61650 | E9: ='MTSP 50% Income Limits '!E2 -> 68500 | F9: ='MTSP 50% Income Limits '!F2 -> 74000 | G9: ='MTSP 50% Income Limits '!G2 -> 79500 | H9: ='MTSP 50% Income Limits '!H2 -> 84950 | I9: ='MTSP 50% Income Limits '!I2 -> 90450 | J9: =TRUNC(B9/12*0.3) -> 1198 | K9: =TRUNC((B9+C9)/2/12*0.3) -> 1284 | L9: =TRUNC((D9)/12*0.3) -> 1541 | M9: =TRUNC(((E9+F9)/2)/12*0.3) -> 1781 | N9: =TRUNC(G9/12*0.3) -> 1987 | O9: =TRUNC(((H9+I9)/2)/12*0.3) -> 2192
A10: Alameda55% AMI | B10: =B9*2*0.55 -> 52745 | C10: =C9*2*0.55 -> 60280 | D10: 67815 | E10: 75350 | F10: 81400 | G10: 87450 | H10: 93445 | I10: 99495 | J10: =TRUNC(B10/12*0.3) -> 1318 | K10: =TRUNC((B10+C10)/2/12*0.3) -> 1412 | L10: =TRUNC((D10)/12*0.3) -> 1695 | M10: =TRUNC(((E10+F10)/2)/12*0.3) -> 1959 | N10: =TRUNC(G10/12*0.3) -> 2186 | O10: =TRUNC(((H10+I10)/2)/12*0.3) -> 2411
A11: Alameda60% AMI | B11: =B9*2*0.6 -> 57540 | C11: =C9*2*0.6 -> 65760 | D11: 73980 | E11: 82200 | F11: 88800 | G11: 95400 | H11: 101940 | I11: 108540 | J11: 1438 | K11: 1541 | L11: 1849 | M11: 2137 | N11: 2385 | O11: 2631
A12: Alameda65% AMI | B12: =B9*2*0.65 -> 62335 | C12: =C9*2*0.65 -> 71240 | D12: 80145 | E12: 89050 | F12: 96200 | G12: 103350 | H12: 110435 | I12: 117585 | J12: 1558 | K12: 1669 | L12: 2003 | M12: 2315 | N12: 2583 | O12: 2850
A13: Alameda70% AMI | B13: =B9*2*0.7 -> 67130 | C13: =C9*2*0.7 -> 76720 | D13: 86310 | E13: 95900 | F13: 103600 | G13: 111300 | H13: 118930 | I13: 126630 | J13: 1678 | K13: 1798 | L13: 2157 | M13: 2493 | N13: 2782 | O13: 3069
A14: Alameda75% AMI | B14: =B9*2*0.75 -> 71925 | C14: =C9*2*0.75 -> 82200 | D14: 92475 | E14: 102750 | F14: 111000 | G14: 119250 | H14: 127425 | I14: 135675 | J14: 1798 | K14: 1926 | L14: 2311 | M14: 2671 | N14: 2981 | O14: 3288
A15: Alameda80% AMI | B15: =B9*2*0.8 -> 76720 | C15: =C9*2*0.8 -> 87680 | D15: 98640 | E15: 109600 | F15: 118400 | G15: 127200 | H15: 135920 | I15: 144720 | J15: 1918 | K15: 2055 | L15: 2466 | M15: 2850 | N15: 3180 | O15: 3508
A16: Alameda90% AMI | B16: =B9*2*0.9 -> 86310 | C16: =C9*2*0.9 -> 98640 | D16: 110970 | E16: 123300 | F16: 133200 | G16: 143100 | H16: 152910 | I16: 162810 | J16: 2157 | K16: 2311 | L16: 2774 | M16: 3206 | N16: 3577 | O16: 3946
A17: Alameda100% AMI | B17: =B9*2 -> 95900 | C17: =C9*2 -> 109600 | D17: 123300 | E17: 137000 | F17: 148000 | G17: 159000 | H17: 169900 | I17: 180900 | J17: =J9*2 -> 2396 | K17: =K9*2 -> 2568 | L17: 3082 | M17: 3562 | N17: 3974 | O17: 4384
A18: Alameda110% AMI | B18: =B9*2*1.1 -> 105490 | C18: =C9*2*1.1 -> 120560 | D18: 135630 | E18: 150700 | F18: 162800 | G18: 174900 | H18: 186890 | I18: 198990 | J18: 2637 | K18: 2825 | L18: 3390 | M18: 3918 | N18: 4372 | O18: 4823
A19: Alameda120% AMI | B19: =B9*2*1.2 -> 115080 | C19: =C9*2*1.2 -> 131520 | D19: 147960 | E19: 164400 | F19: 177600 | G19: 190800 | H19: 203880 | I19: 217080 | J19: 2877 | K19: 3082 | L19: 3699 | M19: 4275 | N19: 4770 | O19: 5262
A20: Alpine15% AMI | B20: =B27*2*0.15 -> 8535 | C20: =C27*2*0.15 -> 9750 | D20: =D27*2*0.15 -> 10965 | E20: =E27*2*0.15 -> 12180 | F20: =F27*2*0.15 -> 13155 | G20: =G27*2*0.15 -> 14130 | H20: 15105 | I20: 16080 | J20: 213 | K20: 228 | L20: 274 | M20: 316 | N20: 353 | O20: 389
A21: Alpine20% AMI | B21: =B27*2*0.2 -> 11380 | C21: =C27*2*0.2 -> 13000 | D21: 14620 | E21: 16240 | F21: 17540 | G21: 18840 | H21: 20140 | I21: 21440 | J21: 284 | K21: 304 | L21: 365 | M21: 422 | N21: 471 | O21: 519
A22: Alpine25% AMI | B22: =B27*2*0.25 -> 14225 | C22: =C27*2*0.25 -> 16250 | D22: 18275 | E22: 20300 | F22: 21925 | G22: 23550 | H22: 25175 | I22: 26800 | J22: 355 | K22: 380 | L22: 456 | M22: 527 | N22: 588 | O22: 649
A23: Alpine30% AMI | B23: =B27*2*0.3 -> 17070 | C23: =C27*2*0.3 -> 19500 | D23: 21930 | E23: 24360 | F23: 26310 | G23: 28260 | H23: 30210 | I23: 32160 | J23: 426 | K23: 457 | L23: 548 | M23: 633 | N23: 706 | O23: 779
A24: Alpine35% AMI | B24: =B27*2*0.35 -> 19915 | C24: =C27*2*0.35 -> 22750 | D24: 25585 | E24: 28420 | F24: 30695 | G24: 32970 | H24: 35245 | I24: 37520 | J24: 497 | K24: 533 | L24: 639 | M24: 738 | N24: 824 | O24: 909
A25: Alpine40% AMI | B25: =B27*2*0.4 -> 22760 | C25: =C27*2*0.4 -> 26000 | D25: 29240 | E25: 32480 | F25: 35080 | G25: 37680 | H25: 40280 | I25: 42880 | J25: 569 | K25: 609 | L25: 731 | M25: 844 | N25: 942 | O25: 1039
A26: Alpine45% AMI | B26: =B27*2*0.45 -> 25605 | C26: =C27*2*0.45 -> 29250 | D26: =D27*2*0.45 -> 32895 | E26: =E27*2*0.45 -> 36540 | F26: =F27*2*0.45 -> 39465 | G26: =G27*2*0.45 -> 42390 | H26: =H27*2*0.45 -> 45315 | I26: =I27*2*0.45 -> 48240 | J26: 640 | K26: 685 | L26: 822 | M26: 950 | N26: 1059 | O26: 1169
A27: Alpine50% AMI | B27: ='MTSP 50% Income Limits '!B3 -> 28450 | C27: ='MTSP 50% Income Limits '!C3 -> 32500 | D27: ='MTSP 50% Income Limits '!D3 -> 36550 | E27: ='MTSP 50% Income Limits '!E3 -> 40600 | F27: ='MTSP 50% Income Limits '!F3 -> 43850 | G27: ='MTSP 50% Income Limits '!G3 -> 47100 | H27: ='MTSP 50% Income Limits '!H3 -> 50350 | I27: ='MTSP 50% Income Limits '!I3 -> 53600 | J27: =TRUNC(B27/12*0.3) -> 711 | K27: =TRUNC((B27+C27)/2/12*0.3) -> 761 | L27: =TRUNC((D27)/12*0.3) -> 913 | M27: =TRUNC(((E27+F27)/2)/12*0.3) -> 1055 | N27: =TRUNC(G27/12*0.3) -> 1177 | O27: =TRUNC(((H27+I27)/2)/12*0.3) -> 1299
A28: Alpine55% AMI | B28: =B27*2*0.55 -> 31295 | C28: =C27*2*0.55 -> 35750 | D28: =D27*2*0.55 -> 40205 | E28: =E27*2*0.55 -> 44660 | F28: =F27*2*0.55 -> 48235 | G28: =G27*2*0.55 -> 51810 | H28: =H27*2*0.55 -> 55385 | I28: =I27*2*0.55 -> 58960 | J28: =TRUNC(B28/12*0.3) -> 782 | K28: =TRUNC((B28+C28)/2/12*0.3) -> 838 | L28: =TRUNC((D28)/12*0.3) -> 1005 | M28: =TRUNC(((E28+F28)/2)/12*0.3) -> 1161 | N28: =TRUNC(G28/12*0.3) -> 1295 | O28: =TRUNC(((H28+I28)/2)/12*0.3) -> 1429
A29: Alpine60% AMI | B29: =B27*2*0.6 -> 34140 | C29: =C27*2*0.6 -> 39000 | D29: 43860 | E29: 48720 | F29: 52620 | G29: 56520 | H29: 60420 | I29: 64320 | J29: 853 | K29: 914 | L29: 1096 | M29: 1266 | N29: 1413 | O29: 1559
A30: Alpine65% AMI | B30: =B27*2*0.65 -> 36985 | C30: =C27*2*0.65 -> 42250 | D30: 47515 | E30: 52780 | F30: 57005 | G30: 61230 | H30: 65455 | I30: 69680 | J30: 924 | K30: 990 | L30: 1187 | M30: 1372 | N30: 1530 | O30: 1689
A31: Alpine70% AMI | B31: =B27*2*0.7 -> 39830 | C31: =C27*2*0.7 -> 45500 | D31: 51170 | E31: 56840 | F31: 61390 | G31: 65940 | H31: 70490 | I31: 75040 | J31: 995 | K31: 1066 | L31: 1279 | M31: 1477 | N31: 1648 | O31: 1819
A32: Alpine75% AMI | B32: =B27*2*0.75 -> 42675 | C32: =C27*2*0.75 -> 48750 | D32: 54825 | E32: 60900 | F32: 65775 | G32: 70650 | H32: 75525 | I32: 80400 | J32: 1066 | K32: 1142 | L32: 1370 | M32: 1583 | N32: 1766 | O32: 1949
A33: Alpine80% AMI | B33: =B27*2*0.8 -> 45520 | C33: =C27*2*0.8 -> 52000 | D33: 58480 | E33: 64960 | F33: 70160 | G33: 75360 | H33: 80560 | I33: 85760 | J33: 1138 | K33: 1219 | L33: 1462 | M33: 1689 | N33: 1884 | O33: 2079
A34: Alpine90% AMI | B34: =B27*2*0.9 -> 51210 | C34: =C27*2*0.9 -> 58500 | D34: 65790 | E34: 73080 | F34: 78930 | G34: 84780 | H34: 90630 | I34: 96480 | J34: 1280 | K34: 1371 | L34: 1644 | M34: 1900 | N34: 2119 | O34: 2338
A35: Alpine100% AMI | B35: =B27*2 -> 56900 | C35: =C27*2 -> 65000 | D35: 73100 | E35: 81200 | F35: 87700 | G35: 94200 | H35: 100700 | I35: 107200 | J35: =J27*2 -> 1422 | K35: =K27*2 -> 1522 | L35: 1826 | M35: 2110 | N35: 2354 | O35: 2598
A36: Alpine110% AMI | B36: =B27*2*1.1 -> 62590 | C36: =C27*2*1.1 -> 71500 | D36: 80410 | E36: 89320 | F36: 96470 | G36: 103620 | H36: 110770 | I36: 117920 | J36: =TRUNC(B36/12*0.3) -> 1564 | K36: =TRUNC((B36+C36)/2/12*0.3) -> 1676 | L36: =TRUNC((D36)/12*0.3) -> 2010 | M36: =TRUNC(((E36+F36)/2)/12*0.3) -> 2322 | N36: =TRUNC(G36/12*0.3) -> 2590 | O36: =TRUNC(((H36+I36)/2)/12*0.3) -> 2858
A37: Alpine120% AMI | B37: =B27*2*1.2 -> 68280 | C37: =C27*2*1.2 -> 78000 | D37: 87720 | E37: 97440 | F37: 105240 | G37: 113040 | H37: 120840 | I37: 128640 | J37: 1707 | K37: 1828 | L37: 2193 | M37: 2533 | N37: 2826 | O37: 3118
A38: Amador15% AMI | B38: =B45*2*0.15 -> 8190 | C38: =C45*2*0.15 -> 9360 | D38: =D45*2*0.15 -> 10530 | E38: =E45*2*0.15 -> 11685 | F38: =F45*2*0.15 -> 12630 | G38: =G45*2*0.15 -> 13560 | H38: 14490 | I38: 15435 | J38: 204 | K38: 219 | L38: 263 | M38: 303 | N38: 339 | O38: 374
A39: Amador20% AMI | B39: =B45*2*0.2 -> 10920 | C39: =C45*2*0.2 -> 12480 | D39: 14040 | E39: 15580 | F39: 16840 | G39: 18080 | H39: 19320 | I39: 20580 | J39: 273 | K39: 292 | L39: 351 | M39: 405 | N39: 452 | O39: 498
A40: Amador25% AMI | B40: =B45*2*0.25 -> 13650 | C40: =C45*2*0.25 -> 15600 | D40: 17550 | E40: 19475 | F40: 21050 | G40: 22600 | H40: 24150 | I40: 25725 | J40: 341 | K40: 365 | L40: 438 | M40: 506 | N40: 565 | O40: 623
A41: Amador30% AMI | B41: =B45*2*0.3 -> 16380 | C41: =C45*2*0.3 -> 18720 | D41: 21060 | E41: 23370 | F41: 25260 | G41: 27120 | H41: 28980 | I41: 30870 | J41: 409 | K41: 438 | L41: 526 | M41: 607 | N41: 678 | O41: 748
A42: Amador35% AMI | B42: =B45*2*0.35 -> 19110 | C42: =C45*2*0.35 -> 21840 | D42: 24570 | E42: 27265 | F42: 29470 | G42: 31640 | H42: 33810 | I42: 36015 | J42: 477 | K42: 511 | L42: 614 | M42: 709 | N42: 791 | O42: 872
A43: Amador40% AMI | B43: =B45*2*0.4 -> 21840 | C43: =C45*2*0.4 -> 24960 | D43: 28080 | E43: 31160 | F43: 33680 | G43: 36160 | H43: 38640 | I43: 41160 | J43: 546 | K43: 585 | L43: 702 | M43: 810 | N43: 904 | O43: 997
A44: Amador45% AMI | B44: =B45*2*0.45 -> 24570 | C44: =C45*2*0.45 -> 28080 | D44: =D45*2*0.45 -> 31590 | E44: =E45*2*0.45 -> 35055 | F44: =F45*2*0.45 -> 37890 | G44: =G45*2*0.45 -> 40680 | H44: =H45*2*0.45 -> 43470 | I44: =I45*2*0.45 -> 46305 | J44: 614 | K44: 658 | L44: 789 | M44: 911 | N44: 1017 | O44: 1122
A45: Amador50% AMI | B45: ='MTSP 50% Income Limits '!B4 -> 27300 | C45: ='MTSP 50% Income Limits '!C4 -> 31200 | D45: ='MTSP 50% Income Limits '!D4 -> 35100 | E45: ='MTSP 50% Income Limits '!E4 -> 38950 | F45: ='MTSP 50% Income Limits '!F4 -> 42100 | G45: ='MTSP 50% Income Limits '!G4 -> 45200 | H45: ='MTSP 50% Income Limits '!H4 -> 48300 | I45: ='MTSP 50% Income Limits '!I4 -> 51450 | J45: =TRUNC(B45/12*0.3) -> 682 | K45: =TRUNC((B45+C45)/2/12*0.3) -> 731 | L45: =TRUNC((D45)/12*0.3) -> 877 | M45: =TRUNC(((E45+F45)/2)/12*0.3) -> 1013 | N45: =TRUNC(G45/12*0.3) -> 1130 | O45: =TRUNC(((H45+I45)/2)/12*0.3) -> 1246
A46: Amador55% AMI | B46: =B45*2*0.55 -> 30030 | C46: =C45*2*0.55 -> 34320 | D46: =D45*2*0.55 -> 38610 | E46: =E45*2*0.55 -> 42845 | F46: =F45*2*0.55 -> 46310 | G46: =G45*2*0.55 -> 49720 | H46: =H45*2*0.55 -> 53130 | I46: =I45*2*0.55 -> 56595 | J46: =TRUNC(B46/12*0.3) -> 750 | K46: =TRUNC((B46+C46)/2/12*0.3) -> 804 | L46: =TRUNC((D46)/12*0.3) -> 965 | M46: =TRUNC(((E46+F46)/2)/12*0.3) -> 1114 | N46: =TRUNC(G46/12*0.3) -> 1243 | O46: =TRUNC(((H46+I46)/2)/12*0.3) -> 1371
A47: Amador60% AMI | B47: =B45*2*0.6 -> 32760 | C47: =C45*2*0.6 -> 37440 | D47: 42120 | E47: 46740 | F47: 50520 | G47: 54240 | H47: 57960 | I47: 61740 | J47: 819 | K47: 877 | L47: 1053 | M47: 1215 | N47: 1356 | O47: 1496
A48: Amador65% AMI | B48: =B45*2*0.65 -> 35490 | C48: =C45*2*0.65 -> 40560 | D48: 45630 | E48: 50635 | F48: 54730 | G48: 58760 | H48: 62790 | I48: 66885 | J48: 887 | K48: 950 | L48: 1140 | M48: 1317 | N48: 1469 | O48: 1620
A49: Amador70% AMI | B49: =B45*2*0.7 -> 38220 | C49: =C45*2*0.7 -> 43680 | D49: 49140 | E49: 54530 | F49: 58940 | G49: 63280 | H49: 67620 | I49: 72030 | J49: 955 | K49: 1023 | L49: 1228 | M49: 1418 | N49: 1582 | O49: 1745
A50: Amador75% AMI | B50: =B45*2*0.75 -> 40950 | C50: =C45*2*0.75 -> 46800 | D50: 52650 | E50: 58425 | F50: 63150 | G50: 67800 | H50: 72450 | I50: 77175 | J50: 1023 | K50: 1096 | L50: 1316 | M50: 1519 | N50: 1695 | O50: 1870
A51: Amador80% AMI | B51: =B45*2*0.8 -> 43680 | C51: =C45*2*0.8 -> 49920 | D51: 56160 | E51: 62320 | F51: 67360 | G51: 72320 | H51: 77280 | I51: 82320 | J51: 1092 | K51: 1170 | L51: 1404 | M51: 1621 | N51: 1808 | O51: 1995
A52: Amador90% AMI | B52: =B45*2*0.9 -> 49140 | C52: =C45*2*0.9 -> 56160 | D52: 63180 | E52: 70110 | F52: 75780 | G52: 81360 | H52: 86940 | I52: 92610 | J52: 1228 | K52: 1316 | L52: 1579 | M52: 1823 | N52: 2034 | O52: 2244
A53: Amador100% AMI | B53: =B45*2 -> 54600 | C53: =C45*2 -> 62400 | D53: 70200 | E53: 77900 | F53: 84200 | G53: 90400 | H53: 96600 | I53: 102900 | J53: =J45*2 -> 1364 | K53: =K45*2 -> 1462 | L53: 1754 | M53: 2026 | N53: 2260 | O53: 2492
A54: Amador110% AMI | B54: =B45*2*1.1 -> 60060 | C54: =C45*2*1.1 -> 68640 | D54: 77220 | E54: 85690 | F54: 92620 | G54: 99440 | H54: 106260 | I54: 113190 | J54: =TRUNC(B54/12*0.3) -> 1501 | K54: =TRUNC((B54+C54)/2/12*0.3) -> 1608 | L54: =TRUNC((D54)/12*0.3) -> 1930 | M54: =TRUNC(((E54+F54)/2)/12*0.3) -> 2228 | N54: =TRUNC(G54/12*0.3) -> 2486 | O54: =TRUNC(((H54+I54)/2)/12*0.3) -> 2743
A55: Amador120% AMI | B55: =B45*2*1.2 -> 65520 | C55: =C45*2*1.2 -> 74880 | D55: 84240 | E55: 93480 | F55: 101040 | G55: 108480 | H55: 115920 | I55: 123480 | J55: 1638 | K55: 1755 | L55: 2106 | M55: 2431 | N55: 2712 | O55: 2992
A56: Butte15% AMI | B56: =B63*2*0.15 -> 7320 | C56: =C63*2*0.15 -> 8370 | D56: =D63*2*0.15 -> 9420 | E56: =E63*2*0.15 -> 10455 | F56: =F63*2*0.15 -> 11295 | G56: =G63*2*0.15 -> 12135 | H56: 12975 | I56: 13815 | J56: 183 | K56: 196 | L56: 235 | M56: 271 | N56: 303 | O56: 334
A57: Butte20% AMI | B57: =B63*2*0.2 -> 9760 | C57: =C63*2*0.2 -> 11160 | D57: 12560 | E57: 13940 | F57: 15060 | G57: 16180 | H57: 17300 | I57: 18420 | J57: 244 | K57: 261 | L57: 314 | M57: 362 | N57: 404 | O57: 446
A58: Butte25% AMI | B58: =B63*2*0.25 -> 12200 | C58: =C63*2*0.25 -> 13950 | D58: 15700 | E58: 17425 | F58: 18825 | G58: 20225 | H58: 21625 | I58: 23025 | J58: 305 | K58: 326 | L58: 392 | M58: 453 | N58: 505 | O58: 558
A59: Butte30% AMI | B59: =B63*2*0.3 -> 14640 | C59: =C63*2*0.3 -> 16740 | D59: 18840 | E59: 20910 | F59: 22590 | G59: 24270 | H59: 25950 | I59: 27630 | J59: 366 | K59: 392 | L59: 471 | M59: 543 | N59: 606 | O59: 669
A60: Butte35% AMI | B60: =B63*2*0.35 -> 17080 | C60: =C63*2*0.35 -> 19530 | D60: 21980 | E60: 24395 | F60: 26355 | G60: 28315 | H60: 30275 | I60: 32235 | J60: 427 | K60: 457 | L60: 549 | M60: 634 | N60: 707 | O60: 781
A61: Butte40% AMI | B61: =B63*2*0.4 -> 19520 | C61: =C63*2*0.4 -> 22320 | D61: 25120 | E61: 27880 | F61: 30120 | G61: 32360 | H61: 34600 | I61: 36840 | J61: 488 | K61: 523 | L61: 628 | M61: 725 | N61: 809 | O61: 893
A62: Butte45% AMI | B62: =B63*2*0.45 -> 21960 | C62: =C63*2*0.45 -> 25110 | D62: =D63*2*0.45 -> 28260 | E62: =E63*2*0.45 -> 31365 | F62: =F63*2*0.45 -> 33885 | G62: =G63*2*0.45 -> 36405 | H62: =H63*2*0.45 -> 38925 | I62: =I63*2*0.45 -> 41445 | J62: 549 | K62: 588 | L62: 706 | M62: 815 | N62: 910 | O62: 1004
A63: Butte50% AMI | B63: ='MTSP 50% Income Limits '!B5 -> 24400 | C63: ='MTSP 50% Income Limits '!C5 -> 27900 | D63: ='MTSP 50% Income Limits '!D5 -> 31400 | E63: ='MTSP 50% Income Limits '!E5 -> 34850 | F63: ='MTSP 50% Income Limits '!F5 -> 37650 | G63: ='MTSP 50% Income Limits '!G5 -> 40450 | H63: ='MTSP 50% Income Limits '!H5 -> 43250 | I63: ='MTSP 50% Income Limits '!I5 -> 46050 | J63: =TRUNC(B63/12*0.3) -> 610 | K63: =TRUNC((B63+C63)/2/12*0.3) -> 653 | L63: =TRUNC((D63)/12*0.3) -> 785 | M63: =TRUNC(((E63+F63)/2)/12*0.3) -> 906 | N63: =TRUNC(G63/12*0.3) -> 1011 | O63: =TRUNC(((H63+I63)/2)/12*0.3) -> 1116
A64: Butte55% AMI | B64: =B63*2*0.55 -> 26840 | C64: =C63*2*0.55 -> 30690 | D64: =D63*2*0.55 -> 34540 | E64: =E63*2*0.55 -> 38335 | F64: =F63*2*0.55 -> 41415 | G64: =G63*2*0.55 -> 44495 | H64: =H63*2*0.55 -> 47575 | I64: =I63*2*0.55 -> 50655 | J64: =TRUNC(B64/12*0.3) -> 671 | K64: =TRUNC((B64+C64)/2/12*0.3) -> 719 | L64: =TRUNC((D64)/12*0.3) -> 863 | M64: =TRUNC(((E64+F64)/2)/12*0.3) -> 996 | N64: =TRUNC(G64/12*0.3) -> 1112 | O64: =TRUNC(((H64+I64)/2)/12*0.3) -> 1227
A65: Butte60% AMI | B65: =B63*2*0.6 -> 29280 | C65: =C63*2*0.6 -> 33480 | D65: 37680 | E65: 41820 | F65: 45180 | G65: 48540 | H65: 51900 | I65: 55260 | J65: 732 | K65: 784 | L65: 942 | M65: 1087 | N65: 1213 | O65: 1339
A66: Butte65% AMI | B66: =B63*2*0.65 -> 31720 | C66: =C63*2*0.65 -> 36270 | D66: 40820 | E66: 45305 | F66: 48945 | G66: 52585 | H66: 56225 | I66: 59865 | J66: 793 | K66: 849 | L66: 1020 | M66: 1178 | N66: 1314 | O66: 1451
A67: Butte70% AMI | B67: =B63*2*0.7 -> 34160 | C67: =C63*2*0.7 -> 39060 | D67: 43960 | E67: 48790 | F67: 52710 | G67: 56630 | H67: 60550 | I67: 64470 | J67: 854 | K67: 915 | L67: 1099 | M67: 1268 | N67: 1415 | O67: 1562
A68: Butte75% AMI | B68: =B63*2*0.75 -> 36600 | C68: =C63*2*0.75 -> 41850 | D68: 47100 | E68: 52275 | F68: 56475 | G68: 60675 | H68: 64875 | I68: 69075 | J68: 915 | K68: 980 | L68: 1177 | M68: 1359 | N68: 1516 | O68: 1674
A69: Butte80% AMI | B69: =B63*2*0.8 -> 39040 | C69: =C63*2*0.8 -> 44640 | D69: 50240 | E69: 55760 | F69: 60240 | G69: 64720 | H69: 69200 | I69: 73680 | J69: 976 | K69: 1046 | L69: 1256 | M69: 1450 | N69: 1618 | O69: 1786
A70: Butte90% AMI | B70: =B63*2*0.9 -> 43920 | C70: =C63*2*0.9 -> 50220 | D70: 56520 | E70: 62730 | F70: 67770 | G70: 72810 | H70: 77850 | I70: 82890 | J70: 1098 | K70: 1176 | L70: 1413 | M70: 1631 | N70: 1820 | O70: 2009
A71: Butte100% AMI | B71: =B63*2 -> 48800 | C71: =C63*2 -> 55800 | D71: 62800 | E71: 69700 | F71: 75300 | G71: 80900 | H71: 86500 | I71: 92100 | J71: =J63*2 -> 1220 | K71: =K63*2 -> 1306 | L71: 1570 | M71: 1812 | N71: 2022 | O71: 2232
A72: Butte110% AMI | B72: =B63*2*1.1 -> 53680 | C72: =C63*2*1.1 -> 61380 | D72: 69080 | E72: 76670 | F72: 82830 | G72: 88990 | H72: 95150 | I72: 101310 | J72: =TRUNC(B72/12*0.3) -> 1342 | K72: =TRUNC((B72+C72)/2/12*0.3) -> 1438 | L72: =TRUNC((D72)/12*0.3) -> 1727 | M72: =TRUNC(((E72+F72)/2)/12*0.3) -> 1993 | N72: =TRUNC(G72/12*0.3) -> 2224 | O72: =TRUNC(((H72+I72)/2)/12*0.3) -> 2455
A73: Butte120% AMI | B73: =B63*2*1.2 -> 58560 | C73: =C63*2*1.2 -> 66960 | D73: 75360 | E73: 83640 | F73: 90360 | G73: 97080 | H73: 103800 | I73: 110520 | J73: 1464 | K73: 1569 | L73: 1884 | M73: 2175 | N73: 2427 | O73: 2679
A74: Calaveras15% AMI | B74: =B81*2*0.15 -> 8580 | C74: =C81*2*0.15 -> 9810 | D74: =D81*2*0.15 -> 11040 | E74: =E81*2*0.15 -> 12255 | F74: =F81*2*0.15 -> 13245 | G74: =G81*2*0.15 -> 14220 | H74: 15210 | I74: 16185 | J74: 214 | K74: 229 | L74: 276 | M74: 318 | N74: 355 | O74: 392
A75: Calaveras20% AMI | B75: =B81*2*0.2 -> 11440 | C75: =C81*2*0.2 -> 13080 | D75: 14720 | E75: 16340 | F75: 17660 | G75: 18960 | H75: 20280 | I75: 21580 | J75: 286 | K75: 306 | L75: 368 | M75: 425 | N75: 474 | O75: 523
A76: Calaveras25% AMI | B76: =B81*2*0.25 -> 14300 | C76: =C81*2*0.25 -> 16350 | D76: 18400 | E76: 20425 | F76: 22075 | G76: 23700 | H76: 25350 | I76: 26975 | J76: 357 | K76: 383 | L76: 460 | M76: 531 | N76: 592 | O76: 654
A77: Calaveras30% AMI | B77: =B81*2*0.3 -> 17160 | C77: =C81*2*0.3 -> 19620 | D77: 22080 | E77: 24510 | F77: 26490 | G77: 28440 | H77: 30420 | I77: 32370 | J77: 429 | K77: 459 | L77: 552 | M77: 637 | N77: 711 | O77: 784
A78: Calaveras35% AMI | B78: =B81*2*0.35 -> 20020 | C78: =C81*2*0.35 -> 22890 | D78: 25760 | E78: 28595 | F78: 30905 | G78: 33180 | H78: 35490 | I78: 37765 | J78: 500 | K78: 536 | L78: 644 | M78: 743 | N78: 829 | O78: 915
A79: Calaveras40% AMI | B79: =B81*2*0.4 -> 22880 | C79: =C81*2*0.4 -> 26160 | D79: 29440 | E79: 32680 | F79: 35320 | G79: 37920 | H79: 40560 | I79: 43160 | J79: 572 | K79: 613 | L79: 736 | M79: 850 | N79: 948 | O79: 1046
A80: Calaveras45% AMI | B80: =B81*2*0.45 -> 25740 | C80: =C81*2*0.45 -> 29430 | D80: =D81*2*0.45 -> 33120 | E80: =E81*2*0.45 -> 36765 | F80: =F81*2*0.45 -> 39735 | G80: =G81*2*0.45 -> 42660 | H80: =H81*2*0.45 -> 45630 | I80: =I81*2*0.45 -> 48555 | J80: 643 | K80: 689 | L80: 828 | M80: 956 | N80: 1066 | O80: 1177
A81: Calaveras50% AMI | B81: ='MTSP 50% Income Limits '!B6 -> 28600 | C81: ='MTSP 50% Income Limits '!C6 -> 32700 | D81: ='MTSP 50% Income Limits '!D6 -> 36800 | E81: ='MTSP 50% Income Limits '!E6 -> 40850 | F81: ='MTSP 50% Income Limits '!F6 -> 44150 | G81: ='MTSP 50% Income Limits '!G6 -> 47400 | H81: ='MTSP 50% Income Limits '!H6 -> 50700 | I81: ='MTSP 50% Income Limits '!I6 -> 53950 | J81: =TRUNC(B81/12*0.3) -> 715 | K81: =TRUNC((B81+C81)/2/12*0.3) -> 766 | L81: =TRUNC((D81)/12*0.3) -> 920 | M81: =TRUNC(((E81+F81)/2)/12*0.3) -> 1062 | N81: =TRUNC(G81/12*0.3) -> 1185 | O81: =TRUNC(((H81+I81)/2)/12*0.3) -> 1308
A82: Calaveras55% AMI | B82: =B81*2*0.55 -> 31460 | C82: =C81*2*0.55 -> 35970 | D82: =D81*2*0.55 -> 40480 | E82: =E81*2*0.55 -> 44935 | F82: =F81*2*0.55 -> 48565 | G82: =G81*2*0.55 -> 52140 | H82: =H81*2*0.55 -> 55770 | I82: =I81*2*0.55 -> 59345 | J82: =TRUNC(B82/12*0.3) -> 786 | K82: =TRUNC((B82+C82)/2/12*0.3) -> 842 | L82: =TRUNC((D82)/12*0.3) -> 1012 | M82: =TRUNC(((E82+F82)/2)/12*0.3) -> 1168 | N82: =TRUNC(G82/12*0.3) -> 1303 | O82: =TRUNC(((H82+I82)/2)/12*0.3) -> 1438
A83: Calaveras60% AMI | B83: =B81*2*0.6 -> 34320 | C83: =C81*2*0.6 -> 39240 | D83: 44160 | E83: 49020 | F83: 52980 | G83: 56880 | H83: 60840 | I83: 64740 | J83: 858 | K83: 919 | L83: 1104 | M83: 1275 | N83: 1422 | O83: 1569
A84: Calaveras65% AMI | B84: =B81*2*0.65 -> 37180 | C84: =C81*2*0.65 -> 42510 | D84: 47840 | E84: 53105 | F84: 57395 | G84: 61620 | H84: 65910 | I84: 70135 | J84: 929 | K84: 996 | L84: 1196 | M84: 1381 | N84: 1540 | O84: 1700
A85: Calaveras70% AMI | B85: =B81*2*0.7 -> 40040 | C85: =C81*2*0.7 -> 45780 | D85: 51520 | E85: 57190 | F85: 61810 | G85: 66360 | H85: 70980 | I85: 75530 | J85: 1001 | K85: 1072 | L85: 1288 | M85: 1487 | N85: 1659 | O85: 1831
A86: Calaveras75% AMI | B86: =B81*2*0.75 -> 42900 | C86: =C81*2*0.75 -> 49050 | D86: 55200 | E86: 61275 | F86: 66225 | G86: 71100 | H86: 76050 | I86: 80925 | J86: 1072 | K86: 1149 | L86: 1380 | M86: 1593 | N86: 1777 | O86: 1962
A87: Calaveras80% AMI | B87: =B81*2*0.8 -> 45760 | C87: =C81*2*0.8 -> 52320 | D87: 58880 | E87: 65360 | F87: 70640 | G87: 75840 | H87: 81120 | I87: 86320 | J87: 1144 | K87: 1226 | L87: 1472 | M87: 1700 | N87: 1896 | O87: 2093
A88: Calaveras90% AMI | B88: =B81*2*0.9 -> 51480 | C88: =C81*2*0.9 -> 58860 | D88: 66240 | E88: 73530 | F88: 79470 | G88: 85320 | H88: 91260 | I88: 97110 | J88: 1287 | K88: 1379 | L88: 1656 | M88: 1912 | N88: 2133 | O88: 2354
A89: Calaveras100% AMI | B89: =B81*2 -> 57200 | C89: =C81*2 -> 65400 | D89: 73600 | E89: 81700 | F89: 88300 | G89: 94800 | H89: 101400 | I89: 107900 | J89: =J81*2 -> 1430 | K89: =K81*2 -> 1532 | L89: 1840 | M89: 2124 | N89: 2370 | O89: 2616
A90: Calaveras110% AMI | B90: =B81*2*1.1 -> 62920 | C90: =C81*2*1.1 -> 71940 | D90: 80960 | E90: 89870 | F90: 97130 | G90: 104280 | H90: 111540 | I90: 118690 | J90: =TRUNC(B90/12*0.3) -> 1573 | K90: =TRUNC((B90+C90)/2/12*0.3) -> 1685 | L90: =TRUNC((D90)/12*0.3) -> 2024 | M90: =TRUNC(((E90+F90)/2)/12*0.3) -> 2337 | N90: =TRUNC(G90/12*0.3) -> 2607 | O90: =TRUNC(((H90+I90)/2)/12*0.3) -> 2877
A91: Calaveras120% AMI | B91: =B81*2*1.2 -> 68640 | C91: =C81*2*1.2 -> 78480 | D91: 88320 | E91: 98040 | F91: 105960 | G91: 113760 | H91: 121680 | I91: 129480 | J91: 1716 | K91: 1839 | L91: 2208 | M91: 2550 | N91: 2844 | O91: 3139
A92: Colusa15% AMI | B92: =B99*2*0.15 -> 7320 | C92: =C99*2*0.15 -> 8370 | D92: =D99*2*0.15 -> 9420 | E92: =E99*2*0.15 -> 10455 | F92: =F99*2*0.15 -> 11295 | G92: =G99*2*0.15 -> 12135 | H92: 12975 | I92: 13815 | J92: 183 | K92: 196 | L92: 235 | M92: 271 | N92: 303 | O92: 334
A93: Colusa20% AMI | B93: =B99*2*0.2 -> 9760 | C93: =C99*2*0.2 -> 11160 | D93: 12560 | E93: 13940 | F93: 15060 | G93: 16180 | H93: 17300 | I93: 18420 | J93: 244 | K93: 261 | L93: 314 | M93: 362 | N93: 404 | O93: 446
A94: Colusa25% AMI | B94: =B99*2*0.25 -> 12200 | C94: =C99*2*0.25 -> 13950 | D94: 15700 | E94: 17425 | F94: 18825 | G94: 20225 | H94: 21625 | I94: 23025 | J94: 305 | K94: 326 | L94: 392 | M94: 453 | N94: 505 | O94: 558
A95: Colusa30% AMI | B95: =B99*2*0.3 -> 14640 | C95: =C99*2*0.3 -> 16740 | D95: 18840 | E95: 20910 | F95: 22590 | G95: 24270 | H95: 25950 | I95: 27630 | J95: 366 | K95: 392 | L95: 471 | M95: 543 | N95: 606 | O95: 669
A96: Colusa35% AMI | B96: =B99*2*0.35 -> 17080 | C96: =C99*2*0.35 -> 19530 | D96: 21980 | E96: 24395 | F96: 26355 | G96: 28315 | H96: 30275 | I96: 32235 | J96: 427 | K96: 457 | L96: 549 | M96: 634 | N96: 707 | O96: 781
A97: Colusa40% AMI | B97: =B99*2*0.4 -> 19520 | C97: =C99*2*0.4 -> 22320 | D97: 25120 | E97: 27880 | F97: 30120 | G97: 32360 | H97: 34600 | I97: 36840 | J97: 488 | K97: 523 | L97: 628 | M97: 725 | N97: 809 | O97: 893
A98: Colusa45% AMI | B98: =B99*2*0.45 -> 21960 | C98: =C99*2*0.45 -> 25110 | D98: =D99*2*0.45 -> 28260 | E98: =E99*2*0.45 -> 31365 | F98: =F99*2*0.45 -> 33885 | G98: =G99*2*0.45 -> 36405 | H98: =H99*2*0.45 -> 38925 | I98: =I99*2*0.45 -> 41445 | J98: 549 | K98: 588 | L98: 706 | M98: 815 | N98: 910 | O98: 1004
A99: Colusa50% AMI | B99: ='MTSP 50% Income Limits '!B7 -> 24400 | C99: ='MTSP 50% Income Limits '!C7 -> 27900 | D99: ='MTSP 50% Income Limits '!D7 -> 31400 | E99: ='MTSP 50% Income Limits '!E7 -> 34850 | F99: ='MTSP 50% Income Limits '!F7 -> 37650 | G99: ='MTSP 50% Income Limits '!G7 -> 40450 | H99: ='MTSP 50% Income Limits '!H7 -> 43250 | I99: ='MTSP 50% Income Limits '!I7 -> 46050 | J99: =TRUNC(B99/12*0.3) -> 610 | K99: =TRUNC((B99+C99)/2/12*0.3) -> 653 | L99: =TRUNC((D99)/12*0.3) -> 785 | M99: =TRUNC(((E99+F99)/2)/12*0.3) -> 906 | N99: =TRUNC(G99/12*0.3) -> 1011 | O99: =TRUNC(((H99+I99)/2)/12*0.3) -> 1116
A100: Colusa55% AMI | B100: =B99*2*0.55 -> 26840 | C100: =C99*2*0.55 -> 30690 | D100: =D99*2*0.55 -> 34540 | E100: =E99*2*0.55 -> 38335 | F100: =F99*2*0.55 -> 41415 | G100: =G99*2*0.55 -> 44495 | H100: =H99*2*0.55 -> 47575 | I100: =I99*2*0.55 -> 50655 | J100: =TRUNC(B100/12*0.3) -> 671 | K100: =TRUNC((B100+C100)/2/12*0.3) -> 719 | L100: =TRUNC((D100)/12*0.3) -> 863 | M100: =TRUNC(((E100+F100)/2)/12*0.3) -> 996 | N100: =TRUNC(G100/12*0.3) -> 1112 | O100: =TRUNC(((H100+I100)/2)/12*0.3) -> 1227
A101: Colusa60% AMI | B101: =B99*2*0.6 -> 29280 | C101: =C99*2*0.6 -> 33480 | D101: 37680 | E101: 41820 | F101: 45180 | G101: 48540 | H101: 51900 | I101: 55260 | J101: 732 | K101: 784 | L101: 942 | M101: 1087 | N101: 1213 | O101: 1339
A102: Colusa65% AMI | B102: =B99*2*0.65 -> 31720 | C102: =C99*2*0.65 -> 36270 | D102: 40820 | E102: 45305 | F102: 48945 | G102: 52585 | H102: 56225 | I102: 59865 | J102: 793 | K102: 849 | L102: 1020 | M102: 1178 | N102: 1314 | O102: 1451
A103: Colusa70% AMI | B103: =B99*2*0.7 -> 34160 | C103: =C99*2*0.7 -> 39060 | D103: 43960 | E103: 48790 | F103: 52710 | G103: 56630 | H103: 60550 | I103: 64470 | J103: 854 | K103: 915 | L103: 1099 | M103: 1268 | N103: 1415 | O103: 1562
A104: Colusa75% AMI | B104: =B99*2*0.75 -> 36600 | C104: =C99*2*0.75 -> 41850 | D104: 47100 | E104: 52275 | F104: 56475 | G104: 60675 | H104: 64875 | I104: 69075 | J104: 915 | K104: 980 | L104: 1177 | M104: 1359 | N104: 1516 | O104: 1674
A105: Colusa80% AMI | B105: =B99*2*0.8 -> 39040 | C105: =C99*2*0.8 -> 44640 | D105: 50240 | E105: 55760 | F105: 60240 | G105: 64720 | H105: 69200 | I105: 73680 | J105: 976 | K105: 1046 | L105: 1256 | M105: 1450 | N105: 1618 | O105: 1786
A106: Colusa90% AMI | B106: =B99*2*0.9 -> 43920 | C106: =C99*2*0.9 -> 50220 | D106: 56520 | E106: 62730 | F106: 67770 | G106: 72810 | H106: 77850 | I106: 82890 | J106: 1098 | K106: 1176 | L106: 1413 | M106: 1631 | N106: 1820 | O106: 2009
A107: Colusa100% AMI | B107: =B99*2 -> 48800 | C107: =C99*2 -> 55800 | D107: 62800 | E107: 69700 | F107: 75300 | G107: 80900 | H107: 86500 | I107: 92100 | J107: =J99*2 -> 1220 | K107: =K99*2 -> 1306 | L107: 1570 | M107: 1812 | N107: 2022 | O107: 2232
A108: Colusa110% AMI | B108: =B99*2*1.1 -> 53680 | C108: =C99*2*1.1 -> 61380 | D108: 69080 | E108: 76670 | F108: 82830 | G108: 88990 | H108: 95150 | I108: 101310 | J108: =TRUNC(B108/12*0.3) -> 1342 | K108: =TRUNC((B108+C108)/2/12*0.3) -> 1438 | L108: =TRUNC((D108)/12*0.3) -> 1727 | M108: =TRUNC(((E108+F108)/2)/12*0.3) -> 1993 | N108: =TRUNC(G108/12*0.3) -> 2224 | O108: =TRUNC(((H108+I108)/2)/12*0.3) -> 2455
A109: Colusa120% AMI | B109: =B99*2*1.2 -> 58560 | C109: =C99*2*1.2 -> 66960 | D109: 75360 | E109: 83640 | F109: 90360 | G109: 97080 | H109: 103800 | I109: 110520 | J109: 1464 | K109: 1569 | L109: 1884 | M109: 2175 | N109: 2427 | O109: 2679
A110: Contra Costa15% AMI | B110: =B117*2*0.15 -> 14385 | C110: =C117*2*0.15 -> 16440 | D110: =D117*2*0.15 -> 18495 | E110: =E117*2*0.15 -> 20550 | F110: =F117*2*0.15 -> 22200 | G110: =G117*2*0.15 -> 23850 | H110: 25485 | I110: 27135 | J110: 359 | K110: 385 | L110: 462 | M110: 534 | N110: 596 | O110: 657
A111: Contra Costa20% AMI | B111: =B117*2*0.2 -> 19180 | C111: =C117*2*0.2 -> 21920 | D111: 24660 | E111: 27400 | F111: 29600 | G111: 31800 | H111: 33980 | I111: 36180 | J111: 479 | K111: 513 | L111: 616 | M111: 712 | N111: 795 | O111: 877
A112: Contra Costa25% AMI | B112: =B117*2*0.25 -> 23975 | C112: =C117*2*0.25 -> 27400 | D112: 30825 | E112: 34250 | F112: 37000 | G112: 39750 | H112: 42475 | I112: 45225 | J112: 599 | K112: 642 | L112: 770 | M112: 890 | N112: 993 | O112: 1096
A113: Contra Costa30% AMI | B113: =B117*2*0.3 -> 28770 | C113: =C117*2*0.3 -> 32880 | D113: 36990 | E113: 41100 | F113: 44400 | G113: 47700 | H113: 50970 | I113: 54270 | J113: 719 | K113: 770 | L113: 924 | M113: 1068 | N113: 1192 | O113: 1315
A114: Contra Costa35% AMI | B114: =B117*2*0.35 -> 33565 | C114: =C117*2*0.35 -> 38360 | D114: 43155 | E114: 47950 | F114: 51800 | G114: 55650 | H114: 59465 | I114: 63315 | J114: 839 | K114: 899 | L114: 1078 | M114: 1246 | N114: 1391 | O114: 1534
A115: Contra Costa40% AMI | B115: =B117*2*0.4 -> 38360 | C115: =C117*2*0.4 -> 43840 | D115: 49320 | E115: 54800 | F115: 59200 | G115: 63600 | H115: 67960 | I115: 72360 | J115: 959 | K115: 1027 | L115: 1233 | M115: 1425 | N115: 1590 | O115: 1754
A116: Contra Costa45% AMI | B116: =B117*2*0.45 -> 43155 | C116: =C117*2*0.45 -> 49320 | D116: =D117*2*0.45 -> 55485 | E116: =E117*2*0.45 -> 61650 | F116: =F117*2*0.45 -> 66600 | G116: =G117*2*0.45 -> 71550 | H116: =H117*2*0.45 -> 76455 | I116: =I117*2*0.45 -> 81405 | J116: 1078 | K116: 1155 | L116: 1387 | M116: 1603 | N116: 1788 | O116: 1973
A117: Contra Costa50% AMI | B117: ='MTSP 50% Income Limits '!B8 -> 47950 | C117: ='MTSP 50% Income Limits '!C8 -> 54800 | D117: ='MTSP 50% Income Limits '!D8 -> 61650 | E117: ='MTSP 50% Income Limits '!E8 -> 68500 | F117: ='MTSP 50% Income Limits '!F8 -> 74000 | G117: ='MTSP 50% Income Limits '!G8 -> 79500 | H117: ='MTSP 50% Income Limits '!H8 -> 84950 | I117: ='MTSP 50% Income Limits '!I8 -> 90450 | J117: =TRUNC(B117/12*0.3) -> 1198 | K117: =TRUNC((B117+C117)/2/12*0.3) -> 1284 | L117: =TRUNC((D117)/12*0.3) -> 1541 | M117: =TRUNC(((E117+F117)/2)/12*0.3) -> 1781 | N117: =TRUNC(G117/12*0.3) -> 1987 | O117: =TRUNC(((H117+I117)/2)/12*0.3) -> 2192
A118: Contra Costa55% AMI | B118: =B117*2*0.55 -> 52745 | C118: =C117*2*0.55 -> 60280 | D118: =D117*2*0.55 -> 67815 | E118: =E117*2*0.55 -> 75350 | F118: =F117*2*0.55 -> 81400 | G118: =G117*2*0.55 -> 87450 | H118: =H117*2*0.55 -> 93445 | I118: =I117*2*0.55 -> 99495 | J118: =TRUNC(B118/12*0.3) -> 1318 | K118: =TRUNC((B118+C118)/2/12*0.3) -> 1412 | L118: =TRUNC((D118)/12*0.3) -> 1695 | M118: =TRUNC(((E118+F118)/2)/12*0.3) -> 1959 | N118: =TRUNC(G118/12*0.3) -> 2186 | O118: =TRUNC(((H118+I118)/2)/12*0.3) -> 2411
A119: Contra Costa60% AMI | B119: =B117*2*0.6 -> 57540 | C119: =C117*2*0.6 -> 65760 | D119: 73980 | E119: 82200 | F119: 88800 | G119: 95400 | H119: 101940 | I119: 108540 | J119: 1438 | K119: 1541 | L119: 1849 | M119: 2137 | N119: 2385 | O119: 2631
A120: Contra Costa65% AMI | B120: =B117*2*0.65 -> 62335 | C120: =C117*2*0.65 -> 71240 | D120: 80145 | E120: 89050 | F120: 96200 | G120: 103350 | H120: 110435 | I120: 117585 | J120: 1558 | K120: 1669 | L120: 2003 | M120: 2315 | N120: 2583 | O120: 2850
A121: Contra Costa70% AMI | B121: =B117*2*0.7 -> 67130 | C121: =C117*2*0.7 -> 76720 | D121: 86310 | E121: 95900 | F121: 103600 | G121: 111300 | H121: 118930 | I121: 126630 | J121: 1678 | K121: 1798 | L121: 2157 | M121: 2493 | N121: 2782 | O121: 3069
A122: Contra Costa75% AMI | B122: =B117*2*0.75 -> 71925 | C122: =C117*2*0.75 -> 82200 | D122: 92475 | E122: 102750 | F122: 111000 | G122: 119250 | H122: 127425 | I122: 135675 | J122: 1798 | K122: 1926 | L122: 2311 | M122: 2671 | N122: 2981 | O122: 3288
A123: Contra Costa80% AMI | B123: =B117*2*0.8 -> 76720 | C123: =C117*2*0.8 -> 87680 | D123: 98640 | E123: 109600 | F123: 118400 | G123: 127200 | H123: 135920 | I123: 144720 | J123: 1918 | K123: 2055 | L123: 2466 | M123: 2850 | N123: 3180 | O123: 3508
A124: Contra Costa90% AMI | B124: =B117*2*0.9 -> 86310 | C124: =C117*2*0.9 -> 98640 | D124: 110970 | E124: 123300 | F124: 133200 | G124: 143100 | H124: 152910 | I124: 162810 | J124: 2157 | K124: 2311 | L124: 2774 | M124: 3206 | N124: 3577 | O124: 3946
A125: Contra Costa100% AMI | B125: =B117*2 -> 95900 | C125: =C117*2 -> 109600 | D125: 123300 | E125: 137000 | F125: 148000 | G125: 159000 | H125: 169900 | I125: 180900 | J125: =J117*2 -> 2396 | K125: =K117*2 -> 2568 | L125: 3082 | M125: 3562 | N125: 3974 | O125: 4384
A126: Contra Costa110% AMI | B126: =B117*2*1.1 -> 105490 | C126: =C117*2*1.1 -> 120560 | D126: 135630 | E126: 150700 | F126: 162800 | G126: 174900 | H126: 186890 | I126: 198990 | J126: =TRUNC(B126/12*0.3) -> 2637 | K126: =TRUNC((B126+C126)/2/12*0.3) -> 2825 | L126: =TRUNC((D126)/12*0.3) -> 3390 | M126: =TRUNC(((E126+F126)/2)/12*0.3) -> 3918 | N126: =TRUNC(G126/12*0.3) -> 4372 | O126: =TRUNC(((H126+I126)/2)/12*0.3) -> 4823
A127: Contra Costa120% AMI | B127: =B117*2*1.2 -> 115080 | C127: =C117*2*1.2 -> 131520 | D127: 147960 | E127: 164400 | F127: 177600 | G127: 190800 | H127: 203880 | I127: 217080 | J127: 2877 | K127: 3082 | L127: 3699 | M127: 4275 | N127: 4770 | O127: 5262
A128: Del Norte15% AMI | B128: =B135*2*0.15 -> 7320 | C128: =C135*2*0.15 -> 8370 | D128: =D135*2*0.15 -> 9420 | E128: =E135*2*0.15 -> 10455 | F128: =F135*2*0.15 -> 11295 | G128: =G135*2*0.15 -> 12135 | H128: 12975 | I128: 13815 | J128: 183 | K128: 196 | L128: 235 | M128: 271 | N128: 303 | O128: 334
A129: Del Norte20% AMI | B129: =B135*2*0.2 -> 9760 | C129: =C135*2*0.2 -> 11160 | D129: 12560 | E129: 13940 | F129: 15060 | G129: 16180 | H129: 17300 | I129: 18420 | J129: 244 | K129: 261 | L129: 314 | M129: 362 | N129: 404 | O129: 446
A130: Del Norte25% AMI | B130: =B135*2*0.25 -> 12200 | C130: =C135*2*0.25 -> 13950 | D130: 15700 | E130: 17425 | F130: 18825 | G130: 20225 | H130: 21625 | I130: 23025 | J130: 305 | K130: 326 | L130: 392 | M130: 453 | N130: 505 | O130: 558
A131: Del Norte30% AMI | B131: =B135*2*0.3 -> 14640 | C131: =C135*2*0.3 -> 16740 | D131: 18840 | E131: 20910 | F131: 22590 | G131: 24270 | H131: 25950 | I131: 27630 | J131: 366 | K131: 392 | L131: 471 | M131: 543 | N131: 606 | O131: 669
A132: Del Norte35% AMI | B132: =B135*2*0.35 -> 17080 | C132: =C135*2*0.35 -> 19530 | D132: 21980 | E132: 24395 | F132: 26355 | G132: 28315 | H132: 30275 | I132: 32235 | J132: 427 | K132: 457 | L132: 549 | M132: 634 | N132: 707 | O132: 781
A133: Del Norte40% AMI | B133: =B135*2*0.4 -> 19520 | C133: =C135*2*0.4 -> 22320 | D133: 25120 | E133: 27880 | F133: 30120 | G133: 32360 | H133: 34600 | I133: 36840 | J133: 488 | K133: 523 | L133: 628 | M133: 725 | N133: 809 | O133: 893
A134: Del Norte45% AMI | B134: =B135*2*0.45 -> 21960 | C134: =C135*2*0.45 -> 25110 | D134: =D135*2*0.45 -> 28260 | E134: =E135*2*0.45 -> 31365 | F134: =F135*2*0.45 -> 33885 | G134: =G135*2*0.45 -> 36405 | H134: =H135*2*0.45 -> 38925 | I134: =I135*2*0.45 -> 41445 | J134: 549 | K134: 588 | L134: 706 | M134: 815 | N134: 910 | O134: 1004
A135: Del Norte50% AMI | B135: ='MTSP 50% Income Limits '!B9 -> 24400 | C135: ='MTSP 50% Income Limits '!C9 -> 27900 | D135: ='MTSP 50% Income Limits '!D9 -> 31400 | E135: ='MTSP 50% Income Limits '!E9 -> 34850 | F135: ='MTSP 50% Income Limits '!F9 -> 37650 | G135: ='MTSP 50% Income Limits '!G9 -> 40450 | H135: ='MTSP 50% Income Limits '!H9 -> 43250 | I135: ='MTSP 50% Income Limits '!I9 -> 46050 | J135: =TRUNC(B135/12*0.3) -> 610 | K135: =TRUNC((B135+C135)/2/12*0.3) -> 653 | L135: =TRUNC((D135)/12*0.3) -> 785 | M135: =TRUNC(((E135+F135)/2)/12*0.3) -> 906 | N135: =TRUNC(G135/12*0.3) -> 1011 | O135: =TRUNC(((H135+I135)/2)/12*0.3) -> 1116
A136: Del Norte55% AMI | B136: =B135*2*0.55 -> 26840 | C136: =C135*2*0.55 -> 30690 | D136: =D135*2*0.55 -> 34540 | E136: =E135*2*0.55 -> 38335 | F136: =F135*2*0.55 -> 41415 | G136: =G135*2*0.55 -> 44495 | H136: =H135*2*0.55 -> 47575 | I136: =I135*2*0.55 -> 50655 | J136: =TRUNC(B136/12*0.3) -> 671 | K136: =TRUNC((B136+C136)/2/12*0.3) -> 719 | L136: =TRUNC((D136)/12*0.3) -> 863 | M136: =TRUNC(((E136+F136)/2)/12*0.3) -> 996 | N136: =TRUNC(G136/12*0.3) -> 1112 | O136: =TRUNC(((H136+I136)/2)/12*0.3) -> 1227
A137: Del Norte60% AMI | B137: =B135*2*0.6 -> 29280 | C137: =C135*2*0.6 -> 33480 | D137: 37680 | E137: 41820 | F137: 45180 | G137: 48540 | H137: 51900 | I137: 55260 | J137: 732 | K137: 784 | L137: 942 | M137: 1087 | N137: 1213 | O137: 1339
A138: Del Norte65% AMI | B138: =B135*2*0.65 -> 31720 | C138: =C135*2*0.65 -> 36270 | D138: 40820 | E138: 45305 | F138: 48945 | G138: 52585 | H138: 56225 | I138: 59865 | J138: 793 | K138: 849 | L138: 1020 | M138: 1178 | N138: 1314 | O138: 1451
A139: Del Norte70% AMI | B139: =B135*2*0.7 -> 34160 | C139: =C135*2*0.7 -> 39060 | D139: 43960 | E139: 48790 | F139: 52710 | G139: 56630 | H139: 60550 | I139: 64470 | J139: 854 | K139: 915 | L139: 1099 | M139: 1268 | N139: 1415 | O139: 1562
A140: Del Norte75% AMI | B140: =B135*2*0.75 -> 36600 | C140: =C135*2*0.75 -> 41850 | D140: 47100 | E140: 52275 | F140: 56475 | G140: 60675 | H140: 64875 | I140: 69075 | J140: 915 | K140: 980 | L140: 1177 | M140: 1359 | N140: 1516 | O140: 1674
A141: Del Norte80% AMI | B141: =B135*2*0.8 -> 39040 | C141: =C135*2*0.8 -> 44640 | D141: 50240 | E141: 55760 | F141: 60240 | G141: 64720 | H141: 69200 | I141: 73680 | J141: 976 | K141: 1046 | L141: 1256 | M141: 1450 | N141: 1618 | O141: 1786
A142: Del Norte90% AMI | B142: =B135*2*0.9 -> 43920 | C142: =C135*2*0.9 -> 50220 | D142: 56520 | E142: 62730 | F142: 67770 | G142: 72810 | H142: 77850 | I142: 82890 | J142: 1098 | K142: 1176 | L142: 1413 | M142: 1631 | N142: 1820 | O142: 2009
A143: Del Norte100% AMI | B143: =B135*2 -> 48800 | C143: =C135*2 -> 55800 | D143: 62800 | E143: 69700 | F143: 75300 | G143: 80900 | H143: 86500 | I143: 92100 | J143: =J135*2 -> 1220 | K143: =K135*2 -> 1306 | L143: 1570 | M143: 1812 | N143: 2022 | O143: 2232
A144: Del Norte110% AMI | B144: =B135*2*1.1 -> 53680 | C144: =C135*2*1.1 -> 61380 | D144: 69080 | E144: 76670 | F144: 82830 | G144: 88990 | H144: 95150 | I144: 101310 | J144: =TRUNC(B144/12*0.3) -> 1342 | K144: =TRUNC((B144+C144)/2/12*0.3) -> 1438 | L144: =TRUNC((D144)/12*0.3) -> 1727 | M144: =TRUNC(((E144+F144)/2)/12*0.3) -> 1993 | N144: =TRUNC(G144/12*0.3) -> 2224 | O144: =TRUNC(((H144+I144)/2)/12*0.3) -> 2455
A145: Del Norte120% AMI | B145: =B135*2*1.2 -> 58560 | C145: =C135*2*1.2 -> 66960 | D145: 75360 | E145: 83640 | F145: 90360 | G145: 97080 | H145: 103800 | I145: 110520 | J145: 1464 | K145: 1569 | L145: 1884 | M145: 2175 | N145: 2427 | O145: 2679
A146: El Dorado15% AMI | B146: =B153*2*0.15 -> 9525 | C146: =C153*2*0.15 -> 10875 | D146: =D153*2*0.15 -> 12240 | E146: =E153*2*0.15 -> 13590 | F146: =F153*2*0.15 -> 14685 | G146: =G153*2*0.15 -> 15765 | H146: 16860 | I146: 17940 | J146: 238 | K146: 255 | L146: 306 | M146: 353 | N146: 394 | O146: 435
A147: El Dorado20% AMI | B147: =B153*2*0.2 -> 12700 | C147: =C153*2*0.2 -> 14500 | D147: 16320 | E147: 18120 | F147: 19580 | G147: 21020 | H147: 22480 | I147: 23920 | J147: 317 | K147: 340 | L147: 408 | M147: 471 | N147: 525 | O147: 580
A148: El Dorado25% AMI | B148: =B153*2*0.25 -> 15875 | C148: =C153*2*0.25 -> 18125 | D148: 20400 | E148: 22650 | F148: 24475 | G148: 26275 | H148: 28100 | I148: 29900 | J148: 396 | K148: 425 | L148: 510 | M148: 589 | N148: 656 | O148: 725
A149: El Dorado30% AMI | B149: =B153*2*0.3 -> 19050 | C149: =C153*2*0.3 -> 21750 | D149: 24480 | E149: 27180 | F149: 29370 | G149: 31530 | H149: 33720 | I149: 35880 | J149: 476 | K149: 510 | L149: 612 | M149: 706 | N149: 788 | O149: 870
A150: El Dorado35% AMI | B150: =B153*2*0.35 -> 22225 | C150: =C153*2*0.35 -> 25375 | D150: 28560 | E150: 31710 | F150: 34265 | G150: 36785 | H150: 39340 | I150: 41860 | J150: 555 | K150: 595 | L150: 714 | M150: 824 | N150: 919 | O150: 1015
A151: El Dorado40% AMI | B151: =B153*2*0.4 -> 25400 | C151: =C153*2*0.4 -> 29000 | D151: 32640 | E151: 36240 | F151: 39160 | G151: 42040 | H151: 44960 | I151: 47840 | J151: 635 | K151: 680 | L151: 816 | M151: 942 | N151: 1051 | O151: 1160
A152: El Dorado45% AMI | B152: =B153*2*0.45 -> 28575 | C152: =C153*2*0.45 -> 32625 | D152: =D153*2*0.45 -> 36720 | E152: =E153*2*0.45 -> 40770 | F152: =F153*2*0.45 -> 44055 | G152: =G153*2*0.45 -> 47295 | H152: =H153*2*0.45 -> 50580 | I152: =I153*2*0.45 -> 53820 | J152: 714 | K152: 765 | L152: 918 | M152: 1060 | N152: 1182 | O152: 1305
A153: El Dorado50% AMI | B153: ='MTSP 50% Income Limits '!B10 -> 31750 | C153: ='MTSP 50% Income Limits '!C10 -> 36250 | D153: ='MTSP 50% Income Limits '!D10 -> 40800 | E153: ='MTSP 50% Income Limits '!E10 -> 45300 | F153: ='MTSP 50% Income Limits '!F10 -> 48950 | G153: ='MTSP 50% Income Limits '!G10 -> 52550 | H153: ='MTSP 50% Income Limits '!H10 -> 56200 | I153: ='MTSP 50% Income Limits '!I10 -> 59800 | J153: =TRUNC(B153/12*0.3) -> 793 | K153: =TRUNC((B153+C153)/2/12*0.3) -> 850 | L153: =TRUNC((D153)/12*0.3) -> 1020 | M153: =TRUNC(((E153+F153)/2)/12*0.3) -> 1178 | N153: =TRUNC(G153/12*0.3) -> 1313 | O153: =TRUNC(((H153+I153)/2)/12*0.3) -> 1450
A154: El Dorado55% AMI | B154: =B153*2*0.55 -> 34925 | C154: =C153*2*0.55 -> 39875 | D154: =D153*2*0.55 -> 44880 | E154: =E153*2*0.55 -> 49830 | F154: =F153*2*0.55 -> 53845 | G154: =G153*2*0.55 -> 57805 | H154: =H153*2*0.55 -> 61820 | I154: =I153*2*0.55 -> 65780 | J154: =TRUNC(B154/12*0.3) -> 873 | K154: =TRUNC((B154+C154)/2/12*0.3) -> 935 | L154: =TRUNC((D154)/12*0.3) -> 1122 | M154: =TRUNC(((E154+F154)/2)/12*0.3) -> 1295 | N154: =TRUNC(G154/12*0.3) -> 1445 | O154: =TRUNC(((H154+I154)/2)/12*0.3) -> 1595
A155: El Dorado60% AMI | B155: =B153*2*0.6 -> 38100 | C155: =C153*2*0.6 -> 43500 | D155: 48960 | E155: 54360 | F155: 58740 | G155: 63060 | H155: 67440 | I155: 71760 | J155: 952 | K155: 1020 | L155: 1224 | M155: 1413 | N155: 1576 | O155: 1740
A156: El Dorado65% AMI | B156: =B153*2*0.65 -> 41275 | C156: =C153*2*0.65 -> 47125 | D156: 53040 | E156: 58890 | F156: 63635 | G156: 68315 | H156: 73060 | I156: 77740 | J156: 1031 | K156: 1105 | L156: 1326 | M156: 1531 | N156: 1707 | O156: 1885
A157: El Dorado70% AMI | B157: =B153*2*0.7 -> 44450 | C157: =C153*2*0.7 -> 50750 | D157: 57120 | E157: 63420 | F157: 68530 | G157: 73570 | H157: 78680 | I157: 83720 | J157: 1111 | K157: 1190 | L157: 1428 | M157: 1649 | N157: 1839 | O157: 2030
A158: El Dorado75% AMI | B158: =B153*2*0.75 -> 47625 | C158: =C153*2*0.75 -> 54375 | D158: 61200 | E158: 67950 | F158: 73425 | G158: 78825 | H158: 84300 | I158: 89700 | J158: 1190 | K158: 1275 | L158: 1530 | M158: 1767 | N158: 1970 | O158: 2175
A159: El Dorado80% AMI | B159: =B153*2*0.8 -> 50800 | C159: =C153*2*0.8 -> 58000 | D159: 65280 | E159: 72480 | F159: 78320 | G159: 84080 | H159: 89920 | I159: 95680 | J159: 1270 | K159: 1360 | L159: 1632 | M159: 1885 | N159: 2102 | O159: 2320
A160: El Dorado90% AMI | B160: =B153*2*0.9 -> 57150 | C160: =C153*2*0.9 -> 65250 | D160: 73440 | E160: 81540 | F160: 88110 | G160: 94590 | H160: 101160 | I160: 107640 | J160: 1428 | K160: 1530 | L160: 1836 | M160: 2120 | N160: 2364 | O160: 2610
A161: El Dorado100% AMI | B161: =B153*2 -> 63500 | C161: =C153*2 -> 72500 | D161: 81600 | E161: 90600 | F161: 97900 | G161: 105100 | H161: 112400 | I161: 119600 | J161: =J153*2 -> 1586 | K161: =K153*2 -> 1700 | L161: 2040 | M161: 2356 | N161: 2626 | O161: 2900
A162: El Dorado110% AMI | B162: =B153*2*1.1 -> 69850 | C162: =C153*2*1.1 -> 79750 | D162: 89760 | E162: 99660 | F162: 107690 | G162: 115610 | H162: 123640 | I162: 131560 | J162: =TRUNC(B162/12*0.3) -> 1746 | K162: =TRUNC((B162+C162)/2/12*0.3) -> 1870 | L162: =TRUNC((D162)/12*0.3) -> 2244 | M162: =TRUNC(((E162+F162)/2)/12*0.3) -> 2591 | N162: =TRUNC(G162/12*0.3) -> 2890 | O162: =TRUNC(((H162+I162)/2)/12*0.3) -> 3190
A163: El Dorado120% AMI | B163: =B153*2*1.2 -> 76200 | C163: =C153*2*1.2 -> 87000 | D163: 97920 | E163: 108720 | F163: 117480 | G163: 126120 | H163: 134880 | I163: 143520 | J163: 1905 | K163: 2040 | L163: 2448 | M163: 2827 | N163: 3153 | O163: 3480
A164: Fresno15% AMI | B164: =B171*2*0.15 -> 7320 | C164: =C171*2*0.15 -> 8370 | D164: =D171*2*0.15 -> 9420 | E164: =E171*2*0.15 -> 10455 | F164: =F171*2*0.15 -> 11295 | G164: =G171*2*0.15 -> 12135 | H164: 12975 | I164: 13815 | J164: 183 | K164: 196 | L164: 235 | M164: 271 | N164: 303 | O164: 334
A165: Fresno20% AMI | B165: =B171*2*0.2 -> 9760 | C165: =C171*2*0.2 -> 11160 | D165: 12560 | E165: 13940 | F165: 15060 | G165: 16180 | H165: 17300 | I165: 18420 | J165: 244 | K165: 261 | L165: 314 | M165: 362 | N165: 404 | O165: 446
A166: Fresno25% AMI | B166: =B171*2*0.25 -> 12200 | C166: =C171*2*0.25 -> 13950 | D166: 15700 | E166: 17425 | F166: 18825 | G166: 20225 | H166: 21625 | I166: 23025 | J166: 305 | K166: 326 | L166: 392 | M166: 453 | N166: 505 | O166: 558
A167: Fresno30% AMI | B167: =B171*2*0.3 -> 14640 | C167: =C171*2*0.3 -> 16740 | D167: 18840 | E167: 20910 | F167: 22590 | G167: 24270 | H167: 25950 | I167: 27630 | J167: 366 | K167: 392 | L167: 471 | M167: 543 | N167: 606 | O167: 669
A168: Fresno35% AMI | B168: =B171*2*0.35 -> 17080 | C168: =C171*2*0.35 -> 19530 | D168: 21980 | E168: 24395 | F168: 26355 | G168: 28315 | H168: 30275 | I168: 32235 | J168: 427 | K168: 457 | L168: 549 | M168: 634 | N168: 707 | O168: 781
A169: Fresno40% AMI | B169: =B171*2*0.4 -> 19520 | C169: =C171*2*0.4 -> 22320 | D169: 25120 | E169: 27880 | F169: 30120 | G169: 32360 | H169: 34600 | I169: 36840 | J169: 488 | K169: 523 | L169: 628 | M169: 725 | N169: 809 | O169: 893
A170: Fresno45% AMI | B170: =B171*2*0.45 -> 21960 | C170: =C171*2*0.45 -> 25110 | D170: =D171*2*0.45 -> 28260 | E170: =E171*2*0.45 -> 31365 | F170: =F171*2*0.45 -> 33885 | G170: =G171*2*0.45 -> 36405 | H170: =H171*2*0.45 -> 38925 | I170: =I171*2*0.45 -> 41445 | J170: 549 | K170: 588 | L170: 706 | M170: 815 | N170: 910 | O170: 1004
A171: Fresno50% AMI | B171: ='MTSP 50% Income Limits '!B11 -> 24400 | C171: ='MTSP 50% Income Limits '!C11 -> 27900 | D171: ='MTSP 50% Income Limits '!D11 -> 31400 | E171: ='MTSP 50% Income Limits '!E11 -> 34850 | F171: ='MTSP 50% Income Limits '!F11 -> 37650 | G171: ='MTSP 50% Income Limits '!G11 -> 40450 | H171: ='MTSP 50% Income Limits '!H11 -> 43250 | I171: ='MTSP 50% Income Limits '!I11 -> 46050 | J171: =TRUNC(B171/12*0.3) -> 610 | K171: =TRUNC((B171+C171)/2/12*0.3) -> 653 | L171: =TRUNC((D171)/12*0.3) -> 785 | M171: =TRUNC(((E171+F171)/2)/12*0.3) -> 906 | N171: =TRUNC(G171/12*0.3) -> 1011 | O171: =TRUNC(((H171+I171)/2)/12*0.3) -> 1116
A172: Fresno55% AMI | B172: =B171*2*0.55 -> 26840 | C172: =C171*2*0.55 -> 30690 | D172: =D171*2*0.55 -> 34540 | E172: =E171*2*0.55 -> 38335 | F172: =F171*2*0.55 -> 41415 | G172: =G171*2*0.55 -> 44495 | H172: =H171*2*0.55 -> 47575 | I172: =I171*2*0.55 -> 50655 | J172: =TRUNC(B172/12*0.3) -> 671 | K172: =TRUNC((B172+C172)/2/12*0.3) -> 719 | L172: =TRUNC((D172)/12*0.3) -> 863 | M172: =TRUNC(((E172+F172)/2)/12*0.3) -> 996 | N172: =TRUNC(G172/12*0.3) -> 1112 | O172: =TRUNC(((H172+I172)/2)/12*0.3) -> 1227
A173: Fresno60% AMI | B173: =B171*2*0.6 -> 29280 | C173: =C171*2*0.6 -> 33480 | D173: 37680 | E173: 41820 | F173: 45180 | G173: 48540 | H173: 51900 | I173: 55260 | J173: 732 | K173: 784 | L173: 942 | M173: 1087 | N173: 1213 | O173: 1339
A174: Fresno65% AMI | B174: =B171*2*0.65 -> 31720 | C174: =C171*2*0.65 -> 36270 | D174: 40820 | E174: 45305 | F174: 48945 | G174: 52585 | H174: 56225 | I174: 59865 | J174: 793 | K174: 849 | L174: 1020 | M174: 1178 | N174: 1314 | O174: 1451
A175: Fresno70% AMI | B175: =B171*2*0.7 -> 34160 | C175: =C171*2*0.7 -> 39060 | D175: 43960 | E175: 48790 | F175: 52710 | G175: 56630 | H175: 60550 | I175: 64470 | J175: 854 | K175: 915 | L175: 1099 | M175: 1268 | N175: 1415 | O175: 1562
A176: Fresno75% AMI | B176: =B171*2*0.75 -> 36600 | C176: =C171*2*0.75 -> 41850 | D176: 47100 | E176: 52275 | F176: 56475 | G176: 60675 | H176: 64875 | I176: 69075 | J176: 915 | K176: 980 | L176: 1177 | M176: 1359 | N176: 1516 | O176: 1674
A177: Fresno80% AMI | B177: =B171*2*0.8 -> 39040 | C177: =C171*2*0.8 -> 44640 | D177: 50240 | E177: 55760 | F177: 60240 | G177: 64720 | H177: 69200 | I177: 73680 | J177: 976 | K177: 1046 | L177: 1256 | M177: 1450 | N177: 1618 | O177: 1786
A178: Fresno90% AMI | B178: =B171*2*0.9 -> 43920 | C178: =C171*2*0.9 -> 50220 | D178: 56520 | E178: 62730 | F178: 67770 | G178: 72810 | H178: 77850 | I178: 82890 | J178: 1098 | K178: 1176 | L178: 1413 | M178: 1631 | N178: 1820 | O178: 2009
A179: Fresno100% AMI | B179: =B171*2 -> 48800 | C179: =C171*2 -> 55800 | D179: 62800 | E179: 69700 | F179: 75300 | G179: 80900 | H179: 86500 | I179: 92100 | J179: =J171*2 -> 1220 | K179: =K171*2 -> 1306 | L179: 1570 | M179: 1812 | N179: 2022 | O179: 2232
A180: Fresno110% AMI | B180: =B171*2*1.1 -> 53680 | C180: =C171*2*1.1 -> 61380 | D180: 69080 | E180: 76670 | F180: 82830 | G180: 88990 | H180: 95150 | I180: 101310 | J180: =TRUNC(B180/12*0.3) -> 1342 | K180: =TRUNC((B180+C180)/2/12*0.3) -> 1438 | L180: =TRUNC((D180)/12*0.3) -> 1727 | M180: =TRUNC(((E180+F180)/2)/12*0.3) -> 1993 | N180: =TRUNC(G180/12*0.3) -> 2224 | O180: =TRUNC(((H180+I180)/2)/12*0.3) -> 2455
A181: Fresno120% AMI | B181: =B171*2*1.2 -> 58560 | C181: =C171*2*1.2 -> 66960 | D181: 75360 | E181: 83640 | F181: 90360 | G181: 97080 | H181: 103800 | I181: 110520 | J181: 1464 | K181: 1569 | L181: 1884 | M181: 2175 | N181: 2427 | O181: 2679
A182: Glenn15% AMI | B182: =B189*2*0.15 -> 7320 | C182: =C189*2*0.15 -> 8370 | D182: =D189*2*0.15 -> 9420 | E182: =E189*2*0.15 -> 10455 | F182: =F189*2*0.15 -> 11295 | G182: =G189*2*0.15 -> 12135 | H182: 12975 | I182: 13815 | J182: 183 | K182: 196 | L182: 235 | M182: 271 | N182: 303 | O182: 334
A183: Glenn20% AMI | B183: =B189*2*0.2 -> 9760 | C183: =C189*2*0.2 -> 11160 | D183: 12560 | E183: 13940 | F183: 15060 | G183: 16180 | H183: 17300 | I183: 18420 | J183: 244 | K183: 261 | L183: 314 | M183: 362 | N183: 404 | O183: 446
A184: Glenn25% AMI | B184: =B189*2*0.25 -> 12200 | C184: =C189*2*0.25 -> 13950 | D184: 15700 | E184: 17425 | F184: 18825 | G184: 20225 | H184: 21625 | I184: 23025 | J184: 305 | K184: 326 | L184: 392 | M184: 453 | N184: 505 | O184: 558
A185: Glenn30% AMI | B185: =B189*2*0.3 -> 14640 | C185: =C189*2*0.3 -> 16740 | D185: 18840 | E185: 20910 | F185: 22590 | G185: 24270 | H185: 25950 | I185: 27630 | J185: 366 | K185: 392 | L185: 471 | M185: 543 | N185: 606 | O185: 669
A186: Glenn35% AMI | B186: =B189*2*0.35 -> 17080 | C186: =C189*2*0.35 -> 19530 | D186: 21980 | E186: 24395 | F186: 26355 | G186: 28315 | H186: 30275 | I186: 32235 | J186: 427 | K186: 457 | L186: 549 | M186: 634 | N186: 707 | O186: 781
A187: Glenn40% AMI | B187: =B189*2*0.4 -> 19520 | C187: =C189*2*0.4 -> 22320 | D187: 25120 | E187: 27880 | F187: 30120 | G187: 32360 | H187: 34600 | I187: 36840 | J187: 488 | K187: 523 | L187: 628 | M187: 725 | N187: 809 | O187: 893
A188: Glenn45% AMI | B188: =B189*2*0.45 -> 21960 | C188: =C189*2*0.45 -> 25110 | D188: =D189*2*0.45 -> 28260 | E188: =E189*2*0.45 -> 31365 | F188: =F189*2*0.45 -> 33885 | G188: =G189*2*0.45 -> 36405 | H188: =H189*2*0.45 -> 38925 | I188: =I189*2*0.45 -> 41445 | J188: 549 | K188: 588 | L188: 706 | M188: 815 | N188: 910 | O188: 1004
A189: Glenn50% AMI | B189: ='MTSP 50% Income Limits '!B12 -> 24400 | C189: ='MTSP 50% Income Limits '!C12 -> 27900 | D189: ='MTSP 50% Income Limits '!D12 -> 31400 | E189: ='MTSP 50% Income Limits '!E12 -> 34850 | F189: ='MTSP 50% Income Limits '!F12 -> 37650 | G189: ='MTSP 50% Income Limits '!G12 -> 40450 | H189: ='MTSP 50% Income Limits '!H12 -> 43250 | I189: ='MTSP 50% Income Limits '!I12 -> 46050 | J189: =TRUNC(B189/12*0.3) -> 610 | K189: =TRUNC((B189+C189)/2/12*0.3) -> 653 | L189: =TRUNC((D189)/12*0.3) -> 785 | M189: =TRUNC(((E189+F189)/2)/12*0.3) -> 906 | N189: =TRUNC(G189/12*0.3) -> 1011 | O189: =TRUNC(((H189+I189)/2)/12*0.3) -> 1116
A190: Glenn55% AMI | B190: =B189*2*0.55 -> 26840 | C190: =C189*2*0.55 -> 30690 | D190: =D189*2*0.55 -> 34540 | E190: =E189*2*0.55 -> 38335 | F190: =F189*2*0.55 -> 41415 | G190: =G189*2*0.55 -> 44495 | H190: =H189*2*0.55 -> 47575 | I190: =I189*2*0.55 -> 50655 | J190: =TRUNC(B190/12*0.3) -> 671 | K190: =TRUNC((B190+C190)/2/12*0.3) -> 719 | L190: =TRUNC((D190)/12*0.3) -> 863 | M190: =TRUNC(((E190+F190)/2)/12*0.3) -> 996 | N190: =TRUNC(G190/12*0.3) -> 1112 | O190: =TRUNC(((H190+I190)/2)/12*0.3) -> 1227
A191: Glenn60% AMI | B191: =B189*2*0.6 -> 29280 | C191: =C189*2*0.6 -> 33480 | D191: 37680 | E191: 41820 | F191: 45180 | G191: 48540 | H191: 51900 | I191: 55260 | J191: 732 | K191: 784 | L191: 942 | M191: 1087 | N191: 1213 | O191: 1339
A192: Glenn65% AMI | B192: =B189*2*0.65 -> 31720 | C192: =C189*2*0.65 -> 36270 | D192: 40820 | E192: 45305 | F192: 48945 | G192: 52585 | H192: 56225 | I192: 59865 | J192: 793 | K192: 849 | L192: 1020 | M192: 1178 | N192: 1314 | O192: 1451
A193: Glenn70% AMI | B193: =B189*2*0.7 -> 34160 | C193: =C189*2*0.7 -> 39060 | D193: 43960 | E193: 48790 | F193: 52710 | G193: 56630 | H193: 60550 | I193: 64470 | J193: 854 | K193: 915 | L193: 1099 | M193: 1268 | N193: 1415 | O193: 1562
A194: Glenn75% AMI | B194: =B189*2*0.75 -> 36600 | C194: =C189*2*0.75 -> 41850 | D194: 47100 | E194: 52275 | F194: 56475 | G194: 60675 | H194: 64875 | I194: 69075 | J194: 915 | K194: 980 | L194: 1177 | M194: 1359 | N194: 1516 | O194: 1674
A195: Glenn80% AMI | B195: =B189*2*0.8 -> 39040 | C195: =C189*2*0.8 -> 44640 | D195: 50240 | E195: 55760 | F195: 60240 | G195: 64720 | H195: 69200 | I195: 73680 | J195: 976 | K195: 1046 | L195: 1256 | M195: 1450 | N195: 1618 | O195: 1786
A196: Glenn90% AMI | B196: =B189*2*0.9 -> 43920 | C196: =C189*2*0.9 -> 50220 | D196: 56520 | E196: 62730 | F196: 67770 | G196: 72810 | H196: 77850 | I196: 82890 | J196: 1098 | K196: 1176 | L196: 1413 | M196: 1631 | N196: 1820 | O196: 2009
A197: Glenn100% AMI | B197: =B189*2 -> 48800 | C197: =C189*2 -> 55800 | D197: 62800 | E197: 69700 | F197: 75300 | G197: 80900 | H197: 86500 | I197: 92100 | J197: =J189*2 -> 1220 | K197: =K189*2 -> 1306 | L197: 1570 | M197: 1812 | N197: 2022 | O197: 2232
A198: Glenn110% AMI | B198: =B189*2*1.1 -> 53680 | C198: =C189*2*1.1 -> 61380 | D198: 69080 | E198: 76670 | F198: 82830 | G198: 88990 | H198: 95150 | I198: 101310 | J198: =TRUNC(B198/12*0.3) -> 1342 | K198: =TRUNC((B198+C198)/2/12*0.3) -> 1438 | L198: =TRUNC((D198)/12*0.3) -> 1727 | M198: =TRUNC(((E198+F198)/2)/12*0.3) -> 1993 | N198: =TRUNC(G198/12*0.3) -> 2224 | O198: =TRUNC(((H198+I198)/2)/12*0.3) -> 2455
A199: Glenn120% AMI | B199: =B189*2*1.2 -> 58560 | C199: =C189*2*1.2 -> 66960 | D199: 75360 | E199: 83640 | F199: 90360 | G199: 97080 | H199: 103800 | I199: 110520 | J199: 1464 | K199: 1569 | L199: 1884 | M199: 2175 | N199: 2427 | O199: 2679
A200: Humboldt15% AMI | B200: =B207*2*0.15 -> 7320 | C200: =C207*2*0.15 -> 8370 | D200: =D207*2*0.15 -> 9420 | E200: =E207*2*0.15 -> 10455 | F200: =F207*2*0.15 -> 11295 | G200: =G207*2*0.15 -> 12135 | H200: 12975 | I200: 13815 | J200: 183 | K200: 196 | L200: 235 | M200: 271 | N200: 303 | O200: 334
... 845 more rows

Sheet MTSP 50% Income Limits (hidden)
A1: 2021 HOME & NHTF | B1: lim50_21p1 | C1: lim50_21p2 | D1: lim50_21p3 | E1: lim50_21p4 | F1: lim50_21p5 | G1: lim50_21p6 | H1: lim50_21p7 | I1: lim50_21p8
A2: Alameda | B2: 47950 | C2: 54800 | D2: 61650 | E2: 68500 | F2: 74000 | G2: 79500 | H2: 84950 | I2: 90450
A3: Alpine | B3: 28450 | C3: 32500 | D3: 36550 | E3: 40600 | F3: 43850 | G3: 47100 | H3: 50350 | I3: 53600
A4: Amador | B4: 27300 | C4: 31200 | D4: 35100 | E4: 38950 | F4: 42100 | G4: 45200 | H4: 48300 | I4: 51450
A5: Butte | B5: 24400 | C5: 27900 | D5: 31400 | E5: 34850 | F5: 37650 | G5: 40450 | H5: 43250 | I5: 46050
A6: Calaveras | B6: 28600 | C6: 32700 | D6: 36800 | E6: 40850 | F6: 44150 | G6: 47400 | H6: 50700 | I6: 53950
A7: Colusa | B7: 24400 | C7: 27900 | D7: 31400 | E7: 34850 | F7: 37650 | G7: 40450 | H7: 43250 | I7: 46050
A8: Contra Costa | B8: 47950 | C8: 54800 | D8: 61650 | E8: 68500 | F8: 74000 | G8: 79500 | H8: 84950 | I8: 90450
A9: Del Norte | B9: 24400 | C9: 27900 | D9: 31400 | E9: 34850 | F9: 37650 | G9: 40450 | H9: 43250 | I9: 46050
A10: El Dorado | B10: 31750 | C10: 36250 | D10: 40800 | E10: 45300 | F10: 48950 | G10: 52550 | H10: 56200 | I10: 59800
A11: Fresno | B11: 24400 | C11: 27900 | D11: 31400 | E11: 34850 | F11: 37650 | G11: 40450 | H11: 43250 | I11: 46050
A12: Glenn | B12: 24400 | C12: 27900 | D12: 31400 | E12: 34850 | F12: 37650 | G12: 40450 | H12: 43250 | I12: 46050
A13: Humboldt | B13: 24400 | C13: 27900 | D13: 31400 | E13: 34850 | F13: 37650 | G13: 40450 | H13: 43250 | I13: 46050
A14: Imperial | B14: 24400 | C14: 27900 | D14: 31400 | E14: 34850 | F14: 37650 | G14: 40450 | H14: 43250 | I14: 46050
A15: Inyo | B15: 25950 | C15: 29650 | D15: 33350 | E15: 37050 | F15: 40050 | G15: 43000 | H15: 45950 | I15: 48950
A16: Kern | B16: 24400 | C16: 27900 | D16: 31400 | E16: 34850 | F16: 37650 | G16: 40450 | H16: 43250 | I16: 46050
A17: Kings | B17: 24400 | C17: 27900 | D17: 31400 | E17: 34850 | F17: 37650 | G17: 40450 | H17: 43250 | I17: 46050
A18: Lake | B18: 24400 | C18: 27900 | D18: 31400 | E18: 34850 | F18: 37650 | G18: 40450 | H18: 43250 | I18: 46050
A19: Lassen | B19: 25300 | C19: 28900 | D19: 32500 | E19: 36100 | F19: 39000 | G19: 41900 | H19: 44800 | I19: 47700
A20: Los Angeles | B20: 41400 | C20: 47300 | D20: 53200 | E20: 59100 | F20: 63850 | G20: 68600 | H20: 73300 | I20: 78050
A21: Madera | B21: 24400 | C21: 27900 | D21: 31400 | E21: 34850 | F21: 37650 | G21: 40450 | H21: 43250 | I21: 46050
A22: Marin | B22: 63950 | C22: 73100 | D22: 82250 | E22: 91350 | F22: 98700 | G22: 106000 | H22: 113300 | I22: 120600
A23: Mariposa | B23: 24400 | C23: 27900 | D23: 31400 | E23: 34850 | F23: 37650 | G23: 40450 | H23: 43250 | I23: 46050
A24: Mendocino | B24: 25350 | C24: 28950 | D24: 32550 | E24: 36150 | F24: 39050 | G24: 41950 | H24: 44850 | I24: 47750
A25: Merced | B25: 24400 | C25: 27900 | D25: 31400 | E25: 34850 | F25: 37650 | G25: 40450 | H25: 43250 | I25: 46050
A26: Modoc | B26: 24400 | C26: 27900 | D26: 31400 | E26: 34850 | F26: 37650 | G26: 40450 | H26: 43250 | I26: 46050
A27: Mono | B27: 27650 | C27: 31600 | D27: 35550 | E27: 39450 | F27: 42650 | G27: 45800 | H27: 48950 | I27: 52100
A28: Monterey | B28: 35600 | C28: 40700 | D28: 45800 | E28: 50850 | F28: 54950 | G28: 59000 | H28: 63100 | I28: 67150
A29: Napa | B29: 39800 | C29: 45500 | D29: 51200 | E29: 56850 | F29: 61400 | G29: 65950 | H29: 70500 | I29: 75050
A30: Nevada | B30: 31450 | C30: 35950 | D30: 40450 | E30: 44900 | F30: 48500 | G30: 52100 | H30: 55700 | I30: 59300
A31: Orange | B31: 47100 | C31: 53800 | D31: 60550 | E31: 67250 | F31: 72650 | G31: 78050 | H31: 83400 | I31: 88800
A32: Placer | B32: 31750 | C32: 36250 | D32: 40800 | E32: 45300 | F32: 48950 | G32: 52550 | H32: 56200 | I32: 59800
A33: Plumas | B33: 25600 | C33: 29250 | D33: 32900 | E33: 36550 | F33: 39500 | G33: 42400 | H33: 45350 | I33: 48250
A34: Riverside | B34: 27650 | C34: 31600 | D34: 35550 | E34: 39500 | F34: 42700 | G34: 45850 | H34: 49000 | I34: 52150
A35: Sacramento | B35: 31750 | C35: 36250 | D35: 40800 | E35: 45300 | F35: 48950 | G35: 52550 | H35: 56200 | I35: 59800
A36: San Benito | B36: 34200 | C36: 39050 | D36: 43950 | E36: 48800 | F36: 52750 | G36: 56650 | H36: 60550 | I36: 64450
A37: San Bernardino | B37: 27650 | C37: 31600 | D37: 35550 | E37: 39500 | F37: 42700 | G37: 45850 | H37: 49000 | I37: 52150
A38: San Diego | B38: 42450 | C38: 48500 | D38: 54550 | E38: 60600 | F38: 65450 | G38: 70300 | H38: 75150 | I38: 80000
A39: San Francisco | B39: 63950 | C39: 73100 | D39: 82250 | E39: 91350 | F39: 98700 | G39: 106000 | H39: 113300 | I39: 120600
A40: San Joaquin | B40: 25900 | C40: 29600 | D40: 33300 | E40: 37000 | F40: 40000 | G40: 42950 | H40: 45900 | I40: 48850
A41: San Luis Obispo | B41: 34250 | C41: 39150 | D41: 44050 | E41: 48900 | F41: 52850 | G41: 56750 | H41: 60650 | I41: 64550
A42: San Mateo | B42: 63950 | C42: 73100 | D42: 82250 | E42: 91350 | F42: 98700 | G42: 106000 | H42: 113300 | I42: 120600
A43: Santa Barbara | B43: 43750 | C43: 50000 | D43: 56250 | E43: 62450 | F43: 67450 | G43: 72450 | H43: 77450 | I43: 82450
A44: Santa Clara | B44: 58000 | C44: 66300 | D44: 74600 | E44: 82850 | F44: 89500 | G44: 96150 | H44: 102750 | I44: 109400
A45: Santa Cruz | B45: 48650 | C45: 55600 | D45: 62550 | E45: 69500 | F45: 75100 | G45: 80650 | H45: 86200 | I45: 91750
A46: Shasta | B46: 24850 | C46: 28400 | D46: 31950 | E46: 35500 | F46: 38350 | G46: 41200 | H46: 44050 | I46: 46900
A47: Sierra | B47: 29600 | C47: 33800 | D47: 38050 | E47: 42250 | F47: 45650 | G47: 49050 | H47: 52400 | I47: 55800
A48: Siskiyou | B48: 24400 | C48: 27900 | D48: 31400 | E48: 34850 | F48: 37650 | G48: 40450 | H48: 43250 | I48: 46050
A49: Solano | B49: 34000 | C49: 38850 | D49: 43700 | E49: 48550 | F49: 52450 | G49: 56350 | H49: 60250 | I49: 64100
A50: Sonoma | B50: 40750 | C50: 46550 | D50: 52350 | E50: 58150 | F50: 62850 | G50: 67500 | H50: 72150 | I50: 76800
A51: Stanislaus | B51: 25000 | C51: 28550 | D51: 32100 | E51: 35650 | F51: 38550 | G51: 41400 | H51: 44250 | I51: 47100
A52: Sutter | B52: 24400 | C52: 27900 | D52: 31400 | E52: 34850 | F52: 37650 | G52: 40450 | H52: 43250 | I52: 46050
A53: Tehama | B53: 24400 | C53: 27900 | D53: 31400 | E53: 34850 | F53: 37650 | G53: 40450 | H53: 43250 | I53: 46050
A54: Trinity | B54: 24400 | C54: 27900 | D54: 31400 | E54: 34850 | F54: 37650 | G54: 40450 | H54: 43250 | I54: 46050
A55: Tulare | B55: 24400 | C55: 27900 | D55: 31400 | E55: 34850 | F55: 37650 | G55: 40450 | H55: 43250 | I55: 46050
A56: Tuolumne | B56: 26050 | C56: 29800 | D56: 33500 | E56: 37200 | F56: 40200 | G56: 43200 | H56: 46150 | I56: 49150
A57: Ventura | B57: 39250 | C57: 44850 | D57: 50450 | E57: 56050 | F57: 60550 | G57: 65050 | H57: 69550 | I57: 74000
A58: Yolo | B58: 31050 | C58: 35450 | D58: 39900 | E58: 44300 | F58: 47850 | G58: 51400 | H58: 54950 | I58: 58500
A59: Yuba | B59: 24400 | C59: 27900 | D59: 31400 | E59: 34850 | F59: 37650 | G59: 40450 | H59: 43250 | I59: 46050

Sheet Dropdowns (hidden)
A1: No | B1: Non-profit Developer | C1: Locality | D1: Employment Centers | E1: City | F1: Alameda | G1: Northern | H1: single story | I1: Fixed for Term | J1: Interest Only | K1: Fully Amortized | L1: no | M1: an area designated in the Program application that is a contiguous area located within an Urbanized Area (i) that has been previously developed, or where at least 75 percent of the perimeter of the area adjoins parcels that are developed with Urban Uses, and (ii) in which at least one development application has been approved or is pending approval for a residential or mixed-use residential project that meets the definition and criteria in this section for a QIP. | N1: Fully Amortized
A2: Yes, at least 75% of the area included within QIP was previously improved or used for any use other than Open Space, agriculture, forestry or mining waste storage | B2: For-profit Developer | C2: Public Housing Authority | D2: Retail Center | E2: County | F2: Alpine | G2: Northern | H2: town-house | I2: Fixed with Reset | J2: Deferred | K2: Amortized with Call | L2: (A) A general plan, or general plan amendment, adopted per Gov. Code §65300. | M2: a residential or mixed-use residential development project designated in the Program application that is located within an Urbanized Area on a site that has been previously developed, or on a vacant site where at least 75 percent of the perimeter of the site adjoins parcels that are developed with Urban Uses. A property is adjoining the side of a project site if the property is separated from the project site only by an improved public right-of-way. | N2: Amortized with Call
A3: Yes, at least 75% of QIP perimeter adjoining parcels are developed with Urban Uses or QIP is separated from parcels that are developed with Urban Uses only by an improved public right-of-way | C3: Redevelopment Successory Agency | D3: Public Park | E3: City/County | F3: Amador | G3: Northern | H3: mid-rise buildings | I3: Fixed, then Variable | J3: None | K3: Residual Receipts | L3: (B) A project area redevelopment plan adopted pursuant to the Health and Safety Code §33330. | N3: Residual Receipts
A4: Yes, at least 50% of the perimeter adjoining parcels developed with Urban Uses AND at least 50% of the area within the QIP was previously developed | C4: Transit Agency or Transit Operator | D4: Public School/College | E4: Community Service District | F4: Butte | G4: Northern | H4: high-rise buildings | I4: Variable | J4: Other | K4: Deferred | L4: (C) A regional blueprint plan as defined in the California Regional Blueprint Planning Program administered by the Business, Transportation and Housing Agency, or a regional plan as defined in the Government Code section §65060.7. | N4: Deferred
C5: Regional Transportation Planning Agency (RTPA) | D5: Special Needs | E5: State | F5: Calaveras | G5: Northern | I5: Other | K5: Interest Only | N5: Not Yet Known
C6: Local Transportation Commissions | D6: Senior Services | E6: National | F6: Colusa | G6: Northern | K6: Fixed to Float | N6: None
C7: Congestion Management Agencies | E7: Private (full public access) | F7: Contra Costa | G7: Northern | K7: Partial Int. Only | N7: Interest Only
C8: Joint Powers Authority (JPA) | F8: Del Norte | G8: Northern | N8: Fixed to Float
C9: School District | F9: El Dorado | G9: Northern | N9: Partial Int. Only
C10: Facilites District | F10: Fresno | G10: Central | N10: Other
C11: University or Community College District | F11: Glenn | G11: Northern
C12: Developer | F12: Humboldt | G12: Northern
C13: Program Operator | F13: Imperial | G13: Northern
F14: Inyo | G14: Northern
F15: Kern | G15: Southern
F16: Kings | G16: Northern
F17: Lake | G17: Northern
F18: Lassen | G18: Northern
F19: Los Angeles | G19: Southern
F20: Madera | G20: Northern
F21: Marin | G21: Northern
F22: Mariposa | G22: Northern
F23: Mendocino | G23: Northern
F24: Merced | G24: Central
F25: Modoc | G25: Northern
F26: Mono | G26: Northern
F27: Monterey | G27: Northern
F28: Napa | G28: Northern
F29: Nevada | G29: Northern
F30: Orange | G30: Southern
F31: Placer | G31: Northern
F32: Plumas | G32: Northern
F33: Riverside | G33: Southern
F34: Sacramento | G34: Northern
F35: San Benito | G35: Northern
F36: San Bernardino | G36: Southern
F37: San Diego | G37: Southern
F38: San Francisco | G38: Northern
F39: San Joaquin | G39: Central
F40: San Luis Obispo | G40: Southern
F41: San Mateo | G41: Northern
F42: Santa Barbara | G42: Southern
F43: Santa Clara | G43: Northern
F44: Santa Cruz | G44: Northern
F45: Shasta | G45: Northern
F46: Sierra | G46: Northern
F47: Siskiyou | G47: Northern
F48: Solano | G48: Northern
F49: Sonoma | G49: Northern
F50: Stanislaus | G50: Central
F51: Sutter | G51: Northern
F52: Tehama | G52: Northern
F53: Trinity | G53: Northern
F54: Tulare | G54: Central
F55: Tuolumne | G55: Northern
F56: Ventura | G56: Southern
F57: Yolo | G57: Northern
F58: Yuba | G58: Northern
A62: County | B62: CoC | C62: CoC# | D62: CoC PIT | F62: Target Population | G62: Supportive Services
A63: Alameda | B63: Oakland/Alameda County CoC | C63: CA-502 | D63: 8022 | F63: Chronically homeless or is Homeless and a High-cost health user upon initial eligibility | G63: Case management | H63: (2) For projects utilizing 9% competitive low-income housing tax credits, 0.375 points will be awarded for each full 5 percentage point increment above 50%. For example, an application proposing other funds equal to 100% of the NHTF funds will receive 3.75 points up to 10 Points Max.
A64: Alpine | B64: Inyo, Mono, Alpine Counties CoC | C64: CA-613 | D64: 214 | F64: Medi-Cal beneficiary | G64: Peer support activities | H64: (3) For other projects not utilizing 9% competitive low-income housing tax credits, 0.75 points will be awarded for each 5 percentage point increment above 50% up to 10 Points Max.
A65: Amador | B65: Amador, Calaveras, Tuolumne and Mariposa Counties CoC | C65: CA-526 | D65: 845 | F65: Eligible for Supplemental Security Income | G65: Mental health care
A66: Butte | B66: Chico/Paradise/Butte County CoC | C66: CA-519 | D66: 1266 | F66: Eligible to receive services under a program providing services promoting housing stability | G66: Substance use services
A67: Calaveras | B67: Amador, Calaveras, Tuolumne and Mariposa Counties CoC | C67: CA-526 | D67: 845 | F67: Likely to improve his or her health conditions with Supportive housing | G67: Linkage to physical health care
A68: Colusa | B68: Colusa, Glenn, Trinity Counties CoC | C68: CA-523 | D68: 192 | G68: Benefits counseling and advocacy
A69: Contra Costa | B69: Richmond/Contra Costa County CoC | C69: CA-505 | D69: 2295 | G69: Basic housing retention skills
